Workbook

Sheet Type Code Converter
B2: Cross reference VLT2800 -> FC280
B3: GS, 01.07.2016; status: draft
B6: Enter Type Code VLT2800 | D6: Voltage Rating [Vac] | E6: Power rating [kW] | F6: EMC class 61800-3 | G6: Protocol support | K6: Corresponding Type Code FC280 | M6: Voltage Rating [Vac] | N6: Power rating [kW] | O6: EMC class 61800-3 | P6: Protocol support
B9: VLT2803PS2B20SBR4DBF00A00C1 | D9: =+IFERROR(VLOOKUP(B9,Basic_Data!J:M,3,FALSE),"") -> 1900297 | E9: =+IFERROR(VLOOKUP(B9,Basic_Data!J:N,5,FALSE),"") -> 0.37 | F9: =+IFERROR(VLOOKUP(B9,Basic_Data!J:Q,8,FALSE),"") -> C2 | G9: =+IFERROR(VLOOKUP(B9,Basic_Data!J:R,9,FALSE),"") -> Standard | I9: -> | K9: =+IFERROR(VLOOKUP(B9,Basic_Data!J:AE,22,FALSE),"") -> FC-280PK37S2E20H1XXCXXXSXXXXAX | M9: =+IFERROR(VLOOKUP(B9,Basic_Data!J:M,4,FALSE),"") -> 1x200 | N9: =+IFERROR(VLOOKUP(B9,Basic_Data!J:T,11,FALSE),"") -> 0.37 | O9: =+IFERROR(VLOOKUP(K9,Basic_Data!AE:AH,3,FALSE),"") -> C2 / C1 | P9: =IFERROR(VLOOKUP(K9,Basic_Data!AE:AH,4,FALSE),"n.a.") -> Modbus RTU
B11: Responding Sales Code | K11: Responding Sales Code
B13: =+IFERROR(VLOOKUP(B9,Basic_Data!J:K,2,FALSE),"") -> 134H5275 | D13: W | E13: H | F13: D | G13: Frame size | I13: -> | K13: =+IFERROR(VLOOKUP(K9,Basic_Data!AE:AF,2,FALSE),"n.a.") -> 134X3042 | M13: W | N13: H | O13: D | P13: Frame size
B14: Dimensions [mm] | D14: =+IFERROR(VLOOKUP($B$9,Basic_Data!$J:$AU,28,FALSE),"") -> 75 | E14: =+IFERROR(VLOOKUP($B$9,Basic_Data!$J:$AU,29,FALSE),"") -> 200 | F14: =+IFERROR(VLOOKUP($B$9,Basic_Data!$J:$AU,30,FALSE),"") -> 168 | G14: =+IFERROR(VLOOKUP($B$9,Basic_Data!$J:$AU,27,FALSE),"") -> A | K14: =+B14 -> Dimensions [mm] | M14: =+IFERROR(VLOOKUP($K$9,Basic_Data!$AE:$AU,13,FALSE),"") -> 75 | N14: =+IFERROR(VLOOKUP($K$9,Basic_Data!$AE:$AU,14,FALSE),"") -> 210.5 | O14: =+IFERROR(VLOOKUP($K$9,Basic_Data!$AE:$AU,15,FALSE),"") -> 168 | P14: =+IFERROR(VLOOKUP($K$9,Basic_Data!$AE:$AU,12,FALSE),"") -> K1
B15: Mounting holes [mm] | D15: =+IFERROR(VLOOKUP($B$9,Basic_Data!$J:$AU,31,FALSE),"") -> 60 | E15: =+IFERROR(VLOOKUP($B$9,Basic_Data!$J:$AU,32,FALSE),"") -> 191 | K15: =+B15 -> Mounting holes [mm] | M15: =+IFERROR(VLOOKUP($K$9,Basic_Data!$AE:$AU,16,FALSE),"") -> 60 | N15: =+IFERROR(VLOOKUP($K$9,Basic_Data!$AE:$AU,17,FALSE),"") -> 198.2
B20: Instruction:
B21: this cross reference list allows you to get a FC280 type code or sales code based on an existing VLT2800 data
B22: * enter the type code of the existing VLT2800 in the field "B9" and press enter or select from drop down list -> you will get the corresponding type code of the FC280
B25: Additional components which might be necessary to fully replace the existing VLT2800:
B27: Material | C27: Description
B28: 132B0254 | C28: VLT® Control Panel LCP 21 (NLCP)
B29: 132B0102 | C29: NLCP Remote Mounting Kit,w/ 3m cable
B30: 130B1107 | C30: VLT® Control Panel LCP 102 (GLCP)
B31: 132B0281 | C31: Adapter, Graphical LCP
B32: 130B1117 | C32: GLCP Remote Mounting Kit,w/ 3m cable
B33: 132B0262 | C33: LCP Blind cover, IP20/21
B34: 132B0335 | C34: IP21 / Type 1 conversion kit, K1
B35: 132B0336 | C35: IP21 / Type 1 conversion kit, K2
B36: 132B0337 | C36: IP21 / Type 1 conversion kit, K3
B37: 132B0338 | C37: IP21 / Type 1 conversion kit, K4
B38: 132B0339 | C38: IP21 / Type 1 conversion kit, K5
B39: 132B0363 | C39: Adapter Plate, VLT2800 size A
B40: 132B0364 | C40: Adapter Plate, VLT2800 size B
B41: 132B0365 | C41: Adapter Plate, VLT2800 size C
B42: 132B0366 | C42: Adapter Plate, VLT2800 size D
B43: 132B0368 | C43: VLT® 24 V DC Supply MCB 106
B44: 132b0359 | C44: VLT® Memory Module MCM 102
B46: include also power options type codes, once available…

Sheet Sales Code Converter + Solar nr
B3: VLT2800 | K3: FC280
B6: Enter Sales Code VLT2800 | C6: Solar nr. | D6: Voltage Rating [Vac] | E6: Power rating [kW] | F6: EMC class 61800-3 | G6: Protocol support | K6: Corresponding Sales Code FC280 | L6: Solar nr. | M6: Voltage Rating [Vac] | N6: Power rating [kW] | O6: EMC class 61800-3 | P6: Protocol support
B9: 195N0052 | C9: =+IFERROR(VLOOKUP(B9,Basic_Data!K:L,2,FALSE),"n.a.") -> 1900408 | D9: =+IFERROR(VLOOKUP(B13,Basic_Data!J:M,4,FALSE),"") -> 1x200 | E9: =+IFERROR(VLOOKUP(B13,Basic_Data!J:N,5,FALSE),"") -> 1.5 | F9: =+IFERROR(VLOOKUP(B13,Basic_Data!J:Q,8,FALSE),"") -> C2 | G9: =+IFERROR(VLOOKUP(B13,Basic_Data!J:R,9,FALSE),"") -> Standard | I9: -> | K9: =+IFERROR(VLOOKUP(B9,Basic_Data!K:AF,22,FALSE),"n.a.") -> 134X3056 | L9: =+IFERROR(VLOOKUP(B9,Basic_Data!K:AV,38,FALSE),"n.a.") -> 0 | M9: =+IFERROR(VLOOKUP(B13,Basic_Data!J:M,4,FALSE),"") -> 1x200 | N9: =+IFERROR(VLOOKUP(B13,Basic_Data!J:N,5,FALSE),"") -> 1.5 | O9: =+IFERROR(VLOOKUP(K13,Basic_Data!AE:AH,3,FALSE),"") -> C2 / C1 | P9: =+IFERROR(VLOOKUP(K13,Basic_Data!AE:AH,4,FALSE),"") -> Modbus RTU
B11: Responding Type Code | K11: Responding Type Code
B13: =+IFERROR(VLOOKUP(B9,Basic_Data!I:J,2,FALSE),"n.a.") -> VLT2815PS2B20SBR1DBF00A00C0 | D13: W | E13: H | F13: D | G13: Frame size | I13: -> | K13: =+IFERROR(VLOOKUP(B13,Basic_Data!J:AF,22,FALSE),"n.a.") -> FC-280P1K5S2E20H1XXCXXXSXXXXAX | M13: W | N13: H | O13: D | P13: Frame size
B14: =+'Type Code Converter'!B14 -> Dimensions [mm] | D14: =+IFERROR(VLOOKUP(B13,Basic_Data!$J:$AU,28,FALSE),"") -> 75 | E14: =+IFERROR(VLOOKUP(B13,Basic_Data!$J:$AU,29,FALSE),"") -> 200 | F14: =+IFERROR(VLOOKUP(B13,Basic_Data!$J:$AU,30,FALSE),"") -> 168 | G14: =+IFERROR(VLOOKUP(B13,Basic_Data!$J:$AU,27,FALSE),"") -> A | K14: =+'Type Code Converter'!B14 -> Dimensions [mm] | M14: =+IFERROR(VLOOKUP($K$13,Basic_Data!$AE:$AU,13,FALSE),"") -> 75 | N14: =+IFERROR(VLOOKUP($K$13,Basic_Data!$AE:$AU,14,FALSE),"") -> 210.5 | O14: =+IFERROR(VLOOKUP($K$13,Basic_Data!$AE:$AU,15,FALSE),"") -> 168 | P14: =+IFERROR(VLOOKUP($K$13,Basic_Data!$AE:$AU,12,FALSE),"") -> K1
B15: =+'Type Code Converter'!B15 -> Mounting holes [mm] | D15: =+IFERROR(VLOOKUP(B13,Basic_Data!$J:$AU,31,FALSE),"") -> 60 | E15: =+IFERROR(VLOOKUP(B13,Basic_Data!$J:$AU,32,FALSE),"") -> 191 | K15: =+'Type Code Converter'!B15 -> Mounting holes [mm] | M15: =+IFERROR(VLOOKUP($K$13,Basic_Data!$AE:$AU,16,FALSE),"") -> 60 | N15: =+IFERROR(VLOOKUP($K$13,Basic_Data!$AE:$AU,17,FALSE),"") -> 198.2
B20: Instruction:
B21: this cross reference list allows you to get a FC280 type code or sales code based on an existing VLT2800 data
B22: * enter the sales code of the existing VLT2800 in the field "B20" and press enter or select from drop down list -> you will get the corresponding sales code of the FC280
B25: Additional components which might be necessary to fully replace the existing VLT2800:
B27: Material | C27: Description | K27: Solar nummer
B28: 132B0254 | C28: VLT® Control Panel LCP 21 (NLCP) | K28: 1900154
B29: 132B0102 | C29: NLCP Remote Mounting Kit,w/ 3m cable | K29: 1902639
B30: 130B1107 | C30: VLT® Control Panel LCP 102 (GLCP) | K30: 1902303
B31: 132B0281 | C31: Adapter, Graphical LCP | K31: 1900160
B32: 130B1117 | C32: GLCP Remote Mounting Kit,w/ 3m cable | K32: 1902307
B33: 132B0262 | C33: LCP Blind cover, IP20/21 | K33: 1900155
B34: 132B0335 | C34: IP21 / Type 1 conversion kit, K1
B35: 132B0336 | C35: IP21 / Type 1 conversion kit, K2
B36: 132B0337 | C36: IP21 / Type 1 conversion kit, K3
B37: 132B0338 | C37: IP21 / Type 1 conversion kit, K4
B38: 132B0339 | C38: IP21 / Type 1 conversion kit, K5
B39: 132B0363 | C39: Adapter Plate, VLT2800 size A | K39: 1900164
B40: 132B0364 | C40: Adapter Plate, VLT2800 size B | K40: 1900165
B41: 132B0365 | C41: Adapter Plate, VLT2800 size C | K41: 1900166
B42: 132B0366 | C42: Adapter Plate, VLT2800 size D | K42: 1900167
B43: 132B0368 | C43: VLT® 24 V DC Supply MCB 106
B44: 132B0359 | C44: VLT® Memory Module MCM 102
B46: include also power options type codes, once available…

Sheet Solar Oud Nieuw Converter
C26: Solar nr. VLT2800 | F26: Solar nr. FC280
C32: Danfoss nr. | D32: Omschrijving | L32: Solar nr.
C33: 132B0254 | D33: VLT® Control Panel LCP 21 (NLCP) | L33: 1900154
C34: 132B0102 | D34: NLCP Remote Mounting Kit,w/ 3m cable | L34: 1902639
C35: 130B1107 | D35: VLT® Control Panel LCP 102 (GLCP) | L35: 1902303
C36: 132B0281 | D36: Adapter, Graphical LCP | L36: 1900160
C37: 130B1117 | D37: GLCP Remote Mounting Kit,w/ 3m cable | L37: 1902307
C38: 132B0262 | D38: LCP Blind cover, IP20/21 | L38: 1900155
C39: 132B0335 | D39: IP21 / Type 1 conversion kit, K1
C40: 132B0336 | D40: IP21 / Type 1 conversion kit, K2
C41: 132B0337 | D41: IP21 / Type 1 conversion kit, K3
C42: 132B0338 | D42: IP21 / Type 1 conversion kit, K4
C43: 132B0339 | D43: IP21 / Type 1 conversion kit, K5
C44: 132B0363 | D44: Adapter Plate, VLT2800 size A | L44: 1900164
C45: 132B0364 | D45: Adapter Plate, VLT2800 size B | L45: 1900165
C46: 132B0365 | D46: Adapter Plate, VLT2800 size C | L46: 1900166
C47: 132B0366 | D47: Adapter Plate, VLT2800 size D | L47: 1900167
C48: 132B0368 | D48: VLT® 24 V DC Supply MCB 106
C49: 132B0359 | D49: VLT® Memory Module MCM 102

Sheet Basic_Data
A1: Product Line (M) | C1: Product class (M) | E1: PE Stat. Grps (M) | G1: Stat. number (M) | I1: Material | J1: Type Code | K1: Material | L1: Solar nr. VLT2800 | M1: Voltage rating | N1: Power Rating [kW] | O1: Brake Chopper | P1: EMC Filter | Q1: EMC Filter class EN61800-3 | R1: Bus Protocol Support | S1: Coating | U1: FC280 Type Code | AE1: Full Type Code FC280 | AF1: Sales Code FC280 | AG1: EMC Filter class EN61800-3 | AH1: Bus Protocol Support | AJ1: VLT2800 Frame Size | AK1: H | AL1: W | AM1: D | AN1: H1 | AO1: H2 | AP1: FC280 Frame Size | AQ1: H | AR1: W | AS1: D | AT1: H1 | AU1: H2 | AV1: Solar nr. FC280
A2: 09 | B2: VLT Drives | C2: 046 | D2: Static frequency converters | E2: P281_200 | F2: 2803-2840 200V | G2: 09571 | H2: VLT 2803/200V | I2: 131Z8972 | J2: VLT2803PS2B20SBR1DBF00A00C1 | K2: 131Z8972 | L2: 1900396 | M2: 1x200 | N2: 0.37 | O2: Y | P2: R1 | Q2: C2 | R2: Standard | S2: Y | T2: 0.37 | U2: FC-280PK37 | V2: S2 | W2: E20 | X2: H1 | Y2: X | Z2: XCXXX | AA2: SXXX | AB2: X | AC2: AX | AE2: =+CONCATENATE(U2,V2,W2,X2,Y2,Z2,AA2,AB2,AC2) -> FC-280PK37S2E20H1XXCXXXSXXXXAX | AF2: =+VLOOKUP(AE2,TypeCodesFC280!AH:AI,2,FALSE) -> 134X3042 | AG2: C2 / C1 | AH2: Modbus RTU | AJ2: A | AK2: =+VLOOKUP($AJ2,Dimensions!$B$5:$G$13,2,FALSE) -> 75 | AL2: =+VLOOKUP($AJ2,Dimensions!$B$5:$G$13,3,FALSE) -> 200 | AM2: =+VLOOKUP($AJ2,Dimensions!$B$5:$G$13,4,FALSE) -> 168 | AN2: =+VLOOKUP($AJ2,Dimensions!$B$5:$G$13,5,FALSE) -> 60 | AO2: =+VLOOKUP($AJ2,Dimensions!$B$5:$G$13,6,FALSE) -> 191 | AP2: K1 | AQ2: =+VLOOKUP($AP2,Dimensions!$B$5:$G$13,2,FALSE) -> 75 | AR2: =+VLOOKUP($AP2,Dimensions!$B$5:$G$13,3,FALSE) -> 210.5 | AS2: =+VLOOKUP($AP2,Dimensions!$B$5:$G$13,4,FALSE) -> 168 | AT2: =+VLOOKUP($AP2,Dimensions!$B$5:$G$13,5,FALSE) -> 60 | AU2: =+VLOOKUP($AP2,Dimensions!$B$5:$G$13,6,FALSE) -> 198.2
A3: 09 | B3: VLT Drives | C3: 046 | D3: Static frequency converters | E3: P281_200 | F3: 2803-2840 200V | G3: 09571 | H3: VLT 2803/200V | I3: 134H2361 | J3: VLT2803PD2B20SBR0DBF12A00C1 | K3: 134H2361 | L3: 1900296 | M3: 1x200 / 3x200 | N3: 0.37 | O3: Y | P3: R0 | Q3: no class | R3: PB 12Mbit | S3: Y | T3: 0.37 | U3: FC-280PK37 | V3: S(T)2 | W3: E20 | X3: H2 | Y3: B | Z3: XCXXX | AA3: SXXX | AB3: X | AC3: A0 | AE3: FC-280PK37S(T)2E20H2BXCXXXSXXXXA0 | AF3: =+VLOOKUP(AE3,TypeCodesFC280!AH:AI,2,FALSE) ->  | AG3: C3 | AH3: Profibus | AJ3: A | AK3: =+VLOOKUP($AJ3,Dimensions!$B$5:$G$13,2,FALSE) -> 75 | AL3: =+VLOOKUP($AJ3,Dimensions!$B$5:$G$13,3,FALSE) -> 200 | AM3: =+VLOOKUP($AJ3,Dimensions!$B$5:$G$13,4,FALSE) -> 168 | AN3: =+VLOOKUP($AJ3,Dimensions!$B$5:$G$13,5,FALSE) -> 60 | AO3: =+VLOOKUP($AJ3,Dimensions!$B$5:$G$13,6,FALSE) -> 191 | AP3: K1 | AQ3: =+VLOOKUP($AP3,Dimensions!$B$5:$G$13,2,FALSE) -> 75 | AR3: =+VLOOKUP($AP3,Dimensions!$B$5:$G$13,3,FALSE) -> 210.5 | AS3: =+VLOOKUP($AP3,Dimensions!$B$5:$G$13,4,FALSE) -> 168 | AT3: =+VLOOKUP($AP3,Dimensions!$B$5:$G$13,5,FALSE) -> 60 | AU3: =+VLOOKUP($AP3,Dimensions!$B$5:$G$13,6,FALSE) -> 198.2
A4: 09 | B4: VLT Drives | C4: 046 | D4: Static frequency converters | E4: P281_200 | F4: 2803-2840 200V | G4: 09571 | H4: VLT 2803/200V | I4: 134H2362 | J4: VLT2803PS2B20SBR1DBF12A00C1 | K4: 134H2362 | L4: 1900397 | M4: 1x200 | N4: 0.37 | O4: Y | P4: R1 | Q4: C2 | R4: PB 12Mbit | S4: Y | T4: 0.37 | U4: FC-280PK37 | V4: S2 | W4: E20 | X4: H1 | Y4: X | Z4: XCXXX | AA4: SXXX | AB4: X | AC4: A0 | AE4: FC-280PK37S2E20H1XXCXXXSXXXXA0 | AF4: =+VLOOKUP(AE4,TypeCodesFC280!AH:AI,2,FALSE) -> 134X3064 | AG4: C2 / C1 | AH4: Profibus | AJ4: A | AK4: =+VLOOKUP($AJ4,Dimensions!$B$5:$G$13,2,FALSE) -> 75 | AL4: =+VLOOKUP($AJ4,Dimensions!$B$5:$G$13,3,FALSE) -> 200 | AM4: =+VLOOKUP($AJ4,Dimensions!$B$5:$G$13,4,FALSE) -> 168 | AN4: =+VLOOKUP($AJ4,Dimensions!$B$5:$G$13,5,FALSE) -> 60 | AO4: =+VLOOKUP($AJ4,Dimensions!$B$5:$G$13,6,FALSE) -> 191 | AP4: K1 | AQ4: =+VLOOKUP($AP4,Dimensions!$B$5:$G$13,2,FALSE) -> 75 | AR4: =+VLOOKUP($AP4,Dimensions!$B$5:$G$13,3,FALSE) -> 210.5 | AS4: =+VLOOKUP($AP4,Dimensions!$B$5:$G$13,4,FALSE) -> 168 | AT4: =+VLOOKUP($AP4,Dimensions!$B$5:$G$13,5,FALSE) -> 60 | AU4: =+VLOOKUP($AP4,Dimensions!$B$5:$G$13,6,FALSE) -> 198.2
A5: 09 | B5: VLT Drives | C5: 046 | D5: Static frequency converters | E5: P281_200 | F5: 2803-2840 200V | G5: 09571 | H5: VLT 2803/200V | I5: 134H5275 | J5: VLT2803PS2B20SBR4DBF00A00C1 | K5: 134H5275 | L5: 1900297 | M5: 1x200 | N5: 0.37 | O5: Y | P5: R4 | Q5: C2 | R5: Standard | S5: Y | T5: 0.37 | U5: FC-280PK37 | V5: S2 | W5: E20 | X5: H1 | Y5: X | Z5: XCXXX | AA5: SXXX | AB5: X | AC5: AX | AE5: FC-280PK37S2E20H1XXCXXXSXXXXAX | AF5: =+VLOOKUP(AE5,TypeCodesFC280!AH:AI,2,FALSE) -> 134X3042 | AG5: C2 / C1 | AH5: Modbus RTU | AJ5: A | AK5: =+VLOOKUP($AJ5,Dimensions!$B$5:$G$13,2,FALSE) -> 75 | AL5: =+VLOOKUP($AJ5,Dimensions!$B$5:$G$13,3,FALSE) -> 200 | AM5: =+VLOOKUP($AJ5,Dimensions!$B$5:$G$13,4,FALSE) -> 168 | AN5: =+VLOOKUP($AJ5,Dimensions!$B$5:$G$13,5,FALSE) -> 60 | AO5: =+VLOOKUP($AJ5,Dimensions!$B$5:$G$13,6,FALSE) -> 191 | AP5: K1 | AQ5: =+VLOOKUP($AP5,Dimensions!$B$5:$G$13,2,FALSE) -> 75 | AR5: =+VLOOKUP($AP5,Dimensions!$B$5:$G$13,3,FALSE) -> 210.5 | AS5: =+VLOOKUP($AP5,Dimensions!$B$5:$G$13,4,FALSE) -> 168 | AT5: =+VLOOKUP($AP5,Dimensions!$B$5:$G$13,5,FALSE) -> 60 | AU5: =+VLOOKUP($AP5,Dimensions!$B$5:$G$13,6,FALSE) -> 198.2
A6: 09 | B6: VLT Drives | C6: 046 | D6: Static frequency converters | E6: P281_200 | F6: 2803-2840 200V | G6: 09571 | H6: VLT 2803/200V | I6: 134H5291 | J6: VLT2803PS2B20SBR4DBF12A00C1 | K6: 134H5291 | M6: 1x200 | N6: 0.37 | O6: Y | P6: R4 | Q6: C2 | R6: PB 12Mbit | S6: Y | T6: 0.37 | U6: FC-280PK37 | V6: S2 | W6: E20 | X6: H1 | Y6: X | Z6: XCXXX | AA6: SXXX | AB6: X | AC6: A0 | AE6: FC-280PK37S2E20H1XXCXXXSXXXXA0 | AF6: =+VLOOKUP(AE6,TypeCodesFC280!AH:AI,2,FALSE) -> 134X3064 | AG6: C2 / C1 | AH6: Profibus | AJ6: A | AK6: =+VLOOKUP($AJ6,Dimensions!$B$5:$G$13,2,FALSE) -> 75 | AL6: =+VLOOKUP($AJ6,Dimensions!$B$5:$G$13,3,FALSE) -> 200 | AM6: =+VLOOKUP($AJ6,Dimensions!$B$5:$G$13,4,FALSE) -> 168 | AN6: =+VLOOKUP($AJ6,Dimensions!$B$5:$G$13,5,FALSE) -> 60 | AO6: =+VLOOKUP($AJ6,Dimensions!$B$5:$G$13,6,FALSE) -> 191 | AP6: K1 | AQ6: =+VLOOKUP($AP6,Dimensions!$B$5:$G$13,2,FALSE) -> 75 | AR6: =+VLOOKUP($AP6,Dimensions!$B$5:$G$13,3,FALSE) -> 210.5 | AS6: =+VLOOKUP($AP6,Dimensions!$B$5:$G$13,4,FALSE) -> 168 | AT6: =+VLOOKUP($AP6,Dimensions!$B$5:$G$13,5,FALSE) -> 60 | AU6: =+VLOOKUP($AP6,Dimensions!$B$5:$G$13,6,FALSE) -> 198.2
A7: 09 | B7: VLT Drives | C7: 046 | D7: Static frequency converters | E7: P281_200 | F7: 2803-2840 200V | G7: 09571 | H7: VLT 2803/200V | I7: 134H5323 | J7: VLT2803PS2B20SBR4DBF30A00C1 | K7: 134H5323 | M7: 1x200 | N7: 0.37 | O7: Y | P7: R4 | Q7: C2 | R7: DeviceNet | S7: Y | T7: 0.37 | U7: FC-280PK37 | V7: S2 | W7: E20 | X7: H1 | Y7: X | Z7: XCXXX | AA7: SXXX | AB7: X | AC7: ? | AE7: FC-280PK37S2E20H1XXCXXXSXXXX? | AF7: =+VLOOKUP(AE7,TypeCodesFC280!AH:AI,2,FALSE) ->  | AG7: C2 / C1 | AH7: t.b. | AJ7: A | AK7: =+VLOOKUP($AJ7,Dimensions!$B$5:$G$13,2,FALSE) -> 75 | AL7: =+VLOOKUP($AJ7,Dimensions!$B$5:$G$13,3,FALSE) -> 200 | AM7: =+VLOOKUP($AJ7,Dimensions!$B$5:$G$13,4,FALSE) -> 168 | AN7: =+VLOOKUP($AJ7,Dimensions!$B$5:$G$13,5,FALSE) -> 60 | AO7: =+VLOOKUP($AJ7,Dimensions!$B$5:$G$13,6,FALSE) -> 191 | AP7: K1 | AQ7: =+VLOOKUP($AP7,Dimensions!$B$5:$G$13,2,FALSE) -> 75 | AR7: =+VLOOKUP($AP7,Dimensions!$B$5:$G$13,3,FALSE) -> 210.5 | AS7: =+VLOOKUP($AP7,Dimensions!$B$5:$G$13,4,FALSE) -> 168 | AT7: =+VLOOKUP($AP7,Dimensions!$B$5:$G$13,5,FALSE) -> 60 | AU7: =+VLOOKUP($AP7,Dimensions!$B$5:$G$13,6,FALSE) -> 198.2
A8: 09 | B8: VLT Drives | C8: 046 | D8: Static frequency converters | E8: P281_200 | F8: 2803-2840 200V | G8: 09571 | H8: VLT 2803/200V | I8: 134L4496 | J8: VLT2803PD2B20SBR0DBF30A00C1 | K8: 134L4496 | M8: 1x200 / 3x200 | N8: 0.37 | O8: Y | P8: R0 | Q8: no class | R8: DeviceNet | S8: Y | T8: 0.37 | U8: FC-280PK37 | V8: S(T)2 | W8: E20 | X8: H2 | Y8: B | Z8: XCXXX | AA8: SXXX | AB8: X | AC8: ? | AE8: =+CONCATENATE(U8,V8,W8,X8,Y8,Z8,AA8,AB8,AC8) -> FC-280PK37S(T)2E20H2BXCXXXSXXXX? | AF8: =+VLOOKUP(AE8,TypeCodesFC280!AH:AI,2,FALSE) ->  | AG8: C3 | AH8: t.b. | AJ8: A | AK8: =+VLOOKUP($AJ8,Dimensions!$B$5:$G$13,2,FALSE) -> 75 | AL8: =+VLOOKUP($AJ8,Dimensions!$B$5:$G$13,3,FALSE) -> 200 | AM8: =+VLOOKUP($AJ8,Dimensions!$B$5:$G$13,4,FALSE) -> 168 | AN8: =+VLOOKUP($AJ8,Dimensions!$B$5:$G$13,5,FALSE) -> 60 | AO8: =+VLOOKUP($AJ8,Dimensions!$B$5:$G$13,6,FALSE) -> 191 | AP8: K1 | AQ8: =+VLOOKUP($AP8,Dimensions!$B$5:$G$13,2,FALSE) -> 75 | AR8: =+VLOOKUP($AP8,Dimensions!$B$5:$G$13,3,FALSE) -> 210.5 | AS8: =+VLOOKUP($AP8,Dimensions!$B$5:$G$13,4,FALSE) -> 168 | AT8: =+VLOOKUP($AP8,Dimensions!$B$5:$G$13,5,FALSE) -> 60 | AU8: =+VLOOKUP($AP8,Dimensions!$B$5:$G$13,6,FALSE) -> 198.2
A9: 09 | B9: VLT Drives | C9: 046 | D9: Static frequency converters | E9: P281_200 | F9: 2803-2840 200V | G9: 09571 | H9: VLT 2803/200V | I9: 134L4497 | J9: VLT2803PS2B20SBR1DBF30A00C1 | K9: 134L4497 | M9: 1x200 | N9: 0.37 | O9: Y | P9: R1 | Q9: C2 | R9: DeviceNet | S9: Y | T9: 0.37 | U9: FC-280PK37 | V9: S2 | W9: E20 | X9: H1 | Y9: X | Z9: XCXXX | AA9: SXXX | AB9: X | AC9: ? | AE9: FC-280PK37S2E20H1XXCXXXSXXXX? | AF9: =+VLOOKUP(AE9,TypeCodesFC280!AH:AI,2,FALSE) ->  | AG9: C2 / C1 | AH9: t.b. | AJ9: A | AK9: =+VLOOKUP($AJ9,Dimensions!$B$5:$G$13,2,FALSE) -> 75 | AL9: =+VLOOKUP($AJ9,Dimensions!$B$5:$G$13,3,FALSE) -> 200 | AM9: =+VLOOKUP($AJ9,Dimensions!$B$5:$G$13,4,FALSE) -> 168 | AN9: =+VLOOKUP($AJ9,Dimensions!$B$5:$G$13,5,FALSE) -> 60 | AO9: =+VLOOKUP($AJ9,Dimensions!$B$5:$G$13,6,FALSE) -> 191 | AP9: K1 | AQ9: =+VLOOKUP($AP9,Dimensions!$B$5:$G$13,2,FALSE) -> 75 | AR9: =+VLOOKUP($AP9,Dimensions!$B$5:$G$13,3,FALSE) -> 210.5 | AS9: =+VLOOKUP($AP9,Dimensions!$B$5:$G$13,4,FALSE) -> 168 | AT9: =+VLOOKUP($AP9,Dimensions!$B$5:$G$13,5,FALSE) -> 60 | AU9: =+VLOOKUP($AP9,Dimensions!$B$5:$G$13,6,FALSE) -> 198.2
A10: 09 | B10: VLT Drives | C10: 046 | D10: Static frequency converters | E10: P281_200 | F10: 2803-2840 200V | G10: 09571 | H10: VLT 2803/200V | I10: 178B8589 | J10: VLT2803PD2B20SBR0DBF00A00C1 | K10: 178B8589 | L10: 1900300 | M10: 1x200 / 3x200 | N10: 0.37 | O10: Y | P10: R0 | Q10: no class | R10: Standard | S10: Y | T10: 0.37 | U10: FC-280PK37 | V10: S(T)2 | W10: E20 | X10: H2 | Y10: B | Z10: XCXXX | AA10: SXXX | AB10: X | AC10: AX | AE10: FC-280PK37S(T)2E20H2BXCXXXSXXXXAX | AF10: =+VLOOKUP(AE10,TypeCodesFC280!AH:AI,2,FALSE) ->  | AG10: C3 | AH10: Modbus RTU | AJ10: A | AK10: =+VLOOKUP($AJ10,Dimensions!$B$5:$G$13,2,FALSE) -> 75 | AL10: =+VLOOKUP($AJ10,Dimensions!$B$5:$G$13,3,FALSE) -> 200 | AM10: =+VLOOKUP($AJ10,Dimensions!$B$5:$G$13,4,FALSE) -> 168 | AN10: =+VLOOKUP($AJ10,Dimensions!$B$5:$G$13,5,FALSE) -> 60 | AO10: =+VLOOKUP($AJ10,Dimensions!$B$5:$G$13,6,FALSE) -> 191 | AP10: K1 | AQ10: =+VLOOKUP($AP10,Dimensions!$B$5:$G$13,2,FALSE) -> 75 | AR10: =+VLOOKUP($AP10,Dimensions!$B$5:$G$13,3,FALSE) -> 210.5 | AS10: =+VLOOKUP($AP10,Dimensions!$B$5:$G$13,4,FALSE) -> 168 | AT10: =+VLOOKUP($AP10,Dimensions!$B$5:$G$13,5,FALSE) -> 60 | AU10: =+VLOOKUP($AP10,Dimensions!$B$5:$G$13,6,FALSE) -> 198.2
A11: 09 | B11: VLT Drives | C11: 046 | D11: Static frequency converters | E11: P281_200 | F11: 2803-2840 200V | G11: 09571 | H11: VLT 2803/200V | I11: 178F7567 | J11: VLT2803PS2B20SBR1DBF10A00C1 | K11: 178F7567 | M11: 1x200 | N11: 0.37 | O11: Y | P11: R1 | Q11: C2 | R11: PB 3MBit | S11: Y | T11: 0.37 | U11: FC-280PK37 | V11: S2 | W11: E20 | X11: H1 | Y11: X | Z11: XCXXX | AA11: SXXX | AB11: X | AC11: A0 | AE11: FC-280PK37S2E20H1XXCXXXSXXXXA0 | AF11: =+VLOOKUP(AE11,TypeCodesFC280!AH:AI,2,FALSE) -> 134X3064 | AG11: C2 / C1 | AH11: Profibus | AJ11: A | AK11: =+VLOOKUP($AJ11,Dimensions!$B$5:$G$13,2,FALSE) -> 75 | AL11: =+VLOOKUP($AJ11,Dimensions!$B$5:$G$13,3,FALSE) -> 200 | AM11: =+VLOOKUP($AJ11,Dimensions!$B$5:$G$13,4,FALSE) -> 168 | AN11: =+VLOOKUP($AJ11,Dimensions!$B$5:$G$13,5,FALSE) -> 60 | AO11: =+VLOOKUP($AJ11,Dimensions!$B$5:$G$13,6,FALSE) -> 191 | AP11: K1 | AQ11: =+VLOOKUP($AP11,Dimensions!$B$5:$G$13,2,FALSE) -> 75 | AR11: =+VLOOKUP($AP11,Dimensions!$B$5:$G$13,3,FALSE) -> 210.5 | AS11: =+VLOOKUP($AP11,Dimensions!$B$5:$G$13,4,FALSE) -> 168 | AT11: =+VLOOKUP($AP11,Dimensions!$B$5:$G$13,5,FALSE) -> 60 | AU11: =+VLOOKUP($AP11,Dimensions!$B$5:$G$13,6,FALSE) -> 198.2
A12: 09 | B12: VLT Drives | C12: 046 | D12: Static frequency converters | E12: P281_200 | F12: 2803-2840 200V | G12: 09572 | H12: VLT 2805/200V | I12: 131Z8977 | J12: VLT2805PS2B20SBR1DBF00A00C1 | K12: 131Z8977 | L12: 1900399 | M12: 1x200 | N12: 0.55 | O12: Y | P12: R1 | Q12: C2 | R12: Standard | S12: Y | T12: 0.55 | U12: FC-280PK55 | V12: S2 | W12: E20 | X12: H1 | Y12: X | Z12: XCXXX | AA12: SXXX | AB12: X | AC12: AX | AE12: FC-280PK55S2E20H1XXCXXXSXXXXAX | AF12: =+VLOOKUP(AE12,TypeCodesFC280!AH:AI,2,FALSE) -> 134X3053 | AG12: C2 / C1 | AH12: Modbus RTU | AJ12: A | AK12: =+VLOOKUP($AJ12,Dimensions!$B$5:$G$13,2,FALSE) -> 75 | AL12: =+VLOOKUP($AJ12,Dimensions!$B$5:$G$13,3,FALSE) -> 200 | AM12: =+VLOOKUP($AJ12,Dimensions!$B$5:$G$13,4,FALSE) -> 168 | AN12: =+VLOOKUP($AJ12,Dimensions!$B$5:$G$13,5,FALSE) -> 60 | AO12: =+VLOOKUP($AJ12,Dimensions!$B$5:$G$13,6,FALSE) -> 191 | AP12: K1 | AQ12: =+VLOOKUP($AP12,Dimensions!$B$5:$G$13,2,FALSE) -> 75 | AR12: =+VLOOKUP($AP12,Dimensions!$B$5:$G$13,3,FALSE) -> 210.5 | AS12: =+VLOOKUP($AP12,Dimensions!$B$5:$G$13,4,FALSE) -> 168 | AT12: =+VLOOKUP($AP12,Dimensions!$B$5:$G$13,5,FALSE) -> 60 | AU12: =+VLOOKUP($AP12,Dimensions!$B$5:$G$13,6,FALSE) -> 198.2
A13: 09 | B13: VLT Drives | C13: 046 | D13: Static frequency converters | E13: P281_200 | F13: 2803-2840 200V | G13: 09572 | H13: VLT 2805/200V | I13: 134H2363 | J13: VLT2805PS2B20SBR1DBF12A00C1 | K13: 134H2363 | L13: 1900301 | M13: 1x200 | N13: 0.55 | O13: Y | P13: R1 | Q13: C2 | R13: PB 12Mbit | S13: Y | T13: 0.55 | U13: FC-280PK55 | V13: S2 | W13: E20 | X13: H1 | Y13: X | Z13: XCXXX | AA13: SXXX | AB13: X | AC13: A0 | AE13: FC-280PK55S2E20H1XXCXXXSXXXXA0 | AF13: =+VLOOKUP(AE13,TypeCodesFC280!AH:AI,2,FALSE) -> 134X3065 | AG13: C2 / C1 | AH13: Profibus | AJ13: A | AK13: =+VLOOKUP($AJ13,Dimensions!$B$5:$G$13,2,FALSE) -> 75 | AL13: =+VLOOKUP($AJ13,Dimensions!$B$5:$G$13,3,FALSE) -> 200 | AM13: =+VLOOKUP($AJ13,Dimensions!$B$5:$G$13,4,FALSE) -> 168 | AN13: =+VLOOKUP($AJ13,Dimensions!$B$5:$G$13,5,FALSE) -> 60 | AO13: =+VLOOKUP($AJ13,Dimensions!$B$5:$G$13,6,FALSE) -> 191 | AP13: K1 | AQ13: =+VLOOKUP($AP13,Dimensions!$B$5:$G$13,2,FALSE) -> 75 | AR13: =+VLOOKUP($AP13,Dimensions!$B$5:$G$13,3,FALSE) -> 210.5 | AS13: =+VLOOKUP($AP13,Dimensions!$B$5:$G$13,4,FALSE) -> 168 | AT13: =+VLOOKUP($AP13,Dimensions!$B$5:$G$13,5,FALSE) -> 60 | AU13: =+VLOOKUP($AP13,Dimensions!$B$5:$G$13,6,FALSE) -> 198.2
A14: 09 | B14: VLT Drives | C14: 046 | D14: Static frequency converters | E14: P281_200 | F14: 2803-2840 200V | G14: 09572 | H14: VLT 2805/200V | I14: 134H5276 | J14: VLT2805PS2B20SBR4DBF00A00C1 | K14: 134H5276 | L14: 1900303 | M14: 1x200 | N14: 0.55 | O14: Y | P14: R4 | Q14: C2 | R14: Standard | S14: Y | T14: 0.55 | U14: FC-280PK55 | V14: S2 | W14: E20 | X14: H1 | Y14: X | Z14: XCXXX | AA14: SXXX | AB14: X | AC14: AX | AE14: FC-280PK55S2E20H1XXCXXXSXXXXAX | AF14: =+VLOOKUP(AE14,TypeCodesFC280!AH:AI,2,FALSE) -> 134X3053 | AG14: C2 / C1 | AH14: Modbus RTU | AJ14: A | AK14: =+VLOOKUP($AJ14,Dimensions!$B$5:$G$13,2,FALSE) -> 75 | AL14: =+VLOOKUP($AJ14,Dimensions!$B$5:$G$13,3,FALSE) -> 200 | AM14: =+VLOOKUP($AJ14,Dimensions!$B$5:$G$13,4,FALSE) -> 168 | AN14: =+VLOOKUP($AJ14,Dimensions!$B$5:$G$13,5,FALSE) -> 60 | AO14: =+VLOOKUP($AJ14,Dimensions!$B$5:$G$13,6,FALSE) -> 191 | AP14: K1 | AQ14: =+VLOOKUP($AP14,Dimensions!$B$5:$G$13,2,FALSE) -> 75 | AR14: =+VLOOKUP($AP14,Dimensions!$B$5:$G$13,3,FALSE) -> 210.5 | AS14: =+VLOOKUP($AP14,Dimensions!$B$5:$G$13,4,FALSE) -> 168 | AT14: =+VLOOKUP($AP14,Dimensions!$B$5:$G$13,5,FALSE) -> 60 | AU14: =+VLOOKUP($AP14,Dimensions!$B$5:$G$13,6,FALSE) -> 198.2
A15: 09 | B15: VLT Drives | C15: 046 | D15: Static frequency converters | E15: P281_200 | F15: 2803-2840 200V | G15: 09572 | H15: VLT 2805/200V | I15: 134H5292 | J15: VLT2805PS2B20SBR4DBF12A00C1 | K15: 134H5292 | M15: 1x200 | N15: 0.55 | O15: Y | P15: R4 | Q15: C2 | R15: PB 12Mbit | S15: Y | T15: 0.55 | U15: FC-280PK55 | V15: S2 | W15: E20 | X15: H1 | Y15: X | Z15: XCXXX | AA15: SXXX | AB15: X | AC15: A0 | AE15: FC-280PK55S2E20H1XXCXXXSXXXXA0 | AF15: =+VLOOKUP(AE15,TypeCodesFC280!AH:AI,2,FALSE) -> 134X3065 | AG15: C2 / C1 | AH15: Profibus | AJ15: A | AK15: =+VLOOKUP($AJ15,Dimensions!$B$5:$G$13,2,FALSE) -> 75 | AL15: =+VLOOKUP($AJ15,Dimensions!$B$5:$G$13,3,FALSE) -> 200 | AM15: =+VLOOKUP($AJ15,Dimensions!$B$5:$G$13,4,FALSE) -> 168 | AN15: =+VLOOKUP($AJ15,Dimensions!$B$5:$G$13,5,FALSE) -> 60 | AO15: =+VLOOKUP($AJ15,Dimensions!$B$5:$G$13,6,FALSE) -> 191 | AP15: K1 | AQ15: =+VLOOKUP($AP15,Dimensions!$B$5:$G$13,2,FALSE) -> 75 | AR15: =+VLOOKUP($AP15,Dimensions!$B$5:$G$13,3,FALSE) -> 210.5 | AS15: =+VLOOKUP($AP15,Dimensions!$B$5:$G$13,4,FALSE) -> 168 | AT15: =+VLOOKUP($AP15,Dimensions!$B$5:$G$13,5,FALSE) -> 60 | AU15: =+VLOOKUP($AP15,Dimensions!$B$5:$G$13,6,FALSE) -> 198.2
A16: 09 | B16: VLT Drives | C16: 046 | D16: Static frequency converters | E16: P281_200 | F16: 2803-2840 200V | G16: 09572 | H16: VLT 2805/200V | I16: 134H5311 | J16: VLT2805PS2B20SBR4DBF30A00C1 | K16: 134H5311 | M16: 1x200 | N16: 0.55 | O16: Y | P16: R4 | Q16: C2 | R16: DeviceNet | S16: Y | T16: 0.55 | U16: FC-280PK55 | V16: S2 | W16: E20 | X16: H1 | Y16: X | Z16: XCXXX | AA16: SXXX | AB16: X | AC16: ? | AE16: FC-280PK55S2E20H1XXCXXXSXXXX? | AF16: =+VLOOKUP(AE16,TypeCodesFC280!AH:AI,2,FALSE) ->  | AG16: C2 / C1 | AH16: t.b. | AJ16: A | AK16: =+VLOOKUP($AJ16,Dimensions!$B$5:$G$13,2,FALSE) -> 75 | AL16: =+VLOOKUP($AJ16,Dimensions!$B$5:$G$13,3,FALSE) -> 200 | AM16: =+VLOOKUP($AJ16,Dimensions!$B$5:$G$13,4,FALSE) -> 168 | AN16: =+VLOOKUP($AJ16,Dimensions!$B$5:$G$13,5,FALSE) -> 60 | AO16: =+VLOOKUP($AJ16,Dimensions!$B$5:$G$13,6,FALSE) -> 191 | AP16: K1 | AQ16: =+VLOOKUP($AP16,Dimensions!$B$5:$G$13,2,FALSE) -> 75 | AR16: =+VLOOKUP($AP16,Dimensions!$B$5:$G$13,3,FALSE) -> 210.5 | AS16: =+VLOOKUP($AP16,Dimensions!$B$5:$G$13,4,FALSE) -> 168 | AT16: =+VLOOKUP($AP16,Dimensions!$B$5:$G$13,5,FALSE) -> 60 | AU16: =+VLOOKUP($AP16,Dimensions!$B$5:$G$13,6,FALSE) -> 198.2
A17: 09 | B17: VLT Drives | C17: 046 | D17: Static frequency converters | E17: P281_200 | F17: 2803-2840 200V | G17: 09572 | H17: VLT 2805/200V | I17: 134L3270 | J17: VLT2805PD2B20SBR0DBF12A00C1 | K17: 134L3270 | L17: 1900311 | M17: 1x200 / 3x200 | N17: 0.55 | O17: Y | P17: R0 | Q17: no class | R17: PB 12Mbit | S17: Y | T17: 0.55 | U17: FC-280PK55 | V17: S(T)2 | W17: E20 | X17: H2 | Y17: B | Z17: XCXXX | AA17: SXXX | AB17: X | AC17: A0 | AE17: FC-280PK55S(T)2E20H2BXCXXXSXXXXA0 | AF17: =+VLOOKUP(AE17,TypeCodesFC280!AH:AI,2,FALSE) ->  | AG17: C3 | AH17: Profibus | AJ17: A | AK17: =+VLOOKUP($AJ17,Dimensions!$B$5:$G$13,2,FALSE) -> 75 | AL17: =+VLOOKUP($AJ17,Dimensions!$B$5:$G$13,3,FALSE) -> 200 | AM17: =+VLOOKUP($AJ17,Dimensions!$B$5:$G$13,4,FALSE) -> 168 | AN17: =+VLOOKUP($AJ17,Dimensions!$B$5:$G$13,5,FALSE) -> 60 | AO17: =+VLOOKUP($AJ17,Dimensions!$B$5:$G$13,6,FALSE) -> 191 | AP17: K1 | AQ17: =+VLOOKUP($AP17,Dimensions!$B$5:$G$13,2,FALSE) -> 75 | AR17: =+VLOOKUP($AP17,Dimensions!$B$5:$G$13,3,FALSE) -> 210.5 | AS17: =+VLOOKUP($AP17,Dimensions!$B$5:$G$13,4,FALSE) -> 168 | AT17: =+VLOOKUP($AP17,Dimensions!$B$5:$G$13,5,FALSE) -> 60 | AU17: =+VLOOKUP($AP17,Dimensions!$B$5:$G$13,6,FALSE) -> 198.2
A18: 09 | B18: VLT Drives | C18: 046 | D18: Static frequency converters | E18: P281_200 | F18: 2803-2840 200V | G18: 09572 | H18: VLT 2805/200V | I18: 134L4498 | J18: VLT2805PD2B20SBR0DBF30A00C1 | K18: 134L4498 | M18: 1x200 / 3x200 | N18: 0.55 | O18: Y | P18: R0 | Q18: no class | R18: DeviceNet | S18: Y | T18: 0.55 | U18: FC-280PK55 | V18: S(T)2 | W18: E20 | X18: H2 | Y18: B | Z18: XCXXX | AA18: SXXX | AB18: X | AC18: ? | AE18: FC-280PK55S(T)2E20H2BXCXXXSXXXX? | AF18: =+VLOOKUP(AE18,TypeCodesFC280!AH:AI,2,FALSE) ->  | AG18: C3 | AH18: t.b. | AJ18: A | AK18: =+VLOOKUP($AJ18,Dimensions!$B$5:$G$13,2,FALSE) -> 75 | AL18: =+VLOOKUP($AJ18,Dimensions!$B$5:$G$13,3,FALSE) -> 200 | AM18: =+VLOOKUP($AJ18,Dimensions!$B$5:$G$13,4,FALSE) -> 168 | AN18: =+VLOOKUP($AJ18,Dimensions!$B$5:$G$13,5,FALSE) -> 60 | AO18: =+VLOOKUP($AJ18,Dimensions!$B$5:$G$13,6,FALSE) -> 191 | AP18: K1 | AQ18: =+VLOOKUP($AP18,Dimensions!$B$5:$G$13,2,FALSE) -> 75 | AR18: =+VLOOKUP($AP18,Dimensions!$B$5:$G$13,3,FALSE) -> 210.5 | AS18: =+VLOOKUP($AP18,Dimensions!$B$5:$G$13,4,FALSE) -> 168 | AT18: =+VLOOKUP($AP18,Dimensions!$B$5:$G$13,5,FALSE) -> 60 | AU18: =+VLOOKUP($AP18,Dimensions!$B$5:$G$13,6,FALSE) -> 198.2
A19: 09 | B19: VLT Drives | C19: 046 | D19: Static frequency converters | E19: P281_200 | F19: 2803-2840 200V | G19: 09572 | H19: VLT 2805/200V | I19: 134L4499 | J19: VLT2805PS2B20SBR1DBF30A00C1 | K19: 134L4499 | M19: 1x200 | N19: 0.55 | O19: Y | P19: R1 | Q19: C2 | R19: DeviceNet | S19: Y | T19: 0.55 | U19: FC-280PK55 | V19: S2 | W19: E20 | X19: H1 | Y19: X | Z19: XCXXX | AA19: SXXX | AB19: X | AC19: ? | AE19: FC-280PK55S2E20H1XXCXXXSXXXX? | AF19: =+VLOOKUP(AE19,TypeCodesFC280!AH:AI,2,FALSE) ->  | AG19: C2 / C1 | AH19: t.b. | AJ19: A | AK19: =+VLOOKUP($AJ19,Dimensions!$B$5:$G$13,2,FALSE) -> 75 | AL19: =+VLOOKUP($AJ19,Dimensions!$B$5:$G$13,3,FALSE) -> 200 | AM19: =+VLOOKUP($AJ19,Dimensions!$B$5:$G$13,4,FALSE) -> 168 | AN19: =+VLOOKUP($AJ19,Dimensions!$B$5:$G$13,5,FALSE) -> 60 | AO19: =+VLOOKUP($AJ19,Dimensions!$B$5:$G$13,6,FALSE) -> 191 | AP19: K1 | AQ19: =+VLOOKUP($AP19,Dimensions!$B$5:$G$13,2,FALSE) -> 75 | AR19: =+VLOOKUP($AP19,Dimensions!$B$5:$G$13,3,FALSE) -> 210.5 | AS19: =+VLOOKUP($AP19,Dimensions!$B$5:$G$13,4,FALSE) -> 168 | AT19: =+VLOOKUP($AP19,Dimensions!$B$5:$G$13,5,FALSE) -> 60 | AU19: =+VLOOKUP($AP19,Dimensions!$B$5:$G$13,6,FALSE) -> 198.2
A20: 09 | B20: VLT Drives | C20: 046 | D20: Static frequency converters | E20: P281_200 | F20: 2803-2840 200V | G20: 09572 | H20: VLT 2805/200V | I20: 178B8590 | J20: VLT2805PD2B20SBR0DBF00A00C1 | K20: 178B8590 | M20: 1x200 / 3x200 | N20: 0.55 | O20: Y | P20: R0 | Q20: no class | R20: Standard | S20: Y | T20: 0.55 | U20: FC-280PK55 | V20: S(T)2 | W20: E20 | X20: H2 | Y20: B | Z20: XCXXX | AA20: SXXX | AB20: X | AC20: AX | AE20: FC-280PK55S(T)2E20H2BXCXXXSXXXXAX | AF20: =+VLOOKUP(AE20,TypeCodesFC280!AH:AI,2,FALSE) ->  | AG20: C3 | AH20: Modbus RTU | AJ20: A | AK20: =+VLOOKUP($AJ20,Dimensions!$B$5:$G$13,2,FALSE) -> 75 | AL20: =+VLOOKUP($AJ20,Dimensions!$B$5:$G$13,3,FALSE) -> 200 | AM20: =+VLOOKUP($AJ20,Dimensions!$B$5:$G$13,4,FALSE) -> 168 | AN20: =+VLOOKUP($AJ20,Dimensions!$B$5:$G$13,5,FALSE) -> 60 | AO20: =+VLOOKUP($AJ20,Dimensions!$B$5:$G$13,6,FALSE) -> 191 | AP20: K1 | AQ20: =+VLOOKUP($AP20,Dimensions!$B$5:$G$13,2,FALSE) -> 75 | AR20: =+VLOOKUP($AP20,Dimensions!$B$5:$G$13,3,FALSE) -> 210.5 | AS20: =+VLOOKUP($AP20,Dimensions!$B$5:$G$13,4,FALSE) -> 168 | AT20: =+VLOOKUP($AP20,Dimensions!$B$5:$G$13,5,FALSE) -> 60 | AU20: =+VLOOKUP($AP20,Dimensions!$B$5:$G$13,6,FALSE) -> 198.2
A21: 09 | B21: VLT Drives | C21: 046 | D21: Static frequency converters | E21: P281_200 | F21: 2803-2840 200V | G21: 09573 | H21: VLT 2807/200V | I21: 131Z8983 | J21: VLT2807PS2B20SBR1DBF00A00C1 | K21: 131Z8983 | L21: 1900402 | M21: 1x200 | N21: 0.75 | O21: Y | P21: R1 | Q21: C2 | R21: Standard | S21: Y | T21: 0.75 | U21: FC-280PK75 | V21: S2 | W21: E20 | X21: H1 | Y21: X | Z21: XCXXX | AA21: SXXX | AB21: X | AC21: AX | AE21: FC-280PK75S2E20H1XXCXXXSXXXXAX | AF21: =+VLOOKUP(AE21,TypeCodesFC280!AH:AI,2,FALSE) -> 134X3054 | AG21: C2 / C1 | AH21: Modbus RTU | AJ21: A | AK21: =+VLOOKUP($AJ21,Dimensions!$B$5:$G$13,2,FALSE) -> 75 | AL21: =+VLOOKUP($AJ21,Dimensions!$B$5:$G$13,3,FALSE) -> 200 | AM21: =+VLOOKUP($AJ21,Dimensions!$B$5:$G$13,4,FALSE) -> 168 | AN21: =+VLOOKUP($AJ21,Dimensions!$B$5:$G$13,5,FALSE) -> 60 | AO21: =+VLOOKUP($AJ21,Dimensions!$B$5:$G$13,6,FALSE) -> 191 | AP21: K1 | AQ21: =+VLOOKUP($AP21,Dimensions!$B$5:$G$13,2,FALSE) -> 75 | AR21: =+VLOOKUP($AP21,Dimensions!$B$5:$G$13,3,FALSE) -> 210.5 | AS21: =+VLOOKUP($AP21,Dimensions!$B$5:$G$13,4,FALSE) -> 168 | AT21: =+VLOOKUP($AP21,Dimensions!$B$5:$G$13,5,FALSE) -> 60 | AU21: =+VLOOKUP($AP21,Dimensions!$B$5:$G$13,6,FALSE) -> 198.2
A22: 09 | B22: VLT Drives | C22: 046 | D22: Static frequency converters | E22: P281_200 | F22: 2803-2840 200V | G22: 09573 | H22: VLT 2807/200V | I22: 134H2366 | J22: VLT2807PS2B20SBR1DBF12A00C1 | K22: 134H2366 | L22: 1900312 | M22: 1x200 | N22: 0.75 | O22: Y | P22: R1 | Q22: C2 | R22: PB 12Mbit | S22: Y | T22: 0.75 | U22: FC-280PK75 | V22: S2 | W22: E20 | X22: H1 | Y22: X | Z22: XCXXX | AA22: SXXX | AB22: X | AC22: A0 | AE22: FC-280PK75S2E20H1XXCXXXSXXXXA0 | AF22: =+VLOOKUP(AE22,TypeCodesFC280!AH:AI,2,FALSE) -> 134X3066 | AG22: C2 / C1 | AH22: Profibus | AJ22: A | AK22: =+VLOOKUP($AJ22,Dimensions!$B$5:$G$13,2,FALSE) -> 75 | AL22: =+VLOOKUP($AJ22,Dimensions!$B$5:$G$13,3,FALSE) -> 200 | AM22: =+VLOOKUP($AJ22,Dimensions!$B$5:$G$13,4,FALSE) -> 168 | AN22: =+VLOOKUP($AJ22,Dimensions!$B$5:$G$13,5,FALSE) -> 60 | AO22: =+VLOOKUP($AJ22,Dimensions!$B$5:$G$13,6,FALSE) -> 191 | AP22: K1 | AQ22: =+VLOOKUP($AP22,Dimensions!$B$5:$G$13,2,FALSE) -> 75 | AR22: =+VLOOKUP($AP22,Dimensions!$B$5:$G$13,3,FALSE) -> 210.5 | AS22: =+VLOOKUP($AP22,Dimensions!$B$5:$G$13,4,FALSE) -> 168 | AT22: =+VLOOKUP($AP22,Dimensions!$B$5:$G$13,5,FALSE) -> 60 | AU22: =+VLOOKUP($AP22,Dimensions!$B$5:$G$13,6,FALSE) -> 198.2
A23: 09 | B23: VLT Drives | C23: 046 | D23: Static frequency converters | E23: P281_200 | F23: 2803-2840 200V | G23: 09573 | H23: VLT 2807/200V | I23: 134H2466 | J23: VLT2807PD2B20SBR0DBF12A00C1 | K23: 134H2466 | L23: 1900314 | M23: 1x200 / 3x200 | N23: 0.75 | O23: Y | P23: R0 | Q23: no class | R23: PB 12Mbit | S23: Y | T23: 0.75 | U23: FC-280PK75 | V23: S(T)2 | W23: E20 | X23: H2 | Y23: B | Z23: XCXXX | AA23: SXXX | AB23: X | AC23: A0 | AE23: FC-280PK75S(T)2E20H2BXCXXXSXXXXA0 | AF23: =+VLOOKUP(AE23,TypeCodesFC280!AH:AI,2,FALSE) ->  | AG23: C3 | AH23: Profibus | AJ23: A | AK23: =+VLOOKUP($AJ23,Dimensions!$B$5:$G$13,2,FALSE) -> 75 | AL23: =+VLOOKUP($AJ23,Dimensions!$B$5:$G$13,3,FALSE) -> 200 | AM23: =+VLOOKUP($AJ23,Dimensions!$B$5:$G$13,4,FALSE) -> 168 | AN23: =+VLOOKUP($AJ23,Dimensions!$B$5:$G$13,5,FALSE) -> 60 | AO23: =+VLOOKUP($AJ23,Dimensions!$B$5:$G$13,6,FALSE) -> 191 | AP23: K1 | AQ23: =+VLOOKUP($AP23,Dimensions!$B$5:$G$13,2,FALSE) -> 75 | AR23: =+VLOOKUP($AP23,Dimensions!$B$5:$G$13,3,FALSE) -> 210.5 | AS23: =+VLOOKUP($AP23,Dimensions!$B$5:$G$13,4,FALSE) -> 168 | AT23: =+VLOOKUP($AP23,Dimensions!$B$5:$G$13,5,FALSE) -> 60 | AU23: =+VLOOKUP($AP23,Dimensions!$B$5:$G$13,6,FALSE) -> 198.2
A24: 09 | B24: VLT Drives | C24: 046 | D24: Static frequency converters | E24: P281_200 | F24: 2803-2840 200V | G24: 09573 | H24: VLT 2807/200V | I24: 134H5278 | J24: VLT2807PS2B20SBR4DBF00A00C1 | K24: 134H5278 | L24: 1900315 | M24: 1x200 | N24: 0.75 | O24: Y | P24: R4 | Q24: C2 | R24: Standard | S24: Y | T24: 0.75 | U24: FC-280PK75 | V24: S2 | W24: E20 | X24: H1 | Y24: X | Z24: XCXXX | AA24: SXXX | AB24: X | AC24: AX | AE24: FC-280PK75S2E20H1XXCXXXSXXXXAX | AF24: =+VLOOKUP(AE24,TypeCodesFC280!AH:AI,2,FALSE) -> 134X3054 | AG24: C2 / C1 | AH24: Modbus RTU | AJ24: A | AK24: =+VLOOKUP($AJ24,Dimensions!$B$5:$G$13,2,FALSE) -> 75 | AL24: =+VLOOKUP($AJ24,Dimensions!$B$5:$G$13,3,FALSE) -> 200 | AM24: =+VLOOKUP($AJ24,Dimensions!$B$5:$G$13,4,FALSE) -> 168 | AN24: =+VLOOKUP($AJ24,Dimensions!$B$5:$G$13,5,FALSE) -> 60 | AO24: =+VLOOKUP($AJ24,Dimensions!$B$5:$G$13,6,FALSE) -> 191 | AP24: K1 | AQ24: =+VLOOKUP($AP24,Dimensions!$B$5:$G$13,2,FALSE) -> 75 | AR24: =+VLOOKUP($AP24,Dimensions!$B$5:$G$13,3,FALSE) -> 210.5 | AS24: =+VLOOKUP($AP24,Dimensions!$B$5:$G$13,4,FALSE) -> 168 | AT24: =+VLOOKUP($AP24,Dimensions!$B$5:$G$13,5,FALSE) -> 60 | AU24: =+VLOOKUP($AP24,Dimensions!$B$5:$G$13,6,FALSE) -> 198.2
A25: 09 | B25: VLT Drives | C25: 046 | D25: Static frequency converters | E25: P281_200 | F25: 2803-2840 200V | G25: 09573 | H25: VLT 2807/200V | I25: 134H5294 | J25: VLT2807PS2B20SBR4DBF12A00C1 | K25: 134H5294 | M25: 1x200 | N25: 0.75 | O25: Y | P25: R4 | Q25: C2 | R25: PB 12Mbit | S25: Y | T25: 0.75 | U25: FC-280PK75 | V25: S2 | W25: E20 | X25: H1 | Y25: X | Z25: XCXXX | AA25: SXXX | AB25: X | AC25: A0 | AE25: FC-280PK75S2E20H1XXCXXXSXXXXA0 | AF25: =+VLOOKUP(AE25,TypeCodesFC280!AH:AI,2,FALSE) -> 134X3066 | AG25: C2 / C1 | AH25: Profibus | AJ25: A | AK25: =+VLOOKUP($AJ25,Dimensions!$B$5:$G$13,2,FALSE) -> 75 | AL25: =+VLOOKUP($AJ25,Dimensions!$B$5:$G$13,3,FALSE) -> 200 | AM25: =+VLOOKUP($AJ25,Dimensions!$B$5:$G$13,4,FALSE) -> 168 | AN25: =+VLOOKUP($AJ25,Dimensions!$B$5:$G$13,5,FALSE) -> 60 | AO25: =+VLOOKUP($AJ25,Dimensions!$B$5:$G$13,6,FALSE) -> 191 | AP25: K1 | AQ25: =+VLOOKUP($AP25,Dimensions!$B$5:$G$13,2,FALSE) -> 75 | AR25: =+VLOOKUP($AP25,Dimensions!$B$5:$G$13,3,FALSE) -> 210.5 | AS25: =+VLOOKUP($AP25,Dimensions!$B$5:$G$13,4,FALSE) -> 168 | AT25: =+VLOOKUP($AP25,Dimensions!$B$5:$G$13,5,FALSE) -> 60 | AU25: =+VLOOKUP($AP25,Dimensions!$B$5:$G$13,6,FALSE) -> 198.2
A26: 09 | B26: VLT Drives | C26: 046 | D26: Static frequency converters | E26: P281_200 | F26: 2803-2840 200V | G26: 09573 | H26: VLT 2807/200V | I26: 134H5313 | J26: VLT2807PS2B20SBR4DBF30A00C1 | K26: 134H5313 | M26: 1x200 | N26: 0.75 | O26: Y | P26: R4 | Q26: C2 | R26: DeviceNet | S26: Y | T26: 0.75 | U26: FC-280PK75 | V26: S2 | W26: E20 | X26: H1 | Y26: X | Z26: XCXXX | AA26: SXXX | AB26: X | AC26: ? | AE26: FC-280PK75S2E20H1XXCXXXSXXXX? | AF26: =+VLOOKUP(AE26,TypeCodesFC280!AH:AI,2,FALSE) ->  | AG26: C2 / C1 | AH26: t.b. | AJ26: A | AK26: =+VLOOKUP($AJ26,Dimensions!$B$5:$G$13,2,FALSE) -> 75 | AL26: =+VLOOKUP($AJ26,Dimensions!$B$5:$G$13,3,FALSE) -> 200 | AM26: =+VLOOKUP($AJ26,Dimensions!$B$5:$G$13,4,FALSE) -> 168 | AN26: =+VLOOKUP($AJ26,Dimensions!$B$5:$G$13,5,FALSE) -> 60 | AO26: =+VLOOKUP($AJ26,Dimensions!$B$5:$G$13,6,FALSE) -> 191 | AP26: K1 | AQ26: =+VLOOKUP($AP26,Dimensions!$B$5:$G$13,2,FALSE) -> 75 | AR26: =+VLOOKUP($AP26,Dimensions!$B$5:$G$13,3,FALSE) -> 210.5 | AS26: =+VLOOKUP($AP26,Dimensions!$B$5:$G$13,4,FALSE) -> 168 | AT26: =+VLOOKUP($AP26,Dimensions!$B$5:$G$13,5,FALSE) -> 60 | AU26: =+VLOOKUP($AP26,Dimensions!$B$5:$G$13,6,FALSE) -> 198.2
A27: 09 | B27: VLT Drives | C27: 046 | D27: Static frequency converters | E27: P281_200 | F27: 2803-2840 200V | G27: 09573 | H27: VLT 2807/200V | I27: 134L4506 | J27: VLT2807PS2B20SBR1DBF30A00C1 | K27: 134L4506 | M27: 1x200 | N27: 0.75 | O27: Y | P27: R1 | Q27: C2 | R27: DeviceNet | S27: Y | T27: 0.75 | U27: FC-280PK75 | V27: S2 | W27: E20 | X27: H1 | Y27: X | Z27: XCXXX | AA27: SXXX | AB27: X | AC27: ? | AE27: FC-280PK75S2E20H1XXCXXXSXXXX? | AF27: =+VLOOKUP(AE27,TypeCodesFC280!AH:AI,2,FALSE) ->  | AG27: C2 / C1 | AH27: t.b. | AJ27: A | AK27: =+VLOOKUP($AJ27,Dimensions!$B$5:$G$13,2,FALSE) -> 75 | AL27: =+VLOOKUP($AJ27,Dimensions!$B$5:$G$13,3,FALSE) -> 200 | AM27: =+VLOOKUP($AJ27,Dimensions!$B$5:$G$13,4,FALSE) -> 168 | AN27: =+VLOOKUP($AJ27,Dimensions!$B$5:$G$13,5,FALSE) -> 60 | AO27: =+VLOOKUP($AJ27,Dimensions!$B$5:$G$13,6,FALSE) -> 191 | AP27: K1 | AQ27: =+VLOOKUP($AP27,Dimensions!$B$5:$G$13,2,FALSE) -> 75 | AR27: =+VLOOKUP($AP27,Dimensions!$B$5:$G$13,3,FALSE) -> 210.5 | AS27: =+VLOOKUP($AP27,Dimensions!$B$5:$G$13,4,FALSE) -> 168 | AT27: =+VLOOKUP($AP27,Dimensions!$B$5:$G$13,5,FALSE) -> 60 | AU27: =+VLOOKUP($AP27,Dimensions!$B$5:$G$13,6,FALSE) -> 198.2
A28: 09 | B28: VLT Drives | C28: 046 | D28: Static frequency converters | E28: P281_200 | F28: 2803-2840 200V | G28: 09573 | H28: VLT 2807/200V | I28: 134L4514 | J28: VLT2807PD2B20SBR0DBF30A00C1 | K28: 134L4514 | M28: 1x200 / 3x200 | N28: 0.75 | O28: Y | P28: R0 | Q28: no class | R28: DeviceNet | S28: Y | T28: 0.75 | U28: FC-280PK75 | V28: S(T)2 | W28: E20 | X28: H2 | Y28: B | Z28: XCXXX | AA28: SXXX | AB28: X | AC28: ? | AE28: FC-280PK75S(T)2E20H2BXCXXXSXXXX? | AF28: =+VLOOKUP(AE28,TypeCodesFC280!AH:AI,2,FALSE) ->  | AG28: C3 | AH28: t.b. | AJ28: A | AK28: =+VLOOKUP($AJ28,Dimensions!$B$5:$G$13,2,FALSE) -> 75 | AL28: =+VLOOKUP($AJ28,Dimensions!$B$5:$G$13,3,FALSE) -> 200 | AM28: =+VLOOKUP($AJ28,Dimensions!$B$5:$G$13,4,FALSE) -> 168 | AN28: =+VLOOKUP($AJ28,Dimensions!$B$5:$G$13,5,FALSE) -> 60 | AO28: =+VLOOKUP($AJ28,Dimensions!$B$5:$G$13,6,FALSE) -> 191 | AP28: K1 | AQ28: =+VLOOKUP($AP28,Dimensions!$B$5:$G$13,2,FALSE) -> 75 | AR28: =+VLOOKUP($AP28,Dimensions!$B$5:$G$13,3,FALSE) -> 210.5 | AS28: =+VLOOKUP($AP28,Dimensions!$B$5:$G$13,4,FALSE) -> 168 | AT28: =+VLOOKUP($AP28,Dimensions!$B$5:$G$13,5,FALSE) -> 60 | AU28: =+VLOOKUP($AP28,Dimensions!$B$5:$G$13,6,FALSE) -> 198.2
A29: 09 | B29: VLT Drives | C29: 046 | D29: Static frequency converters | E29: P281_200 | F29: 2803-2840 200V | G29: 09573 | H29: VLT 2807/200V | I29: 178B8591 | J29: VLT2807PD2B20SBR0DBF00A00C1 | K29: 178B8591 | L29: 1900322 | M29: 1x200 / 3x200 | N29: 0.75 | O29: Y | P29: R0 | Q29: no class | R29: Standard | S29: Y | T29: 0.75 | U29: FC-280PK75 | V29: S(T)2 | W29: E20 | X29: H2 | Y29: B | Z29: XCXXX | AA29: SXXX | AB29: X | AC29: AX | AE29: FC-280PK75S(T)2E20H2BXCXXXSXXXXAX | AF29: =+VLOOKUP(AE29,TypeCodesFC280!AH:AI,2,FALSE) ->  | AG29: C3 | AH29: Modbus RTU | AJ29: A | AK29: =+VLOOKUP($AJ29,Dimensions!$B$5:$G$13,2,FALSE) -> 75 | AL29: =+VLOOKUP($AJ29,Dimensions!$B$5:$G$13,3,FALSE) -> 200 | AM29: =+VLOOKUP($AJ29,Dimensions!$B$5:$G$13,4,FALSE) -> 168 | AN29: =+VLOOKUP($AJ29,Dimensions!$B$5:$G$13,5,FALSE) -> 60 | AO29: =+VLOOKUP($AJ29,Dimensions!$B$5:$G$13,6,FALSE) -> 191 | AP29: K1 | AQ29: =+VLOOKUP($AP29,Dimensions!$B$5:$G$13,2,FALSE) -> 75 | AR29: =+VLOOKUP($AP29,Dimensions!$B$5:$G$13,3,FALSE) -> 210.5 | AS29: =+VLOOKUP($AP29,Dimensions!$B$5:$G$13,4,FALSE) -> 168 | AT29: =+VLOOKUP($AP29,Dimensions!$B$5:$G$13,5,FALSE) -> 60 | AU29: =+VLOOKUP($AP29,Dimensions!$B$5:$G$13,6,FALSE) -> 198.2
A30: 09 | B30: VLT Drives | C30: 046 | D30: Static frequency converters | E30: P281_200 | F30: 2803-2840 200V | G30: 09574 | H30: VLT 2811/200V | I30: 131Z8991 | J30: VLT2811PS2B20SBR1DBF00A00C1 | K30: 131Z8991 | L30: 1900005 | M30: 1x200 | N30: 1.1 | O30: Y | P30: R1 | Q30: C2 | R30: Standard | S30: Y | T30: 1.1 | U30: FC-280P1K1 | V30: S2 | W30: E20 | X30: H1 | Y30: X | Z30: XCXXX | AA30: SXXX | AB30: X | AC30: AX | AE30: FC-280P1K1S2E20H1XXCXXXSXXXXAX | AF30: =+VLOOKUP(AE30,TypeCodesFC280!AH:AI,2,FALSE) -> 134X3055 | AG30: C2 / C1 | AH30: Modbus RTU | AJ30: A | AK30: =+VLOOKUP($AJ30,Dimensions!$B$5:$G$13,2,FALSE) -> 75 | AL30: =+VLOOKUP($AJ30,Dimensions!$B$5:$G$13,3,FALSE) -> 200 | AM30: =+VLOOKUP($AJ30,Dimensions!$B$5:$G$13,4,FALSE) -> 168 | AN30: =+VLOOKUP($AJ30,Dimensions!$B$5:$G$13,5,FALSE) -> 60 | AO30: =+VLOOKUP($AJ30,Dimensions!$B$5:$G$13,6,FALSE) -> 191 | AP30: K1 | AQ30: =+VLOOKUP($AP30,Dimensions!$B$5:$G$13,2,FALSE) -> 75 | AR30: =+VLOOKUP($AP30,Dimensions!$B$5:$G$13,3,FALSE) -> 210.5 | AS30: =+VLOOKUP($AP30,Dimensions!$B$5:$G$13,4,FALSE) -> 168 | AT30: =+VLOOKUP($AP30,Dimensions!$B$5:$G$13,5,FALSE) -> 60 | AU30: =+VLOOKUP($AP30,Dimensions!$B$5:$G$13,6,FALSE) -> 198.2
A31: 09 | B31: VLT Drives | C31: 046 | D31: Static frequency converters | E31: P281_200 | F31: 2803-2840 200V | G31: 09574 | H31: VLT 2811/200V | I31: 134H2369 | J31: VLT2811PS2B20SBR1DBF12A00C1 | K31: 134H2369 | L31: 1900324 | M31: 1x200 | N31: 1.1 | O31: Y | P31: R1 | Q31: C2 | R31: PB 12Mbit | S31: Y | T31: 1.1 | U31: FC-280P1K1 | V31: S2 | W31: E20 | X31: H1 | Y31: X | Z31: XCXXX | AA31: SXXX | AB31: X | AC31: A0 | AE31: FC-280P1K1S2E20H1XXCXXXSXXXXA0 | AF31: =+VLOOKUP(AE31,TypeCodesFC280!AH:AI,2,FALSE) -> 134X3067 | AG31: C2 / C1 | AH31: Profibus | AJ31: A | AK31: =+VLOOKUP($AJ31,Dimensions!$B$5:$G$13,2,FALSE) -> 75 | AL31: =+VLOOKUP($AJ31,Dimensions!$B$5:$G$13,3,FALSE) -> 200 | AM31: =+VLOOKUP($AJ31,Dimensions!$B$5:$G$13,4,FALSE) -> 168 | AN31: =+VLOOKUP($AJ31,Dimensions!$B$5:$G$13,5,FALSE) -> 60 | AO31: =+VLOOKUP($AJ31,Dimensions!$B$5:$G$13,6,FALSE) -> 191 | AP31: K1 | AQ31: =+VLOOKUP($AP31,Dimensions!$B$5:$G$13,2,FALSE) -> 75 | AR31: =+VLOOKUP($AP31,Dimensions!$B$5:$G$13,3,FALSE) -> 210.5 | AS31: =+VLOOKUP($AP31,Dimensions!$B$5:$G$13,4,FALSE) -> 168 | AT31: =+VLOOKUP($AP31,Dimensions!$B$5:$G$13,5,FALSE) -> 60 | AU31: =+VLOOKUP($AP31,Dimensions!$B$5:$G$13,6,FALSE) -> 198.2
A32: 09 | B32: VLT Drives | C32: 046 | D32: Static frequency converters | E32: P281_200 | F32: 2803-2840 200V | G32: 09574 | H32: VLT 2811/200V | I32: 134H5280 | J32: VLT2811PS2B20SBR4DBF00A00C1 | K32: 134H5280 | L32: 1900326 | M32: 1x200 | N32: 1.1 | O32: Y | P32: R4 | Q32: C2 | R32: Standard | S32: Y | T32: 1.1 | U32: FC-280P1K1 | V32: S2 | W32: E20 | X32: H1 | Y32: X | Z32: XCXXX | AA32: SXXX | AB32: X | AC32: AX | AE32: FC-280P1K1S2E20H1XXCXXXSXXXXAX | AF32: =+VLOOKUP(AE32,TypeCodesFC280!AH:AI,2,FALSE) -> 134X3055 | AG32: C2 / C1 | AH32: Modbus RTU | AJ32: A | AK32: =+VLOOKUP($AJ32,Dimensions!$B$5:$G$13,2,FALSE) -> 75 | AL32: =+VLOOKUP($AJ32,Dimensions!$B$5:$G$13,3,FALSE) -> 200 | AM32: =+VLOOKUP($AJ32,Dimensions!$B$5:$G$13,4,FALSE) -> 168 | AN32: =+VLOOKUP($AJ32,Dimensions!$B$5:$G$13,5,FALSE) -> 60 | AO32: =+VLOOKUP($AJ32,Dimensions!$B$5:$G$13,6,FALSE) -> 191 | AP32: K1 | AQ32: =+VLOOKUP($AP32,Dimensions!$B$5:$G$13,2,FALSE) -> 75 | AR32: =+VLOOKUP($AP32,Dimensions!$B$5:$G$13,3,FALSE) -> 210.5 | AS32: =+VLOOKUP($AP32,Dimensions!$B$5:$G$13,4,FALSE) -> 168 | AT32: =+VLOOKUP($AP32,Dimensions!$B$5:$G$13,5,FALSE) -> 60 | AU32: =+VLOOKUP($AP32,Dimensions!$B$5:$G$13,6,FALSE) -> 198.2
A33: 09 | B33: VLT Drives | C33: 046 | D33: Static frequency converters | E33: P281_200 | F33: 2803-2840 200V | G33: 09574 | H33: VLT 2811/200V | I33: 134H5305 | J33: VLT2811PS2B20SBR4DBF12A00C1 | K33: 134H5305 | M33: 1x200 | N33: 1.1 | O33: Y | P33: R4 | Q33: C2 | R33: PB 12Mbit | S33: Y | T33: 1.1 | U33: FC-280P1K1 | V33: S2 | W33: E20 | X33: H1 | Y33: X | Z33: XCXXX | AA33: SXXX | AB33: X | AC33: A0 | AE33: FC-280P1K1S2E20H1XXCXXXSXXXXA0 | AF33: =+VLOOKUP(AE33,TypeCodesFC280!AH:AI,2,FALSE) -> 134X3067 | AG33: C2 / C1 | AH33: Profibus | AJ33: A | AK33: =+VLOOKUP($AJ33,Dimensions!$B$5:$G$13,2,FALSE) -> 75 | AL33: =+VLOOKUP($AJ33,Dimensions!$B$5:$G$13,3,FALSE) -> 200 | AM33: =+VLOOKUP($AJ33,Dimensions!$B$5:$G$13,4,FALSE) -> 168 | AN33: =+VLOOKUP($AJ33,Dimensions!$B$5:$G$13,5,FALSE) -> 60 | AO33: =+VLOOKUP($AJ33,Dimensions!$B$5:$G$13,6,FALSE) -> 191 | AP33: K1 | AQ33: =+VLOOKUP($AP33,Dimensions!$B$5:$G$13,2,FALSE) -> 75 | AR33: =+VLOOKUP($AP33,Dimensions!$B$5:$G$13,3,FALSE) -> 210.5 | AS33: =+VLOOKUP($AP33,Dimensions!$B$5:$G$13,4,FALSE) -> 168 | AT33: =+VLOOKUP($AP33,Dimensions!$B$5:$G$13,5,FALSE) -> 60 | AU33: =+VLOOKUP($AP33,Dimensions!$B$5:$G$13,6,FALSE) -> 198.2
A34: 09 | B34: VLT Drives | C34: 046 | D34: Static frequency converters | E34: P281_200 | F34: 2803-2840 200V | G34: 09574 | H34: VLT 2811/200V | I34: 134H5310 | J34: VLT2811PS2B20SBR4DBF30A00C1 | K34: 134H5310 | M34: 1x200 | N34: 1.1 | O34: Y | P34: R4 | Q34: C2 | R34: DeviceNet | S34: Y | T34: 1.1 | U34: FC-280P1K1 | V34: S2 | W34: E20 | X34: H1 | Y34: X | Z34: XCXXX | AA34: SXXX | AB34: X | AC34: ? | AE34: FC-280P1K1S2E20H1XXCXXXSXXXX? | AF34: =+VLOOKUP(AE34,TypeCodesFC280!AH:AI,2,FALSE) ->  | AG34: C2 / C1 | AH34: t.b. | AJ34: A | AK34: =+VLOOKUP($AJ34,Dimensions!$B$5:$G$13,2,FALSE) -> 75 | AL34: =+VLOOKUP($AJ34,Dimensions!$B$5:$G$13,3,FALSE) -> 200 | AM34: =+VLOOKUP($AJ34,Dimensions!$B$5:$G$13,4,FALSE) -> 168 | AN34: =+VLOOKUP($AJ34,Dimensions!$B$5:$G$13,5,FALSE) -> 60 | AO34: =+VLOOKUP($AJ34,Dimensions!$B$5:$G$13,6,FALSE) -> 191 | AP34: K1 | AQ34: =+VLOOKUP($AP34,Dimensions!$B$5:$G$13,2,FALSE) -> 75 | AR34: =+VLOOKUP($AP34,Dimensions!$B$5:$G$13,3,FALSE) -> 210.5 | AS34: =+VLOOKUP($AP34,Dimensions!$B$5:$G$13,4,FALSE) -> 168 | AT34: =+VLOOKUP($AP34,Dimensions!$B$5:$G$13,5,FALSE) -> 60 | AU34: =+VLOOKUP($AP34,Dimensions!$B$5:$G$13,6,FALSE) -> 198.2
A35: 09 | B35: VLT Drives | C35: 046 | D35: Static frequency converters | E35: P281_200 | F35: 2803-2840 200V | G35: 09574 | H35: VLT 2811/200V | I35: 134L1292 | J35: TR12811PS2B20SBR1DBF00A00C1 | K35: 134L1292 | M35: 1x200 | N35: 1.1 | O35: Y | P35: R1 | Q35: C2 | R35: Standard | S35: Y | T35: 1.1 | U35: FC-280P1K1 | V35: S2 | W35: E20 | X35: H1 | Y35: X | Z35: XCXXX | AA35: SXXX | AB35: X | AC35: AX | AE35: FC-280P1K1S2E20H1XXCXXXSXXXXAX | AF35: =+VLOOKUP(AE35,TypeCodesFC280!AH:AI,2,FALSE) -> 134X3055 | AG35: C2 / C1 | AH35: Modbus RTU | AJ35: A | AK35: =+VLOOKUP($AJ35,Dimensions!$B$5:$G$13,2,FALSE) -> 75 | AL35: =+VLOOKUP($AJ35,Dimensions!$B$5:$G$13,3,FALSE) -> 200 | AM35: =+VLOOKUP($AJ35,Dimensions!$B$5:$G$13,4,FALSE) -> 168 | AN35: =+VLOOKUP($AJ35,Dimensions!$B$5:$G$13,5,FALSE) -> 60 | AO35: =+VLOOKUP($AJ35,Dimensions!$B$5:$G$13,6,FALSE) -> 191 | AP35: K1 | AQ35: =+VLOOKUP($AP35,Dimensions!$B$5:$G$13,2,FALSE) -> 75 | AR35: =+VLOOKUP($AP35,Dimensions!$B$5:$G$13,3,FALSE) -> 210.5 | AS35: =+VLOOKUP($AP35,Dimensions!$B$5:$G$13,4,FALSE) -> 168 | AT35: =+VLOOKUP($AP35,Dimensions!$B$5:$G$13,5,FALSE) -> 60 | AU35: =+VLOOKUP($AP35,Dimensions!$B$5:$G$13,6,FALSE) -> 198.2
A36: 09 | B36: VLT Drives | C36: 046 | D36: Static frequency converters | E36: P281_200 | F36: 2803-2840 200V | G36: 09574 | H36: VLT 2811/200V | I36: 134L3271 | J36: VLT2811PD2B20SBR0DBF12A00C1 | K36: 134L3271 | L36: 1900334 | M36: 1x200 / 3x200 | N36: 1.1 | O36: Y | P36: R0 | Q36: no class | R36: PB 12Mbit | S36: Y | T36: 1.1 | U36: FC-280P1K1 | V36: S(T)2 | W36: E20 | X36: H2 | Y36: B | Z36: XCXXX | AA36: SXXX | AB36: X | AC36: A0 | AE36: FC-280P1K1S(T)2E20H2BXCXXXSXXXXA0 | AF36: =+VLOOKUP(AE36,TypeCodesFC280!AH:AI,2,FALSE) ->  | AG36: C3 | AH36: Profibus | AJ36: A | AK36: =+VLOOKUP($AJ36,Dimensions!$B$5:$G$13,2,FALSE) -> 75 | AL36: =+VLOOKUP($AJ36,Dimensions!$B$5:$G$13,3,FALSE) -> 200 | AM36: =+VLOOKUP($AJ36,Dimensions!$B$5:$G$13,4,FALSE) -> 168 | AN36: =+VLOOKUP($AJ36,Dimensions!$B$5:$G$13,5,FALSE) -> 60 | AO36: =+VLOOKUP($AJ36,Dimensions!$B$5:$G$13,6,FALSE) -> 191 | AP36: K1 | AQ36: =+VLOOKUP($AP36,Dimensions!$B$5:$G$13,2,FALSE) -> 75 | AR36: =+VLOOKUP($AP36,Dimensions!$B$5:$G$13,3,FALSE) -> 210.5 | AS36: =+VLOOKUP($AP36,Dimensions!$B$5:$G$13,4,FALSE) -> 168 | AT36: =+VLOOKUP($AP36,Dimensions!$B$5:$G$13,5,FALSE) -> 60 | AU36: =+VLOOKUP($AP36,Dimensions!$B$5:$G$13,6,FALSE) -> 198.2
A37: 09 | B37: VLT Drives | C37: 046 | D37: Static frequency converters | E37: P281_200 | F37: 2803-2840 200V | G37: 09574 | H37: VLT 2811/200V | I37: 134L4369 | J37: VLT2811PD2B20SBR0DBF30A00C1 | K37: 134L4369 | M37: 1x200 / 3x200 | N37: 1.1 | O37: Y | P37: R0 | Q37: no class | R37: DeviceNet | S37: Y | T37: 1.1 | U37: FC-280P1K1 | V37: S(T)2 | W37: E20 | X37: H2 | Y37: B | Z37: XCXXX | AA37: SXXX | AB37: X | AC37: ? | AE37: FC-280P1K1S(T)2E20H2BXCXXXSXXXX? | AF37: =+VLOOKUP(AE37,TypeCodesFC280!AH:AI,2,FALSE) ->  | AG37: C3 | AH37: t.b. | AJ37: A | AK37: =+VLOOKUP($AJ37,Dimensions!$B$5:$G$13,2,FALSE) -> 75 | AL37: =+VLOOKUP($AJ37,Dimensions!$B$5:$G$13,3,FALSE) -> 200 | AM37: =+VLOOKUP($AJ37,Dimensions!$B$5:$G$13,4,FALSE) -> 168 | AN37: =+VLOOKUP($AJ37,Dimensions!$B$5:$G$13,5,FALSE) -> 60 | AO37: =+VLOOKUP($AJ37,Dimensions!$B$5:$G$13,6,FALSE) -> 191 | AP37: K1 | AQ37: =+VLOOKUP($AP37,Dimensions!$B$5:$G$13,2,FALSE) -> 75 | AR37: =+VLOOKUP($AP37,Dimensions!$B$5:$G$13,3,FALSE) -> 210.5 | AS37: =+VLOOKUP($AP37,Dimensions!$B$5:$G$13,4,FALSE) -> 168 | AT37: =+VLOOKUP($AP37,Dimensions!$B$5:$G$13,5,FALSE) -> 60 | AU37: =+VLOOKUP($AP37,Dimensions!$B$5:$G$13,6,FALSE) -> 198.2
A38: 09 | B38: VLT Drives | C38: 046 | D38: Static frequency converters | E38: P281_200 | F38: 2803-2840 200V | G38: 09574 | H38: VLT 2811/200V | I38: 134L4679 | J38: VLT2811PS2B20SBR1DBF30A00C1 | K38: 134L4679 | M38: 1x200 | N38: 1.1 | O38: Y | P38: R1 | Q38: C2 | R38: DeviceNet | S38: Y | T38: 1.1 | U38: FC-280P1K1 | V38: S2 | W38: E20 | X38: H1 | Y38: X | Z38: XCXXX | AA38: SXXX | AB38: X | AC38: ? | AE38: FC-280P1K1S2E20H1XXCXXXSXXXX? | AF38: =+VLOOKUP(AE38,TypeCodesFC280!AH:AI,2,FALSE) ->  | AG38: C2 / C1 | AH38: t.b. | AJ38: A | AK38: =+VLOOKUP($AJ38,Dimensions!$B$5:$G$13,2,FALSE) -> 75 | AL38: =+VLOOKUP($AJ38,Dimensions!$B$5:$G$13,3,FALSE) -> 200 | AM38: =+VLOOKUP($AJ38,Dimensions!$B$5:$G$13,4,FALSE) -> 168 | AN38: =+VLOOKUP($AJ38,Dimensions!$B$5:$G$13,5,FALSE) -> 60 | AO38: =+VLOOKUP($AJ38,Dimensions!$B$5:$G$13,6,FALSE) -> 191 | AP38: K1 | AQ38: =+VLOOKUP($AP38,Dimensions!$B$5:$G$13,2,FALSE) -> 75 | AR38: =+VLOOKUP($AP38,Dimensions!$B$5:$G$13,3,FALSE) -> 210.5 | AS38: =+VLOOKUP($AP38,Dimensions!$B$5:$G$13,4,FALSE) -> 168 | AT38: =+VLOOKUP($AP38,Dimensions!$B$5:$G$13,5,FALSE) -> 60 | AU38: =+VLOOKUP($AP38,Dimensions!$B$5:$G$13,6,FALSE) -> 198.2
A39: 09 | B39: VLT Drives | C39: 046 | D39: Static frequency converters | E39: P281_200 | F39: 2803-2840 200V | G39: 09574 | H39: VLT 2811/200V | I39: 178B8592 | J39: VLT2811PD2B20SBR0DBF00A00C1 | K39: 178B8592 | L39: 1900333 | M39: 1x200 / 3x200 | N39: 1.1 | O39: Y | P39: R0 | Q39: no class | R39: Standard | S39: Y | T39: 1.1 | U39: FC-280P1K1 | V39: S(T)2 | W39: E20 | X39: H2 | Y39: B | Z39: XCXXX | AA39: SXXX | AB39: X | AC39: AX | AE39: FC-280P1K1S(T)2E20H2BXCXXXSXXXXAX | AF39: =+VLOOKUP(AE39,TypeCodesFC280!AH:AI,2,FALSE) ->  | AG39: C3 | AH39: Modbus RTU | AJ39: A | AK39: =+VLOOKUP($AJ39,Dimensions!$B$5:$G$13,2,FALSE) -> 75 | AL39: =+VLOOKUP($AJ39,Dimensions!$B$5:$G$13,3,FALSE) -> 200 | AM39: =+VLOOKUP($AJ39,Dimensions!$B$5:$G$13,4,FALSE) -> 168 | AN39: =+VLOOKUP($AJ39,Dimensions!$B$5:$G$13,5,FALSE) -> 60 | AO39: =+VLOOKUP($AJ39,Dimensions!$B$5:$G$13,6,FALSE) -> 191 | AP39: K1 | AQ39: =+VLOOKUP($AP39,Dimensions!$B$5:$G$13,2,FALSE) -> 75 | AR39: =+VLOOKUP($AP39,Dimensions!$B$5:$G$13,3,FALSE) -> 210.5 | AS39: =+VLOOKUP($AP39,Dimensions!$B$5:$G$13,4,FALSE) -> 168 | AT39: =+VLOOKUP($AP39,Dimensions!$B$5:$G$13,5,FALSE) -> 60 | AU39: =+VLOOKUP($AP39,Dimensions!$B$5:$G$13,6,FALSE) -> 198.2
A40: 09 | B40: VLT Drives | C40: 046 | D40: Static frequency converters | E40: P281_200 | F40: 2803-2840 200V | G40: 09574 | H40: VLT 2811/200V | I40: 178F7484 | J40: TR12811PT4B20SER0DBF00A00C0 | K40: 178F7484 | M40: 3x400 | N40: 1.1 | P40: R0 | Q40: no class | R40: Standard | S40: N | T40: 1.1 | U40: FC-280P1K1 | V40: T4 | W40: E20 | X40: H2 | Y40: B | Z40: XCXXX | AA40: SXXX | AB40: X | AC40: AX | AE40: FC-280P1K1T4E20H2BXCXXXSXXXXAX | AF40: =+VLOOKUP(AE40,TypeCodesFC280!AH:AI,2,FALSE) -> 134U3009 | AG40: C3 | AH40: Modbus RTU | AJ40: A | AK40: =+VLOOKUP($AJ40,Dimensions!$B$5:$G$13,2,FALSE) -> 75 | AL40: =+VLOOKUP($AJ40,Dimensions!$B$5:$G$13,3,FALSE) -> 200 | AM40: =+VLOOKUP($AJ40,Dimensions!$B$5:$G$13,4,FALSE) -> 168 | AN40: =+VLOOKUP($AJ40,Dimensions!$B$5:$G$13,5,FALSE) -> 60 | AO40: =+VLOOKUP($AJ40,Dimensions!$B$5:$G$13,6,FALSE) -> 191 | AP40: K2 | AQ40: =+VLOOKUP($AP40,Dimensions!$B$5:$G$13,2,FALSE) -> 90 | AR40: =+VLOOKUP($AP40,Dimensions!$B$5:$G$13,3,FALSE) -> 272.5 | AS40: =+VLOOKUP($AP40,Dimensions!$B$5:$G$13,4,FALSE) -> 168 | AT40: =+VLOOKUP($AP40,Dimensions!$B$5:$G$13,5,FALSE) -> 70 | AU40: =+VLOOKUP($AP40,Dimensions!$B$5:$G$13,6,FALSE) -> 260
A41: 09 | B41: VLT Drives | C41: 046 | D41: Static frequency converters | E41: P281_200 | F41: 2803-2840 200V | G41: 09574 | H41: VLT 2811/200V | I41: 178F7485 | J41: TR12811PT2B20SER0DBF00A00C0 | K41: 178F7485 | M41: 3x200 | N41: 1.1 | P41: R0 | Q41: no class | R41: Standard | S41: N | T41: 1.1 | U41: FC-280P1K1 | V41: T2 | W41: E20 | X41: H2 | Y41: B | Z41: XCXXX | AA41: SXXX | AB41: X | AC41: AX | AE41: FC-280P1K1T2E20H2BXCXXXSXXXXAX | AF41: =+VLOOKUP(AE41,TypeCodesFC280!AH:AI,2,FALSE) -> 134U7945 | AG41: C3 | AH41: Modbus RTU | AJ41: A | AK41: =+VLOOKUP($AJ41,Dimensions!$B$5:$G$13,2,FALSE) -> 75 | AL41: =+VLOOKUP($AJ41,Dimensions!$B$5:$G$13,3,FALSE) -> 200 | AM41: =+VLOOKUP($AJ41,Dimensions!$B$5:$G$13,4,FALSE) -> 168 | AN41: =+VLOOKUP($AJ41,Dimensions!$B$5:$G$13,5,FALSE) -> 60 | AO41: =+VLOOKUP($AJ41,Dimensions!$B$5:$G$13,6,FALSE) -> 191 | AP41: K1 | AQ41: =+VLOOKUP($AP41,Dimensions!$B$5:$G$13,2,FALSE) -> 75 | AR41: =+VLOOKUP($AP41,Dimensions!$B$5:$G$13,3,FALSE) -> 210.5 | AS41: =+VLOOKUP($AP41,Dimensions!$B$5:$G$13,4,FALSE) -> 168 | AT41: =+VLOOKUP($AP41,Dimensions!$B$5:$G$13,5,FALSE) -> 60 | AU41: =+VLOOKUP($AP41,Dimensions!$B$5:$G$13,6,FALSE) -> 198.2
A42: 09 | B42: VLT Drives | C42: 046 | D42: Static frequency converters | E42: P281_200 | F42: 2803-2840 200V | G42: 09575 | H42: VLT 2815/200V | I42: 131Z9199 | J42: VLT2815PS2B20SBR1DBF00A00C1 | K42: 131Z9199 | L42: 1900408 | M42: 1x200 | N42: 1.5 | O42: Y | P42: R1 | Q42: C2 | R42: Standard | S42: Y | T42: 1.5 | U42: FC-280P1K5 | V42: S2 | W42: E20 | X42: H1 | Y42: X | Z42: XCXXX | AA42: SXXX | AB42: X | AC42: AX | AE42: FC-280P1K5S2E20H1XXCXXXSXXXXAX | AF42: =+VLOOKUP(AE42,TypeCodesFC280!AH:AI,2,FALSE) -> 134X3056 | AG42: C2 / C1 | AH42: Modbus RTU | AJ42: A | AK42: =+VLOOKUP($AJ42,Dimensions!$B$5:$G$13,2,FALSE) -> 75 | AL42: =+VLOOKUP($AJ42,Dimensions!$B$5:$G$13,3,FALSE) -> 200 | AM42: =+VLOOKUP($AJ42,Dimensions!$B$5:$G$13,4,FALSE) -> 168 | AN42: =+VLOOKUP($AJ42,Dimensions!$B$5:$G$13,5,FALSE) -> 60 | AO42: =+VLOOKUP($AJ42,Dimensions!$B$5:$G$13,6,FALSE) -> 191 | AP42: K1 | AQ42: =+VLOOKUP($AP42,Dimensions!$B$5:$G$13,2,FALSE) -> 75 | AR42: =+VLOOKUP($AP42,Dimensions!$B$5:$G$13,3,FALSE) -> 210.5 | AS42: =+VLOOKUP($AP42,Dimensions!$B$5:$G$13,4,FALSE) -> 168 | AT42: =+VLOOKUP($AP42,Dimensions!$B$5:$G$13,5,FALSE) -> 60 | AU42: =+VLOOKUP($AP42,Dimensions!$B$5:$G$13,6,FALSE) -> 198.2
A43: 09 | B43: VLT Drives | C43: 046 | D43: Static frequency converters | E43: P281_200 | F43: 2803-2840 200V | G43: 09575 | H43: VLT 2815/200V | I43: 134H2372 | J43: VLT2815PS2B20SBR1DBF12A00C1 | K43: 134H2372 | L43: 1900335 | M43: 1x200 | N43: 1.5 | O43: Y | P43: R1 | Q43: C2 | R43: PB 12Mbit | S43: Y | T43: 1.5 | U43: FC-280P1K5 | V43: S2 | W43: E20 | X43: H1 | Y43: X | Z43: XCXXX | AA43: SXXX | AB43: X | AC43: A0 | AE43: FC-280P1K5S2E20H1XXCXXXSXXXXA0 | AF43: =+VLOOKUP(AE43,TypeCodesFC280!AH:AI,2,FALSE) -> 134X3068 | AG43: C2 / C1 | AH43: Profibus | AJ43: A | AK43: =+VLOOKUP($AJ43,Dimensions!$B$5:$G$13,2,FALSE) -> 75 | AL43: =+VLOOKUP($AJ43,Dimensions!$B$5:$G$13,3,FALSE) -> 200 | AM43: =+VLOOKUP($AJ43,Dimensions!$B$5:$G$13,4,FALSE) -> 168 | AN43: =+VLOOKUP($AJ43,Dimensions!$B$5:$G$13,5,FALSE) -> 60 | AO43: =+VLOOKUP($AJ43,Dimensions!$B$5:$G$13,6,FALSE) -> 191 | AP43: K1 | AQ43: =+VLOOKUP($AP43,Dimensions!$B$5:$G$13,2,FALSE) -> 75 | AR43: =+VLOOKUP($AP43,Dimensions!$B$5:$G$13,3,FALSE) -> 210.5 | AS43: =+VLOOKUP($AP43,Dimensions!$B$5:$G$13,4,FALSE) -> 168 | AT43: =+VLOOKUP($AP43,Dimensions!$B$5:$G$13,5,FALSE) -> 60 | AU43: =+VLOOKUP($AP43,Dimensions!$B$5:$G$13,6,FALSE) -> 198.2
A44: 09 | B44: VLT Drives | C44: 046 | D44: Static frequency converters | E44: P281_200 | F44: 2803-2840 200V | G44: 09575 | H44: VLT 2815/200V | I44: 134H2467 | J44: VLT2815PD2B20SBR0DBF12A00C1 | K44: 134H2467 | L44: 1900339 | M44: 1x200 / 3x200 | N44: 1.5 | O44: Y | P44: R0 | Q44: no class | R44: PB 12Mbit | S44: Y | T44: 1.5 | U44: FC-280P1K5 | V44: S(T)2 | W44: E20 | X44: H2 | Y44: B | Z44: XCXXX | AA44: SXXX | AB44: X | AC44: A0 | AE44: FC-280P1K5S(T)2E20H2BXCXXXSXXXXA0 | AF44: =+VLOOKUP(AE44,TypeCodesFC280!AH:AI,2,FALSE) ->  | AG44: C3 | AH44: Profibus | AJ44: A | AK44: =+VLOOKUP($AJ44,Dimensions!$B$5:$G$13,2,FALSE) -> 75 | AL44: =+VLOOKUP($AJ44,Dimensions!$B$5:$G$13,3,FALSE) -> 200 | AM44: =+VLOOKUP($AJ44,Dimensions!$B$5:$G$13,4,FALSE) -> 168 | AN44: =+VLOOKUP($AJ44,Dimensions!$B$5:$G$13,5,FALSE) -> 60 | AO44: =+VLOOKUP($AJ44,Dimensions!$B$5:$G$13,6,FALSE) -> 191 | AP44: K1 | AQ44: =+VLOOKUP($AP44,Dimensions!$B$5:$G$13,2,FALSE) -> 75 | AR44: =+VLOOKUP($AP44,Dimensions!$B$5:$G$13,3,FALSE) -> 210.5 | AS44: =+VLOOKUP($AP44,Dimensions!$B$5:$G$13,4,FALSE) -> 168 | AT44: =+VLOOKUP($AP44,Dimensions!$B$5:$G$13,5,FALSE) -> 60 | AU44: =+VLOOKUP($AP44,Dimensions!$B$5:$G$13,6,FALSE) -> 198.2
A45: 09 | B45: VLT Drives | C45: 046 | D45: Static frequency converters | E45: P281_200 | F45: 2803-2840 200V | G45: 09575 | H45: VLT 2815/200V | I45: 134H5282 | J45: VLT2815PS2B20SBR4DBF00A00C1 | K45: 134H5282 | L45: 1900340 | M45: 1x200 | N45: 1.5 | O45: Y | P45: R4 | Q45: C2 | R45: Standard | S45: Y | T45: 1.5 | U45: FC-280P1K5 | V45: S2 | W45: E20 | X45: H1 | Y45: X | Z45: XCXXX | AA45: SXXX | AB45: X | AC45: AX | AE45: FC-280P1K5S2E20H1XXCXXXSXXXXAX | AF45: =+VLOOKUP(AE45,TypeCodesFC280!AH:AI,2,FALSE) -> 134X3056 | AG45: C2 / C1 | AH45: Modbus RTU | AJ45: A | AK45: =+VLOOKUP($AJ45,Dimensions!$B$5:$G$13,2,FALSE) -> 75 | AL45: =+VLOOKUP($AJ45,Dimensions!$B$5:$G$13,3,FALSE) -> 200 | AM45: =+VLOOKUP($AJ45,Dimensions!$B$5:$G$13,4,FALSE) -> 168 | AN45: =+VLOOKUP($AJ45,Dimensions!$B$5:$G$13,5,FALSE) -> 60 | AO45: =+VLOOKUP($AJ45,Dimensions!$B$5:$G$13,6,FALSE) -> 191 | AP45: K1 | AQ45: =+VLOOKUP($AP45,Dimensions!$B$5:$G$13,2,FALSE) -> 75 | AR45: =+VLOOKUP($AP45,Dimensions!$B$5:$G$13,3,FALSE) -> 210.5 | AS45: =+VLOOKUP($AP45,Dimensions!$B$5:$G$13,4,FALSE) -> 168 | AT45: =+VLOOKUP($AP45,Dimensions!$B$5:$G$13,5,FALSE) -> 60 | AU45: =+VLOOKUP($AP45,Dimensions!$B$5:$G$13,6,FALSE) -> 198.2
A46: 09 | B46: VLT Drives | C46: 046 | D46: Static frequency converters | E46: P281_200 | F46: 2803-2840 200V | G46: 09575 | H46: VLT 2815/200V | I46: 134H5297 | J46: VLT2815PS2B20SBR4DBF12A00C1 | K46: 134H5297 | M46: 1x200 | N46: 1.5 | O46: Y | P46: R4 | Q46: C2 | R46: PB 12Mbit | S46: Y | T46: 1.5 | U46: FC-280P1K5 | V46: S2 | W46: E20 | X46: H1 | Y46: X | Z46: XCXXX | AA46: SXXX | AB46: X | AC46: A0 | AE46: FC-280P1K5S2E20H1XXCXXXSXXXXA0 | AF46: =+VLOOKUP(AE46,TypeCodesFC280!AH:AI,2,FALSE) -> 134X3068 | AG46: C2 / C1 | AH46: Profibus | AJ46: A | AK46: =+VLOOKUP($AJ46,Dimensions!$B$5:$G$13,2,FALSE) -> 75 | AL46: =+VLOOKUP($AJ46,Dimensions!$B$5:$G$13,3,FALSE) -> 200 | AM46: =+VLOOKUP($AJ46,Dimensions!$B$5:$G$13,4,FALSE) -> 168 | AN46: =+VLOOKUP($AJ46,Dimensions!$B$5:$G$13,5,FALSE) -> 60 | AO46: =+VLOOKUP($AJ46,Dimensions!$B$5:$G$13,6,FALSE) -> 191 | AP46: K1 | AQ46: =+VLOOKUP($AP46,Dimensions!$B$5:$G$13,2,FALSE) -> 75 | AR46: =+VLOOKUP($AP46,Dimensions!$B$5:$G$13,3,FALSE) -> 210.5 | AS46: =+VLOOKUP($AP46,Dimensions!$B$5:$G$13,4,FALSE) -> 168 | AT46: =+VLOOKUP($AP46,Dimensions!$B$5:$G$13,5,FALSE) -> 60 | AU46: =+VLOOKUP($AP46,Dimensions!$B$5:$G$13,6,FALSE) -> 198.2
A47: 09 | B47: VLT Drives | C47: 046 | D47: Static frequency converters | E47: P281_200 | F47: 2803-2840 200V | G47: 09575 | H47: VLT 2815/200V | I47: 134L1305 | J47: TR12815PS2B20SBR1DBF00A00C1 | K47: 134L1305 | M47: 1x200 | N47: 1.5 | O47: Y | P47: R1 | Q47: C2 | R47: Standard | S47: Y | T47: 1.5 | U47: FC-280P1K5 | V47: S2 | W47: E20 | X47: H1 | Y47: X | Z47: XCXXX | AA47: SXXX | AB47: X | AC47: AX | AE47: FC-280P1K5S2E20H1XXCXXXSXXXXAX | AF47: =+VLOOKUP(AE47,TypeCodesFC280!AH:AI,2,FALSE) -> 134X3056 | AG47: C2 / C1 | AH47: Modbus RTU | AJ47: A | AK47: =+VLOOKUP($AJ47,Dimensions!$B$5:$G$13,2,FALSE) -> 75 | AL47: =+VLOOKUP($AJ47,Dimensions!$B$5:$G$13,3,FALSE) -> 200 | AM47: =+VLOOKUP($AJ47,Dimensions!$B$5:$G$13,4,FALSE) -> 168 | AN47: =+VLOOKUP($AJ47,Dimensions!$B$5:$G$13,5,FALSE) -> 60 | AO47: =+VLOOKUP($AJ47,Dimensions!$B$5:$G$13,6,FALSE) -> 191 | AP47: K1 | AQ47: =+VLOOKUP($AP47,Dimensions!$B$5:$G$13,2,FALSE) -> 75 | AR47: =+VLOOKUP($AP47,Dimensions!$B$5:$G$13,3,FALSE) -> 210.5 | AS47: =+VLOOKUP($AP47,Dimensions!$B$5:$G$13,4,FALSE) -> 168 | AT47: =+VLOOKUP($AP47,Dimensions!$B$5:$G$13,5,FALSE) -> 60 | AU47: =+VLOOKUP($AP47,Dimensions!$B$5:$G$13,6,FALSE) -> 198.2
A48: 09 | B48: VLT Drives | C48: 046 | D48: Static frequency converters | E48: P281_200 | F48: 2803-2840 200V | G48: 09575 | H48: VLT 2815/200V | I48: 134L4371 | J48: VLT2815PD2B20SBR0DBF30A00C1 | K48: 134L4371 | M48: 1x200 / 3x200 | N48: 1.5 | O48: Y | P48: R0 | Q48: no class | R48: DeviceNet | S48: Y | T48: 1.5 | U48: FC-280P1K5 | V48: S(T)2 | W48: E20 | X48: H2 | Y48: B | Z48: XCXXX | AA48: SXXX | AB48: X | AC48: ? | AE48: FC-280P1K5S(T)2E20H2BXCXXXSXXXX? | AF48: =+VLOOKUP(AE48,TypeCodesFC280!AH:AI,2,FALSE) ->  | AG48: C3 | AH48: t.b. | AJ48: A | AK48: =+VLOOKUP($AJ48,Dimensions!$B$5:$G$13,2,FALSE) -> 75 | AL48: =+VLOOKUP($AJ48,Dimensions!$B$5:$G$13,3,FALSE) -> 200 | AM48: =+VLOOKUP($AJ48,Dimensions!$B$5:$G$13,4,FALSE) -> 168 | AN48: =+VLOOKUP($AJ48,Dimensions!$B$5:$G$13,5,FALSE) -> 60 | AO48: =+VLOOKUP($AJ48,Dimensions!$B$5:$G$13,6,FALSE) -> 191 | AP48: K1 | AQ48: =+VLOOKUP($AP48,Dimensions!$B$5:$G$13,2,FALSE) -> 75 | AR48: =+VLOOKUP($AP48,Dimensions!$B$5:$G$13,3,FALSE) -> 210.5 | AS48: =+VLOOKUP($AP48,Dimensions!$B$5:$G$13,4,FALSE) -> 168 | AT48: =+VLOOKUP($AP48,Dimensions!$B$5:$G$13,5,FALSE) -> 60 | AU48: =+VLOOKUP($AP48,Dimensions!$B$5:$G$13,6,FALSE) -> 198.2
A49: 09 | B49: VLT Drives | C49: 046 | D49: Static frequency converters | E49: P281_200 | F49: 2803-2840 200V | G49: 09575 | H49: VLT 2815/200V | I49: 134L4505 | J49: VLT2815PS2B20SBR1DBF30A00C1 | K49: 134L4505 | M49: 1x200 | N49: 1.5 | O49: Y | P49: R1 | Q49: C2 | R49: DeviceNet | S49: Y | T49: 1.5 | U49: FC-280P1K5 | V49: S2 | W49: E20 | X49: H1 | Y49: X | Z49: XCXXX | AA49: SXXX | AB49: X | AC49: ? | AE49: FC-280P1K5S2E20H1XXCXXXSXXXX? | AF49: =+VLOOKUP(AE49,TypeCodesFC280!AH:AI,2,FALSE) ->  | AG49: C2 / C1 | AH49: t.b. | AJ49: A | AK49: =+VLOOKUP($AJ49,Dimensions!$B$5:$G$13,2,FALSE) -> 75 | AL49: =+VLOOKUP($AJ49,Dimensions!$B$5:$G$13,3,FALSE) -> 200 | AM49: =+VLOOKUP($AJ49,Dimensions!$B$5:$G$13,4,FALSE) -> 168 | AN49: =+VLOOKUP($AJ49,Dimensions!$B$5:$G$13,5,FALSE) -> 60 | AO49: =+VLOOKUP($AJ49,Dimensions!$B$5:$G$13,6,FALSE) -> 191 | AP49: K1 | AQ49: =+VLOOKUP($AP49,Dimensions!$B$5:$G$13,2,FALSE) -> 75 | AR49: =+VLOOKUP($AP49,Dimensions!$B$5:$G$13,3,FALSE) -> 210.5 | AS49: =+VLOOKUP($AP49,Dimensions!$B$5:$G$13,4,FALSE) -> 168 | AT49: =+VLOOKUP($AP49,Dimensions!$B$5:$G$13,5,FALSE) -> 60 | AU49: =+VLOOKUP($AP49,Dimensions!$B$5:$G$13,6,FALSE) -> 198.2
A50: 09 | B50: VLT Drives | C50: 046 | D50: Static frequency converters | E50: P281_200 | F50: 2803-2840 200V | G50: 09575 | H50: VLT 2815/200V | I50: 178B8593 | J50: VLT2815PD2B20SBR0DBF00A00C1 | K50: 178B8593 | L50: 1900346 | M50: 1x200 / 3x200 | N50: 1.5 | O50: Y | P50: R0 | Q50: no class | R50: Standard | S50: Y | T50: 1.5 | U50: FC-280P1K5 | V50: S(T)2 | W50: E20 | X50: H2 | Y50: B | Z50: XCXXX | AA50: SXXX | AB50: X | AC50: AX | AE50: FC-280P1K5S(T)2E20H2BXCXXXSXXXXAX | AF50: =+VLOOKUP(AE50,TypeCodesFC280!AH:AI,2,FALSE) ->  | AG50: C3 | AH50: Modbus RTU | AJ50: A | AK50: =+VLOOKUP($AJ50,Dimensions!$B$5:$G$13,2,FALSE) -> 75 | AL50: =+VLOOKUP($AJ50,Dimensions!$B$5:$G$13,3,FALSE) -> 200 | AM50: =+VLOOKUP($AJ50,Dimensions!$B$5:$G$13,4,FALSE) -> 168 | AN50: =+VLOOKUP($AJ50,Dimensions!$B$5:$G$13,5,FALSE) -> 60 | AO50: =+VLOOKUP($AJ50,Dimensions!$B$5:$G$13,6,FALSE) -> 191 | AP50: K1 | AQ50: =+VLOOKUP($AP50,Dimensions!$B$5:$G$13,2,FALSE) -> 75 | AR50: =+VLOOKUP($AP50,Dimensions!$B$5:$G$13,3,FALSE) -> 210.5 | AS50: =+VLOOKUP($AP50,Dimensions!$B$5:$G$13,4,FALSE) -> 168 | AT50: =+VLOOKUP($AP50,Dimensions!$B$5:$G$13,5,FALSE) -> 60 | AU50: =+VLOOKUP($AP50,Dimensions!$B$5:$G$13,6,FALSE) -> 198.2
A51: 09 | B51: VLT Drives | C51: 046 | D51: Static frequency converters | E51: P281_200 | F51: 2803-2840 200V | G51: 09576 | H51: VLT 2822/200V | I51: 131Z9203 | J51: VLT2822PD2B20STR0DBF00A00C1 | K51: 131Z9203 | M51: 1x200 / 3x200 | N51: 2.2 | O51: N | P51: R0 | Q51: no class | R51: Standard | S51: Y | T51: 2.2 | U51: FC-280P2K2 | V51: S(T)2 | W51: E20 | X51: H2 | Y51: B | Z51: XCXXX | AA51: SXXX | AB51: X | AC51: AX | AE51: FC-280P2K2S(T)2E20H2BXCXXXSXXXXAX | AF51: =+VLOOKUP(AE51,TypeCodesFC280!AH:AI,2,FALSE) ->  | AG51: C3 | AH51: Modbus RTU | AJ51: C | AK51: =+VLOOKUP($AJ51,Dimensions!$B$5:$G$13,2,FALSE) -> 140 | AL51: =+VLOOKUP($AJ51,Dimensions!$B$5:$G$13,3,FALSE) -> 268 | AM51: =+VLOOKUP($AJ51,Dimensions!$B$5:$G$13,4,FALSE) -> 168 | AN51: =+VLOOKUP($AJ51,Dimensions!$B$5:$G$13,5,FALSE) -> 120 | AO51: =+VLOOKUP($AJ51,Dimensions!$B$5:$G$13,6,FALSE) -> 257 | AP51: K2 | AQ51: =+VLOOKUP($AP51,Dimensions!$B$5:$G$13,2,FALSE) -> 90 | AR51: =+VLOOKUP($AP51,Dimensions!$B$5:$G$13,3,FALSE) -> 272.5 | AS51: =+VLOOKUP($AP51,Dimensions!$B$5:$G$13,4,FALSE) -> 168 | AT51: =+VLOOKUP($AP51,Dimensions!$B$5:$G$13,5,FALSE) -> 70 | AU51: =+VLOOKUP($AP51,Dimensions!$B$5:$G$13,6,FALSE) -> 260
A52: 09 | B52: VLT Drives | C52: 046 | D52: Static frequency converters | E52: P281_200 | F52: 2803-2840 200V | G52: 09576 | H52: VLT 2822/200V | I52: 134H5284 | J52: VLT2822PT2B20SBR1DBF00A00C1 | K52: 134H5284 | M52: 3x200 | N52: 2.2 | O52: Y | P52: R1 | Q52: C2 | R52: Standard | S52: Y | T52: 2.2 | U52: FC-280P2K2 | V52: T2 | W52: E20 | X52: H2 | Y52: B | Z52: XCXXX | AA52: SXXX | AB52: X | AC52: AX | AE52: FC-280P2K2T2E20H2BXCXXXSXXXXAX | AF52: =+VLOOKUP(AE52,TypeCodesFC280!AH:AI,2,FALSE) -> 134U7947 | AG52: C3 | AH52: Modbus RTU | AJ52: B | AK52: =+VLOOKUP($AJ52,Dimensions!$B$5:$G$13,2,FALSE) -> 90 | AL52: =+VLOOKUP($AJ52,Dimensions!$B$5:$G$13,3,FALSE) -> 268 | AM52: =+VLOOKUP($AJ52,Dimensions!$B$5:$G$13,4,FALSE) -> 168 | AN52: =+VLOOKUP($AJ52,Dimensions!$B$5:$G$13,5,FALSE) -> 70 | AO52: =+VLOOKUP($AJ52,Dimensions!$B$5:$G$13,6,FALSE) -> 257 | AP52: K2 | AQ52: =+VLOOKUP($AP52,Dimensions!$B$5:$G$13,2,FALSE) -> 90 | AR52: =+VLOOKUP($AP52,Dimensions!$B$5:$G$13,3,FALSE) -> 272.5 | AS52: =+VLOOKUP($AP52,Dimensions!$B$5:$G$13,4,FALSE) -> 168 | AT52: =+VLOOKUP($AP52,Dimensions!$B$5:$G$13,5,FALSE) -> 70 | AU52: =+VLOOKUP($AP52,Dimensions!$B$5:$G$13,6,FALSE) -> 260
A53: 09 | B53: VLT Drives | C53: 046 | D53: Static frequency converters | E53: P281_200 | F53: 2803-2840 200V | G53: 09576 | H53: VLT 2822/200V | I53: 134H5299 | J53: VLT2822PT2B20SBR1DBF12A00C1 | K53: 134H5299 | M53: 3x200 | N53: 2.2 | O53: Y | P53: R1 | Q53: C2 | R53: PB 12Mbit | S53: Y | T53: 2.2 | U53: FC-280P2K2 | V53: T2 | W53: E20 | X53: H2 | Y53: B | Z53: XCXXX | AA53: SXXX | AB53: X | AC53: A0 | AE53: FC-280P2K2T2E20H2BXCXXXSXXXXA0 | AF53: =+VLOOKUP(AE53,TypeCodesFC280!AH:AI,2,FALSE) -> 134U7965 | AG53: C3 | AH53: Profibus | AJ53: B | AK53: =+VLOOKUP($AJ53,Dimensions!$B$5:$G$13,2,FALSE) -> 90 | AL53: =+VLOOKUP($AJ53,Dimensions!$B$5:$G$13,3,FALSE) -> 268 | AM53: =+VLOOKUP($AJ53,Dimensions!$B$5:$G$13,4,FALSE) -> 168 | AN53: =+VLOOKUP($AJ53,Dimensions!$B$5:$G$13,5,FALSE) -> 70 | AO53: =+VLOOKUP($AJ53,Dimensions!$B$5:$G$13,6,FALSE) -> 257 | AP53: K2 | AQ53: =+VLOOKUP($AP53,Dimensions!$B$5:$G$13,2,FALSE) -> 90 | AR53: =+VLOOKUP($AP53,Dimensions!$B$5:$G$13,3,FALSE) -> 272.5 | AS53: =+VLOOKUP($AP53,Dimensions!$B$5:$G$13,4,FALSE) -> 168 | AT53: =+VLOOKUP($AP53,Dimensions!$B$5:$G$13,5,FALSE) -> 70 | AU53: =+VLOOKUP($AP53,Dimensions!$B$5:$G$13,6,FALSE) -> 260
A54: 09 | B54: VLT Drives | C54: 046 | D54: Static frequency converters | E54: P281_200 | F54: 2803-2840 200V | G54: 09576 | H54: VLT 2822/200V | I54: 134H5321 | J54: VLT2822PT2B20SBR1DBF30A00C1 | K54: 134H5321 | M54: 3x200 | N54: 2.2 | O54: Y | P54: R1 | Q54: C2 | R54: DeviceNet | S54: Y | T54: 2.2 | U54: FC-280P2K2 | V54: T2 | W54: E20 | X54: H2 | Y54: B | Z54: XCXXX | AA54: SXXX | AB54: X | AC54: ? | AE54: FC-280P2K2T2E20H2BXCXXXSXXXX? | AF54: =+VLOOKUP(AE54,TypeCodesFC280!AH:AI,2,FALSE) ->  | AG54: C3 | AH54: t.b. | AJ54: B | AK54: =+VLOOKUP($AJ54,Dimensions!$B$5:$G$13,2,FALSE) -> 90 | AL54: =+VLOOKUP($AJ54,Dimensions!$B$5:$G$13,3,FALSE) -> 268 | AM54: =+VLOOKUP($AJ54,Dimensions!$B$5:$G$13,4,FALSE) -> 168 | AN54: =+VLOOKUP($AJ54,Dimensions!$B$5:$G$13,5,FALSE) -> 70 | AO54: =+VLOOKUP($AJ54,Dimensions!$B$5:$G$13,6,FALSE) -> 257 | AP54: K2 | AQ54: =+VLOOKUP($AP54,Dimensions!$B$5:$G$13,2,FALSE) -> 90 | AR54: =+VLOOKUP($AP54,Dimensions!$B$5:$G$13,3,FALSE) -> 272.5 | AS54: =+VLOOKUP($AP54,Dimensions!$B$5:$G$13,4,FALSE) -> 168 | AT54: =+VLOOKUP($AP54,Dimensions!$B$5:$G$13,5,FALSE) -> 70 | AU54: =+VLOOKUP($AP54,Dimensions!$B$5:$G$13,6,FALSE) -> 260
A55: 09 | B55: VLT Drives | C55: 046 | D55: Static frequency converters | E55: P281_200 | F55: 2803-2840 200V | G55: 09576 | H55: VLT 2822/200V | I55: 134H6614 | J55: VLT2822PD2B20STR0DBF12A00C1 | K55: 134H6614 | M55: 1x200 / 3x200 | N55: 2.2 | O55: N | P55: R0 | Q55: no class | R55: PB 12Mbit | S55: Y | T55: 2.2 | U55: FC-280P2K2 | V55: S(T)2 | W55: E20 | X55: H2 | Y55: B | Z55: XCXXX | AA55: SXXX | AB55: X | AC55: A0 | AE55: FC-280P2K2S(T)2E20H2BXCXXXSXXXXA0 | AF55: =+VLOOKUP(AE55,TypeCodesFC280!AH:AI,2,FALSE) ->  | AG55: C3 | AH55: Profibus | AJ55: C | AK55: =+VLOOKUP($AJ55,Dimensions!$B$5:$G$13,2,FALSE) -> 140 | AL55: =+VLOOKUP($AJ55,Dimensions!$B$5:$G$13,3,FALSE) -> 268 | AM55: =+VLOOKUP($AJ55,Dimensions!$B$5:$G$13,4,FALSE) -> 168 | AN55: =+VLOOKUP($AJ55,Dimensions!$B$5:$G$13,5,FALSE) -> 120 | AO55: =+VLOOKUP($AJ55,Dimensions!$B$5:$G$13,6,FALSE) -> 257 | AP55: K2 | AQ55: =+VLOOKUP($AP55,Dimensions!$B$5:$G$13,2,FALSE) -> 90 | AR55: =+VLOOKUP($AP55,Dimensions!$B$5:$G$13,3,FALSE) -> 272.5 | AS55: =+VLOOKUP($AP55,Dimensions!$B$5:$G$13,4,FALSE) -> 168 | AT55: =+VLOOKUP($AP55,Dimensions!$B$5:$G$13,5,FALSE) -> 70 | AU55: =+VLOOKUP($AP55,Dimensions!$B$5:$G$13,6,FALSE) -> 260
A56: 09 | B56: VLT Drives | C56: 046 | D56: Static frequency converters | E56: P281_200 | F56: 2803-2840 200V | G56: 09576 | H56: VLT 2822/200V | I56: 134L3268 | J56: VLT2822PT2B20SBR0DBF12A00C1 | K56: 134L3268 | M56: 3x200 | N56: 2.2 | O56: Y | P56: R0 | Q56: no class | R56: PB 12Mbit | S56: Y | T56: 2.2 | U56: FC-280P2K2 | V56: T2 | W56: E20 | X56: H2 | Y56: B | Z56: XCXXX | AA56: SXXX | AB56: X | AC56: A0 | AE56: FC-280P2K2T2E20H2BXCXXXSXXXXA0 | AF56: =+VLOOKUP(AE56,TypeCodesFC280!AH:AI,2,FALSE) -> 134U7965 | AG56: C3 | AH56: Profibus | AJ56: B | AK56: =+VLOOKUP($AJ56,Dimensions!$B$5:$G$13,2,FALSE) -> 90 | AL56: =+VLOOKUP($AJ56,Dimensions!$B$5:$G$13,3,FALSE) -> 268 | AM56: =+VLOOKUP($AJ56,Dimensions!$B$5:$G$13,4,FALSE) -> 168 | AN56: =+VLOOKUP($AJ56,Dimensions!$B$5:$G$13,5,FALSE) -> 70 | AO56: =+VLOOKUP($AJ56,Dimensions!$B$5:$G$13,6,FALSE) -> 257 | AP56: K2 | AQ56: =+VLOOKUP($AP56,Dimensions!$B$5:$G$13,2,FALSE) -> 90 | AR56: =+VLOOKUP($AP56,Dimensions!$B$5:$G$13,3,FALSE) -> 272.5 | AS56: =+VLOOKUP($AP56,Dimensions!$B$5:$G$13,4,FALSE) -> 168 | AT56: =+VLOOKUP($AP56,Dimensions!$B$5:$G$13,5,FALSE) -> 70 | AU56: =+VLOOKUP($AP56,Dimensions!$B$5:$G$13,6,FALSE) -> 260
A57: 09 | B57: VLT Drives | C57: 046 | D57: Static frequency converters | E57: P281_200 | F57: 2803-2840 200V | G57: 09576 | H57: VLT 2822/200V | I57: 134L4604 | J57: VLT2822PT2B20SBR0DBF30A00C1 | K57: 134L4604 | M57: 3x200 | N57: 2.2 | O57: Y | P57: R0 | Q57: no class | R57: DeviceNet | S57: Y | T57: 2.2 | U57: FC-280P2K2 | V57: T2 | W57: E20 | X57: H2 | Y57: B | Z57: XCXXX | AA57: SXXX | AB57: X | AC57: ? | AE57: FC-280P2K2T2E20H2BXCXXXSXXXX? | AF57: =+VLOOKUP(AE57,TypeCodesFC280!AH:AI,2,FALSE) ->  | AG57: C3 | AH57: t.b. | AJ57: B | AK57: =+VLOOKUP($AJ57,Dimensions!$B$5:$G$13,2,FALSE) -> 90 | AL57: =+VLOOKUP($AJ57,Dimensions!$B$5:$G$13,3,FALSE) -> 268 | AM57: =+VLOOKUP($AJ57,Dimensions!$B$5:$G$13,4,FALSE) -> 168 | AN57: =+VLOOKUP($AJ57,Dimensions!$B$5:$G$13,5,FALSE) -> 70 | AO57: =+VLOOKUP($AJ57,Dimensions!$B$5:$G$13,6,FALSE) -> 257 | AP57: K2 | AQ57: =+VLOOKUP($AP57,Dimensions!$B$5:$G$13,2,FALSE) -> 90 | AR57: =+VLOOKUP($AP57,Dimensions!$B$5:$G$13,3,FALSE) -> 272.5 | AS57: =+VLOOKUP($AP57,Dimensions!$B$5:$G$13,4,FALSE) -> 168 | AT57: =+VLOOKUP($AP57,Dimensions!$B$5:$G$13,5,FALSE) -> 70 | AU57: =+VLOOKUP($AP57,Dimensions!$B$5:$G$13,6,FALSE) -> 260
A58: 09 | B58: VLT Drives | C58: 046 | D58: Static frequency converters | E58: P281_200 | F58: 2803-2840 200V | G58: 09576 | H58: VLT 2822/200V | I58: 178B8594 | J58: VLT2822PT2B20SBR0DBF00A00C1 | K58: 178B8594 | L58: 1900355 | M58: 3x200 | N58: 2.2 | O58: Y | P58: R0 | Q58: no class | R58: Standard | S58: Y | T58: 2.2 | U58: FC-280P2K2 | V58: T2 | W58: E20 | X58: H2 | Y58: B | Z58: XCXXX | AA58: SXXX | AB58: X | AC58: AX | AE58: FC-280P2K2T2E20H2BXCXXXSXXXXAX | AF58: =+VLOOKUP(AE58,TypeCodesFC280!AH:AI,2,FALSE) -> 134U7947 | AG58: C3 | AH58: Modbus RTU | AJ58: B | AK58: =+VLOOKUP($AJ58,Dimensions!$B$5:$G$13,2,FALSE) -> 90 | AL58: =+VLOOKUP($AJ58,Dimensions!$B$5:$G$13,3,FALSE) -> 268 | AM58: =+VLOOKUP($AJ58,Dimensions!$B$5:$G$13,4,FALSE) -> 168 | AN58: =+VLOOKUP($AJ58,Dimensions!$B$5:$G$13,5,FALSE) -> 70 | AO58: =+VLOOKUP($AJ58,Dimensions!$B$5:$G$13,6,FALSE) -> 257 | AP58: K2 | AQ58: =+VLOOKUP($AP58,Dimensions!$B$5:$G$13,2,FALSE) -> 90 | AR58: =+VLOOKUP($AP58,Dimensions!$B$5:$G$13,3,FALSE) -> 272.5 | AS58: =+VLOOKUP($AP58,Dimensions!$B$5:$G$13,4,FALSE) -> 168 | AT58: =+VLOOKUP($AP58,Dimensions!$B$5:$G$13,5,FALSE) -> 70 | AU58: =+VLOOKUP($AP58,Dimensions!$B$5:$G$13,6,FALSE) -> 260
A59: 09 | B59: VLT Drives | C59: 046 | D59: Static frequency converters | E59: P281_200 | F59: 2803-2840 200V | G59: 09578 | H59: VLT 2840/200V | I59: 131Z5541 | J59: VLT2840PD2B20STR0DBF00A00C1 | K59: 131Z5541 | M59: 1x200 / 3x200 | N59: 4 | O59: N | P59: R0 | Q59: no class | R59: Standard | S59: Y | T59: 3.7 | U59: FC-280P3K7 | V59: T2 | W59: E20 | X59: H2 | Y59: B | Z59: XCXXX | AA59: SXXX | AB59: X | AC59: AX | AE59: FC-280P3K7T2E20H2BXCXXXSXXXXAX | AF59: =+VLOOKUP(AE59,TypeCodesFC280!AH:AI,2,FALSE) -> 134U7948 | AG59: C3 | AH59: Modbus RTU | AJ59: D | AK59: =+VLOOKUP($AJ59,Dimensions!$B$5:$G$13,2,FALSE) -> 200 | AL59: =+VLOOKUP($AJ59,Dimensions!$B$5:$G$13,3,FALSE) -> 505 | AM59: =+VLOOKUP($AJ59,Dimensions!$B$5:$G$13,4,FALSE) -> 244 | AN59: =+VLOOKUP($AJ59,Dimensions!$B$5:$G$13,5,FALSE) -> 120 | AO59: =+VLOOKUP($AJ59,Dimensions!$B$5:$G$13,6,FALSE) -> 490 | AP59: K3 | AQ59: =+VLOOKUP($AP59,Dimensions!$B$5:$G$13,2,FALSE) -> 115 | AR59: =+VLOOKUP($AP59,Dimensions!$B$5:$G$13,3,FALSE) -> 272.5 | AS59: =+VLOOKUP($AP59,Dimensions!$B$5:$G$13,4,FALSE) -> 168 | AT59: =+VLOOKUP($AP59,Dimensions!$B$5:$G$13,5,FALSE) -> 90 | AU59: =+VLOOKUP($AP59,Dimensions!$B$5:$G$13,6,FALSE) -> 260
A60: 09 | B60: VLT Drives | C60: 046 | D60: Static frequency converters | E60: P281_200 | F60: 2803-2840 200V | G60: 09578 | H60: VLT 2840/200V | I60: 134H2379 | J60: VLT2840PT2B20SBR0DBF12A00C1 | K60: 134H2379 | M60: 3x200 | N60: 4 | O60: Y | P60: R0 | Q60: no class | R60: PB 12Mbit | S60: Y | T60: 3.7 | U60: FC-280P3K7 | V60: T2 | W60: E20 | X60: H2 | Y60: B | Z60: XCXXX | AA60: SXXX | AB60: X | AC60: A0 | AE60: FC-280P3K7T2E20H2BXCXXXSXXXXA0 | AF60: =+VLOOKUP(AE60,TypeCodesFC280!AH:AI,2,FALSE) -> 134U7966 | AG60: C3 | AH60: Profibus | AJ60: C | AK60: =+VLOOKUP($AJ60,Dimensions!$B$5:$G$13,2,FALSE) -> 140 | AL60: =+VLOOKUP($AJ60,Dimensions!$B$5:$G$13,3,FALSE) -> 268 | AM60: =+VLOOKUP($AJ60,Dimensions!$B$5:$G$13,4,FALSE) -> 168 | AN60: =+VLOOKUP($AJ60,Dimensions!$B$5:$G$13,5,FALSE) -> 120 | AO60: =+VLOOKUP($AJ60,Dimensions!$B$5:$G$13,6,FALSE) -> 257 | AP60: K3 | AQ60: =+VLOOKUP($AP60,Dimensions!$B$5:$G$13,2,FALSE) -> 115 | AR60: =+VLOOKUP($AP60,Dimensions!$B$5:$G$13,3,FALSE) -> 272.5 | AS60: =+VLOOKUP($AP60,Dimensions!$B$5:$G$13,4,FALSE) -> 168 | AT60: =+VLOOKUP($AP60,Dimensions!$B$5:$G$13,5,FALSE) -> 90 | AU60: =+VLOOKUP($AP60,Dimensions!$B$5:$G$13,6,FALSE) -> 260
A61: 09 | B61: VLT Drives | C61: 046 | D61: Static frequency converters | E61: P281_200 | F61: 2803-2840 200V | G61: 09578 | H61: VLT 2840/200V | I61: 134H5287 | J61: VLT2840PT2B20SBR1DBF00A00C1 | K61: 134H5287 | M61: 3x200 | N61: 4 | O61: Y | P61: R1 | Q61: C2 | R61: Standard | S61: Y | T61: 3.7 | U61: FC-280P3K7 | V61: T2 | W61: E20 | X61: H2 | Y61: B | Z61: XCXXX | AA61: SXXX | AB61: X | AC61: AX | AE61: FC-280P3K7T2E20H2BXCXXXSXXXXAX | AF61: =+VLOOKUP(AE61,TypeCodesFC280!AH:AI,2,FALSE) -> 134U7948 | AG61: C3 | AH61: Modbus RTU | AJ61: C | AK61: =+VLOOKUP($AJ61,Dimensions!$B$5:$G$13,2,FALSE) -> 140 | AL61: =+VLOOKUP($AJ61,Dimensions!$B$5:$G$13,3,FALSE) -> 268 | AM61: =+VLOOKUP($AJ61,Dimensions!$B$5:$G$13,4,FALSE) -> 168 | AN61: =+VLOOKUP($AJ61,Dimensions!$B$5:$G$13,5,FALSE) -> 120 | AO61: =+VLOOKUP($AJ61,Dimensions!$B$5:$G$13,6,FALSE) -> 257 | AP61: K3 | AQ61: =+VLOOKUP($AP61,Dimensions!$B$5:$G$13,2,FALSE) -> 115 | AR61: =+VLOOKUP($AP61,Dimensions!$B$5:$G$13,3,FALSE) -> 272.5 | AS61: =+VLOOKUP($AP61,Dimensions!$B$5:$G$13,4,FALSE) -> 168 | AT61: =+VLOOKUP($AP61,Dimensions!$B$5:$G$13,5,FALSE) -> 90 | AU61: =+VLOOKUP($AP61,Dimensions!$B$5:$G$13,6,FALSE) -> 260
A62: 09 | B62: VLT Drives | C62: 046 | D62: Static frequency converters | E62: P281_200 | F62: 2803-2840 200V | G62: 09578 | H62: VLT 2840/200V | I62: 134H5302 | J62: VLT2840PT2B20SBR1DBF12A00C1 | K62: 134H5302 | L62: 1900366 | M62: 3x200 | N62: 4 | O62: Y | P62: R1 | Q62: C2 | R62: PB 12Mbit | S62: Y | T62: 3.7 | U62: FC-280P3K7 | V62: T2 | W62: E20 | X62: H2 | Y62: B | Z62: XCXXX | AA62: SXXX | AB62: X | AC62: A0 | AE62: FC-280P3K7T2E20H2BXCXXXSXXXXA0 | AF62: =+VLOOKUP(AE62,TypeCodesFC280!AH:AI,2,FALSE) -> 134U7966 | AG62: C3 | AH62: Profibus | AJ62: C | AK62: =+VLOOKUP($AJ62,Dimensions!$B$5:$G$13,2,FALSE) -> 140 | AL62: =+VLOOKUP($AJ62,Dimensions!$B$5:$G$13,3,FALSE) -> 268 | AM62: =+VLOOKUP($AJ62,Dimensions!$B$5:$G$13,4,FALSE) -> 168 | AN62: =+VLOOKUP($AJ62,Dimensions!$B$5:$G$13,5,FALSE) -> 120 | AO62: =+VLOOKUP($AJ62,Dimensions!$B$5:$G$13,6,FALSE) -> 257 | AP62: K3 | AQ62: =+VLOOKUP($AP62,Dimensions!$B$5:$G$13,2,FALSE) -> 115 | AR62: =+VLOOKUP($AP62,Dimensions!$B$5:$G$13,3,FALSE) -> 272.5 | AS62: =+VLOOKUP($AP62,Dimensions!$B$5:$G$13,4,FALSE) -> 168 | AT62: =+VLOOKUP($AP62,Dimensions!$B$5:$G$13,5,FALSE) -> 90 | AU62: =+VLOOKUP($AP62,Dimensions!$B$5:$G$13,6,FALSE) -> 260
A63: 09 | B63: VLT Drives | C63: 046 | D63: Static frequency converters | E63: P281_200 | F63: 2803-2840 200V | G63: 09578 | H63: VLT 2840/200V | I63: 134H5319 | J63: VLT2840PT2B20SBR1DBF30A00C1 | K63: 134H5319 | M63: 3x200 | N63: 4 | O63: Y | P63: R1 | Q63: C2 | R63: DeviceNet | S63: Y | T63: 3.7 | U63: FC-280P3K7 | V63: T2 | W63: E20 | X63: H2 | Y63: B | Z63: XCXXX | AA63: SXXX | AB63: X | AC63: ? | AE63: FC-280P3K7T2E20H2BXCXXXSXXXX? | AF63: =+VLOOKUP(AE63,TypeCodesFC280!AH:AI,2,FALSE) ->  | AG63: C3 | AH63: t.b. | AJ63: C | AK63: =+VLOOKUP($AJ63,Dimensions!$B$5:$G$13,2,FALSE) -> 140 | AL63: =+VLOOKUP($AJ63,Dimensions!$B$5:$G$13,3,FALSE) -> 268 | AM63: =+VLOOKUP($AJ63,Dimensions!$B$5:$G$13,4,FALSE) -> 168 | AN63: =+VLOOKUP($AJ63,Dimensions!$B$5:$G$13,5,FALSE) -> 120 | AO63: =+VLOOKUP($AJ63,Dimensions!$B$5:$G$13,6,FALSE) -> 257 | AP63: K3 | AQ63: =+VLOOKUP($AP63,Dimensions!$B$5:$G$13,2,FALSE) -> 115 | AR63: =+VLOOKUP($AP63,Dimensions!$B$5:$G$13,3,FALSE) -> 272.5 | AS63: =+VLOOKUP($AP63,Dimensions!$B$5:$G$13,4,FALSE) -> 168 | AT63: =+VLOOKUP($AP63,Dimensions!$B$5:$G$13,5,FALSE) -> 90 | AU63: =+VLOOKUP($AP63,Dimensions!$B$5:$G$13,6,FALSE) -> 260
A64: 09 | B64: VLT Drives | C64: 046 | D64: Static frequency converters | E64: P281_200 | F64: 2803-2840 200V | G64: 09578 | H64: VLT 2840/200V | I64: 134H6615 | J64: VLT2840PD2B20STR0DBF12A00C1 | K64: 134H6615 | M64: 1x200 / 3x200 | N64: 4 | O64: N | P64: R0 | Q64: no class | R64: PB 12Mbit | S64: Y | T64: 3.7 | U64: FC-280P3K7 | V64: T2 | W64: E20 | X64: H2 | Y64: B | Z64: XCXXX | AA64: SXXX | AB64: X | AC64: A0 | AE64: FC-280P3K7T2E20H2BXCXXXSXXXXA0 | AF64: =+VLOOKUP(AE64,TypeCodesFC280!AH:AI,2,FALSE) -> 134U7966 | AG64: C3 | AH64: Profibus | AJ64: D | AK64: =+VLOOKUP($AJ64,Dimensions!$B$5:$G$13,2,FALSE) -> 200 | AL64: =+VLOOKUP($AJ64,Dimensions!$B$5:$G$13,3,FALSE) -> 505 | AM64: =+VLOOKUP($AJ64,Dimensions!$B$5:$G$13,4,FALSE) -> 244 | AN64: =+VLOOKUP($AJ64,Dimensions!$B$5:$G$13,5,FALSE) -> 120 | AO64: =+VLOOKUP($AJ64,Dimensions!$B$5:$G$13,6,FALSE) -> 490 | AP64: K3 | AQ64: =+VLOOKUP($AP64,Dimensions!$B$5:$G$13,2,FALSE) -> 115 | AR64: =+VLOOKUP($AP64,Dimensions!$B$5:$G$13,3,FALSE) -> 272.5 | AS64: =+VLOOKUP($AP64,Dimensions!$B$5:$G$13,4,FALSE) -> 168 | AT64: =+VLOOKUP($AP64,Dimensions!$B$5:$G$13,5,FALSE) -> 90 | AU64: =+VLOOKUP($AP64,Dimensions!$B$5:$G$13,6,FALSE) -> 260
A65: 09 | B65: VLT Drives | C65: 046 | D65: Static frequency converters | E65: P281_200 | F65: 2803-2840 200V | G65: 09578 | H65: VLT 2840/200V | I65: 134L2747 | J65: I-R2840PT2B20SBR1DBF00A00C1 | K65: 134L2747 | M65: 3x200 | N65: 4 | O65: Y | P65: R1 | Q65: C2 | R65: Standard | S65: Y | T65: 3.7 | U65: FC-280P3K7 | V65: T2 | W65: E20 | X65: H2 | Y65: B | Z65: XCXXX | AA65: SXXX | AB65: X | AC65: AX | AE65: FC-280P3K7T2E20H2BXCXXXSXXXXAX | AF65: =+VLOOKUP(AE65,TypeCodesFC280!AH:AI,2,FALSE) -> 134U7948 | AG65: C3 | AH65: Modbus RTU | AJ65: C | AK65: =+VLOOKUP($AJ65,Dimensions!$B$5:$G$13,2,FALSE) -> 140 | AL65: =+VLOOKUP($AJ65,Dimensions!$B$5:$G$13,3,FALSE) -> 268 | AM65: =+VLOOKUP($AJ65,Dimensions!$B$5:$G$13,4,FALSE) -> 168 | AN65: =+VLOOKUP($AJ65,Dimensions!$B$5:$G$13,5,FALSE) -> 120 | AO65: =+VLOOKUP($AJ65,Dimensions!$B$5:$G$13,6,FALSE) -> 257 | AP65: K3 | AQ65: =+VLOOKUP($AP65,Dimensions!$B$5:$G$13,2,FALSE) -> 115 | AR65: =+VLOOKUP($AP65,Dimensions!$B$5:$G$13,3,FALSE) -> 272.5 | AS65: =+VLOOKUP($AP65,Dimensions!$B$5:$G$13,4,FALSE) -> 168 | AT65: =+VLOOKUP($AP65,Dimensions!$B$5:$G$13,5,FALSE) -> 90 | AU65: =+VLOOKUP($AP65,Dimensions!$B$5:$G$13,6,FALSE) -> 260
A66: 09 | B66: VLT Drives | C66: 046 | D66: Static frequency converters | E66: P281_200 | F66: 2803-2840 200V | G66: 09578 | H66: VLT 2840/200V | I66: 134L4682 | J66: VLT2840PT2B20SBR0DBF30A00C1 | K66: 134L4682 | M66: 3x200 | N66: 4 | O66: Y | P66: R0 | Q66: no class | R66: DeviceNet | S66: Y | T66: 3.7 | U66: FC-280P3K7 | V66: T2 | W66: E20 | X66: H2 | Y66: B | Z66: XCXXX | AA66: SXXX | AB66: X | AC66: ? | AE66: FC-280P3K7T2E20H2BXCXXXSXXXX? | AF66: =+VLOOKUP(AE66,TypeCodesFC280!AH:AI,2,FALSE) ->  | AG66: C3 | AH66: t.b. | AJ66: C | AK66: =+VLOOKUP($AJ66,Dimensions!$B$5:$G$13,2,FALSE) -> 140 | AL66: =+VLOOKUP($AJ66,Dimensions!$B$5:$G$13,3,FALSE) -> 268 | AM66: =+VLOOKUP($AJ66,Dimensions!$B$5:$G$13,4,FALSE) -> 168 | AN66: =+VLOOKUP($AJ66,Dimensions!$B$5:$G$13,5,FALSE) -> 120 | AO66: =+VLOOKUP($AJ66,Dimensions!$B$5:$G$13,6,FALSE) -> 257 | AP66: K3 | AQ66: =+VLOOKUP($AP66,Dimensions!$B$5:$G$13,2,FALSE) -> 115 | AR66: =+VLOOKUP($AP66,Dimensions!$B$5:$G$13,3,FALSE) -> 272.5 | AS66: =+VLOOKUP($AP66,Dimensions!$B$5:$G$13,4,FALSE) -> 168 | AT66: =+VLOOKUP($AP66,Dimensions!$B$5:$G$13,5,FALSE) -> 90 | AU66: =+VLOOKUP($AP66,Dimensions!$B$5:$G$13,6,FALSE) -> 260
A67: 09 | B67: VLT Drives | C67: 046 | D67: Static frequency converters | E67: P281_200 | F67: 2803-2840 200V | G67: 09578 | H67: VLT 2840/200V | I67: 178B8595 | J67: VLT2840PT2B20SBR0DBF00A00C1 | K67: 178B8595 | L67: 1900372 | M67: 3x200 | N67: 4 | O67: Y | P67: R0 | Q67: no class | R67: Standard | S67: Y | T67: 3.7 | U67: FC-280P3K7 | V67: T2 | W67: E20 | X67: H2 | Y67: B | Z67: XCXXX | AA67: SXXX | AB67: X | AC67: AX | AE67: FC-280P3K7T2E20H2BXCXXXSXXXXAX | AF67: =+VLOOKUP(AE67,TypeCodesFC280!AH:AI,2,FALSE) -> 134U7948 | AG67: C3 | AH67: Modbus RTU | AJ67: C | AK67: =+VLOOKUP($AJ67,Dimensions!$B$5:$G$13,2,FALSE) -> 140 | AL67: =+VLOOKUP($AJ67,Dimensions!$B$5:$G$13,3,FALSE) -> 268 | AM67: =+VLOOKUP($AJ67,Dimensions!$B$5:$G$13,4,FALSE) -> 168 | AN67: =+VLOOKUP($AJ67,Dimensions!$B$5:$G$13,5,FALSE) -> 120 | AO67: =+VLOOKUP($AJ67,Dimensions!$B$5:$G$13,6,FALSE) -> 257 | AP67: K3 | AQ67: =+VLOOKUP($AP67,Dimensions!$B$5:$G$13,2,FALSE) -> 115 | AR67: =+VLOOKUP($AP67,Dimensions!$B$5:$G$13,3,FALSE) -> 272.5 | AS67: =+VLOOKUP($AP67,Dimensions!$B$5:$G$13,4,FALSE) -> 168 | AT67: =+VLOOKUP($AP67,Dimensions!$B$5:$G$13,5,FALSE) -> 90 | AU67: =+VLOOKUP($AP67,Dimensions!$B$5:$G$13,6,FALSE) -> 260
A68: 09 | B68: VLT Drives | C68: 046 | D68: Static frequency converters | E68: P281_400 | F68: 2805-2882 400V | G68: 09581 | H68: VLT 2805/400V | I68: 131Z8825 | J68: VLT2805PT4B20SBR1DBF00A00C1 | K68: 131Z8825 | L68: 1900398 | M68: 3x400 | N68: 0.55 | O68: Y | P68: R1 | Q68: C2 | R68: Standard | S68: Y | T68: 0.55 | U68: FC-280PK55 | V68: T4 | W68: E20 | X68: H1 | Y68: B | Z68: XCXXX | AA68: SXXX | AB68: X | AC68: AX | AE68: FC-280PK55T4E20H1BXCXXXSXXXXAX | AF68: =+VLOOKUP(AE68,TypeCodesFC280!AH:AI,2,FALSE) -> 134U2978 | AG68: C2 | AH68: Modbus RTU | AJ68: A | AK68: =+VLOOKUP($AJ68,Dimensions!$B$5:$G$13,2,FALSE) -> 75 | AL68: =+VLOOKUP($AJ68,Dimensions!$B$5:$G$13,3,FALSE) -> 200 | AM68: =+VLOOKUP($AJ68,Dimensions!$B$5:$G$13,4,FALSE) -> 168 | AN68: =+VLOOKUP($AJ68,Dimensions!$B$5:$G$13,5,FALSE) -> 60 | AO68: =+VLOOKUP($AJ68,Dimensions!$B$5:$G$13,6,FALSE) -> 191 | AP68: K2 | AQ68: =+VLOOKUP($AP68,Dimensions!$B$5:$G$13,2,FALSE) -> 90 | AR68: =+VLOOKUP($AP68,Dimensions!$B$5:$G$13,3,FALSE) -> 272.5 | AS68: =+VLOOKUP($AP68,Dimensions!$B$5:$G$13,4,FALSE) -> 168 | AT68: =+VLOOKUP($AP68,Dimensions!$B$5:$G$13,5,FALSE) -> 70 | AU68: =+VLOOKUP($AP68,Dimensions!$B$5:$G$13,6,FALSE) -> 260
A69: 09 | B69: VLT Drives | C69: 046 | D69: Static frequency converters | E69: P281_400 | F69: 2805-2882 400V | G69: 09581 | H69: VLT 2805/400V | I69: 134H2364 | J69: VLT2805PT4B20SBR0DBF12A00C1 | K69: 134H2364 | L69: 1900302 | M69: 3x400 | N69: 0.55 | O69: Y | P69: R0 | Q69: no class | R69: PB 12Mbit | S69: Y | T69: 0.55 | U69: FC-280PK55 | V69: T4 | W69: E20 | X69: H2 | Y69: B | Z69: XCXXX | AA69: SXXX | AB69: X | AC69: A0 | AE69: FC-280PK55T4E20H2BXCXXXSXXXXA0 | AF69: =+VLOOKUP(AE69,TypeCodesFC280!AH:AI,2,FALSE) -> 134U7744 | AG69: C3 | AH69: Profibus | AJ69: A | AK69: =+VLOOKUP($AJ69,Dimensions!$B$5:$G$13,2,FALSE) -> 75 | AL69: =+VLOOKUP($AJ69,Dimensions!$B$5:$G$13,3,FALSE) -> 200 | AM69: =+VLOOKUP($AJ69,Dimensions!$B$5:$G$13,4,FALSE) -> 168 | AN69: =+VLOOKUP($AJ69,Dimensions!$B$5:$G$13,5,FALSE) -> 60 | AO69: =+VLOOKUP($AJ69,Dimensions!$B$5:$G$13,6,FALSE) -> 191 | AP69: K2 | AQ69: =+VLOOKUP($AP69,Dimensions!$B$5:$G$13,2,FALSE) -> 90 | AR69: =+VLOOKUP($AP69,Dimensions!$B$5:$G$13,3,FALSE) -> 272.5 | AS69: =+VLOOKUP($AP69,Dimensions!$B$5:$G$13,4,FALSE) -> 168 | AT69: =+VLOOKUP($AP69,Dimensions!$B$5:$G$13,5,FALSE) -> 70 | AU69: =+VLOOKUP($AP69,Dimensions!$B$5:$G$13,6,FALSE) -> 260
A70: 09 | B70: VLT Drives | C70: 046 | D70: Static frequency converters | E70: P281_400 | F70: 2805-2882 400V | G70: 09581 | H70: VLT 2805/400V | I70: 134H2365 | J70: VLT2805PT4B20SBR1DBF12A00C1 | K70: 134H2365 | L70: 1900400 | M70: 3x400 | N70: 0.55 | O70: Y | P70: R1 | Q70: C2 | R70: PB 12Mbit | S70: Y | T70: 0.55 | U70: FC-280PK55 | V70: T4 | W70: E20 | X70: H1 | Y70: B | Z70: XCXXX | AA70: SXXX | AB70: X | AC70: A0 | AE70: FC-280PK55T4E20H1BXCXXXSXXXXA0 | AF70: =+VLOOKUP(AE70,TypeCodesFC280!AH:AI,2,FALSE) -> 134U7713 | AG70: C2 | AH70: Profibus | AJ70: A | AK70: =+VLOOKUP($AJ70,Dimensions!$B$5:$G$13,2,FALSE) -> 75 | AL70: =+VLOOKUP($AJ70,Dimensions!$B$5:$G$13,3,FALSE) -> 200 | AM70: =+VLOOKUP($AJ70,Dimensions!$B$5:$G$13,4,FALSE) -> 168 | AN70: =+VLOOKUP($AJ70,Dimensions!$B$5:$G$13,5,FALSE) -> 60 | AO70: =+VLOOKUP($AJ70,Dimensions!$B$5:$G$13,6,FALSE) -> 191 | AP70: K2 | AQ70: =+VLOOKUP($AP70,Dimensions!$B$5:$G$13,2,FALSE) -> 90 | AR70: =+VLOOKUP($AP70,Dimensions!$B$5:$G$13,3,FALSE) -> 272.5 | AS70: =+VLOOKUP($AP70,Dimensions!$B$5:$G$13,4,FALSE) -> 168 | AT70: =+VLOOKUP($AP70,Dimensions!$B$5:$G$13,5,FALSE) -> 70 | AU70: =+VLOOKUP($AP70,Dimensions!$B$5:$G$13,6,FALSE) -> 260
A71: 09 | B71: VLT Drives | C71: 046 | D71: Static frequency converters | E71: P281_400 | F71: 2805-2882 400V | G71: 09581 | H71: VLT 2805/400V | I71: 134H5277 | J71: VLT2805PT4B20SBR5DBF00A00C1 | K71: 134H5277 | M71: 3x400 | N71: 0.55 | O71: Y | P71: R5 | Q71: C2 | R71: Standard | S71: Y | T71: 0.55 | U71: FC-280PK55 | V71: T4 | W71: E20 | X71: H1 | Y71: B | Z71: XCXXX | AA71: SXXX | AB71: X | AC71: AX | AE71: FC-280PK55T4E20H1BXCXXXSXXXXAX | AF71: =+VLOOKUP(AE71,TypeCodesFC280!AH:AI,2,FALSE) -> 134U2978 | AG71: C2 | AH71: Modbus RTU | AJ71: A | AK71: =+VLOOKUP($AJ71,Dimensions!$B$5:$G$13,2,FALSE) -> 75 | AL71: =+VLOOKUP($AJ71,Dimensions!$B$5:$G$13,3,FALSE) -> 200 | AM71: =+VLOOKUP($AJ71,Dimensions!$B$5:$G$13,4,FALSE) -> 168 | AN71: =+VLOOKUP($AJ71,Dimensions!$B$5:$G$13,5,FALSE) -> 60 | AO71: =+VLOOKUP($AJ71,Dimensions!$B$5:$G$13,6,FALSE) -> 191 | AP71: K2 | AQ71: =+VLOOKUP($AP71,Dimensions!$B$5:$G$13,2,FALSE) -> 90 | AR71: =+VLOOKUP($AP71,Dimensions!$B$5:$G$13,3,FALSE) -> 272.5 | AS71: =+VLOOKUP($AP71,Dimensions!$B$5:$G$13,4,FALSE) -> 168 | AT71: =+VLOOKUP($AP71,Dimensions!$B$5:$G$13,5,FALSE) -> 70 | AU71: =+VLOOKUP($AP71,Dimensions!$B$5:$G$13,6,FALSE) -> 260
A72: 09 | B72: VLT Drives | C72: 046 | D72: Static frequency converters | E72: P281_400 | F72: 2805-2882 400V | G72: 09581 | H72: VLT 2805/400V | I72: 134H5293 | J72: VLT2805PT4B20SBR5DBF12A00C1 | K72: 134H5293 | M72: 3x400 | N72: 0.55 | O72: Y | P72: R5 | Q72: C2 | R72: PB 12Mbit | S72: Y | T72: 0.55 | U72: FC-280PK55 | V72: T4 | W72: E20 | X72: H1 | Y72: B | Z72: XCXXX | AA72: SXXX | AB72: X | AC72: A0 | AE72: =+CONCATENATE(U72,V72,W72,X72,Y72,Z72,AA72,AB72,AC72) -> FC-280PK55T4E20H1BXCXXXSXXXXA0 | AF72: =+VLOOKUP(AE72,TypeCodesFC280!AH:AI,2,FALSE) -> 134U7713 | AG72: C2 | AH72: Profibus | AJ72: A | AK72: =+VLOOKUP($AJ72,Dimensions!$B$5:$G$13,2,FALSE) -> 75 | AL72: =+VLOOKUP($AJ72,Dimensions!$B$5:$G$13,3,FALSE) -> 200 | AM72: =+VLOOKUP($AJ72,Dimensions!$B$5:$G$13,4,FALSE) -> 168 | AN72: =+VLOOKUP($AJ72,Dimensions!$B$5:$G$13,5,FALSE) -> 60 | AO72: =+VLOOKUP($AJ72,Dimensions!$B$5:$G$13,6,FALSE) -> 191 | AP72: K2 | AQ72: =+VLOOKUP($AP72,Dimensions!$B$5:$G$13,2,FALSE) -> 90 | AR72: =+VLOOKUP($AP72,Dimensions!$B$5:$G$13,3,FALSE) -> 272.5 | AS72: =+VLOOKUP($AP72,Dimensions!$B$5:$G$13,4,FALSE) -> 168 | AT72: =+VLOOKUP($AP72,Dimensions!$B$5:$G$13,5,FALSE) -> 70 | AU72: =+VLOOKUP($AP72,Dimensions!$B$5:$G$13,6,FALSE) -> 260
A73: 09 | B73: VLT Drives | C73: 046 | D73: Static frequency converters | E73: P281_400 | F73: 2805-2882 400V | G73: 09581 | H73: VLT 2805/400V | I73: 134H5312 | J73: VLT2805PT4B20SBR5DBF30A00C1 | K73: 134H5312 | M73: 3x400 | N73: 0.55 | O73: Y | P73: R5 | Q73: C2 | R73: DeviceNet | S73: Y | T73: 0.55 | U73: FC-280PK55 | V73: T4 | W73: E20 | X73: H1 | Y73: B | Z73: XCXXX | AA73: SXXX | AB73: X | AC73: ? | AE73: FC-280PK55T4E20H1BXCXXXSXXXX? | AF73: =+VLOOKUP(AE73,TypeCodesFC280!AH:AI,2,FALSE) ->  | AG73: C2 | AH73: t.b. | AJ73: A | AK73: =+VLOOKUP($AJ73,Dimensions!$B$5:$G$13,2,FALSE) -> 75 | AL73: =+VLOOKUP($AJ73,Dimensions!$B$5:$G$13,3,FALSE) -> 200 | AM73: =+VLOOKUP($AJ73,Dimensions!$B$5:$G$13,4,FALSE) -> 168 | AN73: =+VLOOKUP($AJ73,Dimensions!$B$5:$G$13,5,FALSE) -> 60 | AO73: =+VLOOKUP($AJ73,Dimensions!$B$5:$G$13,6,FALSE) -> 191 | AP73: K2 | AQ73: =+VLOOKUP($AP73,Dimensions!$B$5:$G$13,2,FALSE) -> 90 | AR73: =+VLOOKUP($AP73,Dimensions!$B$5:$G$13,3,FALSE) -> 272.5 | AS73: =+VLOOKUP($AP73,Dimensions!$B$5:$G$13,4,FALSE) -> 168 | AT73: =+VLOOKUP($AP73,Dimensions!$B$5:$G$13,5,FALSE) -> 70 | AU73: =+VLOOKUP($AP73,Dimensions!$B$5:$G$13,6,FALSE) -> 260
A74: 09 | B74: VLT Drives | C74: 046 | D74: Static frequency converters | E74: P281_400 | F74: 2805-2882 400V | G74: 09581 | H74: VLT 2805/400V | I74: 134L1268 | J74: TR12805PT4B20SBR1DBF00A00C1 | K74: 134L1268 | M74: 3x400 | N74: 0.55 | O74: Y | P74: R1 | Q74: C2 | R74: Standard | S74: Y | T74: 0.55 | U74: FC-280PK55 | V74: T4 | W74: E20 | X74: H1 | Y74: B | Z74: XCXXX | AA74: SXXX | AB74: X | AC74: AX | AE74: FC-280PK55T4E20H1BXCXXXSXXXXAX | AF74: =+VLOOKUP(AE74,TypeCodesFC280!AH:AI,2,FALSE) -> 134U2978 | AG74: C2 | AH74: Modbus RTU | AJ74: A | AK74: =+VLOOKUP($AJ74,Dimensions!$B$5:$G$13,2,FALSE) -> 75 | AL74: =+VLOOKUP($AJ74,Dimensions!$B$5:$G$13,3,FALSE) -> 200 | AM74: =+VLOOKUP($AJ74,Dimensions!$B$5:$G$13,4,FALSE) -> 168 | AN74: =+VLOOKUP($AJ74,Dimensions!$B$5:$G$13,5,FALSE) -> 60 | AO74: =+VLOOKUP($AJ74,Dimensions!$B$5:$G$13,6,FALSE) -> 191 | AP74: K2 | AQ74: =+VLOOKUP($AP74,Dimensions!$B$5:$G$13,2,FALSE) -> 90 | AR74: =+VLOOKUP($AP74,Dimensions!$B$5:$G$13,3,FALSE) -> 272.5 | AS74: =+VLOOKUP($AP74,Dimensions!$B$5:$G$13,4,FALSE) -> 168 | AT74: =+VLOOKUP($AP74,Dimensions!$B$5:$G$13,5,FALSE) -> 70 | AU74: =+VLOOKUP($AP74,Dimensions!$B$5:$G$13,6,FALSE) -> 260
A75: 09 | B75: VLT Drives | C75: 046 | D75: Static frequency converters | E75: P281_400 | F75: 2805-2882 400V | G75: 09581 | H75: VLT 2805/400V | I75: 134L4372 | J75: VLT2805PT4B20SBR1DBF30A00C1 | K75: 134L4372 | M75: 3x400 | N75: 0.55 | O75: Y | P75: R1 | Q75: C2 | R75: DeviceNet | S75: Y | T75: 0.55 | U75: FC-280PK55 | V75: T4 | W75: E20 | X75: H1 | Y75: B | Z75: XCXXX | AA75: SXXX | AB75: X | AC75: ? | AE75: FC-280PK55T4E20H1BXCXXXSXXXX? | AF75: =+VLOOKUP(AE75,TypeCodesFC280!AH:AI,2,FALSE) ->  | AG75: C2 | AH75: t.b. | AJ75: A | AK75: =+VLOOKUP($AJ75,Dimensions!$B$5:$G$13,2,FALSE) -> 75 | AL75: =+VLOOKUP($AJ75,Dimensions!$B$5:$G$13,3,FALSE) -> 200 | AM75: =+VLOOKUP($AJ75,Dimensions!$B$5:$G$13,4,FALSE) -> 168 | AN75: =+VLOOKUP($AJ75,Dimensions!$B$5:$G$13,5,FALSE) -> 60 | AO75: =+VLOOKUP($AJ75,Dimensions!$B$5:$G$13,6,FALSE) -> 191 | AP75: K2 | AQ75: =+VLOOKUP($AP75,Dimensions!$B$5:$G$13,2,FALSE) -> 90 | AR75: =+VLOOKUP($AP75,Dimensions!$B$5:$G$13,3,FALSE) -> 272.5 | AS75: =+VLOOKUP($AP75,Dimensions!$B$5:$G$13,4,FALSE) -> 168 | AT75: =+VLOOKUP($AP75,Dimensions!$B$5:$G$13,5,FALSE) -> 70 | AU75: =+VLOOKUP($AP75,Dimensions!$B$5:$G$13,6,FALSE) -> 260
A76: 09 | B76: VLT Drives | C76: 046 | D76: Static frequency converters | E76: P281_400 | F76: 2805-2882 400V | G76: 09581 | H76: VLT 2805/400V | I76: 134L4501 | J76: VLT2805PT4B20SBR0DBF30A00C1 | K76: 134L4501 | M76: 3x400 | N76: 0.55 | O76: Y | P76: R0 | Q76: no class | R76: DeviceNet | S76: Y | T76: 0.55 | U76: FC-280PK55 | V76: T4 | W76: E20 | X76: H2 | Y76: B | Z76: XCXXX | AA76: SXXX | AB76: X | AC76: ? | AE76: FC-280PK55T4E20H2BXCXXXSXXXX? | AF76: =+VLOOKUP(AE76,TypeCodesFC280!AH:AI,2,FALSE) ->  | AG76: C3 | AH76: t.b. | AJ76: A | AK76: =+VLOOKUP($AJ76,Dimensions!$B$5:$G$13,2,FALSE) -> 75 | AL76: =+VLOOKUP($AJ76,Dimensions!$B$5:$G$13,3,FALSE) -> 200 | AM76: =+VLOOKUP($AJ76,Dimensions!$B$5:$G$13,4,FALSE) -> 168 | AN76: =+VLOOKUP($AJ76,Dimensions!$B$5:$G$13,5,FALSE) -> 60 | AO76: =+VLOOKUP($AJ76,Dimensions!$B$5:$G$13,6,FALSE) -> 191 | AP76: K2 | AQ76: =+VLOOKUP($AP76,Dimensions!$B$5:$G$13,2,FALSE) -> 90 | AR76: =+VLOOKUP($AP76,Dimensions!$B$5:$G$13,3,FALSE) -> 272.5 | AS76: =+VLOOKUP($AP76,Dimensions!$B$5:$G$13,4,FALSE) -> 168 | AT76: =+VLOOKUP($AP76,Dimensions!$B$5:$G$13,5,FALSE) -> 70 | AU76: =+VLOOKUP($AP76,Dimensions!$B$5:$G$13,6,FALSE) -> 260
A77: 09 | B77: VLT Drives | C77: 046 | D77: Static frequency converters | E77: P281_400 | F77: 2805-2882 400V | G77: 09581 | H77: VLT 2805/400V | I77: 134L4896 | J77: ABU2805PT4B20SBR1DBF00A00C1 | K77: 134L4896 | M77: 3x400 | N77: 0.55 | O77: Y | P77: R1 | Q77: C2 | R77: Standard | S77: Y | T77: 0.55 | U77: FC-280PK55 | V77: T4 | W77: E20 | X77: H1 | Y77: B | Z77: XCXXX | AA77: SXXX | AB77: X | AC77: AX | AE77: FC-280PK55T4E20H1BXCXXXSXXXXAX | AF77: =+VLOOKUP(AE77,TypeCodesFC280!AH:AI,2,FALSE) -> 134U2978 | AG77: C2 | AH77: Modbus RTU | AJ77: A | AK77: =+VLOOKUP($AJ77,Dimensions!$B$5:$G$13,2,FALSE) -> 75 | AL77: =+VLOOKUP($AJ77,Dimensions!$B$5:$G$13,3,FALSE) -> 200 | AM77: =+VLOOKUP($AJ77,Dimensions!$B$5:$G$13,4,FALSE) -> 168 | AN77: =+VLOOKUP($AJ77,Dimensions!$B$5:$G$13,5,FALSE) -> 60 | AO77: =+VLOOKUP($AJ77,Dimensions!$B$5:$G$13,6,FALSE) -> 191 | AP77: K2 | AQ77: =+VLOOKUP($AP77,Dimensions!$B$5:$G$13,2,FALSE) -> 90 | AR77: =+VLOOKUP($AP77,Dimensions!$B$5:$G$13,3,FALSE) -> 272.5 | AS77: =+VLOOKUP($AP77,Dimensions!$B$5:$G$13,4,FALSE) -> 168 | AT77: =+VLOOKUP($AP77,Dimensions!$B$5:$G$13,5,FALSE) -> 70 | AU77: =+VLOOKUP($AP77,Dimensions!$B$5:$G$13,6,FALSE) -> 260
A78: 09 | B78: VLT Drives | C78: 046 | D78: Static frequency converters | E78: P281_400 | F78: 2805-2882 400V | G78: 09581 | H78: VLT 2805/400V | I78: 134L4908 | J78: ABU2805PT4B20SBR1DBF12A00C1 | K78: 134L4908 | M78: 3x400 | N78: 0.55 | O78: Y | P78: R1 | Q78: C2 | R78: PB 12Mbit | S78: Y | T78: 0.55 | U78: FC-280PK55 | V78: T4 | W78: E20 | X78: H1 | Y78: B | Z78: XCXXX | AA78: SXXX | AB78: X | AC78: A0 | AE78: FC-280PK55T4E20H1BXCXXXSXXXXA0 | AF78: =+VLOOKUP(AE78,TypeCodesFC280!AH:AI,2,FALSE) -> 134U7713 | AG78: C2 | AH78: Profibus | AJ78: A | AK78: =+VLOOKUP($AJ78,Dimensions!$B$5:$G$13,2,FALSE) -> 75 | AL78: =+VLOOKUP($AJ78,Dimensions!$B$5:$G$13,3,FALSE) -> 200 | AM78: =+VLOOKUP($AJ78,Dimensions!$B$5:$G$13,4,FALSE) -> 168 | AN78: =+VLOOKUP($AJ78,Dimensions!$B$5:$G$13,5,FALSE) -> 60 | AO78: =+VLOOKUP($AJ78,Dimensions!$B$5:$G$13,6,FALSE) -> 191 | AP78: K2 | AQ78: =+VLOOKUP($AP78,Dimensions!$B$5:$G$13,2,FALSE) -> 90 | AR78: =+VLOOKUP($AP78,Dimensions!$B$5:$G$13,3,FALSE) -> 272.5 | AS78: =+VLOOKUP($AP78,Dimensions!$B$5:$G$13,4,FALSE) -> 168 | AT78: =+VLOOKUP($AP78,Dimensions!$B$5:$G$13,5,FALSE) -> 70 | AU78: =+VLOOKUP($AP78,Dimensions!$B$5:$G$13,6,FALSE) -> 260
A79: 09 | B79: VLT Drives | C79: 046 | D79: Static frequency converters | E79: P281_400 | F79: 2805-2882 400V | G79: 09581 | H79: VLT 2805/400V | I79: 178B2371 | J79: VLT2805PT4B20SBR5DBF00A00C0 | K79: 178B2371 | M79: 3x400 | N79: 0.55 | O79: Y | P79: R5 | Q79: C2 | R79: Standard | S79: N | T79: 0.55 | U79: FC-280PK55 | V79: T4 | W79: E20 | X79: H1 | Y79: B | Z79: XCXXX | AA79: SXXX | AB79: X | AC79: AX | AE79: FC-280PK55T4E20H1BXCXXXSXXXXAX | AF79: =+VLOOKUP(AE79,TypeCodesFC280!AH:AI,2,FALSE) -> 134U2978 | AG79: C2 | AH79: Modbus RTU | AJ79: A | AK79: =+VLOOKUP($AJ79,Dimensions!$B$5:$G$13,2,FALSE) -> 75 | AL79: =+VLOOKUP($AJ79,Dimensions!$B$5:$G$13,3,FALSE) -> 200 | AM79: =+VLOOKUP($AJ79,Dimensions!$B$5:$G$13,4,FALSE) -> 168 | AN79: =+VLOOKUP($AJ79,Dimensions!$B$5:$G$13,5,FALSE) -> 60 | AO79: =+VLOOKUP($AJ79,Dimensions!$B$5:$G$13,6,FALSE) -> 191 | AP79: K2 | AQ79: =+VLOOKUP($AP79,Dimensions!$B$5:$G$13,2,FALSE) -> 90 | AR79: =+VLOOKUP($AP79,Dimensions!$B$5:$G$13,3,FALSE) -> 272.5 | AS79: =+VLOOKUP($AP79,Dimensions!$B$5:$G$13,4,FALSE) -> 168 | AT79: =+VLOOKUP($AP79,Dimensions!$B$5:$G$13,5,FALSE) -> 70 | AU79: =+VLOOKUP($AP79,Dimensions!$B$5:$G$13,6,FALSE) -> 260
A80: 09 | B80: VLT Drives | C80: 046 | D80: Static frequency converters | E80: P281_400 | F80: 2805-2882 400V | G80: 09581 | H80: VLT 2805/400V | I80: 178B3616 | J80: VLT2805PT4B20SBR5DBF10A00C0 | K80: 178B3616 | M80: 3x400 | N80: 0.55 | O80: Y | P80: R5 | Q80: C2 | R80: PB 3MBit | S80: N | T80: 0.55 | U80: FC-280PK55 | V80: T4 | W80: E20 | X80: H1 | Y80: B | Z80: XCXXX | AA80: SXXX | AB80: X | AC80: A0 | AE80: FC-280PK55T4E20H1BXCXXXSXXXXA0 | AF80: =+VLOOKUP(AE80,TypeCodesFC280!AH:AI,2,FALSE) -> 134U7713 | AG80: C2 | AH80: Profibus | AJ80: A | AK80: =+VLOOKUP($AJ80,Dimensions!$B$5:$G$13,2,FALSE) -> 75 | AL80: =+VLOOKUP($AJ80,Dimensions!$B$5:$G$13,3,FALSE) -> 200 | AM80: =+VLOOKUP($AJ80,Dimensions!$B$5:$G$13,4,FALSE) -> 168 | AN80: =+VLOOKUP($AJ80,Dimensions!$B$5:$G$13,5,FALSE) -> 60 | AO80: =+VLOOKUP($AJ80,Dimensions!$B$5:$G$13,6,FALSE) -> 191 | AP80: K2 | AQ80: =+VLOOKUP($AP80,Dimensions!$B$5:$G$13,2,FALSE) -> 90 | AR80: =+VLOOKUP($AP80,Dimensions!$B$5:$G$13,3,FALSE) -> 272.5 | AS80: =+VLOOKUP($AP80,Dimensions!$B$5:$G$13,4,FALSE) -> 168 | AT80: =+VLOOKUP($AP80,Dimensions!$B$5:$G$13,5,FALSE) -> 70 | AU80: =+VLOOKUP($AP80,Dimensions!$B$5:$G$13,6,FALSE) -> 260
A81: 09 | B81: VLT Drives | C81: 046 | D81: Static frequency converters | E81: P281_400 | F81: 2805-2882 400V | G81: 09581 | H81: VLT 2805/400V | I81: 178B8577 | J81: VLT2805PT4B20SBR0DBF00A00C1 | K81: 178B8577 | L81: 1900309 | M81: 3x400 | N81: 0.55 | O81: Y | P81: R0 | Q81: no class | R81: Standard | S81: Y | T81: 0.55 | U81: FC-280PK55 | V81: T4 | W81: E20 | X81: H2 | Y81: B | Z81: XCXXX | AA81: SXXX | AB81: X | AC81: AX | AE81: FC-280PK55T4E20H2BXCXXXSXXXXAX | AF81: =+VLOOKUP(AE81,TypeCodesFC280!AH:AI,2,FALSE) -> 134U3007 | AG81: C3 | AH81: Modbus RTU | AJ81: A | AK81: =+VLOOKUP($AJ81,Dimensions!$B$5:$G$13,2,FALSE) -> 75 | AL81: =+VLOOKUP($AJ81,Dimensions!$B$5:$G$13,3,FALSE) -> 200 | AM81: =+VLOOKUP($AJ81,Dimensions!$B$5:$G$13,4,FALSE) -> 168 | AN81: =+VLOOKUP($AJ81,Dimensions!$B$5:$G$13,5,FALSE) -> 60 | AO81: =+VLOOKUP($AJ81,Dimensions!$B$5:$G$13,6,FALSE) -> 191 | AP81: K2 | AQ81: =+VLOOKUP($AP81,Dimensions!$B$5:$G$13,2,FALSE) -> 90 | AR81: =+VLOOKUP($AP81,Dimensions!$B$5:$G$13,3,FALSE) -> 272.5 | AS81: =+VLOOKUP($AP81,Dimensions!$B$5:$G$13,4,FALSE) -> 168 | AT81: =+VLOOKUP($AP81,Dimensions!$B$5:$G$13,5,FALSE) -> 70 | AU81: =+VLOOKUP($AP81,Dimensions!$B$5:$G$13,6,FALSE) -> 260
A82: 09 | B82: VLT Drives | C82: 046 | D82: Static frequency converters | E82: P281_400 | F82: 2805-2882 400V | G82: 09581 | H82: VLT 2805/400V | I82: 178F7877 | J82: VLT2805PT4B20SBR5DBF12A00C0 | K82: 178F7877 | M82: 3x400 | N82: 0.55 | O82: Y | P82: R5 | Q82: C2 | R82: PB 12Mbit | S82: N | T82: 0.55 | U82: FC-280PK55 | V82: T4 | W82: E20 | X82: H1 | Y82: B | Z82: XCXXX | AA82: SXXX | AB82: X | AC82: A0 | AE82: FC-280PK55T4E20H1BXCXXXSXXXXA0 | AF82: =+VLOOKUP(AE82,TypeCodesFC280!AH:AI,2,FALSE) -> 134U7713 | AG82: C2 | AH82: Profibus | AJ82: A | AK82: =+VLOOKUP($AJ82,Dimensions!$B$5:$G$13,2,FALSE) -> 75 | AL82: =+VLOOKUP($AJ82,Dimensions!$B$5:$G$13,3,FALSE) -> 200 | AM82: =+VLOOKUP($AJ82,Dimensions!$B$5:$G$13,4,FALSE) -> 168 | AN82: =+VLOOKUP($AJ82,Dimensions!$B$5:$G$13,5,FALSE) -> 60 | AO82: =+VLOOKUP($AJ82,Dimensions!$B$5:$G$13,6,FALSE) -> 191 | AP82: K2 | AQ82: =+VLOOKUP($AP82,Dimensions!$B$5:$G$13,2,FALSE) -> 90 | AR82: =+VLOOKUP($AP82,Dimensions!$B$5:$G$13,3,FALSE) -> 272.5 | AS82: =+VLOOKUP($AP82,Dimensions!$B$5:$G$13,4,FALSE) -> 168 | AT82: =+VLOOKUP($AP82,Dimensions!$B$5:$G$13,5,FALSE) -> 70 | AU82: =+VLOOKUP($AP82,Dimensions!$B$5:$G$13,6,FALSE) -> 260
A83: 09 | B83: VLT Drives | C83: 046 | D83: Static frequency converters | E83: P281_400 | F83: 2805-2882 400V | G83: 09582 | H83: VLT 2807/400V | I83: 131Z8828 | J83: VLT2807PT4B20SBR1DBF00A00C1 | K83: 131Z8828 | L83: 1900401 | M83: 3x400 | N83: 0.75 | O83: Y | P83: R1 | Q83: C2 | R83: Standard | S83: Y | T83: 0.75 | U83: FC-280PK75 | V83: T4 | W83: E20 | X83: H1 | Y83: B | Z83: XCXXX | AA83: SXXX | AB83: X | AC83: AX | AE83: FC-280PK75T4E20H1BXCXXXSXXXXAX | AF83: =+VLOOKUP(AE83,TypeCodesFC280!AH:AI,2,FALSE) -> 134U2979 | AG83: C2 | AH83: Modbus RTU | AJ83: A | AK83: =+VLOOKUP($AJ83,Dimensions!$B$5:$G$13,2,FALSE) -> 75 | AL83: =+VLOOKUP($AJ83,Dimensions!$B$5:$G$13,3,FALSE) -> 200 | AM83: =+VLOOKUP($AJ83,Dimensions!$B$5:$G$13,4,FALSE) -> 168 | AN83: =+VLOOKUP($AJ83,Dimensions!$B$5:$G$13,5,FALSE) -> 60 | AO83: =+VLOOKUP($AJ83,Dimensions!$B$5:$G$13,6,FALSE) -> 191 | AP83: K2 | AQ83: =+VLOOKUP($AP83,Dimensions!$B$5:$G$13,2,FALSE) -> 90 | AR83: =+VLOOKUP($AP83,Dimensions!$B$5:$G$13,3,FALSE) -> 272.5 | AS83: =+VLOOKUP($AP83,Dimensions!$B$5:$G$13,4,FALSE) -> 168 | AT83: =+VLOOKUP($AP83,Dimensions!$B$5:$G$13,5,FALSE) -> 70 | AU83: =+VLOOKUP($AP83,Dimensions!$B$5:$G$13,6,FALSE) -> 260
A84: 09 | B84: VLT Drives | C84: 046 | D84: Static frequency converters | E84: P281_400 | F84: 2805-2882 400V | G84: 09582 | H84: VLT 2807/400V | I84: 134H2367 | J84: VLT2807PT4B20SBR0DBF12A00C1 | K84: 134H2367 | L84: 1900313 | M84: 3x400 | N84: 0.75 | O84: Y | P84: R0 | Q84: no class | R84: PB 12Mbit | S84: Y | T84: 0.75 | U84: FC-280PK75 | V84: T4 | W84: E20 | X84: H2 | Y84: B | Z84: XCXXX | AA84: SXXX | AB84: X | AC84: A0 | AE84: FC-280PK75T4E20H2BXCXXXSXXXXA0 | AF84: =+VLOOKUP(AE84,TypeCodesFC280!AH:AI,2,FALSE) -> 134U7745 | AG84: C3 | AH84: Profibus | AJ84: A | AK84: =+VLOOKUP($AJ84,Dimensions!$B$5:$G$13,2,FALSE) -> 75 | AL84: =+VLOOKUP($AJ84,Dimensions!$B$5:$G$13,3,FALSE) -> 200 | AM84: =+VLOOKUP($AJ84,Dimensions!$B$5:$G$13,4,FALSE) -> 168 | AN84: =+VLOOKUP($AJ84,Dimensions!$B$5:$G$13,5,FALSE) -> 60 | AO84: =+VLOOKUP($AJ84,Dimensions!$B$5:$G$13,6,FALSE) -> 191 | AP84: K2 | AQ84: =+VLOOKUP($AP84,Dimensions!$B$5:$G$13,2,FALSE) -> 90 | AR84: =+VLOOKUP($AP84,Dimensions!$B$5:$G$13,3,FALSE) -> 272.5 | AS84: =+VLOOKUP($AP84,Dimensions!$B$5:$G$13,4,FALSE) -> 168 | AT84: =+VLOOKUP($AP84,Dimensions!$B$5:$G$13,5,FALSE) -> 70 | AU84: =+VLOOKUP($AP84,Dimensions!$B$5:$G$13,6,FALSE) -> 260
A85: 09 | B85: VLT Drives | C85: 046 | D85: Static frequency converters | E85: P281_400 | F85: 2805-2882 400V | G85: 09582 | H85: VLT 2807/400V | I85: 134H2368 | J85: VLT2807PT4B20SBR1DBF12A00C1 | K85: 134H2368 | L85: 1900403 | M85: 3x400 | N85: 0.75 | O85: Y | P85: R1 | Q85: C2 | R85: PB 12Mbit | S85: Y | T85: 0.75 | U85: FC-280PK75 | V85: T4 | W85: E20 | X85: H1 | Y85: B | Z85: XCXXX | AA85: SXXX | AB85: X | AC85: A0 | AE85: FC-280PK75T4E20H1BXCXXXSXXXXA0 | AF85: =+VLOOKUP(AE85,TypeCodesFC280!AH:AI,2,FALSE) -> 134U7714 | AG85: C2 | AH85: Profibus | AJ85: A | AK85: =+VLOOKUP($AJ85,Dimensions!$B$5:$G$13,2,FALSE) -> 75 | AL85: =+VLOOKUP($AJ85,Dimensions!$B$5:$G$13,3,FALSE) -> 200 | AM85: =+VLOOKUP($AJ85,Dimensions!$B$5:$G$13,4,FALSE) -> 168 | AN85: =+VLOOKUP($AJ85,Dimensions!$B$5:$G$13,5,FALSE) -> 60 | AO85: =+VLOOKUP($AJ85,Dimensions!$B$5:$G$13,6,FALSE) -> 191 | AP85: K2 | AQ85: =+VLOOKUP($AP85,Dimensions!$B$5:$G$13,2,FALSE) -> 90 | AR85: =+VLOOKUP($AP85,Dimensions!$B$5:$G$13,3,FALSE) -> 272.5 | AS85: =+VLOOKUP($AP85,Dimensions!$B$5:$G$13,4,FALSE) -> 168 | AT85: =+VLOOKUP($AP85,Dimensions!$B$5:$G$13,5,FALSE) -> 70 | AU85: =+VLOOKUP($AP85,Dimensions!$B$5:$G$13,6,FALSE) -> 260
A86: 09 | B86: VLT Drives | C86: 046 | D86: Static frequency converters | E86: P281_400 | F86: 2805-2882 400V | G86: 09582 | H86: VLT 2807/400V | I86: 134H5279 | J86: VLT2807PT4B20SBR5DBF00A00C1 | K86: 134H5279 | M86: 3x400 | N86: 0.75 | O86: Y | P86: R5 | Q86: C2 | R86: Standard | S86: Y | T86: 0.75 | U86: FC-280PK75 | V86: T4 | W86: E20 | X86: H1 | Y86: B | Z86: XCXXX | AA86: SXXX | AB86: X | AC86: AX | AE86: FC-280PK75T4E20H1BXCXXXSXXXXAX | AF86: =+VLOOKUP(AE86,TypeCodesFC280!AH:AI,2,FALSE) -> 134U2979 | AG86: C2 | AH86: Modbus RTU | AJ86: A | AK86: =+VLOOKUP($AJ86,Dimensions!$B$5:$G$13,2,FALSE) -> 75 | AL86: =+VLOOKUP($AJ86,Dimensions!$B$5:$G$13,3,FALSE) -> 200 | AM86: =+VLOOKUP($AJ86,Dimensions!$B$5:$G$13,4,FALSE) -> 168 | AN86: =+VLOOKUP($AJ86,Dimensions!$B$5:$G$13,5,FALSE) -> 60 | AO86: =+VLOOKUP($AJ86,Dimensions!$B$5:$G$13,6,FALSE) -> 191 | AP86: K2 | AQ86: =+VLOOKUP($AP86,Dimensions!$B$5:$G$13,2,FALSE) -> 90 | AR86: =+VLOOKUP($AP86,Dimensions!$B$5:$G$13,3,FALSE) -> 272.5 | AS86: =+VLOOKUP($AP86,Dimensions!$B$5:$G$13,4,FALSE) -> 168 | AT86: =+VLOOKUP($AP86,Dimensions!$B$5:$G$13,5,FALSE) -> 70 | AU86: =+VLOOKUP($AP86,Dimensions!$B$5:$G$13,6,FALSE) -> 260
A87: 09 | B87: VLT Drives | C87: 046 | D87: Static frequency converters | E87: P281_400 | F87: 2805-2882 400V | G87: 09582 | H87: VLT 2807/400V | I87: 134H5295 | J87: VLT2807PT4B20SBR5DBF12A00C1 | K87: 134H5295 | M87: 3x400 | N87: 0.75 | O87: Y | P87: R5 | Q87: C2 | R87: PB 12Mbit | S87: Y | T87: 0.75 | U87: FC-280PK75 | V87: T4 | W87: E20 | X87: H1 | Y87: B | Z87: XCXXX | AA87: SXXX | AB87: X | AC87: A0 | AE87: FC-280PK75T4E20H1BXCXXXSXXXXA0 | AF87: =+VLOOKUP(AE87,TypeCodesFC280!AH:AI,2,FALSE) -> 134U7714 | AG87: C2 | AH87: Profibus | AJ87: A | AK87: =+VLOOKUP($AJ87,Dimensions!$B$5:$G$13,2,FALSE) -> 75 | AL87: =+VLOOKUP($AJ87,Dimensions!$B$5:$G$13,3,FALSE) -> 200 | AM87: =+VLOOKUP($AJ87,Dimensions!$B$5:$G$13,4,FALSE) -> 168 | AN87: =+VLOOKUP($AJ87,Dimensions!$B$5:$G$13,5,FALSE) -> 60 | AO87: =+VLOOKUP($AJ87,Dimensions!$B$5:$G$13,6,FALSE) -> 191 | AP87: K2 | AQ87: =+VLOOKUP($AP87,Dimensions!$B$5:$G$13,2,FALSE) -> 90 | AR87: =+VLOOKUP($AP87,Dimensions!$B$5:$G$13,3,FALSE) -> 272.5 | AS87: =+VLOOKUP($AP87,Dimensions!$B$5:$G$13,4,FALSE) -> 168 | AT87: =+VLOOKUP($AP87,Dimensions!$B$5:$G$13,5,FALSE) -> 70 | AU87: =+VLOOKUP($AP87,Dimensions!$B$5:$G$13,6,FALSE) -> 260
A88: 09 | B88: VLT Drives | C88: 046 | D88: Static frequency converters | E88: P281_400 | F88: 2805-2882 400V | G88: 09582 | H88: VLT 2807/400V | I88: 134H5315 | J88: VLT2807PT4B20SBR5DBF30A00C1 | K88: 134H5315 | M88: 3x400 | N88: 0.75 | O88: Y | P88: R5 | Q88: C2 | R88: DeviceNet | S88: Y | T88: 0.75 | U88: FC-280PK75 | V88: T4 | W88: E20 | X88: H1 | Y88: B | Z88: XCXXX | AA88: SXXX | AB88: X | AC88: ? | AE88: FC-280PK75T4E20H1BXCXXXSXXXX? | AF88: =+VLOOKUP(AE88,TypeCodesFC280!AH:AI,2,FALSE) ->  | AG88: C2 | AH88: t.b. | AJ88: A | AK88: =+VLOOKUP($AJ88,Dimensions!$B$5:$G$13,2,FALSE) -> 75 | AL88: =+VLOOKUP($AJ88,Dimensions!$B$5:$G$13,3,FALSE) -> 200 | AM88: =+VLOOKUP($AJ88,Dimensions!$B$5:$G$13,4,FALSE) -> 168 | AN88: =+VLOOKUP($AJ88,Dimensions!$B$5:$G$13,5,FALSE) -> 60 | AO88: =+VLOOKUP($AJ88,Dimensions!$B$5:$G$13,6,FALSE) -> 191 | AP88: K2 | AQ88: =+VLOOKUP($AP88,Dimensions!$B$5:$G$13,2,FALSE) -> 90 | AR88: =+VLOOKUP($AP88,Dimensions!$B$5:$G$13,3,FALSE) -> 272.5 | AS88: =+VLOOKUP($AP88,Dimensions!$B$5:$G$13,4,FALSE) -> 168 | AT88: =+VLOOKUP($AP88,Dimensions!$B$5:$G$13,5,FALSE) -> 70 | AU88: =+VLOOKUP($AP88,Dimensions!$B$5:$G$13,6,FALSE) -> 260
A89: 09 | B89: VLT Drives | C89: 046 | D89: Static frequency converters | E89: P281_400 | F89: 2805-2882 400V | G89: 09582 | H89: VLT 2807/400V | I89: 134L1291 | J89: TR12807PT4B20SBR1DBF00A00C1 | K89: 134L1291 | M89: 3x400 | N89: 0.75 | O89: Y | P89: R1 | Q89: C2 | R89: Standard | S89: Y | T89: 0.75 | U89: FC-280PK75 | V89: T4 | W89: E20 | X89: H1 | Y89: B | Z89: XCXXX | AA89: SXXX | AB89: X | AC89: AX | AE89: FC-280PK75T4E20H1BXCXXXSXXXXAX | AF89: =+VLOOKUP(AE89,TypeCodesFC280!AH:AI,2,FALSE) -> 134U2979 | AG89: C2 | AH89: Modbus RTU | AJ89: A | AK89: =+VLOOKUP($AJ89,Dimensions!$B$5:$G$13,2,FALSE) -> 75 | AL89: =+VLOOKUP($AJ89,Dimensions!$B$5:$G$13,3,FALSE) -> 200 | AM89: =+VLOOKUP($AJ89,Dimensions!$B$5:$G$13,4,FALSE) -> 168 | AN89: =+VLOOKUP($AJ89,Dimensions!$B$5:$G$13,5,FALSE) -> 60 | AO89: =+VLOOKUP($AJ89,Dimensions!$B$5:$G$13,6,FALSE) -> 191 | AP89: K2 | AQ89: =+VLOOKUP($AP89,Dimensions!$B$5:$G$13,2,FALSE) -> 90 | AR89: =+VLOOKUP($AP89,Dimensions!$B$5:$G$13,3,FALSE) -> 272.5 | AS89: =+VLOOKUP($AP89,Dimensions!$B$5:$G$13,4,FALSE) -> 168 | AT89: =+VLOOKUP($AP89,Dimensions!$B$5:$G$13,5,FALSE) -> 70 | AU89: =+VLOOKUP($AP89,Dimensions!$B$5:$G$13,6,FALSE) -> 260
A90: 09 | B90: VLT Drives | C90: 046 | D90: Static frequency converters | E90: P281_400 | F90: 2805-2882 400V | G90: 09582 | H90: VLT 2807/400V | I90: 134L4192 | J90: VLT2807PT4B20SBR1DBF30A00C1 | K90: 134L4192 | M90: 3x400 | N90: 0.75 | O90: Y | P90: R1 | Q90: C2 | R90: DeviceNet | S90: Y | T90: 0.75 | U90: FC-280PK75 | V90: T4 | W90: E20 | X90: H1 | Y90: B | Z90: XCXXX | AA90: SXXX | AB90: X | AC90: ? | AE90: FC-280PK75T4E20H1BXCXXXSXXXX? | AF90: =+VLOOKUP(AE90,TypeCodesFC280!AH:AI,2,FALSE) ->  | AG90: C2 | AH90: t.b. | AJ90: A | AK90: =+VLOOKUP($AJ90,Dimensions!$B$5:$G$13,2,FALSE) -> 75 | AL90: =+VLOOKUP($AJ90,Dimensions!$B$5:$G$13,3,FALSE) -> 200 | AM90: =+VLOOKUP($AJ90,Dimensions!$B$5:$G$13,4,FALSE) -> 168 | AN90: =+VLOOKUP($AJ90,Dimensions!$B$5:$G$13,5,FALSE) -> 60 | AO90: =+VLOOKUP($AJ90,Dimensions!$B$5:$G$13,6,FALSE) -> 191 | AP90: K2 | AQ90: =+VLOOKUP($AP90,Dimensions!$B$5:$G$13,2,FALSE) -> 90 | AR90: =+VLOOKUP($AP90,Dimensions!$B$5:$G$13,3,FALSE) -> 272.5 | AS90: =+VLOOKUP($AP90,Dimensions!$B$5:$G$13,4,FALSE) -> 168 | AT90: =+VLOOKUP($AP90,Dimensions!$B$5:$G$13,5,FALSE) -> 70 | AU90: =+VLOOKUP($AP90,Dimensions!$B$5:$G$13,6,FALSE) -> 260
A91: 09 | B91: VLT Drives | C91: 046 | D91: Static frequency converters | E91: P281_400 | F91: 2805-2882 400V | G91: 09582 | H91: VLT 2807/400V | I91: 134L4373 | J91: VLT2807PT4B20SBR0DBF30A00C1 | K91: 134L4373 | M91: 3x400 | N91: 0.75 | O91: Y | P91: R0 | Q91: no class | R91: DeviceNet | S91: Y | T91: 0.75 | U91: FC-280PK75 | V91: T4 | W91: E20 | X91: H2 | Y91: B | Z91: XCXXX | AA91: SXXX | AB91: X | AC91: ? | AE91: FC-280PK75T4E20H2BXCXXXSXXXX? | AF91: =+VLOOKUP(AE91,TypeCodesFC280!AH:AI,2,FALSE) ->  | AG91: C3 | AH91: t.b. | AJ91: A | AK91: =+VLOOKUP($AJ91,Dimensions!$B$5:$G$13,2,FALSE) -> 75 | AL91: =+VLOOKUP($AJ91,Dimensions!$B$5:$G$13,3,FALSE) -> 200 | AM91: =+VLOOKUP($AJ91,Dimensions!$B$5:$G$13,4,FALSE) -> 168 | AN91: =+VLOOKUP($AJ91,Dimensions!$B$5:$G$13,5,FALSE) -> 60 | AO91: =+VLOOKUP($AJ91,Dimensions!$B$5:$G$13,6,FALSE) -> 191 | AP91: K2 | AQ91: =+VLOOKUP($AP91,Dimensions!$B$5:$G$13,2,FALSE) -> 90 | AR91: =+VLOOKUP($AP91,Dimensions!$B$5:$G$13,3,FALSE) -> 272.5 | AS91: =+VLOOKUP($AP91,Dimensions!$B$5:$G$13,4,FALSE) -> 168 | AT91: =+VLOOKUP($AP91,Dimensions!$B$5:$G$13,5,FALSE) -> 70 | AU91: =+VLOOKUP($AP91,Dimensions!$B$5:$G$13,6,FALSE) -> 260
A92: 09 | B92: VLT Drives | C92: 046 | D92: Static frequency converters | E92: P281_400 | F92: 2805-2882 400V | G92: 09582 | H92: VLT 2807/400V | I92: 134L4897 | J92: ABU2807PT4B20SBR1DBF00A00C1 | K92: 134L4897 | M92: 3x400 | N92: 0.75 | O92: Y | P92: R1 | Q92: C2 | R92: Standard | S92: Y | T92: 0.75 | U92: FC-280PK75 | V92: T4 | W92: E20 | X92: H1 | Y92: B | Z92: XCXXX | AA92: SXXX | AB92: X | AC92: AX | AE92: FC-280PK75T4E20H1BXCXXXSXXXXAX | AF92: =+VLOOKUP(AE92,TypeCodesFC280!AH:AI,2,FALSE) -> 134U2979 | AG92: C2 | AH92: Modbus RTU | AJ92: A | AK92: =+VLOOKUP($AJ92,Dimensions!$B$5:$G$13,2,FALSE) -> 75 | AL92: =+VLOOKUP($AJ92,Dimensions!$B$5:$G$13,3,FALSE) -> 200 | AM92: =+VLOOKUP($AJ92,Dimensions!$B$5:$G$13,4,FALSE) -> 168 | AN92: =+VLOOKUP($AJ92,Dimensions!$B$5:$G$13,5,FALSE) -> 60 | AO92: =+VLOOKUP($AJ92,Dimensions!$B$5:$G$13,6,FALSE) -> 191 | AP92: K2 | AQ92: =+VLOOKUP($AP92,Dimensions!$B$5:$G$13,2,FALSE) -> 90 | AR92: =+VLOOKUP($AP92,Dimensions!$B$5:$G$13,3,FALSE) -> 272.5 | AS92: =+VLOOKUP($AP92,Dimensions!$B$5:$G$13,4,FALSE) -> 168 | AT92: =+VLOOKUP($AP92,Dimensions!$B$5:$G$13,5,FALSE) -> 70 | AU92: =+VLOOKUP($AP92,Dimensions!$B$5:$G$13,6,FALSE) -> 260
A93: 09 | B93: VLT Drives | C93: 046 | D93: Static frequency converters | E93: P281_400 | F93: 2805-2882 400V | G93: 09582 | H93: VLT 2807/400V | I93: 134L4909 | J93: ABU2807PT4B20SBR1DBF12A00C1 | K93: 134L4909 | M93: 3x400 | N93: 0.75 | O93: Y | P93: R1 | Q93: C2 | R93: PB 12Mbit | S93: Y | T93: 0.75 | U93: FC-280PK75 | V93: T4 | W93: E20 | X93: H1 | Y93: B | Z93: XCXXX | AA93: SXXX | AB93: X | AC93: A0 | AE93: FC-280PK75T4E20H1BXCXXXSXXXXA0 | AF93: =+VLOOKUP(AE93,TypeCodesFC280!AH:AI,2,FALSE) -> 134U7714 | AG93: C2 | AH93: Profibus | AJ93: A | AK93: =+VLOOKUP($AJ93,Dimensions!$B$5:$G$13,2,FALSE) -> 75 | AL93: =+VLOOKUP($AJ93,Dimensions!$B$5:$G$13,3,FALSE) -> 200 | AM93: =+VLOOKUP($AJ93,Dimensions!$B$5:$G$13,4,FALSE) -> 168 | AN93: =+VLOOKUP($AJ93,Dimensions!$B$5:$G$13,5,FALSE) -> 60 | AO93: =+VLOOKUP($AJ93,Dimensions!$B$5:$G$13,6,FALSE) -> 191 | AP93: K2 | AQ93: =+VLOOKUP($AP93,Dimensions!$B$5:$G$13,2,FALSE) -> 90 | AR93: =+VLOOKUP($AP93,Dimensions!$B$5:$G$13,3,FALSE) -> 272.5 | AS93: =+VLOOKUP($AP93,Dimensions!$B$5:$G$13,4,FALSE) -> 168 | AT93: =+VLOOKUP($AP93,Dimensions!$B$5:$G$13,5,FALSE) -> 70 | AU93: =+VLOOKUP($AP93,Dimensions!$B$5:$G$13,6,FALSE) -> 260
A94: 09 | B94: VLT Drives | C94: 046 | D94: Static frequency converters | E94: P281_400 | F94: 2805-2882 400V | G94: 09582 | H94: VLT 2807/400V | I94: 178B8578 | J94: VLT2807PT4B20SBR0DBF00A00C1 | K94: 178B8578 | L94: 1900321 | M94: 3x400 | N94: 0.75 | O94: Y | P94: R0 | Q94: no class | R94: Standard | S94: Y | T94: 0.75 | U94: FC-280PK75 | V94: T4 | W94: E20 | X94: H2 | Y94: B | Z94: XCXXX | AA94: SXXX | AB94: X | AC94: AX | AE94: FC-280PK75T4E20H2BXCXXXSXXXXAX | AF94: =+VLOOKUP(AE94,TypeCodesFC280!AH:AI,2,FALSE) -> 134U3008 | AG94: C3 | AH94: Modbus RTU | AJ94: A | AK94: =+VLOOKUP($AJ94,Dimensions!$B$5:$G$13,2,FALSE) -> 75 | AL94: =+VLOOKUP($AJ94,Dimensions!$B$5:$G$13,3,FALSE) -> 200 | AM94: =+VLOOKUP($AJ94,Dimensions!$B$5:$G$13,4,FALSE) -> 168 | AN94: =+VLOOKUP($AJ94,Dimensions!$B$5:$G$13,5,FALSE) -> 60 | AO94: =+VLOOKUP($AJ94,Dimensions!$B$5:$G$13,6,FALSE) -> 191 | AP94: K2 | AQ94: =+VLOOKUP($AP94,Dimensions!$B$5:$G$13,2,FALSE) -> 90 | AR94: =+VLOOKUP($AP94,Dimensions!$B$5:$G$13,3,FALSE) -> 272.5 | AS94: =+VLOOKUP($AP94,Dimensions!$B$5:$G$13,4,FALSE) -> 168 | AT94: =+VLOOKUP($AP94,Dimensions!$B$5:$G$13,5,FALSE) -> 70 | AU94: =+VLOOKUP($AP94,Dimensions!$B$5:$G$13,6,FALSE) -> 260
A95: 09 | B95: VLT Drives | C95: 046 | D95: Static frequency converters | E95: P281_400 | F95: 2805-2882 400V | G95: 09583 | H95: VLT 2811/400V | I95: 131Z8830 | J95: VLT2811PT4B20SBR1DBF00A00C1 | K95: 131Z8830 | L95: 1900405 | M95: 3x400 | N95: 1.1 | O95: Y | P95: R1 | Q95: C2 | R95: Standard | S95: Y | T95: 1.1 | U95: FC-280P1K1 | V95: T4 | W95: E20 | X95: H1 | Y95: B | Z95: XCXXX | AA95: SXXX | AB95: X | AC95: AX | AE95: FC-280P1K1T4E20H1BXCXXXSXXXXAX | AF95: =+VLOOKUP(AE95,TypeCodesFC280!AH:AI,2,FALSE) -> 134U2980 | AG95: C2 | AH95: Modbus RTU | AJ95: A | AK95: =+VLOOKUP($AJ95,Dimensions!$B$5:$G$13,2,FALSE) -> 75 | AL95: =+VLOOKUP($AJ95,Dimensions!$B$5:$G$13,3,FALSE) -> 200 | AM95: =+VLOOKUP($AJ95,Dimensions!$B$5:$G$13,4,FALSE) -> 168 | AN95: =+VLOOKUP($AJ95,Dimensions!$B$5:$G$13,5,FALSE) -> 60 | AO95: =+VLOOKUP($AJ95,Dimensions!$B$5:$G$13,6,FALSE) -> 191 | AP95: K2 | AQ95: =+VLOOKUP($AP95,Dimensions!$B$5:$G$13,2,FALSE) -> 90 | AR95: =+VLOOKUP($AP95,Dimensions!$B$5:$G$13,3,FALSE) -> 272.5 | AS95: =+VLOOKUP($AP95,Dimensions!$B$5:$G$13,4,FALSE) -> 168 | AT95: =+VLOOKUP($AP95,Dimensions!$B$5:$G$13,5,FALSE) -> 70 | AU95: =+VLOOKUP($AP95,Dimensions!$B$5:$G$13,6,FALSE) -> 260
A96: 09 | B96: VLT Drives | C96: 046 | D96: Static frequency converters | E96: P281_400 | F96: 2805-2882 400V | G96: 09583 | H96: VLT 2811/400V | I96: 134H2370 | J96: VLT2811PT4B20SBR0DBF12A00C1 | K96: 134H2370 | L96: 1900325 | M96: 3x400 | N96: 1.1 | O96: Y | P96: R0 | Q96: no class | R96: PB 12Mbit | S96: Y | T96: 1.1 | U96: FC-280P1K1 | V96: T4 | W96: E20 | X96: H2 | Y96: B | Z96: XCXXX | AA96: SXXX | AB96: X | AC96: A0 | AE96: FC-280P1K1T4E20H2BXCXXXSXXXXA0 | AF96: =+VLOOKUP(AE96,TypeCodesFC280!AH:AI,2,FALSE) -> 134U7746 | AG96: C3 | AH96: Profibus | AJ96: A | AK96: =+VLOOKUP($AJ96,Dimensions!$B$5:$G$13,2,FALSE) -> 75 | AL96: =+VLOOKUP($AJ96,Dimensions!$B$5:$G$13,3,FALSE) -> 200 | AM96: =+VLOOKUP($AJ96,Dimensions!$B$5:$G$13,4,FALSE) -> 168 | AN96: =+VLOOKUP($AJ96,Dimensions!$B$5:$G$13,5,FALSE) -> 60 | AO96: =+VLOOKUP($AJ96,Dimensions!$B$5:$G$13,6,FALSE) -> 191 | AP96: K2 | AQ96: =+VLOOKUP($AP96,Dimensions!$B$5:$G$13,2,FALSE) -> 90 | AR96: =+VLOOKUP($AP96,Dimensions!$B$5:$G$13,3,FALSE) -> 272.5 | AS96: =+VLOOKUP($AP96,Dimensions!$B$5:$G$13,4,FALSE) -> 168 | AT96: =+VLOOKUP($AP96,Dimensions!$B$5:$G$13,5,FALSE) -> 70 | AU96: =+VLOOKUP($AP96,Dimensions!$B$5:$G$13,6,FALSE) -> 260
A97: 09 | B97: VLT Drives | C97: 046 | D97: Static frequency converters | E97: P281_400 | F97: 2805-2882 400V | G97: 09583 | H97: VLT 2811/400V | I97: 134H2371 | J97: VLT2811PT4B20SBR1DBF12A00C1 | K97: 134H2371 | L97: 1900406 | M97: 3x400 | N97: 1.1 | O97: Y | P97: R1 | Q97: C2 | R97: PB 12Mbit | S97: Y | T97: 1.1 | U97: FC-280P1K1 | V97: T4 | W97: E20 | X97: H1 | Y97: B | Z97: XCXXX | AA97: SXXX | AB97: X | AC97: A0 | AE97: FC-280P1K1T4E20H1BXCXXXSXXXXA0 | AF97: =+VLOOKUP(AE97,TypeCodesFC280!AH:AI,2,FALSE) -> 134U7715 | AG97: C2 | AH97: Profibus | AJ97: A | AK97: =+VLOOKUP($AJ97,Dimensions!$B$5:$G$13,2,FALSE) -> 75 | AL97: =+VLOOKUP($AJ97,Dimensions!$B$5:$G$13,3,FALSE) -> 200 | AM97: =+VLOOKUP($AJ97,Dimensions!$B$5:$G$13,4,FALSE) -> 168 | AN97: =+VLOOKUP($AJ97,Dimensions!$B$5:$G$13,5,FALSE) -> 60 | AO97: =+VLOOKUP($AJ97,Dimensions!$B$5:$G$13,6,FALSE) -> 191 | AP97: K2 | AQ97: =+VLOOKUP($AP97,Dimensions!$B$5:$G$13,2,FALSE) -> 90 | AR97: =+VLOOKUP($AP97,Dimensions!$B$5:$G$13,3,FALSE) -> 272.5 | AS97: =+VLOOKUP($AP97,Dimensions!$B$5:$G$13,4,FALSE) -> 168 | AT97: =+VLOOKUP($AP97,Dimensions!$B$5:$G$13,5,FALSE) -> 70 | AU97: =+VLOOKUP($AP97,Dimensions!$B$5:$G$13,6,FALSE) -> 260
A98: 09 | B98: VLT Drives | C98: 046 | D98: Static frequency converters | E98: P281_400 | F98: 2805-2882 400V | G98: 09583 | H98: VLT 2811/400V | I98: 134H5281 | J98: VLT2811PT4B20SBR5DBF00A00C1 | K98: 134H5281 | M98: 3x400 | N98: 1.1 | O98: Y | P98: R5 | Q98: C2 | R98: Standard | S98: Y | T98: 1.1 | U98: FC-280P1K1 | V98: T4 | W98: E20 | X98: H1 | Y98: B | Z98: XCXXX | AA98: SXXX | AB98: X | AC98: AX | AE98: FC-280P1K1T4E20H1BXCXXXSXXXXAX | AF98: =+VLOOKUP(AE98,TypeCodesFC280!AH:AI,2,FALSE) -> 134U2980 | AG98: C2 | AH98: Modbus RTU | AJ98: A | AK98: =+VLOOKUP($AJ98,Dimensions!$B$5:$G$13,2,FALSE) -> 75 | AL98: =+VLOOKUP($AJ98,Dimensions!$B$5:$G$13,3,FALSE) -> 200 | AM98: =+VLOOKUP($AJ98,Dimensions!$B$5:$G$13,4,FALSE) -> 168 | AN98: =+VLOOKUP($AJ98,Dimensions!$B$5:$G$13,5,FALSE) -> 60 | AO98: =+VLOOKUP($AJ98,Dimensions!$B$5:$G$13,6,FALSE) -> 191 | AP98: K2 | AQ98: =+VLOOKUP($AP98,Dimensions!$B$5:$G$13,2,FALSE) -> 90 | AR98: =+VLOOKUP($AP98,Dimensions!$B$5:$G$13,3,FALSE) -> 272.5 | AS98: =+VLOOKUP($AP98,Dimensions!$B$5:$G$13,4,FALSE) -> 168 | AT98: =+VLOOKUP($AP98,Dimensions!$B$5:$G$13,5,FALSE) -> 70 | AU98: =+VLOOKUP($AP98,Dimensions!$B$5:$G$13,6,FALSE) -> 260
A99: 09 | B99: VLT Drives | C99: 046 | D99: Static frequency converters | E99: P281_400 | F99: 2805-2882 400V | G99: 09583 | H99: VLT 2811/400V | I99: 134H5296 | J99: VLT2811PT4B20SBR5DBF12A00C1 | K99: 134H5296 | M99: 3x400 | N99: 1.1 | O99: Y | P99: R5 | Q99: C2 | R99: PB 12Mbit | S99: Y | T99: 1.1 | U99: FC-280P1K1 | V99: T4 | W99: E20 | X99: H1 | Y99: B | Z99: XCXXX | AA99: SXXX | AB99: X | AC99: A0 | AE99: FC-280P1K1T4E20H1BXCXXXSXXXXA0 | AF99: =+VLOOKUP(AE99,TypeCodesFC280!AH:AI,2,FALSE) -> 134U7715 | AG99: C2 | AH99: Profibus | AJ99: A | AK99: =+VLOOKUP($AJ99,Dimensions!$B$5:$G$13,2,FALSE) -> 75 | AL99: =+VLOOKUP($AJ99,Dimensions!$B$5:$G$13,3,FALSE) -> 200 | AM99: =+VLOOKUP($AJ99,Dimensions!$B$5:$G$13,4,FALSE) -> 168 | AN99: =+VLOOKUP($AJ99,Dimensions!$B$5:$G$13,5,FALSE) -> 60 | AO99: =+VLOOKUP($AJ99,Dimensions!$B$5:$G$13,6,FALSE) -> 191 | AP99: K2 | AQ99: =+VLOOKUP($AP99,Dimensions!$B$5:$G$13,2,FALSE) -> 90 | AR99: =+VLOOKUP($AP99,Dimensions!$B$5:$G$13,3,FALSE) -> 272.5 | AS99: =+VLOOKUP($AP99,Dimensions!$B$5:$G$13,4,FALSE) -> 168 | AT99: =+VLOOKUP($AP99,Dimensions!$B$5:$G$13,5,FALSE) -> 70 | AU99: =+VLOOKUP($AP99,Dimensions!$B$5:$G$13,6,FALSE) -> 260
A100: 09 | B100: VLT Drives | C100: 046 | D100: Static frequency converters | E100: P281_400 | F100: 2805-2882 400V | G100: 09583 | H100: VLT 2811/400V | I100: 134H5316 | J100: VLT2811PT4B20SBR5DBF30A00C1 | K100: 134H5316 | M100: 3x400 | N100: 1.1 | O100: Y | P100: R5 | Q100: C2 | R100: DeviceNet | S100: Y | T100: 1.1 | U100: FC-280P1K1 | V100: T4 | W100: E20 | X100: H1 | Y100: B | Z100: XCXXX | AA100: SXXX | AB100: X | AC100: ? | AE100: FC-280P1K1T4E20H1BXCXXXSXXXX? | AF100: =+VLOOKUP(AE100,TypeCodesFC280!AH:AI,2,FALSE) ->  | AG100: C2 | AH100: t.b. | AJ100: A | AK100: =+VLOOKUP($AJ100,Dimensions!$B$5:$G$13,2,FALSE) -> 75 | AL100: =+VLOOKUP($AJ100,Dimensions!$B$5:$G$13,3,FALSE) -> 200 | AM100: =+VLOOKUP($AJ100,Dimensions!$B$5:$G$13,4,FALSE) -> 168 | AN100: =+VLOOKUP($AJ100,Dimensions!$B$5:$G$13,5,FALSE) -> 60 | AO100: =+VLOOKUP($AJ100,Dimensions!$B$5:$G$13,6,FALSE) -> 191 | AP100: K2 | AQ100: =+VLOOKUP($AP100,Dimensions!$B$5:$G$13,2,FALSE) -> 90 | AR100: =+VLOOKUP($AP100,Dimensions!$B$5:$G$13,3,FALSE) -> 272.5 | AS100: =+VLOOKUP($AP100,Dimensions!$B$5:$G$13,4,FALSE) -> 168 | AT100: =+VLOOKUP($AP100,Dimensions!$B$5:$G$13,5,FALSE) -> 70 | AU100: =+VLOOKUP($AP100,Dimensions!$B$5:$G$13,6,FALSE) -> 260
A101: 09 | B101: VLT Drives | C101: 046 | D101: Static frequency converters | E101: P281_400 | F101: 2805-2882 400V | G101: 09583 | H101: VLT 2811/400V | I101: 134L1293 | J101: TR12811PT4B20SBR1DBF00A00C1 | K101: 134L1293 | M101: 3x400 | N101: 1.1 | O101: Y | P101: R1 | Q101: C2 | R101: Standard | S101: Y | T101: 1.1 | U101: FC-280P1K1 | V101: T4 | W101: E20 | X101: H1 | Y101: B | Z101: XCXXX | AA101: SXXX | AB101: X | AC101: AX | AE101: FC-280P1K1T4E20H1BXCXXXSXXXXAX | AF101: =+VLOOKUP(AE101,TypeCodesFC280!AH:AI,2,FALSE) -> 134U2980 | AG101: C2 | AH101: Modbus RTU | AJ101: A | AK101: =+VLOOKUP($AJ101,Dimensions!$B$5:$G$13,2,FALSE) -> 75 | AL101: =+VLOOKUP($AJ101,Dimensions!$B$5:$G$13,3,FALSE) -> 200 | AM101: =+VLOOKUP($AJ101,Dimensions!$B$5:$G$13,4,FALSE) -> 168 | AN101: =+VLOOKUP($AJ101,Dimensions!$B$5:$G$13,5,FALSE) -> 60 | AO101: =+VLOOKUP($AJ101,Dimensions!$B$5:$G$13,6,FALSE) -> 191 | AP101: K2 | AQ101: =+VLOOKUP($AP101,Dimensions!$B$5:$G$13,2,FALSE) -> 90 | AR101: =+VLOOKUP($AP101,Dimensions!$B$5:$G$13,3,FALSE) -> 272.5 | AS101: =+VLOOKUP($AP101,Dimensions!$B$5:$G$13,4,FALSE) -> 168 | AT101: =+VLOOKUP($AP101,Dimensions!$B$5:$G$13,5,FALSE) -> 70 | AU101: =+VLOOKUP($AP101,Dimensions!$B$5:$G$13,6,FALSE) -> 260
A102: 09 | B102: VLT Drives | C102: 046 | D102: Static frequency converters | E102: P281_400 | F102: 2805-2882 400V | G102: 09583 | H102: VLT 2811/400V | I102: 134L4374 | J102: VLT2811PT4B20SBR0DBF30A00C1 | K102: 134L4374 | M102: 3x400 | N102: 1.1 | O102: Y | P102: R0 | Q102: no class | R102: DeviceNet | S102: Y | T102: 1.1 | U102: FC-280P1K1 | V102: T4 | W102: E20 | X102: H2 | Y102: B | Z102: XCXXX | AA102: SXXX | AB102: X | AC102: ? | AE102: FC-280P1K1T4E20H2BXCXXXSXXXX? | AF102: =+VLOOKUP(AE102,TypeCodesFC280!AH:AI,2,FALSE) ->  | AG102: C3 | AH102: t.b. | AJ102: A | AK102: =+VLOOKUP($AJ102,Dimensions!$B$5:$G$13,2,FALSE) -> 75 | AL102: =+VLOOKUP($AJ102,Dimensions!$B$5:$G$13,3,FALSE) -> 200 | AM102: =+VLOOKUP($AJ102,Dimensions!$B$5:$G$13,4,FALSE) -> 168 | AN102: =+VLOOKUP($AJ102,Dimensions!$B$5:$G$13,5,FALSE) -> 60 | AO102: =+VLOOKUP($AJ102,Dimensions!$B$5:$G$13,6,FALSE) -> 191 | AP102: K2 | AQ102: =+VLOOKUP($AP102,Dimensions!$B$5:$G$13,2,FALSE) -> 90 | AR102: =+VLOOKUP($AP102,Dimensions!$B$5:$G$13,3,FALSE) -> 272.5 | AS102: =+VLOOKUP($AP102,Dimensions!$B$5:$G$13,4,FALSE) -> 168 | AT102: =+VLOOKUP($AP102,Dimensions!$B$5:$G$13,5,FALSE) -> 70 | AU102: =+VLOOKUP($AP102,Dimensions!$B$5:$G$13,6,FALSE) -> 260
A103: 09 | B103: VLT Drives | C103: 046 | D103: Static frequency converters | E103: P281_400 | F103: 2805-2882 400V | G103: 09583 | H103: VLT 2811/400V | I103: 134L4503 | J103: VLT2811PT4B20SBR1DBF30A00C1 | K103: 134L4503 | M103: 3x400 | N103: 1.1 | O103: Y | P103: R1 | Q103: C2 | R103: DeviceNet | S103: Y | T103: 1.1 | U103: FC-280P1K1 | V103: T4 | W103: E20 | X103: H1 | Y103: B | Z103: XCXXX | AA103: SXXX | AB103: X | AC103: ? | AE103: FC-280P1K1T4E20H1BXCXXXSXXXX? | AF103: =+VLOOKUP(AE103,TypeCodesFC280!AH:AI,2,FALSE) ->  | AG103: C2 | AH103: t.b. | AJ103: A | AK103: =+VLOOKUP($AJ103,Dimensions!$B$5:$G$13,2,FALSE) -> 75 | AL103: =+VLOOKUP($AJ103,Dimensions!$B$5:$G$13,3,FALSE) -> 200 | AM103: =+VLOOKUP($AJ103,Dimensions!$B$5:$G$13,4,FALSE) -> 168 | AN103: =+VLOOKUP($AJ103,Dimensions!$B$5:$G$13,5,FALSE) -> 60 | AO103: =+VLOOKUP($AJ103,Dimensions!$B$5:$G$13,6,FALSE) -> 191 | AP103: K2 | AQ103: =+VLOOKUP($AP103,Dimensions!$B$5:$G$13,2,FALSE) -> 90 | AR103: =+VLOOKUP($AP103,Dimensions!$B$5:$G$13,3,FALSE) -> 272.5 | AS103: =+VLOOKUP($AP103,Dimensions!$B$5:$G$13,4,FALSE) -> 168 | AT103: =+VLOOKUP($AP103,Dimensions!$B$5:$G$13,5,FALSE) -> 70 | AU103: =+VLOOKUP($AP103,Dimensions!$B$5:$G$13,6,FALSE) -> 260
A104: 09 | B104: VLT Drives | C104: 046 | D104: Static frequency converters | E104: P281_400 | F104: 2805-2882 400V | G104: 09583 | H104: VLT 2811/400V | I104: 134L4898 | J104: ABU2811PT4B20SBR1DBF00A00C1 | K104: 134L4898 | M104: 3x400 | N104: 1.1 | O104: Y | P104: R1 | Q104: C2 | R104: Standard | S104: Y | T104: 1.1 | U104: FC-280P1K1 | V104: T4 | W104: E20 | X104: H1 | Y104: B | Z104: XCXXX | AA104: SXXX | AB104: X | AC104: AX | AE104: FC-280P1K1T4E20H1BXCXXXSXXXXAX | AF104: =+VLOOKUP(AE104,TypeCodesFC280!AH:AI,2,FALSE) -> 134U2980 | AG104: C2 | AH104: Modbus RTU | AJ104: A | AK104: =+VLOOKUP($AJ104,Dimensions!$B$5:$G$13,2,FALSE) -> 75 | AL104: =+VLOOKUP($AJ104,Dimensions!$B$5:$G$13,3,FALSE) -> 200 | AM104: =+VLOOKUP($AJ104,Dimensions!$B$5:$G$13,4,FALSE) -> 168 | AN104: =+VLOOKUP($AJ104,Dimensions!$B$5:$G$13,5,FALSE) -> 60 | AO104: =+VLOOKUP($AJ104,Dimensions!$B$5:$G$13,6,FALSE) -> 191 | AP104: K2 | AQ104: =+VLOOKUP($AP104,Dimensions!$B$5:$G$13,2,FALSE) -> 90 | AR104: =+VLOOKUP($AP104,Dimensions!$B$5:$G$13,3,FALSE) -> 272.5 | AS104: =+VLOOKUP($AP104,Dimensions!$B$5:$G$13,4,FALSE) -> 168 | AT104: =+VLOOKUP($AP104,Dimensions!$B$5:$G$13,5,FALSE) -> 70 | AU104: =+VLOOKUP($AP104,Dimensions!$B$5:$G$13,6,FALSE) -> 260
A105: 09 | B105: VLT Drives | C105: 046 | D105: Static frequency converters | E105: P281_400 | F105: 2805-2882 400V | G105: 09583 | H105: VLT 2811/400V | I105: 134L4910 | J105: ABU2811PT4B20SBR1DBF12A00C1 | K105: 134L4910 | M105: 3x400 | N105: 1.1 | O105: Y | P105: R1 | Q105: C2 | R105: PB 12Mbit | S105: Y | T105: 1.1 | U105: FC-280P1K1 | V105: T4 | W105: E20 | X105: H1 | Y105: B | Z105: XCXXX | AA105: SXXX | AB105: X | AC105: A0 | AE105: FC-280P1K1T4E20H1BXCXXXSXXXXA0 | AF105: =+VLOOKUP(AE105,TypeCodesFC280!AH:AI,2,FALSE) -> 134U7715 | AG105: C2 | AH105: Profibus | AJ105: A | AK105: =+VLOOKUP($AJ105,Dimensions!$B$5:$G$13,2,FALSE) -> 75 | AL105: =+VLOOKUP($AJ105,Dimensions!$B$5:$G$13,3,FALSE) -> 200 | AM105: =+VLOOKUP($AJ105,Dimensions!$B$5:$G$13,4,FALSE) -> 168 | AN105: =+VLOOKUP($AJ105,Dimensions!$B$5:$G$13,5,FALSE) -> 60 | AO105: =+VLOOKUP($AJ105,Dimensions!$B$5:$G$13,6,FALSE) -> 191 | AP105: K2 | AQ105: =+VLOOKUP($AP105,Dimensions!$B$5:$G$13,2,FALSE) -> 90 | AR105: =+VLOOKUP($AP105,Dimensions!$B$5:$G$13,3,FALSE) -> 272.5 | AS105: =+VLOOKUP($AP105,Dimensions!$B$5:$G$13,4,FALSE) -> 168 | AT105: =+VLOOKUP($AP105,Dimensions!$B$5:$G$13,5,FALSE) -> 70 | AU105: =+VLOOKUP($AP105,Dimensions!$B$5:$G$13,6,FALSE) -> 260
A106: 09 | B106: VLT Drives | C106: 046 | D106: Static frequency converters | E106: P281_400 | F106: 2805-2882 400V | G106: 09583 | H106: VLT 2811/400V | I106: 178B8579 | J106: VLT2811PT4B20SBR0DBF00A00C1 | K106: 178B8579 | L106: 1900332 | M106: 3x400 | N106: 1.1 | O106: Y | P106: R0 | Q106: no class | R106: Standard | S106: Y | T106: 1.1 | U106: FC-280P1K1 | V106: T4 | W106: E20 | X106: H2 | Y106: B | Z106: XCXXX | AA106: SXXX | AB106: X | AC106: AX | AE106: FC-280P1K1T4E20H2BXCXXXSXXXXAX | AF106: =+VLOOKUP(AE106,TypeCodesFC280!AH:AI,2,FALSE) -> 134U3009 | AG106: C3 | AH106: Modbus RTU | AJ106: A | AK106: =+VLOOKUP($AJ106,Dimensions!$B$5:$G$13,2,FALSE) -> 75 | AL106: =+VLOOKUP($AJ106,Dimensions!$B$5:$G$13,3,FALSE) -> 200 | AM106: =+VLOOKUP($AJ106,Dimensions!$B$5:$G$13,4,FALSE) -> 168 | AN106: =+VLOOKUP($AJ106,Dimensions!$B$5:$G$13,5,FALSE) -> 60 | AO106: =+VLOOKUP($AJ106,Dimensions!$B$5:$G$13,6,FALSE) -> 191 | AP106: K2 | AQ106: =+VLOOKUP($AP106,Dimensions!$B$5:$G$13,2,FALSE) -> 90 | AR106: =+VLOOKUP($AP106,Dimensions!$B$5:$G$13,3,FALSE) -> 272.5 | AS106: =+VLOOKUP($AP106,Dimensions!$B$5:$G$13,4,FALSE) -> 168 | AT106: =+VLOOKUP($AP106,Dimensions!$B$5:$G$13,5,FALSE) -> 70 | AU106: =+VLOOKUP($AP106,Dimensions!$B$5:$G$13,6,FALSE) -> 260
A107: 09 | B107: VLT Drives | C107: 046 | D107: Static frequency converters | E107: P281_400 | F107: 2805-2882 400V | G107: 09584 | H107: VLT 2815/400V | I107: 131Z8831 | J107: VLT2815PT4B20SBR1DBF00A00C1 | K107: 131Z8831 | L107: 1900407 | M107: 3x400 | N107: 1.5 | O107: Y | P107: R1 | Q107: C2 | R107: Standard | S107: Y | T107: 1.5 | U107: FC-280P1K5 | V107: T4 | W107: E20 | X107: H1 | Y107: B | Z107: XCXXX | AA107: SXXX | AB107: X | AC107: AX | AE107: FC-280P1K5T4E20H1BXCXXXSXXXXAX | AF107: =+VLOOKUP(AE107,TypeCodesFC280!AH:AI,2,FALSE) -> 134U2981 | AG107: C2 | AH107: Modbus RTU | AJ107: A | AK107: =+VLOOKUP($AJ107,Dimensions!$B$5:$G$13,2,FALSE) -> 75 | AL107: =+VLOOKUP($AJ107,Dimensions!$B$5:$G$13,3,FALSE) -> 200 | AM107: =+VLOOKUP($AJ107,Dimensions!$B$5:$G$13,4,FALSE) -> 168 | AN107: =+VLOOKUP($AJ107,Dimensions!$B$5:$G$13,5,FALSE) -> 60 | AO107: =+VLOOKUP($AJ107,Dimensions!$B$5:$G$13,6,FALSE) -> 191 | AP107: K2 | AQ107: =+VLOOKUP($AP107,Dimensions!$B$5:$G$13,2,FALSE) -> 90 | AR107: =+VLOOKUP($AP107,Dimensions!$B$5:$G$13,3,FALSE) -> 272.5 | AS107: =+VLOOKUP($AP107,Dimensions!$B$5:$G$13,4,FALSE) -> 168 | AT107: =+VLOOKUP($AP107,Dimensions!$B$5:$G$13,5,FALSE) -> 70 | AU107: =+VLOOKUP($AP107,Dimensions!$B$5:$G$13,6,FALSE) -> 260
A108: 09 | B108: VLT Drives | C108: 046 | D108: Static frequency converters | E108: P281_400 | F108: 2805-2882 400V | G108: 09584 | H108: VLT 2815/400V | I108: 134H2373 | J108: VLT2815PT4B20SBR0DBF12A00C1 | K108: 134H2373 | L108: 1900336 | M108: 3x400 | N108: 1.5 | O108: Y | P108: R0 | Q108: no class | R108: PB 12Mbit | S108: Y | T108: 1.5 | U108: FC-280P1K5 | V108: T4 | W108: E20 | X108: H2 | Y108: B | Z108: XCXXX | AA108: SXXX | AB108: X | AC108: A0 | AE108: FC-280P1K5T4E20H2BXCXXXSXXXXA0 | AF108: =+VLOOKUP(AE108,TypeCodesFC280!AH:AI,2,FALSE) -> 134U7747 | AG108: C3 | AH108: Profibus | AJ108: A | AK108: =+VLOOKUP($AJ108,Dimensions!$B$5:$G$13,2,FALSE) -> 75 | AL108: =+VLOOKUP($AJ108,Dimensions!$B$5:$G$13,3,FALSE) -> 200 | AM108: =+VLOOKUP($AJ108,Dimensions!$B$5:$G$13,4,FALSE) -> 168 | AN108: =+VLOOKUP($AJ108,Dimensions!$B$5:$G$13,5,FALSE) -> 60 | AO108: =+VLOOKUP($AJ108,Dimensions!$B$5:$G$13,6,FALSE) -> 191 | AP108: K2 | AQ108: =+VLOOKUP($AP108,Dimensions!$B$5:$G$13,2,FALSE) -> 90 | AR108: =+VLOOKUP($AP108,Dimensions!$B$5:$G$13,3,FALSE) -> 272.5 | AS108: =+VLOOKUP($AP108,Dimensions!$B$5:$G$13,4,FALSE) -> 168 | AT108: =+VLOOKUP($AP108,Dimensions!$B$5:$G$13,5,FALSE) -> 70 | AU108: =+VLOOKUP($AP108,Dimensions!$B$5:$G$13,6,FALSE) -> 260
A109: 09 | B109: VLT Drives | C109: 046 | D109: Static frequency converters | E109: P281_400 | F109: 2805-2882 400V | G109: 09584 | H109: VLT 2815/400V | I109: 134H2374 | J109: VLT2815PT4B20SBR1DBF12A00C1 | K109: 134H2374 | L109: 1900409 | M109: 3x400 | N109: 1.5 | O109: Y | P109: R1 | Q109: C2 | R109: PB 12Mbit | S109: Y | T109: 1.5 | U109: FC-280P1K5 | V109: T4 | W109: E20 | X109: H1 | Y109: B | Z109: XCXXX | AA109: SXXX | AB109: X | AC109: A0 | AE109: FC-280P1K5T4E20H1BXCXXXSXXXXA0 | AF109: =+VLOOKUP(AE109,TypeCodesFC280!AH:AI,2,FALSE) -> 134U7716 | AG109: C2 | AH109: Profibus | AJ109: A | AK109: =+VLOOKUP($AJ109,Dimensions!$B$5:$G$13,2,FALSE) -> 75 | AL109: =+VLOOKUP($AJ109,Dimensions!$B$5:$G$13,3,FALSE) -> 200 | AM109: =+VLOOKUP($AJ109,Dimensions!$B$5:$G$13,4,FALSE) -> 168 | AN109: =+VLOOKUP($AJ109,Dimensions!$B$5:$G$13,5,FALSE) -> 60 | AO109: =+VLOOKUP($AJ109,Dimensions!$B$5:$G$13,6,FALSE) -> 191 | AP109: K2 | AQ109: =+VLOOKUP($AP109,Dimensions!$B$5:$G$13,2,FALSE) -> 90 | AR109: =+VLOOKUP($AP109,Dimensions!$B$5:$G$13,3,FALSE) -> 272.5 | AS109: =+VLOOKUP($AP109,Dimensions!$B$5:$G$13,4,FALSE) -> 168 | AT109: =+VLOOKUP($AP109,Dimensions!$B$5:$G$13,5,FALSE) -> 70 | AU109: =+VLOOKUP($AP109,Dimensions!$B$5:$G$13,6,FALSE) -> 260
A110: 09 | B110: VLT Drives | C110: 046 | D110: Static frequency converters | E110: P281_400 | F110: 2805-2882 400V | G110: 09584 | H110: VLT 2815/400V | I110: 134H2415 | J110: VLT2815PT4B20SBR0DBF30A00C1 | K110: 134H2415 | L110: 1900337 | M110: 3x400 | N110: 1.5 | O110: Y | P110: R0 | Q110: no class | R110: DeviceNet | S110: Y | T110: 1.5 | U110: FC-280P1K5 | V110: T4 | W110: E20 | X110: H2 | Y110: B | Z110: XCXXX | AA110: SXXX | AB110: X | AC110: ? | AE110: FC-280P1K5T4E20H2BXCXXXSXXXX? | AF110: =+VLOOKUP(AE110,TypeCodesFC280!AH:AI,2,FALSE) ->  | AG110: C3 | AH110: t.b. | AJ110: A | AK110: =+VLOOKUP($AJ110,Dimensions!$B$5:$G$13,2,FALSE) -> 75 | AL110: =+VLOOKUP($AJ110,Dimensions!$B$5:$G$13,3,FALSE) -> 200 | AM110: =+VLOOKUP($AJ110,Dimensions!$B$5:$G$13,4,FALSE) -> 168 | AN110: =+VLOOKUP($AJ110,Dimensions!$B$5:$G$13,5,FALSE) -> 60 | AO110: =+VLOOKUP($AJ110,Dimensions!$B$5:$G$13,6,FALSE) -> 191 | AP110: K2 | AQ110: =+VLOOKUP($AP110,Dimensions!$B$5:$G$13,2,FALSE) -> 90 | AR110: =+VLOOKUP($AP110,Dimensions!$B$5:$G$13,3,FALSE) -> 272.5 | AS110: =+VLOOKUP($AP110,Dimensions!$B$5:$G$13,4,FALSE) -> 168 | AT110: =+VLOOKUP($AP110,Dimensions!$B$5:$G$13,5,FALSE) -> 70 | AU110: =+VLOOKUP($AP110,Dimensions!$B$5:$G$13,6,FALSE) -> 260
A111: 09 | B111: VLT Drives | C111: 046 | D111: Static frequency converters | E111: P281_400 | F111: 2805-2882 400V | G111: 09584 | H111: VLT 2815/400V | I111: 134H2416 | J111: VLT2815PT4B20SBR1DBF30A00C1 | K111: 134H2416 | L111: 1900338 | M111: 3x400 | N111: 1.5 | O111: Y | P111: R1 | Q111: C2 | R111: DeviceNet | S111: Y | T111: 1.5 | U111: FC-280P1K5 | V111: T4 | W111: E20 | X111: H1 | Y111: B | Z111: XCXXX | AA111: SXXX | AB111: X | AC111: ? | AE111: FC-280P1K5T4E20H1BXCXXXSXXXX? | AF111: =+VLOOKUP(AE111,TypeCodesFC280!AH:AI,2,FALSE) ->  | AG111: C2 | AH111: t.b. | AJ111: A | AK111: =+VLOOKUP($AJ111,Dimensions!$B$5:$G$13,2,FALSE) -> 75 | AL111: =+VLOOKUP($AJ111,Dimensions!$B$5:$G$13,3,FALSE) -> 200 | AM111: =+VLOOKUP($AJ111,Dimensions!$B$5:$G$13,4,FALSE) -> 168 | AN111: =+VLOOKUP($AJ111,Dimensions!$B$5:$G$13,5,FALSE) -> 60 | AO111: =+VLOOKUP($AJ111,Dimensions!$B$5:$G$13,6,FALSE) -> 191 | AP111: K2 | AQ111: =+VLOOKUP($AP111,Dimensions!$B$5:$G$13,2,FALSE) -> 90 | AR111: =+VLOOKUP($AP111,Dimensions!$B$5:$G$13,3,FALSE) -> 272.5 | AS111: =+VLOOKUP($AP111,Dimensions!$B$5:$G$13,4,FALSE) -> 168 | AT111: =+VLOOKUP($AP111,Dimensions!$B$5:$G$13,5,FALSE) -> 70 | AU111: =+VLOOKUP($AP111,Dimensions!$B$5:$G$13,6,FALSE) -> 260
A112: 09 | B112: VLT Drives | C112: 046 | D112: Static frequency converters | E112: P281_400 | F112: 2805-2882 400V | G112: 09584 | H112: VLT 2815/400V | I112: 134H5283 | J112: VLT2815PT4B20SBR5DBF00A00C1 | K112: 134H5283 | M112: 3x400 | N112: 1.5 | O112: Y | P112: R5 | Q112: C2 | R112: Standard | S112: Y | T112: 1.5 | U112: FC-280P1K5 | V112: T4 | W112: E20 | X112: H1 | Y112: B | Z112: XCXXX | AA112: SXXX | AB112: X | AC112: AX | AE112: FC-280P1K5T4E20H1BXCXXXSXXXXAX | AF112: =+VLOOKUP(AE112,TypeCodesFC280!AH:AI,2,FALSE) -> 134U2981 | AG112: C2 | AH112: Modbus RTU | AJ112: A | AK112: =+VLOOKUP($AJ112,Dimensions!$B$5:$G$13,2,FALSE) -> 75 | AL112: =+VLOOKUP($AJ112,Dimensions!$B$5:$G$13,3,FALSE) -> 200 | AM112: =+VLOOKUP($AJ112,Dimensions!$B$5:$G$13,4,FALSE) -> 168 | AN112: =+VLOOKUP($AJ112,Dimensions!$B$5:$G$13,5,FALSE) -> 60 | AO112: =+VLOOKUP($AJ112,Dimensions!$B$5:$G$13,6,FALSE) -> 191 | AP112: K2 | AQ112: =+VLOOKUP($AP112,Dimensions!$B$5:$G$13,2,FALSE) -> 90 | AR112: =+VLOOKUP($AP112,Dimensions!$B$5:$G$13,3,FALSE) -> 272.5 | AS112: =+VLOOKUP($AP112,Dimensions!$B$5:$G$13,4,FALSE) -> 168 | AT112: =+VLOOKUP($AP112,Dimensions!$B$5:$G$13,5,FALSE) -> 70 | AU112: =+VLOOKUP($AP112,Dimensions!$B$5:$G$13,6,FALSE) -> 260
A113: 09 | B113: VLT Drives | C113: 046 | D113: Static frequency converters | E113: P281_400 | F113: 2805-2882 400V | G113: 09584 | H113: VLT 2815/400V | I113: 134H5298 | J113: VLT2815PT4B20SBR5DBF12A00C1 | K113: 134H5298 | M113: 3x400 | N113: 1.5 | O113: Y | P113: R5 | Q113: C2 | R113: PB 12Mbit | S113: Y | T113: 1.5 | U113: FC-280P1K5 | V113: T4 | W113: E20 | X113: H1 | Y113: B | Z113: XCXXX | AA113: SXXX | AB113: X | AC113: A0 | AE113: FC-280P1K5T4E20H1BXCXXXSXXXXA0 | AF113: =+VLOOKUP(AE113,TypeCodesFC280!AH:AI,2,FALSE) -> 134U7716 | AG113: C2 | AH113: Profibus | AJ113: A | AK113: =+VLOOKUP($AJ113,Dimensions!$B$5:$G$13,2,FALSE) -> 75 | AL113: =+VLOOKUP($AJ113,Dimensions!$B$5:$G$13,3,FALSE) -> 200 | AM113: =+VLOOKUP($AJ113,Dimensions!$B$5:$G$13,4,FALSE) -> 168 | AN113: =+VLOOKUP($AJ113,Dimensions!$B$5:$G$13,5,FALSE) -> 60 | AO113: =+VLOOKUP($AJ113,Dimensions!$B$5:$G$13,6,FALSE) -> 191 | AP113: K2 | AQ113: =+VLOOKUP($AP113,Dimensions!$B$5:$G$13,2,FALSE) -> 90 | AR113: =+VLOOKUP($AP113,Dimensions!$B$5:$G$13,3,FALSE) -> 272.5 | AS113: =+VLOOKUP($AP113,Dimensions!$B$5:$G$13,4,FALSE) -> 168 | AT113: =+VLOOKUP($AP113,Dimensions!$B$5:$G$13,5,FALSE) -> 70 | AU113: =+VLOOKUP($AP113,Dimensions!$B$5:$G$13,6,FALSE) -> 260
A114: 09 | B114: VLT Drives | C114: 046 | D114: Static frequency converters | E114: P281_400 | F114: 2805-2882 400V | G114: 09584 | H114: VLT 2815/400V | I114: 134H5317 | J114: VLT2815PT4B20SBR5DBF30A00C1 | K114: 134H5317 | M114: 3x400 | N114: 1.5 | O114: Y | P114: R5 | Q114: C2 | R114: DeviceNet | S114: Y | T114: 1.5 | U114: FC-280P1K5 | V114: T4 | W114: E20 | X114: H1 | Y114: B | Z114: XCXXX | AA114: SXXX | AB114: X | AC114: ? | AE114: FC-280P1K5T4E20H1BXCXXXSXXXX? | AF114: =+VLOOKUP(AE114,TypeCodesFC280!AH:AI,2,FALSE) ->  | AG114: C2 | AH114: t.b. | AJ114: A | AK114: =+VLOOKUP($AJ114,Dimensions!$B$5:$G$13,2,FALSE) -> 75 | AL114: =+VLOOKUP($AJ114,Dimensions!$B$5:$G$13,3,FALSE) -> 200 | AM114: =+VLOOKUP($AJ114,Dimensions!$B$5:$G$13,4,FALSE) -> 168 | AN114: =+VLOOKUP($AJ114,Dimensions!$B$5:$G$13,5,FALSE) -> 60 | AO114: =+VLOOKUP($AJ114,Dimensions!$B$5:$G$13,6,FALSE) -> 191 | AP114: K2 | AQ114: =+VLOOKUP($AP114,Dimensions!$B$5:$G$13,2,FALSE) -> 90 | AR114: =+VLOOKUP($AP114,Dimensions!$B$5:$G$13,3,FALSE) -> 272.5 | AS114: =+VLOOKUP($AP114,Dimensions!$B$5:$G$13,4,FALSE) -> 168 | AT114: =+VLOOKUP($AP114,Dimensions!$B$5:$G$13,5,FALSE) -> 70 | AU114: =+VLOOKUP($AP114,Dimensions!$B$5:$G$13,6,FALSE) -> 260
A115: 09 | B115: VLT Drives | C115: 046 | D115: Static frequency converters | E115: P281_400 | F115: 2805-2882 400V | G115: 09584 | H115: VLT 2815/400V | I115: 134L1294 | J115: TR12815PT4B20SBR1DBF00A00C1 | K115: 134L1294 | M115: 3x400 | N115: 1.5 | O115: Y | P115: R1 | Q115: C2 | R115: Standard | S115: Y | T115: 1.5 | U115: FC-280P1K5 | V115: T4 | W115: E20 | X115: H1 | Y115: B | Z115: XCXXX | AA115: SXXX | AB115: X | AC115: AX | AE115: FC-280P1K5T4E20H1BXCXXXSXXXXAX | AF115: =+VLOOKUP(AE115,TypeCodesFC280!AH:AI,2,FALSE) -> 134U2981 | AG115: C2 | AH115: Modbus RTU | AJ115: A | AK115: =+VLOOKUP($AJ115,Dimensions!$B$5:$G$13,2,FALSE) -> 75 | AL115: =+VLOOKUP($AJ115,Dimensions!$B$5:$G$13,3,FALSE) -> 200 | AM115: =+VLOOKUP($AJ115,Dimensions!$B$5:$G$13,4,FALSE) -> 168 | AN115: =+VLOOKUP($AJ115,Dimensions!$B$5:$G$13,5,FALSE) -> 60 | AO115: =+VLOOKUP($AJ115,Dimensions!$B$5:$G$13,6,FALSE) -> 191 | AP115: K2 | AQ115: =+VLOOKUP($AP115,Dimensions!$B$5:$G$13,2,FALSE) -> 90 | AR115: =+VLOOKUP($AP115,Dimensions!$B$5:$G$13,3,FALSE) -> 272.5 | AS115: =+VLOOKUP($AP115,Dimensions!$B$5:$G$13,4,FALSE) -> 168 | AT115: =+VLOOKUP($AP115,Dimensions!$B$5:$G$13,5,FALSE) -> 70 | AU115: =+VLOOKUP($AP115,Dimensions!$B$5:$G$13,6,FALSE) -> 260 | AV115: 1900136
A116: 09 | B116: VLT Drives | C116: 046 | D116: Static frequency converters | E116: P281_400 | F116: 2805-2882 400V | G116: 09584 | H116: VLT 2815/400V | I116: 134L4899 | J116: ABU2815PT4B20SBR1DBF00A00C1 | K116: 134L4899 | M116: 3x400 | N116: 1.5 | O116: Y | P116: R1 | Q116: C2 | R116: Standard | S116: Y | T116: 1.5 | U116: FC-280P1K5 | V116: T4 | W116: E20 | X116: H1 | Y116: B | Z116: XCXXX | AA116: SXXX | AB116: X | AC116: AX | AE116: FC-280P1K5T4E20H1BXCXXXSXXXXAX | AF116: =+VLOOKUP(AE116,TypeCodesFC280!AH:AI,2,FALSE) -> 134U2981 | AG116: C2 | AH116: Modbus RTU | AJ116: A | AK116: =+VLOOKUP($AJ116,Dimensions!$B$5:$G$13,2,FALSE) -> 75 | AL116: =+VLOOKUP($AJ116,Dimensions!$B$5:$G$13,3,FALSE) -> 200 | AM116: =+VLOOKUP($AJ116,Dimensions!$B$5:$G$13,4,FALSE) -> 168 | AN116: =+VLOOKUP($AJ116,Dimensions!$B$5:$G$13,5,FALSE) -> 60 | AO116: =+VLOOKUP($AJ116,Dimensions!$B$5:$G$13,6,FALSE) -> 191 | AP116: K2 | AQ116: =+VLOOKUP($AP116,Dimensions!$B$5:$G$13,2,FALSE) -> 90 | AR116: =+VLOOKUP($AP116,Dimensions!$B$5:$G$13,3,FALSE) -> 272.5 | AS116: =+VLOOKUP($AP116,Dimensions!$B$5:$G$13,4,FALSE) -> 168 | AT116: =+VLOOKUP($AP116,Dimensions!$B$5:$G$13,5,FALSE) -> 70 | AU116: =+VLOOKUP($AP116,Dimensions!$B$5:$G$13,6,FALSE) -> 260 | AV116: 1900136
A117: 09 | B117: VLT Drives | C117: 046 | D117: Static frequency converters | E117: P281_400 | F117: 2805-2882 400V | G117: 09584 | H117: VLT 2815/400V | I117: 134L4911 | J117: ABU2815PT4B20SBR1DBF12A00C1 | K117: 134L4911 | M117: 3x400 | N117: 1.5 | O117: Y | P117: R1 | Q117: C2 | R117: PB 12Mbit | S117: Y | T117: 1.5 | U117: FC-280P1K5 | V117: T4 | W117: E20 | X117: H1 | Y117: B | Z117: XCXXX | AA117: SXXX | AB117: X | AC117: A0 | AE117: FC-280P1K5T4E20H1BXCXXXSXXXXA0 | AF117: =+VLOOKUP(AE117,TypeCodesFC280!AH:AI,2,FALSE) -> 134U7716 | AG117: C2 | AH117: Profibus | AJ117: A | AK117: =+VLOOKUP($AJ117,Dimensions!$B$5:$G$13,2,FALSE) -> 75 | AL117: =+VLOOKUP($AJ117,Dimensions!$B$5:$G$13,3,FALSE) -> 200 | AM117: =+VLOOKUP($AJ117,Dimensions!$B$5:$G$13,4,FALSE) -> 168 | AN117: =+VLOOKUP($AJ117,Dimensions!$B$5:$G$13,5,FALSE) -> 60 | AO117: =+VLOOKUP($AJ117,Dimensions!$B$5:$G$13,6,FALSE) -> 191 | AP117: K2 | AQ117: =+VLOOKUP($AP117,Dimensions!$B$5:$G$13,2,FALSE) -> 90 | AR117: =+VLOOKUP($AP117,Dimensions!$B$5:$G$13,3,FALSE) -> 272.5 | AS117: =+VLOOKUP($AP117,Dimensions!$B$5:$G$13,4,FALSE) -> 168 | AT117: =+VLOOKUP($AP117,Dimensions!$B$5:$G$13,5,FALSE) -> 70 | AU117: =+VLOOKUP($AP117,Dimensions!$B$5:$G$13,6,FALSE) -> 260
A118: 09 | B118: VLT Drives | C118: 046 | D118: Static frequency converters | E118: P281_400 | F118: 2805-2882 400V | G118: 09584 | H118: VLT 2815/400V | I118: 178B3222 | J118: MQP2815PT4B20SBR0DBF00A00C0 | K118: 178B3222 | M118: 3x400 | N118: 1.5 | O118: Y | P118: R0 | Q118: no class | R118: Standard | S118: N | T118: 1.5 | U118: FC-280P1K5 | V118: T4 | W118: E20 | X118: H2 | Y118: B | Z118: XCXXX | AA118: SXXX | AB118: X | AC118: AX | AE118: FC-280P1K5T4E20H2BXCXXXSXXXXAX | AF118: =+VLOOKUP(AE118,TypeCodesFC280!AH:AI,2,FALSE) -> 134U3010 | AG118: C3 | AH118: Modbus RTU | AJ118: A | AK118: =+VLOOKUP($AJ118,Dimensions!$B$5:$G$13,2,FALSE) -> 75 | AL118: =+VLOOKUP($AJ118,Dimensions!$B$5:$G$13,3,FALSE) -> 200 | AM118: =+VLOOKUP($AJ118,Dimensions!$B$5:$G$13,4,FALSE) -> 168 | AN118: =+VLOOKUP($AJ118,Dimensions!$B$5:$G$13,5,FALSE) -> 60 | AO118: =+VLOOKUP($AJ118,Dimensions!$B$5:$G$13,6,FALSE) -> 191 | AP118: K2 | AQ118: =+VLOOKUP($AP118,Dimensions!$B$5:$G$13,2,FALSE) -> 90 | AR118: =+VLOOKUP($AP118,Dimensions!$B$5:$G$13,3,FALSE) -> 272.5 | AS118: =+VLOOKUP($AP118,Dimensions!$B$5:$G$13,4,FALSE) -> 168 | AT118: =+VLOOKUP($AP118,Dimensions!$B$5:$G$13,5,FALSE) -> 70 | AU118: =+VLOOKUP($AP118,Dimensions!$B$5:$G$13,6,FALSE) -> 260
A119: 09 | B119: VLT Drives | C119: 046 | D119: Static frequency converters | E119: P281_400 | F119: 2805-2882 400V | G119: 09584 | H119: VLT 2815/400V | I119: 178B8580 | J119: VLT2815PT4B20SBR0DBF00A00C1 | K119: 178B8580 | L119: 1900345 | M119: 3x400 | N119: 1.5 | O119: Y | P119: R0 | Q119: no class | R119: Standard | S119: Y | T119: 1.5 | U119: FC-280P1K5 | V119: T4 | W119: E20 | X119: H2 | Y119: B | Z119: XCXXX | AA119: SXXX | AB119: X | AC119: AX | AE119: FC-280P1K5T4E20H2BXCXXXSXXXXAX | AF119: =+VLOOKUP(AE119,TypeCodesFC280!AH:AI,2,FALSE) -> 134U3010 | AG119: C3 | AH119: Modbus RTU | AJ119: A | AK119: =+VLOOKUP($AJ119,Dimensions!$B$5:$G$13,2,FALSE) -> 75 | AL119: =+VLOOKUP($AJ119,Dimensions!$B$5:$G$13,3,FALSE) -> 200 | AM119: =+VLOOKUP($AJ119,Dimensions!$B$5:$G$13,4,FALSE) -> 168 | AN119: =+VLOOKUP($AJ119,Dimensions!$B$5:$G$13,5,FALSE) -> 60 | AO119: =+VLOOKUP($AJ119,Dimensions!$B$5:$G$13,6,FALSE) -> 191 | AP119: K2 | AQ119: =+VLOOKUP($AP119,Dimensions!$B$5:$G$13,2,FALSE) -> 90 | AR119: =+VLOOKUP($AP119,Dimensions!$B$5:$G$13,3,FALSE) -> 272.5 | AS119: =+VLOOKUP($AP119,Dimensions!$B$5:$G$13,4,FALSE) -> 168 | AT119: =+VLOOKUP($AP119,Dimensions!$B$5:$G$13,5,FALSE) -> 70 | AU119: =+VLOOKUP($AP119,Dimensions!$B$5:$G$13,6,FALSE) -> 260
A120: 09 | B120: VLT Drives | C120: 046 | D120: Static frequency converters | E120: P281_400 | F120: 2805-2882 400V | G120: 09584 | H120: VLT 2815/400V | I120: 178B9932 | J120: TR12815PT4B20STR5DBF00A00C0 | K120: 178B9932 | M120: 3x400 | N120: 1.5 | O120: N | P120: R5 | Q120: C2 | R120: Standard | S120: N | T120: 1.5 | U120: FC-280P1K5 | V120: T4 | W120: E20 | X120: H1 | Y120: B | Z120: XCXXX | AA120: SXXX | AB120: X | AC120: AX | AE120: FC-280P1K5T4E20H1BXCXXXSXXXXAX | AF120: =+VLOOKUP(AE120,TypeCodesFC280!AH:AI,2,FALSE) -> 134U2981 | AG120: C2 | AH120: Modbus RTU | AJ120: A | AK120: =+VLOOKUP($AJ120,Dimensions!$B$5:$G$13,2,FALSE) -> 75 | AL120: =+VLOOKUP($AJ120,Dimensions!$B$5:$G$13,3,FALSE) -> 200 | AM120: =+VLOOKUP($AJ120,Dimensions!$B$5:$G$13,4,FALSE) -> 168 | AN120: =+VLOOKUP($AJ120,Dimensions!$B$5:$G$13,5,FALSE) -> 60 | AO120: =+VLOOKUP($AJ120,Dimensions!$B$5:$G$13,6,FALSE) -> 191 | AP120: K2 | AQ120: =+VLOOKUP($AP120,Dimensions!$B$5:$G$13,2,FALSE) -> 90 | AR120: =+VLOOKUP($AP120,Dimensions!$B$5:$G$13,3,FALSE) -> 272.5 | AS120: =+VLOOKUP($AP120,Dimensions!$B$5:$G$13,4,FALSE) -> 168 | AT120: =+VLOOKUP($AP120,Dimensions!$B$5:$G$13,5,FALSE) -> 70 | AU120: =+VLOOKUP($AP120,Dimensions!$B$5:$G$13,6,FALSE) -> 260 | AV120: 1900136
A121: 09 | B121: VLT Drives | C121: 046 | D121: Static frequency converters | E121: P281_400 | F121: 2805-2882 400V | G121: 09584 | H121: VLT 2815/400V | I121: 178F1117 | J121: FNG2815PT4B20STR0DBF00A00C1 | K121: 178F1117 | M121: 3x400 | N121: 1.5 | O121: N | P121: R0 | Q121: no class | R121: Standard | S121: Y | T121: 1.5 | U121: FC-280P1K5 | V121: T4 | W121: E20 | X121: H2 | Y121: B | Z121: XCXXX | AA121: SXXX | AB121: X | AC121: AX | AE121: FC-280P1K5T4E20H2BXCXXXSXXXXAX | AF121: =+VLOOKUP(AE121,TypeCodesFC280!AH:AI,2,FALSE) -> 134U3010 | AG121: C3 | AH121: Modbus RTU | AJ121: A | AK121: =+VLOOKUP($AJ121,Dimensions!$B$5:$G$13,2,FALSE) -> 75 | AL121: =+VLOOKUP($AJ121,Dimensions!$B$5:$G$13,3,FALSE) -> 200 | AM121: =+VLOOKUP($AJ121,Dimensions!$B$5:$G$13,4,FALSE) -> 168 | AN121: =+VLOOKUP($AJ121,Dimensions!$B$5:$G$13,5,FALSE) -> 60 | AO121: =+VLOOKUP($AJ121,Dimensions!$B$5:$G$13,6,FALSE) -> 191 | AP121: K2 | AQ121: =+VLOOKUP($AP121,Dimensions!$B$5:$G$13,2,FALSE) -> 90 | AR121: =+VLOOKUP($AP121,Dimensions!$B$5:$G$13,3,FALSE) -> 272.5 | AS121: =+VLOOKUP($AP121,Dimensions!$B$5:$G$13,4,FALSE) -> 168 | AT121: =+VLOOKUP($AP121,Dimensions!$B$5:$G$13,5,FALSE) -> 70 | AU121: =+VLOOKUP($AP121,Dimensions!$B$5:$G$13,6,FALSE) -> 260
A122: 09 | B122: VLT Drives | C122: 046 | D122: Static frequency converters | E122: P281_400 | F122: 2805-2882 400V | G122: 09585 | H122: VLT 2822/400V | I122: 134G7013 | J122: VLT2822PT4B20SBR1DBF00A00C1 | K122: 134G7013 | L122: 1900410 | M122: 3x400 | N122: 2.2 | O122: Y | P122: R1 | Q122: C2 | R122: Standard | S122: Y | T122: 2.2 | U122: FC-280P2K2 | V122: T4 | W122: E20 | X122: H1 | Y122: B | Z122: XCXXX | AA122: SXXX | AB122: X | AC122: AX | AE122: FC-280P2K2T4E20H1BXCXXXSXXXXAX | AF122: =+VLOOKUP(AE122,TypeCodesFC280!AH:AI,2,FALSE) -> 134U2982 | AG122: C2 | AH122: Modbus RTU | AJ122: B | AK122: =+VLOOKUP($AJ122,Dimensions!$B$5:$G$13,2,FALSE) -> 90 | AL122: =+VLOOKUP($AJ122,Dimensions!$B$5:$G$13,3,FALSE) -> 268 | AM122: =+VLOOKUP($AJ122,Dimensions!$B$5:$G$13,4,FALSE) -> 168 | AN122: =+VLOOKUP($AJ122,Dimensions!$B$5:$G$13,5,FALSE) -> 70 | AO122: =+VLOOKUP($AJ122,Dimensions!$B$5:$G$13,6,FALSE) -> 257 | AP122: K2 | AQ122: =+VLOOKUP($AP122,Dimensions!$B$5:$G$13,2,FALSE) -> 90 | AR122: =+VLOOKUP($AP122,Dimensions!$B$5:$G$13,3,FALSE) -> 272.5 | AS122: =+VLOOKUP($AP122,Dimensions!$B$5:$G$13,4,FALSE) -> 168 | AT122: =+VLOOKUP($AP122,Dimensions!$B$5:$G$13,5,FALSE) -> 70 | AU122: =+VLOOKUP($AP122,Dimensions!$B$5:$G$13,6,FALSE) -> 260 | AV122: 1900140
A123: 09 | B123: VLT Drives | C123: 046 | D123: Static frequency converters | E123: P281_400 | F123: 2805-2882 400V | G123: 09585 | H123: VLT 2822/400V | I123: 134H2375 | J123: VLT2822PT4B20SBR0DBF12A00C1 | K123: 134H2375 | L123: 1900347 | M123: 3x400 | N123: 2.2 | O123: Y | P123: R0 | Q123: no class | R123: PB 12Mbit | S123: Y | T123: 2.2 | U123: FC-280P2K2 | V123: T4 | W123: E20 | X123: H2 | Y123: B | Z123: XCXXX | AA123: SXXX | AB123: X | AC123: A0 | AE123: FC-280P2K2T4E20H2BXCXXXSXXXXA0 | AF123: =+VLOOKUP(AE123,TypeCodesFC280!AH:AI,2,FALSE) -> 134U7748 | AG123: C3 | AH123: Profibus | AJ123: B | AK123: =+VLOOKUP($AJ123,Dimensions!$B$5:$G$13,2,FALSE) -> 90 | AL123: =+VLOOKUP($AJ123,Dimensions!$B$5:$G$13,3,FALSE) -> 268 | AM123: =+VLOOKUP($AJ123,Dimensions!$B$5:$G$13,4,FALSE) -> 168 | AN123: =+VLOOKUP($AJ123,Dimensions!$B$5:$G$13,5,FALSE) -> 70 | AO123: =+VLOOKUP($AJ123,Dimensions!$B$5:$G$13,6,FALSE) -> 257 | AP123: K2 | AQ123: =+VLOOKUP($AP123,Dimensions!$B$5:$G$13,2,FALSE) -> 90 | AR123: =+VLOOKUP($AP123,Dimensions!$B$5:$G$13,3,FALSE) -> 272.5 | AS123: =+VLOOKUP($AP123,Dimensions!$B$5:$G$13,4,FALSE) -> 168 | AT123: =+VLOOKUP($AP123,Dimensions!$B$5:$G$13,5,FALSE) -> 70 | AU123: =+VLOOKUP($AP123,Dimensions!$B$5:$G$13,6,FALSE) -> 260
A124: 09 | B124: VLT Drives | C124: 046 | D124: Static frequency converters | E124: P281_400 | F124: 2805-2882 400V | G124: 09585 | H124: VLT 2822/400V | I124: 134H2376 | J124: VLT2822PT4B20SBR1DBF12A00C1 | K124: 134H2376 | L124: 1900411 | M124: 3x400 | N124: 2.2 | O124: Y | P124: R1 | Q124: C2 | R124: PB 12Mbit | S124: Y | T124: 2.2 | U124: FC-280P2K2 | V124: T4 | W124: E20 | X124: H1 | Y124: B | Z124: XCXXX | AA124: SXXX | AB124: X | AC124: A0 | AE124: FC-280P2K2T4E20H1BXCXXXSXXXXA0 | AF124: =+VLOOKUP(AE124,TypeCodesFC280!AH:AI,2,FALSE) -> 134U7717 | AG124: C2 | AH124: Profibus | AJ124: B | AK124: =+VLOOKUP($AJ124,Dimensions!$B$5:$G$13,2,FALSE) -> 90 | AL124: =+VLOOKUP($AJ124,Dimensions!$B$5:$G$13,3,FALSE) -> 268 | AM124: =+VLOOKUP($AJ124,Dimensions!$B$5:$G$13,4,FALSE) -> 168 | AN124: =+VLOOKUP($AJ124,Dimensions!$B$5:$G$13,5,FALSE) -> 70 | AO124: =+VLOOKUP($AJ124,Dimensions!$B$5:$G$13,6,FALSE) -> 257 | AP124: K2 | AQ124: =+VLOOKUP($AP124,Dimensions!$B$5:$G$13,2,FALSE) -> 90 | AR124: =+VLOOKUP($AP124,Dimensions!$B$5:$G$13,3,FALSE) -> 272.5 | AS124: =+VLOOKUP($AP124,Dimensions!$B$5:$G$13,4,FALSE) -> 168 | AT124: =+VLOOKUP($AP124,Dimensions!$B$5:$G$13,5,FALSE) -> 70 | AU124: =+VLOOKUP($AP124,Dimensions!$B$5:$G$13,6,FALSE) -> 260
A125: 09 | B125: VLT Drives | C125: 046 | D125: Static frequency converters | E125: P281_400 | F125: 2805-2882 400V | G125: 09585 | H125: VLT 2822/400V | I125: 134H2474 | J125: VLT2822PT4B20SBR0DBF30A00C1 | K125: 134H2474 | L125: 1900348 | M125: 3x400 | N125: 2.2 | O125: Y | P125: R0 | Q125: no class | R125: DeviceNet | S125: Y | T125: 2.2 | U125: FC-280P2K2 | V125: T4 | W125: E20 | X125: H2 | Y125: B | Z125: XCXXX | AA125: SXXX | AB125: X | AC125: ? | AE125: FC-280P2K2T4E20H2BXCXXXSXXXX? | AF125: =+VLOOKUP(AE125,TypeCodesFC280!AH:AI,2,FALSE) ->  | AG125: C3 | AH125: t.b. | AJ125: B | AK125: =+VLOOKUP($AJ125,Dimensions!$B$5:$G$13,2,FALSE) -> 90 | AL125: =+VLOOKUP($AJ125,Dimensions!$B$5:$G$13,3,FALSE) -> 268 | AM125: =+VLOOKUP($AJ125,Dimensions!$B$5:$G$13,4,FALSE) -> 168 | AN125: =+VLOOKUP($AJ125,Dimensions!$B$5:$G$13,5,FALSE) -> 70 | AO125: =+VLOOKUP($AJ125,Dimensions!$B$5:$G$13,6,FALSE) -> 257 | AP125: K2 | AQ125: =+VLOOKUP($AP125,Dimensions!$B$5:$G$13,2,FALSE) -> 90 | AR125: =+VLOOKUP($AP125,Dimensions!$B$5:$G$13,3,FALSE) -> 272.5 | AS125: =+VLOOKUP($AP125,Dimensions!$B$5:$G$13,4,FALSE) -> 168 | AT125: =+VLOOKUP($AP125,Dimensions!$B$5:$G$13,5,FALSE) -> 70 | AU125: =+VLOOKUP($AP125,Dimensions!$B$5:$G$13,6,FALSE) -> 260
A126: 09 | B126: VLT Drives | C126: 046 | D126: Static frequency converters | E126: P281_400 | F126: 2805-2882 400V | G126: 09585 | H126: VLT 2822/400V | I126: 134H2475 | J126: VLT2822PT4B20SBR1DBF30A00C1 | K126: 134H2475 | L126: 1900349 | M126: 3x400 | N126: 2.2 | O126: Y | P126: R1 | Q126: C2 | R126: DeviceNet | S126: Y | T126: 2.2 | U126: FC-280P2K2 | V126: T4 | W126: E20 | X126: H1 | Y126: B | Z126: XCXXX | AA126: SXXX | AB126: X | AC126: ? | AE126: FC-280P2K2T4E20H1BXCXXXSXXXX? | AF126: =+VLOOKUP(AE126,TypeCodesFC280!AH:AI,2,FALSE) ->  | AG126: C2 | AH126: t.b. | AJ126: B | AK126: =+VLOOKUP($AJ126,Dimensions!$B$5:$G$13,2,FALSE) -> 90 | AL126: =+VLOOKUP($AJ126,Dimensions!$B$5:$G$13,3,FALSE) -> 268 | AM126: =+VLOOKUP($AJ126,Dimensions!$B$5:$G$13,4,FALSE) -> 168 | AN126: =+VLOOKUP($AJ126,Dimensions!$B$5:$G$13,5,FALSE) -> 70 | AO126: =+VLOOKUP($AJ126,Dimensions!$B$5:$G$13,6,FALSE) -> 257 | AP126: K2 | AQ126: =+VLOOKUP($AP126,Dimensions!$B$5:$G$13,2,FALSE) -> 90 | AR126: =+VLOOKUP($AP126,Dimensions!$B$5:$G$13,3,FALSE) -> 272.5 | AS126: =+VLOOKUP($AP126,Dimensions!$B$5:$G$13,4,FALSE) -> 168 | AT126: =+VLOOKUP($AP126,Dimensions!$B$5:$G$13,5,FALSE) -> 70 | AU126: =+VLOOKUP($AP126,Dimensions!$B$5:$G$13,6,FALSE) -> 260
A127: 09 | B127: VLT Drives | C127: 046 | D127: Static frequency converters | E127: P281_400 | F127: 2805-2882 400V | G127: 09585 | H127: VLT 2822/400V | I127: 134H5285 | J127: VLT2822PT4B20SBR5DBF00A00C1 | K127: 134H5285 | M127: 3x400 | N127: 2.2 | O127: Y | P127: R5 | Q127: C2 | R127: Standard | S127: Y | T127: 2.2 | U127: FC-280P2K2 | V127: T4 | W127: E20 | X127: H1 | Y127: B | Z127: XCXXX | AA127: SXXX | AB127: X | AC127: AX | AE127: FC-280P2K2T4E20H1BXCXXXSXXXXAX | AF127: =+VLOOKUP(AE127,TypeCodesFC280!AH:AI,2,FALSE) -> 134U2982 | AG127: C2 | AH127: Modbus RTU | AJ127: B | AK127: =+VLOOKUP($AJ127,Dimensions!$B$5:$G$13,2,FALSE) -> 90 | AL127: =+VLOOKUP($AJ127,Dimensions!$B$5:$G$13,3,FALSE) -> 268 | AM127: =+VLOOKUP($AJ127,Dimensions!$B$5:$G$13,4,FALSE) -> 168 | AN127: =+VLOOKUP($AJ127,Dimensions!$B$5:$G$13,5,FALSE) -> 70 | AO127: =+VLOOKUP($AJ127,Dimensions!$B$5:$G$13,6,FALSE) -> 257 | AP127: K2 | AQ127: =+VLOOKUP($AP127,Dimensions!$B$5:$G$13,2,FALSE) -> 90 | AR127: =+VLOOKUP($AP127,Dimensions!$B$5:$G$13,3,FALSE) -> 272.5 | AS127: =+VLOOKUP($AP127,Dimensions!$B$5:$G$13,4,FALSE) -> 168 | AT127: =+VLOOKUP($AP127,Dimensions!$B$5:$G$13,5,FALSE) -> 70 | AU127: =+VLOOKUP($AP127,Dimensions!$B$5:$G$13,6,FALSE) -> 260 | AV127: 1900140
A128: 09 | B128: VLT Drives | C128: 046 | D128: Static frequency converters | E128: P281_400 | F128: 2805-2882 400V | G128: 09585 | H128: VLT 2822/400V | I128: 134H5300 | J128: VLT2822PT4B20SBR5DBF12A00C1 | K128: 134H5300 | M128: 3x400 | N128: 2.2 | O128: Y | P128: R5 | Q128: C2 | R128: PB 12Mbit | S128: Y | T128: 2.2 | U128: FC-280P2K2 | V128: T4 | W128: E20 | X128: H1 | Y128: B | Z128: XCXXX | AA128: SXXX | AB128: X | AC128: A0 | AE128: FC-280P2K2T4E20H1BXCXXXSXXXXA0 | AF128: =+VLOOKUP(AE128,TypeCodesFC280!AH:AI,2,FALSE) -> 134U7717 | AG128: C2 | AH128: Profibus | AJ128: B | AK128: =+VLOOKUP($AJ128,Dimensions!$B$5:$G$13,2,FALSE) -> 90 | AL128: =+VLOOKUP($AJ128,Dimensions!$B$5:$G$13,3,FALSE) -> 268 | AM128: =+VLOOKUP($AJ128,Dimensions!$B$5:$G$13,4,FALSE) -> 168 | AN128: =+VLOOKUP($AJ128,Dimensions!$B$5:$G$13,5,FALSE) -> 70 | AO128: =+VLOOKUP($AJ128,Dimensions!$B$5:$G$13,6,FALSE) -> 257 | AP128: K2 | AQ128: =+VLOOKUP($AP128,Dimensions!$B$5:$G$13,2,FALSE) -> 90 | AR128: =+VLOOKUP($AP128,Dimensions!$B$5:$G$13,3,FALSE) -> 272.5 | AS128: =+VLOOKUP($AP128,Dimensions!$B$5:$G$13,4,FALSE) -> 168 | AT128: =+VLOOKUP($AP128,Dimensions!$B$5:$G$13,5,FALSE) -> 70 | AU128: =+VLOOKUP($AP128,Dimensions!$B$5:$G$13,6,FALSE) -> 260
A129: 09 | B129: VLT Drives | C129: 046 | D129: Static frequency converters | E129: P281_400 | F129: 2805-2882 400V | G129: 09585 | H129: VLT 2822/400V | I129: 134H5318 | J129: VLT2822PT4B20SBR5DBF30A00C1 | K129: 134H5318 | M129: 3x400 | N129: 2.2 | O129: Y | P129: R5 | Q129: C2 | R129: DeviceNet | S129: Y | T129: 2.2 | U129: FC-280P2K2 | V129: T4 | W129: E20 | X129: H1 | Y129: B | Z129: XCXXX | AA129: SXXX | AB129: X | AC129: ? | AE129: FC-280P2K2T4E20H1BXCXXXSXXXX? | AF129: =+VLOOKUP(AE129,TypeCodesFC280!AH:AI,2,FALSE) ->  | AG129: C2 | AH129: t.b. | AJ129: B | AK129: =+VLOOKUP($AJ129,Dimensions!$B$5:$G$13,2,FALSE) -> 90 | AL129: =+VLOOKUP($AJ129,Dimensions!$B$5:$G$13,3,FALSE) -> 268 | AM129: =+VLOOKUP($AJ129,Dimensions!$B$5:$G$13,4,FALSE) -> 168 | AN129: =+VLOOKUP($AJ129,Dimensions!$B$5:$G$13,5,FALSE) -> 70 | AO129: =+VLOOKUP($AJ129,Dimensions!$B$5:$G$13,6,FALSE) -> 257 | AP129: K2 | AQ129: =+VLOOKUP($AP129,Dimensions!$B$5:$G$13,2,FALSE) -> 90 | AR129: =+VLOOKUP($AP129,Dimensions!$B$5:$G$13,3,FALSE) -> 272.5 | AS129: =+VLOOKUP($AP129,Dimensions!$B$5:$G$13,4,FALSE) -> 168 | AT129: =+VLOOKUP($AP129,Dimensions!$B$5:$G$13,5,FALSE) -> 70 | AU129: =+VLOOKUP($AP129,Dimensions!$B$5:$G$13,6,FALSE) -> 260
A130: 09 | B130: VLT Drives | C130: 046 | D130: Static frequency converters | E130: P281_400 | F130: 2805-2882 400V | G130: 09585 | H130: VLT 2822/400V | I130: 134L1295 | J130: TR12822PT4B20SBR1DBF00A00C1 | K130: 134L1295 | M130: 3x400 | N130: 2.2 | O130: Y | P130: R1 | Q130: C2 | R130: Standard | S130: Y | T130: 2.2 | U130: FC-280P2K2 | V130: T4 | W130: E20 | X130: H1 | Y130: B | Z130: XCXXX | AA130: SXXX | AB130: X | AC130: AX | AE130: FC-280P2K2T4E20H1BXCXXXSXXXXAX | AF130: =+VLOOKUP(AE130,TypeCodesFC280!AH:AI,2,FALSE) -> 134U2982 | AG130: C2 | AH130: Modbus RTU | AJ130: B | AK130: =+VLOOKUP($AJ130,Dimensions!$B$5:$G$13,2,FALSE) -> 90 | AL130: =+VLOOKUP($AJ130,Dimensions!$B$5:$G$13,3,FALSE) -> 268 | AM130: =+VLOOKUP($AJ130,Dimensions!$B$5:$G$13,4,FALSE) -> 168 | AN130: =+VLOOKUP($AJ130,Dimensions!$B$5:$G$13,5,FALSE) -> 70 | AO130: =+VLOOKUP($AJ130,Dimensions!$B$5:$G$13,6,FALSE) -> 257 | AP130: K2 | AQ130: =+VLOOKUP($AP130,Dimensions!$B$5:$G$13,2,FALSE) -> 90 | AR130: =+VLOOKUP($AP130,Dimensions!$B$5:$G$13,3,FALSE) -> 272.5 | AS130: =+VLOOKUP($AP130,Dimensions!$B$5:$G$13,4,FALSE) -> 168 | AT130: =+VLOOKUP($AP130,Dimensions!$B$5:$G$13,5,FALSE) -> 70 | AU130: =+VLOOKUP($AP130,Dimensions!$B$5:$G$13,6,FALSE) -> 260 | AV130: 1900140
A131: 09 | B131: VLT Drives | C131: 046 | D131: Static frequency converters | E131: P281_400 | F131: 2805-2882 400V | G131: 09585 | H131: VLT 2822/400V | I131: 134L4900 | J131: ABU2822PT4B20SBR1DBF00A00C1 | K131: 134L4900 | M131: 3x400 | N131: 2.2 | O131: Y | P131: R1 | Q131: C2 | R131: Standard | S131: Y | T131: 2.2 | U131: FC-280P2K2 | V131: T4 | W131: E20 | X131: H1 | Y131: B | Z131: XCXXX | AA131: SXXX | AB131: X | AC131: AX | AE131: FC-280P2K2T4E20H1BXCXXXSXXXXAX | AF131: =+VLOOKUP(AE131,TypeCodesFC280!AH:AI,2,FALSE) -> 134U2982 | AG131: C2 | AH131: Modbus RTU | AJ131: B | AK131: =+VLOOKUP($AJ131,Dimensions!$B$5:$G$13,2,FALSE) -> 90 | AL131: =+VLOOKUP($AJ131,Dimensions!$B$5:$G$13,3,FALSE) -> 268 | AM131: =+VLOOKUP($AJ131,Dimensions!$B$5:$G$13,4,FALSE) -> 168 | AN131: =+VLOOKUP($AJ131,Dimensions!$B$5:$G$13,5,FALSE) -> 70 | AO131: =+VLOOKUP($AJ131,Dimensions!$B$5:$G$13,6,FALSE) -> 257 | AP131: K2 | AQ131: =+VLOOKUP($AP131,Dimensions!$B$5:$G$13,2,FALSE) -> 90 | AR131: =+VLOOKUP($AP131,Dimensions!$B$5:$G$13,3,FALSE) -> 272.5 | AS131: =+VLOOKUP($AP131,Dimensions!$B$5:$G$13,4,FALSE) -> 168 | AT131: =+VLOOKUP($AP131,Dimensions!$B$5:$G$13,5,FALSE) -> 70 | AU131: =+VLOOKUP($AP131,Dimensions!$B$5:$G$13,6,FALSE) -> 260 | AV131: 1900140
A132: 09 | B132: VLT Drives | C132: 046 | D132: Static frequency converters | E132: P281_400 | F132: 2805-2882 400V | G132: 09585 | H132: VLT 2822/400V | I132: 134L4912 | J132: ABU2822PT4B20SBR1DBF12A00C1 | K132: 134L4912 | M132: 3x400 | N132: 2.2 | O132: Y | P132: R1 | Q132: C2 | R132: PB 12Mbit | S132: Y | T132: 2.2 | U132: FC-280P2K2 | V132: T4 | W132: E20 | X132: H1 | Y132: B | Z132: XCXXX | AA132: SXXX | AB132: X | AC132: A0 | AE132: FC-280P2K2T4E20H1BXCXXXSXXXXA0 | AF132: =+VLOOKUP(AE132,TypeCodesFC280!AH:AI,2,FALSE) -> 134U7717 | AG132: C2 | AH132: Profibus | AJ132: B | AK132: =+VLOOKUP($AJ132,Dimensions!$B$5:$G$13,2,FALSE) -> 90 | AL132: =+VLOOKUP($AJ132,Dimensions!$B$5:$G$13,3,FALSE) -> 268 | AM132: =+VLOOKUP($AJ132,Dimensions!$B$5:$G$13,4,FALSE) -> 168 | AN132: =+VLOOKUP($AJ132,Dimensions!$B$5:$G$13,5,FALSE) -> 70 | AO132: =+VLOOKUP($AJ132,Dimensions!$B$5:$G$13,6,FALSE) -> 257 | AP132: K2 | AQ132: =+VLOOKUP($AP132,Dimensions!$B$5:$G$13,2,FALSE) -> 90 | AR132: =+VLOOKUP($AP132,Dimensions!$B$5:$G$13,3,FALSE) -> 272.5 | AS132: =+VLOOKUP($AP132,Dimensions!$B$5:$G$13,4,FALSE) -> 168 | AT132: =+VLOOKUP($AP132,Dimensions!$B$5:$G$13,5,FALSE) -> 70 | AU132: =+VLOOKUP($AP132,Dimensions!$B$5:$G$13,6,FALSE) -> 260
A133: 09 | B133: VLT Drives | C133: 046 | D133: Static frequency converters | E133: P281_400 | F133: 2805-2882 400V | G133: 09585 | H133: VLT 2822/400V | I133: 178B4763 | J133: MQP2822PT4B20SBR0DBF00A00C0 | K133: 178B4763 | M133: 3x400 | N133: 2.2 | O133: Y | P133: R0 | Q133: no class | R133: Standard | S133: N | T133: 2.2 | U133: FC-280P2K2 | V133: T4 | W133: E20 | X133: H2 | Y133: B | Z133: XCXXX | AA133: SXXX | AB133: X | AC133: AX | AE133: FC-280P2K2T4E20H2BXCXXXSXXXXAX | AF133: =+VLOOKUP(AE133,TypeCodesFC280!AH:AI,2,FALSE) -> 134U3011 | AG133: C3 | AH133: Modbus RTU | AJ133: B | AK133: =+VLOOKUP($AJ133,Dimensions!$B$5:$G$13,2,FALSE) -> 90 | AL133: =+VLOOKUP($AJ133,Dimensions!$B$5:$G$13,3,FALSE) -> 268 | AM133: =+VLOOKUP($AJ133,Dimensions!$B$5:$G$13,4,FALSE) -> 168 | AN133: =+VLOOKUP($AJ133,Dimensions!$B$5:$G$13,5,FALSE) -> 70 | AO133: =+VLOOKUP($AJ133,Dimensions!$B$5:$G$13,6,FALSE) -> 257 | AP133: K2 | AQ133: =+VLOOKUP($AP133,Dimensions!$B$5:$G$13,2,FALSE) -> 90 | AR133: =+VLOOKUP($AP133,Dimensions!$B$5:$G$13,3,FALSE) -> 272.5 | AS133: =+VLOOKUP($AP133,Dimensions!$B$5:$G$13,4,FALSE) -> 168 | AT133: =+VLOOKUP($AP133,Dimensions!$B$5:$G$13,5,FALSE) -> 70 | AU133: =+VLOOKUP($AP133,Dimensions!$B$5:$G$13,6,FALSE) -> 260
A134: 09 | B134: VLT Drives | C134: 046 | D134: Static frequency converters | E134: P281_400 | F134: 2805-2882 400V | G134: 09585 | H134: VLT 2822/400V | I134: 178B8581 | J134: VLT2822PT4B20SBR0DBF00A00C1 | K134: 178B8581 | L134: 1900354 | M134: 3x400 | N134: 2.2 | O134: Y | P134: R0 | Q134: no class | R134: Standard | S134: Y | T134: 2.2 | U134: FC-280P2K2 | V134: T4 | W134: E20 | X134: H2 | Y134: B | Z134: XCXXX | AA134: SXXX | AB134: X | AC134: AX | AE134: FC-280P2K2T4E20H2BXCXXXSXXXXAX | AF134: =+VLOOKUP(AE134,TypeCodesFC280!AH:AI,2,FALSE) -> 134U3011 | AG134: C3 | AH134: Modbus RTU | AJ134: B | AK134: =+VLOOKUP($AJ134,Dimensions!$B$5:$G$13,2,FALSE) -> 90 | AL134: =+VLOOKUP($AJ134,Dimensions!$B$5:$G$13,3,FALSE) -> 268 | AM134: =+VLOOKUP($AJ134,Dimensions!$B$5:$G$13,4,FALSE) -> 168 | AN134: =+VLOOKUP($AJ134,Dimensions!$B$5:$G$13,5,FALSE) -> 70 | AO134: =+VLOOKUP($AJ134,Dimensions!$B$5:$G$13,6,FALSE) -> 257 | AP134: K2 | AQ134: =+VLOOKUP($AP134,Dimensions!$B$5:$G$13,2,FALSE) -> 90 | AR134: =+VLOOKUP($AP134,Dimensions!$B$5:$G$13,3,FALSE) -> 272.5 | AS134: =+VLOOKUP($AP134,Dimensions!$B$5:$G$13,4,FALSE) -> 168 | AT134: =+VLOOKUP($AP134,Dimensions!$B$5:$G$13,5,FALSE) -> 70 | AU134: =+VLOOKUP($AP134,Dimensions!$B$5:$G$13,6,FALSE) -> 260
A135: 09 | B135: VLT Drives | C135: 046 | D135: Static frequency converters | E135: P281_400 | F135: 2805-2882 400V | G135: 09586 | H135: VLT 2830/400V | I135: 131Z8843 | J135: VLT2830PT4B20SBR1DBF00A00C1 | K135: 131Z8843 | L135: 1900357 | M135: 3x400 | N135: 3 | O135: Y | P135: R1 | Q135: C2 | R135: Standard | S135: Y | T135: 3 | U135: FC-280P3K0 | V135: T4 | W135: E20 | X135: H1 | Y135: B | Z135: XCXXX | AA135: SXXX | AB135: X | AC135: AX | AE135: FC-280P3K0T4E20H1BXCXXXSXXXXAX | AF135: =+VLOOKUP(AE135,TypeCodesFC280!AH:AI,2,FALSE) -> 134U2983 | AG135: C2 | AH135: Modbus RTU | AJ135: B | AK135: =+VLOOKUP($AJ135,Dimensions!$B$5:$G$13,2,FALSE) -> 90 | AL135: =+VLOOKUP($AJ135,Dimensions!$B$5:$G$13,3,FALSE) -> 268 | AM135: =+VLOOKUP($AJ135,Dimensions!$B$5:$G$13,4,FALSE) -> 168 | AN135: =+VLOOKUP($AJ135,Dimensions!$B$5:$G$13,5,FALSE) -> 70 | AO135: =+VLOOKUP($AJ135,Dimensions!$B$5:$G$13,6,FALSE) -> 257 | AP135: K2 | AQ135: =+VLOOKUP($AP135,Dimensions!$B$5:$G$13,2,FALSE) -> 90 | AR135: =+VLOOKUP($AP135,Dimensions!$B$5:$G$13,3,FALSE) -> 272.5 | AS135: =+VLOOKUP($AP135,Dimensions!$B$5:$G$13,4,FALSE) -> 168 | AT135: =+VLOOKUP($AP135,Dimensions!$B$5:$G$13,5,FALSE) -> 70 | AU135: =+VLOOKUP($AP135,Dimensions!$B$5:$G$13,6,FALSE) -> 260 | AV135: 1900141
A136: 09 | B136: VLT Drives | C136: 046 | D136: Static frequency converters | E136: P281_400 | F136: 2805-2882 400V | G136: 09586 | H136: VLT 2830/400V | I136: 134H2377 | J136: VLT2830PT4B20SBR0DBF12A00C1 | K136: 134H2377 | L136: 1900358 | M136: 3x400 | N136: 3 | O136: Y | P136: R0 | Q136: no class | R136: PB 12Mbit | S136: Y | T136: 3 | U136: FC-280P3K0 | V136: T4 | W136: E20 | X136: H2 | Y136: B | Z136: XCXXX | AA136: SXXX | AB136: X | AC136: A0 | AE136: =+CONCATENATE(U136,V136,W136,X136,Y136,Z136,AA136,AB136,AC136) -> FC-280P3K0T4E20H2BXCXXXSXXXXA0 | AF136: =+VLOOKUP(AE136,TypeCodesFC280!AH:AI,2,FALSE) -> 134U7749 | AG136: C3 | AH136: Profibus | AJ136: B | AK136: =+VLOOKUP($AJ136,Dimensions!$B$5:$G$13,2,FALSE) -> 90 | AL136: =+VLOOKUP($AJ136,Dimensions!$B$5:$G$13,3,FALSE) -> 268 | AM136: =+VLOOKUP($AJ136,Dimensions!$B$5:$G$13,4,FALSE) -> 168 | AN136: =+VLOOKUP($AJ136,Dimensions!$B$5:$G$13,5,FALSE) -> 70 | AO136: =+VLOOKUP($AJ136,Dimensions!$B$5:$G$13,6,FALSE) -> 257 | AP136: K2 | AQ136: =+VLOOKUP($AP136,Dimensions!$B$5:$G$13,2,FALSE) -> 90 | AR136: =+VLOOKUP($AP136,Dimensions!$B$5:$G$13,3,FALSE) -> 272.5 | AS136: =+VLOOKUP($AP136,Dimensions!$B$5:$G$13,4,FALSE) -> 168 | AT136: =+VLOOKUP($AP136,Dimensions!$B$5:$G$13,5,FALSE) -> 70 | AU136: =+VLOOKUP($AP136,Dimensions!$B$5:$G$13,6,FALSE) -> 260
A137: 09 | B137: VLT Drives | C137: 046 | D137: Static frequency converters | E137: P281_400 | F137: 2805-2882 400V | G137: 09586 | H137: VLT 2830/400V | I137: 134H2378 | J137: VLT2830PT4B20SBR1DBF12A00C1 | K137: 134H2378 | L137: 1900412 | M137: 3x400 | N137: 3 | O137: Y | P137: R1 | Q137: C2 | R137: PB 12Mbit | S137: Y | T137: 3 | U137: FC-280P3K0 | V137: T4 | W137: E20 | X137: H1 | Y137: B | Z137: XCXXX | AA137: SXXX | AB137: X | AC137: A0 | AE137: FC-280P3K0T4E20H1BXCXXXSXXXXA0 | AF137: =+VLOOKUP(AE137,TypeCodesFC280!AH:AI,2,FALSE) -> 134U7718 | AG137: C2 | AH137: Profibus | AJ137: B | AK137: =+VLOOKUP($AJ137,Dimensions!$B$5:$G$13,2,FALSE) -> 90 | AL137: =+VLOOKUP($AJ137,Dimensions!$B$5:$G$13,3,FALSE) -> 268 | AM137: =+VLOOKUP($AJ137,Dimensions!$B$5:$G$13,4,FALSE) -> 168 | AN137: =+VLOOKUP($AJ137,Dimensions!$B$5:$G$13,5,FALSE) -> 70 | AO137: =+VLOOKUP($AJ137,Dimensions!$B$5:$G$13,6,FALSE) -> 257 | AP137: K2 | AQ137: =+VLOOKUP($AP137,Dimensions!$B$5:$G$13,2,FALSE) -> 90 | AR137: =+VLOOKUP($AP137,Dimensions!$B$5:$G$13,3,FALSE) -> 272.5 | AS137: =+VLOOKUP($AP137,Dimensions!$B$5:$G$13,4,FALSE) -> 168 | AT137: =+VLOOKUP($AP137,Dimensions!$B$5:$G$13,5,FALSE) -> 70 | AU137: =+VLOOKUP($AP137,Dimensions!$B$5:$G$13,6,FALSE) -> 260
A138: 09 | B138: VLT Drives | C138: 046 | D138: Static frequency converters | E138: P281_400 | F138: 2805-2882 400V | G138: 09586 | H138: VLT 2830/400V | I138: 134H5286 | J138: VLT2830PT4B20SBR5DBF00A00C1 | K138: 134H5286 | M138: 3x400 | N138: 3 | O138: Y | P138: R5 | Q138: C2 | R138: Standard | S138: Y | T138: 3 | U138: FC-280P3K0 | V138: T4 | W138: E20 | X138: H1 | Y138: B | Z138: XCXXX | AA138: SXXX | AB138: X | AC138: AX | AE138: FC-280P3K0T4E20H1BXCXXXSXXXXAX | AF138: =+VLOOKUP(AE138,TypeCodesFC280!AH:AI,2,FALSE) -> 134U2983 | AG138: C2 | AH138: Modbus RTU | AJ138: B | AK138: =+VLOOKUP($AJ138,Dimensions!$B$5:$G$13,2,FALSE) -> 90 | AL138: =+VLOOKUP($AJ138,Dimensions!$B$5:$G$13,3,FALSE) -> 268 | AM138: =+VLOOKUP($AJ138,Dimensions!$B$5:$G$13,4,FALSE) -> 168 | AN138: =+VLOOKUP($AJ138,Dimensions!$B$5:$G$13,5,FALSE) -> 70 | AO138: =+VLOOKUP($AJ138,Dimensions!$B$5:$G$13,6,FALSE) -> 257 | AP138: K2 | AQ138: =+VLOOKUP($AP138,Dimensions!$B$5:$G$13,2,FALSE) -> 90 | AR138: =+VLOOKUP($AP138,Dimensions!$B$5:$G$13,3,FALSE) -> 272.5 | AS138: =+VLOOKUP($AP138,Dimensions!$B$5:$G$13,4,FALSE) -> 168 | AT138: =+VLOOKUP($AP138,Dimensions!$B$5:$G$13,5,FALSE) -> 70 | AU138: =+VLOOKUP($AP138,Dimensions!$B$5:$G$13,6,FALSE) -> 260 | AV138: 1900141
A139: 09 | B139: VLT Drives | C139: 046 | D139: Static frequency converters | E139: P281_400 | F139: 2805-2882 400V | G139: 09586 | H139: VLT 2830/400V | I139: 134H5301 | J139: VLT2830PT4B20SBR5DBF12A00C1 | K139: 134H5301 | M139: 3x400 | N139: 3 | O139: Y | P139: R5 | Q139: C2 | R139: PB 12Mbit | S139: Y | T139: 3 | U139: FC-280P3K0 | V139: T4 | W139: E20 | X139: H1 | Y139: B | Z139: XCXXX | AA139: SXXX | AB139: X | AC139: A0 | AE139: FC-280P3K0T4E20H1BXCXXXSXXXXA0 | AF139: =+VLOOKUP(AE139,TypeCodesFC280!AH:AI,2,FALSE) -> 134U7718 | AG139: C2 | AH139: Profibus | AJ139: B | AK139: =+VLOOKUP($AJ139,Dimensions!$B$5:$G$13,2,FALSE) -> 90 | AL139: =+VLOOKUP($AJ139,Dimensions!$B$5:$G$13,3,FALSE) -> 268 | AM139: =+VLOOKUP($AJ139,Dimensions!$B$5:$G$13,4,FALSE) -> 168 | AN139: =+VLOOKUP($AJ139,Dimensions!$B$5:$G$13,5,FALSE) -> 70 | AO139: =+VLOOKUP($AJ139,Dimensions!$B$5:$G$13,6,FALSE) -> 257 | AP139: K2 | AQ139: =+VLOOKUP($AP139,Dimensions!$B$5:$G$13,2,FALSE) -> 90 | AR139: =+VLOOKUP($AP139,Dimensions!$B$5:$G$13,3,FALSE) -> 272.5 | AS139: =+VLOOKUP($AP139,Dimensions!$B$5:$G$13,4,FALSE) -> 168 | AT139: =+VLOOKUP($AP139,Dimensions!$B$5:$G$13,5,FALSE) -> 70 | AU139: =+VLOOKUP($AP139,Dimensions!$B$5:$G$13,6,FALSE) -> 260
A140: 09 | B140: VLT Drives | C140: 046 | D140: Static frequency converters | E140: P281_400 | F140: 2805-2882 400V | G140: 09586 | H140: VLT 2830/400V | I140: 134H5324 | J140: VLT2830PT4B20SBR5DBF30A00C1 | K140: 134H5324 | M140: 3x400 | N140: 3 | O140: Y | P140: R5 | Q140: C2 | R140: DeviceNet | S140: Y | T140: 3 | U140: FC-280P3K0 | V140: T4 | W140: E20 | X140: H1 | Y140: B | Z140: XCXXX | AA140: SXXX | AB140: X | AC140: ? | AE140: FC-280P3K0T4E20H1BXCXXXSXXXX? | AF140: =+VLOOKUP(AE140,TypeCodesFC280!AH:AI,2,FALSE) ->  | AG140: C2 | AH140: t.b. | AJ140: B | AK140: =+VLOOKUP($AJ140,Dimensions!$B$5:$G$13,2,FALSE) -> 90 | AL140: =+VLOOKUP($AJ140,Dimensions!$B$5:$G$13,3,FALSE) -> 268 | AM140: =+VLOOKUP($AJ140,Dimensions!$B$5:$G$13,4,FALSE) -> 168 | AN140: =+VLOOKUP($AJ140,Dimensions!$B$5:$G$13,5,FALSE) -> 70 | AO140: =+VLOOKUP($AJ140,Dimensions!$B$5:$G$13,6,FALSE) -> 257 | AP140: K2 | AQ140: =+VLOOKUP($AP140,Dimensions!$B$5:$G$13,2,FALSE) -> 90 | AR140: =+VLOOKUP($AP140,Dimensions!$B$5:$G$13,3,FALSE) -> 272.5 | AS140: =+VLOOKUP($AP140,Dimensions!$B$5:$G$13,4,FALSE) -> 168 | AT140: =+VLOOKUP($AP140,Dimensions!$B$5:$G$13,5,FALSE) -> 70 | AU140: =+VLOOKUP($AP140,Dimensions!$B$5:$G$13,6,FALSE) -> 260
A141: 09 | B141: VLT Drives | C141: 046 | D141: Static frequency converters | E141: P281_400 | F141: 2805-2882 400V | G141: 09586 | H141: VLT 2830/400V | I141: 134L1296 | J141: TR12830PT4B20SBR1DBF00A00C1 | K141: 134L1296 | M141: 3x400 | N141: 3 | O141: Y | P141: R1 | Q141: C2 | R141: Standard | S141: Y | T141: 3 | U141: FC-280P3K0 | V141: T4 | W141: E20 | X141: H1 | Y141: B | Z141: XCXXX | AA141: SXXX | AB141: X | AC141: AX | AE141: FC-280P3K0T4E20H1BXCXXXSXXXXAX | AF141: =+VLOOKUP(AE141,TypeCodesFC280!AH:AI,2,FALSE) -> 134U2983 | AG141: C2 | AH141: Modbus RTU | AJ141: B | AK141: =+VLOOKUP($AJ141,Dimensions!$B$5:$G$13,2,FALSE) -> 90 | AL141: =+VLOOKUP($AJ141,Dimensions!$B$5:$G$13,3,FALSE) -> 268 | AM141: =+VLOOKUP($AJ141,Dimensions!$B$5:$G$13,4,FALSE) -> 168 | AN141: =+VLOOKUP($AJ141,Dimensions!$B$5:$G$13,5,FALSE) -> 70 | AO141: =+VLOOKUP($AJ141,Dimensions!$B$5:$G$13,6,FALSE) -> 257 | AP141: K2 | AQ141: =+VLOOKUP($AP141,Dimensions!$B$5:$G$13,2,FALSE) -> 90 | AR141: =+VLOOKUP($AP141,Dimensions!$B$5:$G$13,3,FALSE) -> 272.5 | AS141: =+VLOOKUP($AP141,Dimensions!$B$5:$G$13,4,FALSE) -> 168 | AT141: =+VLOOKUP($AP141,Dimensions!$B$5:$G$13,5,FALSE) -> 70 | AU141: =+VLOOKUP($AP141,Dimensions!$B$5:$G$13,6,FALSE) -> 260 | AV141: 1900141
A142: 09 | B142: VLT Drives | C142: 046 | D142: Static frequency converters | E142: P281_400 | F142: 2805-2882 400V | G142: 09586 | H142: VLT 2830/400V | I142: 134L4507 | J142: VLT2830PT4B20SBR0DBF30A00C1 | K142: 134L4507 | M142: 3x400 | N142: 3 | O142: Y | P142: R0 | Q142: no class | R142: DeviceNet | S142: Y | T142: 3 | U142: FC-280P3K0 | V142: T4 | W142: E20 | X142: H2 | Y142: B | Z142: XCXXX | AA142: SXXX | AB142: X | AC142: ? | AE142: FC-280P3K0T4E20H2BXCXXXSXXXX? | AF142: =+VLOOKUP(AE142,TypeCodesFC280!AH:AI,2,FALSE) ->  | AG142: C3 | AH142: t.b. | AJ142: B | AK142: =+VLOOKUP($AJ142,Dimensions!$B$5:$G$13,2,FALSE) -> 90 | AL142: =+VLOOKUP($AJ142,Dimensions!$B$5:$G$13,3,FALSE) -> 268 | AM142: =+VLOOKUP($AJ142,Dimensions!$B$5:$G$13,4,FALSE) -> 168 | AN142: =+VLOOKUP($AJ142,Dimensions!$B$5:$G$13,5,FALSE) -> 70 | AO142: =+VLOOKUP($AJ142,Dimensions!$B$5:$G$13,6,FALSE) -> 257 | AP142: K2 | AQ142: =+VLOOKUP($AP142,Dimensions!$B$5:$G$13,2,FALSE) -> 90 | AR142: =+VLOOKUP($AP142,Dimensions!$B$5:$G$13,3,FALSE) -> 272.5 | AS142: =+VLOOKUP($AP142,Dimensions!$B$5:$G$13,4,FALSE) -> 168 | AT142: =+VLOOKUP($AP142,Dimensions!$B$5:$G$13,5,FALSE) -> 70 | AU142: =+VLOOKUP($AP142,Dimensions!$B$5:$G$13,6,FALSE) -> 260
A143: 09 | B143: VLT Drives | C143: 046 | D143: Static frequency converters | E143: P281_400 | F143: 2805-2882 400V | G143: 09586 | H143: VLT 2830/400V | I143: 134L4508 | J143: VLT2830PT4B20SBR1DBF30A00C1 | K143: 134L4508 | M143: 3x400 | N143: 3 | O143: Y | P143: R1 | Q143: C2 | R143: DeviceNet | S143: Y | T143: 3 | U143: FC-280P3K0 | V143: T4 | W143: E20 | X143: H1 | Y143: B | Z143: XCXXX | AA143: SXXX | AB143: X | AC143: ? | AE143: FC-280P3K0T4E20H1BXCXXXSXXXX? | AF143: =+VLOOKUP(AE143,TypeCodesFC280!AH:AI,2,FALSE) ->  | AG143: C2 | AH143: t.b. | AJ143: B | AK143: =+VLOOKUP($AJ143,Dimensions!$B$5:$G$13,2,FALSE) -> 90 | AL143: =+VLOOKUP($AJ143,Dimensions!$B$5:$G$13,3,FALSE) -> 268 | AM143: =+VLOOKUP($AJ143,Dimensions!$B$5:$G$13,4,FALSE) -> 168 | AN143: =+VLOOKUP($AJ143,Dimensions!$B$5:$G$13,5,FALSE) -> 70 | AO143: =+VLOOKUP($AJ143,Dimensions!$B$5:$G$13,6,FALSE) -> 257 | AP143: K2 | AQ143: =+VLOOKUP($AP143,Dimensions!$B$5:$G$13,2,FALSE) -> 90 | AR143: =+VLOOKUP($AP143,Dimensions!$B$5:$G$13,3,FALSE) -> 272.5 | AS143: =+VLOOKUP($AP143,Dimensions!$B$5:$G$13,4,FALSE) -> 168 | AT143: =+VLOOKUP($AP143,Dimensions!$B$5:$G$13,5,FALSE) -> 70 | AU143: =+VLOOKUP($AP143,Dimensions!$B$5:$G$13,6,FALSE) -> 260
A144: 09 | B144: VLT Drives | C144: 046 | D144: Static frequency converters | E144: P281_400 | F144: 2805-2882 400V | G144: 09586 | H144: VLT 2830/400V | I144: 134L4901 | J144: ABU2830PT4B20SBR1DBF00A00C1 | K144: 134L4901 | M144: 3x400 | N144: 3 | O144: Y | P144: R1 | Q144: C2 | R144: Standard | S144: Y | T144: 3 | U144: FC-280P3K0 | V144: T4 | W144: E20 | X144: H1 | Y144: B | Z144: XCXXX | AA144: SXXX | AB144: X | AC144: AX | AE144: FC-280P3K0T4E20H1BXCXXXSXXXXAX | AF144: =+VLOOKUP(AE144,TypeCodesFC280!AH:AI,2,FALSE) -> 134U2983 | AG144: C2 | AH144: Modbus RTU | AJ144: B | AK144: =+VLOOKUP($AJ144,Dimensions!$B$5:$G$13,2,FALSE) -> 90 | AL144: =+VLOOKUP($AJ144,Dimensions!$B$5:$G$13,3,FALSE) -> 268 | AM144: =+VLOOKUP($AJ144,Dimensions!$B$5:$G$13,4,FALSE) -> 168 | AN144: =+VLOOKUP($AJ144,Dimensions!$B$5:$G$13,5,FALSE) -> 70 | AO144: =+VLOOKUP($AJ144,Dimensions!$B$5:$G$13,6,FALSE) -> 257 | AP144: K2 | AQ144: =+VLOOKUP($AP144,Dimensions!$B$5:$G$13,2,FALSE) -> 90 | AR144: =+VLOOKUP($AP144,Dimensions!$B$5:$G$13,3,FALSE) -> 272.5 | AS144: =+VLOOKUP($AP144,Dimensions!$B$5:$G$13,4,FALSE) -> 168 | AT144: =+VLOOKUP($AP144,Dimensions!$B$5:$G$13,5,FALSE) -> 70 | AU144: =+VLOOKUP($AP144,Dimensions!$B$5:$G$13,6,FALSE) -> 260 | AV144: 1900141
A145: 09 | B145: VLT Drives | C145: 046 | D145: Static frequency converters | E145: P281_400 | F145: 2805-2882 400V | G145: 09586 | H145: VLT 2830/400V | I145: 134L4913 | J145: ABU2830PT4B20SBR1DBF12A00C1 | K145: 134L4913 | M145: 3x400 | N145: 3 | O145: Y | P145: R1 | Q145: C2 | R145: PB 12Mbit | S145: Y | T145: 3 | U145: FC-280P3K0 | V145: T4 | W145: E20 | X145: H1 | Y145: B | Z145: XCXXX | AA145: SXXX | AB145: X | AC145: A0 | AE145: FC-280P3K0T4E20H1BXCXXXSXXXXA0 | AF145: =+VLOOKUP(AE145,TypeCodesFC280!AH:AI,2,FALSE) -> 134U7718 | AG145: C2 | AH145: Profibus | AJ145: B | AK145: =+VLOOKUP($AJ145,Dimensions!$B$5:$G$13,2,FALSE) -> 90 | AL145: =+VLOOKUP($AJ145,Dimensions!$B$5:$G$13,3,FALSE) -> 268 | AM145: =+VLOOKUP($AJ145,Dimensions!$B$5:$G$13,4,FALSE) -> 168 | AN145: =+VLOOKUP($AJ145,Dimensions!$B$5:$G$13,5,FALSE) -> 70 | AO145: =+VLOOKUP($AJ145,Dimensions!$B$5:$G$13,6,FALSE) -> 257 | AP145: K2 | AQ145: =+VLOOKUP($AP145,Dimensions!$B$5:$G$13,2,FALSE) -> 90 | AR145: =+VLOOKUP($AP145,Dimensions!$B$5:$G$13,3,FALSE) -> 272.5 | AS145: =+VLOOKUP($AP145,Dimensions!$B$5:$G$13,4,FALSE) -> 168 | AT145: =+VLOOKUP($AP145,Dimensions!$B$5:$G$13,5,FALSE) -> 70 | AU145: =+VLOOKUP($AP145,Dimensions!$B$5:$G$13,6,FALSE) -> 260
A146: 09 | B146: VLT Drives | C146: 046 | D146: Static frequency converters | E146: P281_400 | F146: 2805-2882 400V | G146: 09586 | H146: VLT 2830/400V | I146: 178B8582 | J146: VLT2830PT4B20SBR0DBF00A00C1 | K146: 178B8582 | L146: 1900362 | M146: 3x400 | N146: 3 | O146: Y | P146: R0 | Q146: no class | R146: Standard | S146: Y | T146: 3 | U146: FC-280P3K0 | V146: T4 | W146: E20 | X146: H2 | Y146: B | Z146: XCXXX | AA146: SXXX | AB146: X | AC146: AX | AE146: FC-280P3K0T4E20H2BXCXXXSXXXXAX | AF146: =+VLOOKUP(AE146,TypeCodesFC280!AH:AI,2,FALSE) -> 134U3012 | AG146: C3 | AH146: Modbus RTU | AJ146: B | AK146: =+VLOOKUP($AJ146,Dimensions!$B$5:$G$13,2,FALSE) -> 90 | AL146: =+VLOOKUP($AJ146,Dimensions!$B$5:$G$13,3,FALSE) -> 268 | AM146: =+VLOOKUP($AJ146,Dimensions!$B$5:$G$13,4,FALSE) -> 168 | AN146: =+VLOOKUP($AJ146,Dimensions!$B$5:$G$13,5,FALSE) -> 70 | AO146: =+VLOOKUP($AJ146,Dimensions!$B$5:$G$13,6,FALSE) -> 257 | AP146: K2 | AQ146: =+VLOOKUP($AP146,Dimensions!$B$5:$G$13,2,FALSE) -> 90 | AR146: =+VLOOKUP($AP146,Dimensions!$B$5:$G$13,3,FALSE) -> 272.5 | AS146: =+VLOOKUP($AP146,Dimensions!$B$5:$G$13,4,FALSE) -> 168 | AT146: =+VLOOKUP($AP146,Dimensions!$B$5:$G$13,5,FALSE) -> 70 | AU146: =+VLOOKUP($AP146,Dimensions!$B$5:$G$13,6,FALSE) -> 260
A147: 09 | B147: VLT Drives | C147: 046 | D147: Static frequency converters | E147: P281_400 | F147: 2805-2882 400V | G147: 09586 | H147: VLT 2830/400V | I147: 178B9893 | J147: TR12830PT4B20STR5DBF00A00C0 | K147: 178B9893 | M147: 3x400 | N147: 3 | O147: N | P147: R5 | Q147: C2 | R147: Standard | S147: N | T147: 3 | U147: FC-280P3K0 | V147: T4 | W147: E20 | X147: H1 | Y147: B | Z147: XCXXX | AA147: SXXX | AB147: X | AC147: AX | AE147: FC-280P3K0T4E20H1BXCXXXSXXXXAX | AF147: =+VLOOKUP(AE147,TypeCodesFC280!AH:AI,2,FALSE) -> 134U2983 | AG147: C2 | AH147: Modbus RTU | AJ147: B | AK147: =+VLOOKUP($AJ147,Dimensions!$B$5:$G$13,2,FALSE) -> 90 | AL147: =+VLOOKUP($AJ147,Dimensions!$B$5:$G$13,3,FALSE) -> 268 | AM147: =+VLOOKUP($AJ147,Dimensions!$B$5:$G$13,4,FALSE) -> 168 | AN147: =+VLOOKUP($AJ147,Dimensions!$B$5:$G$13,5,FALSE) -> 70 | AO147: =+VLOOKUP($AJ147,Dimensions!$B$5:$G$13,6,FALSE) -> 257 | AP147: K2 | AQ147: =+VLOOKUP($AP147,Dimensions!$B$5:$G$13,2,FALSE) -> 90 | AR147: =+VLOOKUP($AP147,Dimensions!$B$5:$G$13,3,FALSE) -> 272.5 | AS147: =+VLOOKUP($AP147,Dimensions!$B$5:$G$13,4,FALSE) -> 168 | AT147: =+VLOOKUP($AP147,Dimensions!$B$5:$G$13,5,FALSE) -> 70 | AU147: =+VLOOKUP($AP147,Dimensions!$B$5:$G$13,6,FALSE) -> 260 | AV147: 1900141
A148: 09 | B148: VLT Drives | C148: 046 | D148: Static frequency converters | E148: P281_400 | F148: 2805-2882 400V | G148: 09587 | H148: VLT 2840/400V | I148: 134G7015 | J148: VLT2840PT4B20SBR1DBF00A00C1 | K148: 134G7015 | L148: 1900414 | M148: 3x400 | N148: 4 | O148: Y | P148: R1 | Q148: C2 | R148: Standard | S148: Y | T148: 4 | U148: FC-280P4K0 | V148: T4 | W148: E20 | X148: H1 | Y148: B | Z148: XCXXX | AA148: SXXX | AB148: X | AC148: AX | AE148: FC-280P4K0T4E20H1BXCXXXSXXXXAX | AF148: =+VLOOKUP(AE148,TypeCodesFC280!AH:AI,2,FALSE) -> 134U2984 | AG148: C2 | AH148: Modbus RTU | AJ148: B | AK148: =+VLOOKUP($AJ148,Dimensions!$B$5:$G$13,2,FALSE) -> 90 | AL148: =+VLOOKUP($AJ148,Dimensions!$B$5:$G$13,3,FALSE) -> 268 | AM148: =+VLOOKUP($AJ148,Dimensions!$B$5:$G$13,4,FALSE) -> 168 | AN148: =+VLOOKUP($AJ148,Dimensions!$B$5:$G$13,5,FALSE) -> 70 | AO148: =+VLOOKUP($AJ148,Dimensions!$B$5:$G$13,6,FALSE) -> 257 | AP148: K2 | AQ148: =+VLOOKUP($AP148,Dimensions!$B$5:$G$13,2,FALSE) -> 90 | AR148: =+VLOOKUP($AP148,Dimensions!$B$5:$G$13,3,FALSE) -> 272.5 | AS148: =+VLOOKUP($AP148,Dimensions!$B$5:$G$13,4,FALSE) -> 168 | AT148: =+VLOOKUP($AP148,Dimensions!$B$5:$G$13,5,FALSE) -> 70 | AU148: =+VLOOKUP($AP148,Dimensions!$B$5:$G$13,6,FALSE) -> 260 | AV148: 1900143
A149: 09 | B149: VLT Drives | C149: 046 | D149: Static frequency converters | E149: P281_400 | F149: 2805-2882 400V | G149: 09587 | H149: VLT 2840/400V | I149: 134H2380 | J149: VLT2840PT4B20SBR0DBF12A00C1 | K149: 134H2380 | L149: 1900364 | M149: 3x400 | N149: 4 | O149: Y | P149: R0 | Q149: no class | R149: PB 12Mbit | S149: Y | T149: 4 | U149: FC-280P4K0 | V149: T4 | W149: E20 | X149: H2 | Y149: B | Z149: XCXXX | AA149: SXXX | AB149: X | AC149: A0 | AE149: FC-280P4K0T4E20H2BXCXXXSXXXXA0 | AF149: =+VLOOKUP(AE149,TypeCodesFC280!AH:AI,2,FALSE) -> 134U7750 | AG149: C3 | AH149: Profibus | AJ149: B | AK149: =+VLOOKUP($AJ149,Dimensions!$B$5:$G$13,2,FALSE) -> 90 | AL149: =+VLOOKUP($AJ149,Dimensions!$B$5:$G$13,3,FALSE) -> 268 | AM149: =+VLOOKUP($AJ149,Dimensions!$B$5:$G$13,4,FALSE) -> 168 | AN149: =+VLOOKUP($AJ149,Dimensions!$B$5:$G$13,5,FALSE) -> 70 | AO149: =+VLOOKUP($AJ149,Dimensions!$B$5:$G$13,6,FALSE) -> 257 | AP149: K2 | AQ149: =+VLOOKUP($AP149,Dimensions!$B$5:$G$13,2,FALSE) -> 90 | AR149: =+VLOOKUP($AP149,Dimensions!$B$5:$G$13,3,FALSE) -> 272.5 | AS149: =+VLOOKUP($AP149,Dimensions!$B$5:$G$13,4,FALSE) -> 168 | AT149: =+VLOOKUP($AP149,Dimensions!$B$5:$G$13,5,FALSE) -> 70 | AU149: =+VLOOKUP($AP149,Dimensions!$B$5:$G$13,6,FALSE) -> 260
A150: 09 | B150: VLT Drives | C150: 046 | D150: Static frequency converters | E150: P281_400 | F150: 2805-2882 400V | G150: 09587 | H150: VLT 2840/400V | I150: 134H2381 | J150: VLT2840PT4B20SBR1DBF12A00C1 | K150: 134H2381 | L150: 1900415 | M150: 3x400 | N150: 4 | O150: Y | P150: R1 | Q150: C2 | R150: PB 12Mbit | S150: Y | T150: 4 | U150: FC-280P4K0 | V150: T4 | W150: E20 | X150: H1 | Y150: B | Z150: XCXXX | AA150: SXXX | AB150: X | AC150: A0 | AE150: FC-280P4K0T4E20H1BXCXXXSXXXXA0 | AF150: =+VLOOKUP(AE150,TypeCodesFC280!AH:AI,2,FALSE) -> 134U7719 | AG150: C2 | AH150: Profibus | AJ150: B | AK150: =+VLOOKUP($AJ150,Dimensions!$B$5:$G$13,2,FALSE) -> 90 | AL150: =+VLOOKUP($AJ150,Dimensions!$B$5:$G$13,3,FALSE) -> 268 | AM150: =+VLOOKUP($AJ150,Dimensions!$B$5:$G$13,4,FALSE) -> 168 | AN150: =+VLOOKUP($AJ150,Dimensions!$B$5:$G$13,5,FALSE) -> 70 | AO150: =+VLOOKUP($AJ150,Dimensions!$B$5:$G$13,6,FALSE) -> 257 | AP150: K2 | AQ150: =+VLOOKUP($AP150,Dimensions!$B$5:$G$13,2,FALSE) -> 90 | AR150: =+VLOOKUP($AP150,Dimensions!$B$5:$G$13,3,FALSE) -> 272.5 | AS150: =+VLOOKUP($AP150,Dimensions!$B$5:$G$13,4,FALSE) -> 168 | AT150: =+VLOOKUP($AP150,Dimensions!$B$5:$G$13,5,FALSE) -> 70 | AU150: =+VLOOKUP($AP150,Dimensions!$B$5:$G$13,6,FALSE) -> 260
A151: 09 | B151: VLT Drives | C151: 046 | D151: Static frequency converters | E151: P281_400 | F151: 2805-2882 400V | G151: 09587 | H151: VLT 2840/400V | I151: 134H5288 | J151: VLT2840PT4B20SBR5DBF00A00C1 | K151: 134H5288 | M151: 3x400 | N151: 4 | O151: Y | P151: R5 | Q151: C2 | R151: Standard | S151: Y | T151: 4 | U151: FC-280P4K0 | V151: T4 | W151: E20 | X151: H1 | Y151: B | Z151: XCXXX | AA151: SXXX | AB151: X | AC151: AX | AE151: FC-280P4K0T4E20H1BXCXXXSXXXXAX | AF151: =+VLOOKUP(AE151,TypeCodesFC280!AH:AI,2,FALSE) -> 134U2984 | AG151: C2 | AH151: Modbus RTU | AJ151: B | AK151: =+VLOOKUP($AJ151,Dimensions!$B$5:$G$13,2,FALSE) -> 90 | AL151: =+VLOOKUP($AJ151,Dimensions!$B$5:$G$13,3,FALSE) -> 268 | AM151: =+VLOOKUP($AJ151,Dimensions!$B$5:$G$13,4,FALSE) -> 168 | AN151: =+VLOOKUP($AJ151,Dimensions!$B$5:$G$13,5,FALSE) -> 70 | AO151: =+VLOOKUP($AJ151,Dimensions!$B$5:$G$13,6,FALSE) -> 257 | AP151: K2 | AQ151: =+VLOOKUP($AP151,Dimensions!$B$5:$G$13,2,FALSE) -> 90 | AR151: =+VLOOKUP($AP151,Dimensions!$B$5:$G$13,3,FALSE) -> 272.5 | AS151: =+VLOOKUP($AP151,Dimensions!$B$5:$G$13,4,FALSE) -> 168 | AT151: =+VLOOKUP($AP151,Dimensions!$B$5:$G$13,5,FALSE) -> 70 | AU151: =+VLOOKUP($AP151,Dimensions!$B$5:$G$13,6,FALSE) -> 260 | AV151: 1900143
A152: 09 | B152: VLT Drives | C152: 046 | D152: Static frequency converters | E152: P281_400 | F152: 2805-2882 400V | G152: 09587 | H152: VLT 2840/400V | I152: 134H5303 | J152: VLT2840PT4B20SBR5DBF12A00C1 | K152: 134H5303 | M152: 3x400 | N152: 4 | O152: Y | P152: R5 | Q152: C2 | R152: PB 12Mbit | S152: Y | T152: 4 | U152: FC-280P4K0 | V152: T4 | W152: E20 | X152: H1 | Y152: B | Z152: XCXXX | AA152: SXXX | AB152: X | AC152: A0 | AE152: FC-280P4K0T4E20H1BXCXXXSXXXXA0 | AF152: =+VLOOKUP(AE152,TypeCodesFC280!AH:AI,2,FALSE) -> 134U7719 | AG152: C2 | AH152: Profibus | AJ152: B | AK152: =+VLOOKUP($AJ152,Dimensions!$B$5:$G$13,2,FALSE) -> 90 | AL152: =+VLOOKUP($AJ152,Dimensions!$B$5:$G$13,3,FALSE) -> 268 | AM152: =+VLOOKUP($AJ152,Dimensions!$B$5:$G$13,4,FALSE) -> 168 | AN152: =+VLOOKUP($AJ152,Dimensions!$B$5:$G$13,5,FALSE) -> 70 | AO152: =+VLOOKUP($AJ152,Dimensions!$B$5:$G$13,6,FALSE) -> 257 | AP152: K2 | AQ152: =+VLOOKUP($AP152,Dimensions!$B$5:$G$13,2,FALSE) -> 90 | AR152: =+VLOOKUP($AP152,Dimensions!$B$5:$G$13,3,FALSE) -> 272.5 | AS152: =+VLOOKUP($AP152,Dimensions!$B$5:$G$13,4,FALSE) -> 168 | AT152: =+VLOOKUP($AP152,Dimensions!$B$5:$G$13,5,FALSE) -> 70 | AU152: =+VLOOKUP($AP152,Dimensions!$B$5:$G$13,6,FALSE) -> 260
A153: 09 | B153: VLT Drives | C153: 046 | D153: Static frequency converters | E153: P281_400 | F153: 2805-2882 400V | G153: 09587 | H153: VLT 2840/400V | I153: 134H5322 | J153: VLT2840PT4B20SBR5DBF30A00C1 | K153: 134H5322 | M153: 3x400 | N153: 4 | O153: Y | P153: R5 | Q153: C2 | R153: DeviceNet | S153: Y | T153: 4 | U153: FC-280P4K0 | V153: T4 | W153: E20 | X153: H1 | Y153: B | Z153: XCXXX | AA153: SXXX | AB153: X | AC153: ? | AE153: FC-280P4K0T4E20H1BXCXXXSXXXX? | AF153: =+VLOOKUP(AE153,TypeCodesFC280!AH:AI,2,FALSE) ->  | AG153: C2 | AH153: t.b. | AJ153: B | AK153: =+VLOOKUP($AJ153,Dimensions!$B$5:$G$13,2,FALSE) -> 90 | AL153: =+VLOOKUP($AJ153,Dimensions!$B$5:$G$13,3,FALSE) -> 268 | AM153: =+VLOOKUP($AJ153,Dimensions!$B$5:$G$13,4,FALSE) -> 168 | AN153: =+VLOOKUP($AJ153,Dimensions!$B$5:$G$13,5,FALSE) -> 70 | AO153: =+VLOOKUP($AJ153,Dimensions!$B$5:$G$13,6,FALSE) -> 257 | AP153: K2 | AQ153: =+VLOOKUP($AP153,Dimensions!$B$5:$G$13,2,FALSE) -> 90 | AR153: =+VLOOKUP($AP153,Dimensions!$B$5:$G$13,3,FALSE) -> 272.5 | AS153: =+VLOOKUP($AP153,Dimensions!$B$5:$G$13,4,FALSE) -> 168 | AT153: =+VLOOKUP($AP153,Dimensions!$B$5:$G$13,5,FALSE) -> 70 | AU153: =+VLOOKUP($AP153,Dimensions!$B$5:$G$13,6,FALSE) -> 260
A154: 09 | B154: VLT Drives | C154: 046 | D154: Static frequency converters | E154: P281_400 | F154: 2805-2882 400V | G154: 09587 | H154: VLT 2840/400V | I154: 134L1297 | J154: TR12840PT4B20SBR1DBF00A00C1 | K154: 134L1297 | M154: 3x400 | N154: 4 | O154: Y | P154: R1 | Q154: C2 | R154: Standard | S154: Y | T154: 4 | U154: FC-280P4K0 | V154: T4 | W154: E20 | X154: H1 | Y154: B | Z154: XCXXX | AA154: SXXX | AB154: X | AC154: AX | AE154: FC-280P4K0T4E20H1BXCXXXSXXXXAX | AF154: =+VLOOKUP(AE154,TypeCodesFC280!AH:AI,2,FALSE) -> 134U2984 | AG154: C2 | AH154: Modbus RTU | AJ154: B | AK154: =+VLOOKUP($AJ154,Dimensions!$B$5:$G$13,2,FALSE) -> 90 | AL154: =+VLOOKUP($AJ154,Dimensions!$B$5:$G$13,3,FALSE) -> 268 | AM154: =+VLOOKUP($AJ154,Dimensions!$B$5:$G$13,4,FALSE) -> 168 | AN154: =+VLOOKUP($AJ154,Dimensions!$B$5:$G$13,5,FALSE) -> 70 | AO154: =+VLOOKUP($AJ154,Dimensions!$B$5:$G$13,6,FALSE) -> 257 | AP154: K2 | AQ154: =+VLOOKUP($AP154,Dimensions!$B$5:$G$13,2,FALSE) -> 90 | AR154: =+VLOOKUP($AP154,Dimensions!$B$5:$G$13,3,FALSE) -> 272.5 | AS154: =+VLOOKUP($AP154,Dimensions!$B$5:$G$13,4,FALSE) -> 168 | AT154: =+VLOOKUP($AP154,Dimensions!$B$5:$G$13,5,FALSE) -> 70 | AU154: =+VLOOKUP($AP154,Dimensions!$B$5:$G$13,6,FALSE) -> 260 | AV154: 1900143
A155: 09 | B155: VLT Drives | C155: 046 | D155: Static frequency converters | E155: P281_400 | F155: 2805-2882 400V | G155: 09587 | H155: VLT 2840/400V | I155: 134L1304 | J155: TR12840PT4B20SBR0DBF00A00C1 | K155: 134L1304 | M155: 3x400 | N155: 4 | O155: Y | P155: R0 | Q155: no class | R155: Standard | S155: Y | T155: 4 | U155: FC-280P4K0 | V155: T4 | W155: E20 | X155: H2 | Y155: B | Z155: XCXXX | AA155: SXXX | AB155: X | AC155: AX | AE155: FC-280P4K0T4E20H2BXCXXXSXXXXAX | AF155: =+VLOOKUP(AE155,TypeCodesFC280!AH:AI,2,FALSE) -> 134U3013 | AG155: C3 | AH155: Modbus RTU | AJ155: B | AK155: =+VLOOKUP($AJ155,Dimensions!$B$5:$G$13,2,FALSE) -> 90 | AL155: =+VLOOKUP($AJ155,Dimensions!$B$5:$G$13,3,FALSE) -> 268 | AM155: =+VLOOKUP($AJ155,Dimensions!$B$5:$G$13,4,FALSE) -> 168 | AN155: =+VLOOKUP($AJ155,Dimensions!$B$5:$G$13,5,FALSE) -> 70 | AO155: =+VLOOKUP($AJ155,Dimensions!$B$5:$G$13,6,FALSE) -> 257 | AP155: K2 | AQ155: =+VLOOKUP($AP155,Dimensions!$B$5:$G$13,2,FALSE) -> 90 | AR155: =+VLOOKUP($AP155,Dimensions!$B$5:$G$13,3,FALSE) -> 272.5 | AS155: =+VLOOKUP($AP155,Dimensions!$B$5:$G$13,4,FALSE) -> 168 | AT155: =+VLOOKUP($AP155,Dimensions!$B$5:$G$13,5,FALSE) -> 70 | AU155: =+VLOOKUP($AP155,Dimensions!$B$5:$G$13,6,FALSE) -> 260
A156: 09 | B156: VLT Drives | C156: 046 | D156: Static frequency converters | E156: P281_400 | F156: 2805-2882 400V | G156: 09587 | H156: VLT 2840/400V | I156: 134L2745 | J156: I-R2840PT4B20SBR1DBF00A00C1 | K156: 134L2745 | M156: 3x400 | N156: 4 | O156: Y | P156: R1 | Q156: C2 | R156: Standard | S156: Y | T156: 4 | U156: FC-280P4K0 | V156: T4 | W156: E20 | X156: H1 | Y156: B | Z156: XCXXX | AA156: SXXX | AB156: X | AC156: AX | AE156: FC-280P4K0T4E20H1BXCXXXSXXXXAX | AF156: =+VLOOKUP(AE156,TypeCodesFC280!AH:AI,2,FALSE) -> 134U2984 | AG156: C2 | AH156: Modbus RTU | AJ156: B | AK156: =+VLOOKUP($AJ156,Dimensions!$B$5:$G$13,2,FALSE) -> 90 | AL156: =+VLOOKUP($AJ156,Dimensions!$B$5:$G$13,3,FALSE) -> 268 | AM156: =+VLOOKUP($AJ156,Dimensions!$B$5:$G$13,4,FALSE) -> 168 | AN156: =+VLOOKUP($AJ156,Dimensions!$B$5:$G$13,5,FALSE) -> 70 | AO156: =+VLOOKUP($AJ156,Dimensions!$B$5:$G$13,6,FALSE) -> 257 | AP156: K2 | AQ156: =+VLOOKUP($AP156,Dimensions!$B$5:$G$13,2,FALSE) -> 90 | AR156: =+VLOOKUP($AP156,Dimensions!$B$5:$G$13,3,FALSE) -> 272.5 | AS156: =+VLOOKUP($AP156,Dimensions!$B$5:$G$13,4,FALSE) -> 168 | AT156: =+VLOOKUP($AP156,Dimensions!$B$5:$G$13,5,FALSE) -> 70 | AU156: =+VLOOKUP($AP156,Dimensions!$B$5:$G$13,6,FALSE) -> 260 | AV156: 1900143
A157: 09 | B157: VLT Drives | C157: 046 | D157: Static frequency converters | E157: P281_400 | F157: 2805-2882 400V | G157: 09587 | H157: VLT 2840/400V | I157: 134L2746 | J157: I-R2840PT4B20SBR0DBF00A00C1 | K157: 134L2746 | M157: 3x400 | N157: 4 | O157: Y | P157: R0 | Q157: no class | R157: Standard | S157: Y | T157: 4 | U157: FC-280P4K0 | V157: T4 | W157: E20 | X157: H2 | Y157: B | Z157: XCXXX | AA157: SXXX | AB157: X | AC157: AX | AE157: FC-280P4K0T4E20H2BXCXXXSXXXXAX | AF157: =+VLOOKUP(AE157,TypeCodesFC280!AH:AI,2,FALSE) -> 134U3013 | AG157: C3 | AH157: Modbus RTU | AJ157: B | AK157: =+VLOOKUP($AJ157,Dimensions!$B$5:$G$13,2,FALSE) -> 90 | AL157: =+VLOOKUP($AJ157,Dimensions!$B$5:$G$13,3,FALSE) -> 268 | AM157: =+VLOOKUP($AJ157,Dimensions!$B$5:$G$13,4,FALSE) -> 168 | AN157: =+VLOOKUP($AJ157,Dimensions!$B$5:$G$13,5,FALSE) -> 70 | AO157: =+VLOOKUP($AJ157,Dimensions!$B$5:$G$13,6,FALSE) -> 257 | AP157: K2 | AQ157: =+VLOOKUP($AP157,Dimensions!$B$5:$G$13,2,FALSE) -> 90 | AR157: =+VLOOKUP($AP157,Dimensions!$B$5:$G$13,3,FALSE) -> 272.5 | AS157: =+VLOOKUP($AP157,Dimensions!$B$5:$G$13,4,FALSE) -> 168 | AT157: =+VLOOKUP($AP157,Dimensions!$B$5:$G$13,5,FALSE) -> 70 | AU157: =+VLOOKUP($AP157,Dimensions!$B$5:$G$13,6,FALSE) -> 260
A158: 09 | B158: VLT Drives | C158: 046 | D158: Static frequency converters | E158: P281_400 | F158: 2805-2882 400V | G158: 09587 | H158: VLT 2840/400V | I158: 134L4377 | J158: VLT2840PT4B20SBR1DBF30A00C1 | K158: 134L4377 | M158: 3x400 | N158: 4 | O158: Y | P158: R1 | Q158: C2 | R158: DeviceNet | S158: Y | T158: 4 | U158: FC-280P4K0 | V158: T4 | W158: E20 | X158: H1 | Y158: B | Z158: XCXXX | AA158: SXXX | AB158: X | AC158: ? | AE158: FC-280P4K0T4E20H1BXCXXXSXXXX? | AF158: =+VLOOKUP(AE158,TypeCodesFC280!AH:AI,2,FALSE) ->  | AG158: C2 | AH158: t.b. | AJ158: B | AK158: =+VLOOKUP($AJ158,Dimensions!$B$5:$G$13,2,FALSE) -> 90 | AL158: =+VLOOKUP($AJ158,Dimensions!$B$5:$G$13,3,FALSE) -> 268 | AM158: =+VLOOKUP($AJ158,Dimensions!$B$5:$G$13,4,FALSE) -> 168 | AN158: =+VLOOKUP($AJ158,Dimensions!$B$5:$G$13,5,FALSE) -> 70 | AO158: =+VLOOKUP($AJ158,Dimensions!$B$5:$G$13,6,FALSE) -> 257 | AP158: K2 | AQ158: =+VLOOKUP($AP158,Dimensions!$B$5:$G$13,2,FALSE) -> 90 | AR158: =+VLOOKUP($AP158,Dimensions!$B$5:$G$13,3,FALSE) -> 272.5 | AS158: =+VLOOKUP($AP158,Dimensions!$B$5:$G$13,4,FALSE) -> 168 | AT158: =+VLOOKUP($AP158,Dimensions!$B$5:$G$13,5,FALSE) -> 70 | AU158: =+VLOOKUP($AP158,Dimensions!$B$5:$G$13,6,FALSE) -> 260
A159: 09 | B159: VLT Drives | C159: 046 | D159: Static frequency converters | E159: P281_400 | F159: 2805-2882 400V | G159: 09587 | H159: VLT 2840/400V | I159: 134L4509 | J159: VLT2840PT4B20SBR0DBF30A00C1 | K159: 134L4509 | M159: 3x400 | N159: 4 | O159: Y | P159: R0 | Q159: no class | R159: DeviceNet | S159: Y | T159: 4 | U159: FC-280P4K0 | V159: T4 | W159: E20 | X159: H2 | Y159: B | Z159: XCXXX | AA159: SXXX | AB159: X | AC159: ? | AE159: FC-280P4K0T4E20H2BXCXXXSXXXX? | AF159: =+VLOOKUP(AE159,TypeCodesFC280!AH:AI,2,FALSE) ->  | AG159: C3 | AH159: t.b. | AJ159: B | AK159: =+VLOOKUP($AJ159,Dimensions!$B$5:$G$13,2,FALSE) -> 90 | AL159: =+VLOOKUP($AJ159,Dimensions!$B$5:$G$13,3,FALSE) -> 268 | AM159: =+VLOOKUP($AJ159,Dimensions!$B$5:$G$13,4,FALSE) -> 168 | AN159: =+VLOOKUP($AJ159,Dimensions!$B$5:$G$13,5,FALSE) -> 70 | AO159: =+VLOOKUP($AJ159,Dimensions!$B$5:$G$13,6,FALSE) -> 257 | AP159: K2 | AQ159: =+VLOOKUP($AP159,Dimensions!$B$5:$G$13,2,FALSE) -> 90 | AR159: =+VLOOKUP($AP159,Dimensions!$B$5:$G$13,3,FALSE) -> 272.5 | AS159: =+VLOOKUP($AP159,Dimensions!$B$5:$G$13,4,FALSE) -> 168 | AT159: =+VLOOKUP($AP159,Dimensions!$B$5:$G$13,5,FALSE) -> 70 | AU159: =+VLOOKUP($AP159,Dimensions!$B$5:$G$13,6,FALSE) -> 260
A160: 09 | B160: VLT Drives | C160: 046 | D160: Static frequency converters | E160: P281_400 | F160: 2805-2882 400V | G160: 09587 | H160: VLT 2840/400V | I160: 134L4902 | J160: ABU2840PT4B20SBR1DBF00A00C1 | K160: 134L4902 | M160: 3x400 | N160: 4 | O160: Y | P160: R1 | Q160: C2 | R160: Standard | S160: Y | T160: 4 | U160: FC-280P4K0 | V160: T4 | W160: E20 | X160: H1 | Y160: B | Z160: XCXXX | AA160: SXXX | AB160: X | AC160: AX | AE160: FC-280P4K0T4E20H1BXCXXXSXXXXAX | AF160: =+VLOOKUP(AE160,TypeCodesFC280!AH:AI,2,FALSE) -> 134U2984 | AG160: C2 | AH160: Modbus RTU | AJ160: B | AK160: =+VLOOKUP($AJ160,Dimensions!$B$5:$G$13,2,FALSE) -> 90 | AL160: =+VLOOKUP($AJ160,Dimensions!$B$5:$G$13,3,FALSE) -> 268 | AM160: =+VLOOKUP($AJ160,Dimensions!$B$5:$G$13,4,FALSE) -> 168 | AN160: =+VLOOKUP($AJ160,Dimensions!$B$5:$G$13,5,FALSE) -> 70 | AO160: =+VLOOKUP($AJ160,Dimensions!$B$5:$G$13,6,FALSE) -> 257 | AP160: K2 | AQ160: =+VLOOKUP($AP160,Dimensions!$B$5:$G$13,2,FALSE) -> 90 | AR160: =+VLOOKUP($AP160,Dimensions!$B$5:$G$13,3,FALSE) -> 272.5 | AS160: =+VLOOKUP($AP160,Dimensions!$B$5:$G$13,4,FALSE) -> 168 | AT160: =+VLOOKUP($AP160,Dimensions!$B$5:$G$13,5,FALSE) -> 70 | AU160: =+VLOOKUP($AP160,Dimensions!$B$5:$G$13,6,FALSE) -> 260 | AV160: 1900143
A161: 09 | B161: VLT Drives | C161: 046 | D161: Static frequency converters | E161: P281_400 | F161: 2805-2882 400V | G161: 09587 | H161: VLT 2840/400V | I161: 134L4914 | J161: ABU2840PT4B20SBR1DBF12A00C1 | K161: 134L4914 | M161: 3x400 | N161: 4 | O161: Y | P161: R1 | Q161: C2 | R161: PB 12Mbit | S161: Y | T161: 4 | U161: FC-280P4K0 | V161: T4 | W161: E20 | X161: H1 | Y161: B | Z161: XCXXX | AA161: SXXX | AB161: X | AC161: A0 | AE161: FC-280P4K0T4E20H1BXCXXXSXXXXA0 | AF161: =+VLOOKUP(AE161,TypeCodesFC280!AH:AI,2,FALSE) -> 134U7719 | AG161: C2 | AH161: Profibus | AJ161: B | AK161: =+VLOOKUP($AJ161,Dimensions!$B$5:$G$13,2,FALSE) -> 90 | AL161: =+VLOOKUP($AJ161,Dimensions!$B$5:$G$13,3,FALSE) -> 268 | AM161: =+VLOOKUP($AJ161,Dimensions!$B$5:$G$13,4,FALSE) -> 168 | AN161: =+VLOOKUP($AJ161,Dimensions!$B$5:$G$13,5,FALSE) -> 70 | AO161: =+VLOOKUP($AJ161,Dimensions!$B$5:$G$13,6,FALSE) -> 257 | AP161: K2 | AQ161: =+VLOOKUP($AP161,Dimensions!$B$5:$G$13,2,FALSE) -> 90 | AR161: =+VLOOKUP($AP161,Dimensions!$B$5:$G$13,3,FALSE) -> 272.5 | AS161: =+VLOOKUP($AP161,Dimensions!$B$5:$G$13,4,FALSE) -> 168 | AT161: =+VLOOKUP($AP161,Dimensions!$B$5:$G$13,5,FALSE) -> 70 | AU161: =+VLOOKUP($AP161,Dimensions!$B$5:$G$13,6,FALSE) -> 260
A162: 09 | B162: VLT Drives | C162: 046 | D162: Static frequency converters | E162: P281_400 | F162: 2805-2882 400V | G162: 09587 | H162: VLT 2840/400V | I162: 178B2126 | J162: MQP2840PT4B20SBR0DBF00A00C0 | K162: 178B2126 | M162: 3x400 | N162: 4 | O162: Y | P162: R0 | Q162: no class | R162: Standard | S162: N | T162: 4 | U162: FC-280P4K0 | V162: T4 | W162: E20 | X162: H2 | Y162: B | Z162: XCXXX | AA162: SXXX | AB162: X | AC162: AX | AE162: FC-280P4K0T4E20H2BXCXXXSXXXXAX | AF162: =+VLOOKUP(AE162,TypeCodesFC280!AH:AI,2,FALSE) -> 134U3013 | AG162: C3 | AH162: Modbus RTU | AJ162: B | AK162: =+VLOOKUP($AJ162,Dimensions!$B$5:$G$13,2,FALSE) -> 90 | AL162: =+VLOOKUP($AJ162,Dimensions!$B$5:$G$13,3,FALSE) -> 268 | AM162: =+VLOOKUP($AJ162,Dimensions!$B$5:$G$13,4,FALSE) -> 168 | AN162: =+VLOOKUP($AJ162,Dimensions!$B$5:$G$13,5,FALSE) -> 70 | AO162: =+VLOOKUP($AJ162,Dimensions!$B$5:$G$13,6,FALSE) -> 257 | AP162: K2 | AQ162: =+VLOOKUP($AP162,Dimensions!$B$5:$G$13,2,FALSE) -> 90 | AR162: =+VLOOKUP($AP162,Dimensions!$B$5:$G$13,3,FALSE) -> 272.5 | AS162: =+VLOOKUP($AP162,Dimensions!$B$5:$G$13,4,FALSE) -> 168 | AT162: =+VLOOKUP($AP162,Dimensions!$B$5:$G$13,5,FALSE) -> 70 | AU162: =+VLOOKUP($AP162,Dimensions!$B$5:$G$13,6,FALSE) -> 260
A163: 09 | B163: VLT Drives | C163: 046 | D163: Static frequency converters | E163: P281_400 | F163: 2805-2882 400V | G163: 09587 | H163: VLT 2840/400V | I163: 178B8583 | J163: VLT2840PT4B20SBR0DBF00A00C1 | K163: 178B8583 | L163: 1900371 | M163: 3x400 | N163: 4 | O163: Y | P163: R0 | Q163: no class | R163: Standard | S163: Y | T163: 4 | U163: FC-280P4K0 | V163: T4 | W163: E20 | X163: H2 | Y163: B | Z163: XCXXX | AA163: SXXX | AB163: X | AC163: AX | AE163: FC-280P4K0T4E20H2BXCXXXSXXXXAX | AF163: =+VLOOKUP(AE163,TypeCodesFC280!AH:AI,2,FALSE) -> 134U3013 | AG163: C3 | AH163: Modbus RTU | AJ163: B | AK163: =+VLOOKUP($AJ163,Dimensions!$B$5:$G$13,2,FALSE) -> 90 | AL163: =+VLOOKUP($AJ163,Dimensions!$B$5:$G$13,3,FALSE) -> 268 | AM163: =+VLOOKUP($AJ163,Dimensions!$B$5:$G$13,4,FALSE) -> 168 | AN163: =+VLOOKUP($AJ163,Dimensions!$B$5:$G$13,5,FALSE) -> 70 | AO163: =+VLOOKUP($AJ163,Dimensions!$B$5:$G$13,6,FALSE) -> 257 | AP163: K2 | AQ163: =+VLOOKUP($AP163,Dimensions!$B$5:$G$13,2,FALSE) -> 90 | AR163: =+VLOOKUP($AP163,Dimensions!$B$5:$G$13,3,FALSE) -> 272.5 | AS163: =+VLOOKUP($AP163,Dimensions!$B$5:$G$13,4,FALSE) -> 168 | AT163: =+VLOOKUP($AP163,Dimensions!$B$5:$G$13,5,FALSE) -> 70 | AU163: =+VLOOKUP($AP163,Dimensions!$B$5:$G$13,6,FALSE) -> 260
A164: 09 | B164: VLT Drives | C164: 046 | D164: Static frequency converters | E164: P281_400 | F164: 2805-2882 400V | G164: 09588 | H164: VLT 2855/400V | I164: 134H2382 | J164: VLT2855PT4B20SBR0DBF12A00C1 | K164: 134H2382 | L164: 1900373 | M164: 3x400 | N164: 5.5 | O164: Y | P164: R0 | Q164: no class | R164: PB 12Mbit | S164: Y | T164: 5.5 | U164: FC-280P5K5 | V164: T4 | W164: E20 | X164: H2 | Y164: B | Z164: XCXXX | AA164: SXXX | AB164: X | AC164: A0 | AE164: FC-280P5K5T4E20H2BXCXXXSXXXXA0 | AF164: =+VLOOKUP(AE164,TypeCodesFC280!AH:AI,2,FALSE) -> 134U7751 | AG164: C3 | AH164: Profibus | AJ164: C | AK164: =+VLOOKUP($AJ164,Dimensions!$B$5:$G$13,2,FALSE) -> 140 | AL164: =+VLOOKUP($AJ164,Dimensions!$B$5:$G$13,3,FALSE) -> 268 | AM164: =+VLOOKUP($AJ164,Dimensions!$B$5:$G$13,4,FALSE) -> 168 | AN164: =+VLOOKUP($AJ164,Dimensions!$B$5:$G$13,5,FALSE) -> 120 | AO164: =+VLOOKUP($AJ164,Dimensions!$B$5:$G$13,6,FALSE) -> 257 | AP164: K2 | AQ164: =+VLOOKUP($AP164,Dimensions!$B$5:$G$13,2,FALSE) -> 90 | AR164: =+VLOOKUP($AP164,Dimensions!$B$5:$G$13,3,FALSE) -> 272.5 | AS164: =+VLOOKUP($AP164,Dimensions!$B$5:$G$13,4,FALSE) -> 168 | AT164: =+VLOOKUP($AP164,Dimensions!$B$5:$G$13,5,FALSE) -> 70 | AU164: =+VLOOKUP($AP164,Dimensions!$B$5:$G$13,6,FALSE) -> 260
A165: 09 | B165: VLT Drives | C165: 046 | D165: Static frequency converters | E165: P281_400 | F165: 2805-2882 400V | G165: 09588 | H165: VLT 2855/400V | I165: 134H2383 | J165: VLT2855PT4B20SBR1DBF12A00C1 | K165: 134H2383 | L165: 1900374 | M165: 3x400 | N165: 5.5 | O165: Y | P165: R1 | Q165: C2 | R165: PB 12Mbit | S165: Y | T165: 5.5 | U165: FC-280P5K5 | V165: T4 | W165: E20 | X165: H1 | Y165: B | Z165: XCXXX | AA165: SXXX | AB165: X | AC165: A0 | AE165: FC-280P5K5T4E20H1BXCXXXSXXXXA0 | AF165: =+VLOOKUP(AE165,TypeCodesFC280!AH:AI,2,FALSE) -> 134U7720 | AG165: C2 | AH165: Profibus | AJ165: C | AK165: =+VLOOKUP($AJ165,Dimensions!$B$5:$G$13,2,FALSE) -> 140 | AL165: =+VLOOKUP($AJ165,Dimensions!$B$5:$G$13,3,FALSE) -> 268 | AM165: =+VLOOKUP($AJ165,Dimensions!$B$5:$G$13,4,FALSE) -> 168 | AN165: =+VLOOKUP($AJ165,Dimensions!$B$5:$G$13,5,FALSE) -> 120 | AO165: =+VLOOKUP($AJ165,Dimensions!$B$5:$G$13,6,FALSE) -> 257 | AP165: K2 | AQ165: =+VLOOKUP($AP165,Dimensions!$B$5:$G$13,2,FALSE) -> 90 | AR165: =+VLOOKUP($AP165,Dimensions!$B$5:$G$13,3,FALSE) -> 272.5 | AS165: =+VLOOKUP($AP165,Dimensions!$B$5:$G$13,4,FALSE) -> 168 | AT165: =+VLOOKUP($AP165,Dimensions!$B$5:$G$13,5,FALSE) -> 70 | AU165: =+VLOOKUP($AP165,Dimensions!$B$5:$G$13,6,FALSE) -> 260
A166: 09 | B166: VLT Drives | C166: 046 | D166: Static frequency converters | E166: P281_400 | F166: 2805-2882 400V | G166: 09588 | H166: VLT 2855/400V | I166: 134H2417 | J166: VLT2855PT4B20SBR1DBF30A00C1 | K166: 134H2417 | L166: 1900375 | M166: 3x400 | N166: 5.5 | O166: Y | P166: R1 | Q166: C2 | R166: DeviceNet | S166: Y | T166: 5.5 | U166: FC-280P5K5 | V166: T4 | W166: E20 | X166: H1 | Y166: B | Z166: XCXXX | AA166: SXXX | AB166: X | AC166: ? | AE166: FC-280P5K5T4E20H1BXCXXXSXXXX? | AF166: =+VLOOKUP(AE166,TypeCodesFC280!AH:AI,2,FALSE) ->  | AG166: C2 | AH166: t.b. | AJ166: C | AK166: =+VLOOKUP($AJ166,Dimensions!$B$5:$G$13,2,FALSE) -> 140 | AL166: =+VLOOKUP($AJ166,Dimensions!$B$5:$G$13,3,FALSE) -> 268 | AM166: =+VLOOKUP($AJ166,Dimensions!$B$5:$G$13,4,FALSE) -> 168 | AN166: =+VLOOKUP($AJ166,Dimensions!$B$5:$G$13,5,FALSE) -> 120 | AO166: =+VLOOKUP($AJ166,Dimensions!$B$5:$G$13,6,FALSE) -> 257 | AP166: K2 | AQ166: =+VLOOKUP($AP166,Dimensions!$B$5:$G$13,2,FALSE) -> 90 | AR166: =+VLOOKUP($AP166,Dimensions!$B$5:$G$13,3,FALSE) -> 272.5 | AS166: =+VLOOKUP($AP166,Dimensions!$B$5:$G$13,4,FALSE) -> 168 | AT166: =+VLOOKUP($AP166,Dimensions!$B$5:$G$13,5,FALSE) -> 70 | AU166: =+VLOOKUP($AP166,Dimensions!$B$5:$G$13,6,FALSE) -> 260
A167: 09 | B167: VLT Drives | C167: 046 | D167: Static frequency converters | E167: P281_400 | F167: 2805-2882 400V | G167: 09588 | H167: VLT 2855/400V | I167: 134L1298 | J167: TR12855PT4B20SBR1DBF00A00C1 | K167: 134L1298 | M167: 3x400 | N167: 5.5 | O167: Y | P167: R1 | Q167: C2 | R167: Standard | S167: Y | T167: 5.5 | U167: FC-280P5K5 | V167: T4 | W167: E20 | X167: H1 | Y167: B | Z167: XCXXX | AA167: SXXX | AB167: X | AC167: AX | AE167: FC-280P5K5T4E20H1BXCXXXSXXXXAX | AF167: =+VLOOKUP(AE167,TypeCodesFC280!AH:AI,2,FALSE) -> 134U2985 | AG167: C2 | AH167: Modbus RTU | AJ167: C | AK167: =+VLOOKUP($AJ167,Dimensions!$B$5:$G$13,2,FALSE) -> 140 | AL167: =+VLOOKUP($AJ167,Dimensions!$B$5:$G$13,3,FALSE) -> 268 | AM167: =+VLOOKUP($AJ167,Dimensions!$B$5:$G$13,4,FALSE) -> 168 | AN167: =+VLOOKUP($AJ167,Dimensions!$B$5:$G$13,5,FALSE) -> 120 | AO167: =+VLOOKUP($AJ167,Dimensions!$B$5:$G$13,6,FALSE) -> 257 | AP167: K2 | AQ167: =+VLOOKUP($AP167,Dimensions!$B$5:$G$13,2,FALSE) -> 90 | AR167: =+VLOOKUP($AP167,Dimensions!$B$5:$G$13,3,FALSE) -> 272.5 | AS167: =+VLOOKUP($AP167,Dimensions!$B$5:$G$13,4,FALSE) -> 168 | AT167: =+VLOOKUP($AP167,Dimensions!$B$5:$G$13,5,FALSE) -> 70 | AU167: =+VLOOKUP($AP167,Dimensions!$B$5:$G$13,6,FALSE) -> 260 | AV167: 1900152
A168: 09 | B168: VLT Drives | C168: 046 | D168: Static frequency converters | E168: P281_400 | F168: 2805-2882 400V | G168: 09588 | H168: VLT 2855/400V | I168: 134L4510 | J168: VLT2855PT4B20SBR0DBF30A00C1 | K168: 134L4510 | M168: 3x400 | N168: 5.5 | O168: Y | P168: R0 | Q168: no class | R168: DeviceNet | S168: Y | T168: 5.5 | U168: FC-280P5K5 | V168: T4 | W168: E20 | X168: H2 | Y168: B | Z168: XCXXX | AA168: SXXX | AB168: X | AC168: ? | AE168: FC-280P5K5T4E20H2BXCXXXSXXXX? | AF168: =+VLOOKUP(AE168,TypeCodesFC280!AH:AI,2,FALSE) ->  | AG168: C3 | AH168: t.b. | AJ168: C | AK168: =+VLOOKUP($AJ168,Dimensions!$B$5:$G$13,2,FALSE) -> 140 | AL168: =+VLOOKUP($AJ168,Dimensions!$B$5:$G$13,3,FALSE) -> 268 | AM168: =+VLOOKUP($AJ168,Dimensions!$B$5:$G$13,4,FALSE) -> 168 | AN168: =+VLOOKUP($AJ168,Dimensions!$B$5:$G$13,5,FALSE) -> 120 | AO168: =+VLOOKUP($AJ168,Dimensions!$B$5:$G$13,6,FALSE) -> 257 | AP168: K2 | AQ168: =+VLOOKUP($AP168,Dimensions!$B$5:$G$13,2,FALSE) -> 90 | AR168: =+VLOOKUP($AP168,Dimensions!$B$5:$G$13,3,FALSE) -> 272.5 | AS168: =+VLOOKUP($AP168,Dimensions!$B$5:$G$13,4,FALSE) -> 168 | AT168: =+VLOOKUP($AP168,Dimensions!$B$5:$G$13,5,FALSE) -> 70 | AU168: =+VLOOKUP($AP168,Dimensions!$B$5:$G$13,6,FALSE) -> 260
A169: 09 | B169: VLT Drives | C169: 046 | D169: Static frequency converters | E169: P281_400 | F169: 2805-2882 400V | G169: 09588 | H169: VLT 2855/400V | I169: 134L4903 | J169: ABU2855PT4B20SBR1DBF00A00C1 | K169: 134L4903 | M169: 3x400 | N169: 5.5 | O169: Y | P169: R1 | Q169: C2 | R169: Standard | S169: Y | T169: 5.5 | U169: FC-280P5K5 | V169: T4 | W169: E20 | X169: H1 | Y169: B | Z169: XCXXX | AA169: SXXX | AB169: X | AC169: AX | AE169: FC-280P5K5T4E20H1BXCXXXSXXXXAX | AF169: =+VLOOKUP(AE169,TypeCodesFC280!AH:AI,2,FALSE) -> 134U2985 | AG169: C2 | AH169: Modbus RTU | AJ169: C | AK169: =+VLOOKUP($AJ169,Dimensions!$B$5:$G$13,2,FALSE) -> 140 | AL169: =+VLOOKUP($AJ169,Dimensions!$B$5:$G$13,3,FALSE) -> 268 | AM169: =+VLOOKUP($AJ169,Dimensions!$B$5:$G$13,4,FALSE) -> 168 | AN169: =+VLOOKUP($AJ169,Dimensions!$B$5:$G$13,5,FALSE) -> 120 | AO169: =+VLOOKUP($AJ169,Dimensions!$B$5:$G$13,6,FALSE) -> 257 | AP169: K2 | AQ169: =+VLOOKUP($AP169,Dimensions!$B$5:$G$13,2,FALSE) -> 90 | AR169: =+VLOOKUP($AP169,Dimensions!$B$5:$G$13,3,FALSE) -> 272.5 | AS169: =+VLOOKUP($AP169,Dimensions!$B$5:$G$13,4,FALSE) -> 168 | AT169: =+VLOOKUP($AP169,Dimensions!$B$5:$G$13,5,FALSE) -> 70 | AU169: =+VLOOKUP($AP169,Dimensions!$B$5:$G$13,6,FALSE) -> 260 | AV169: 1900152
A170: 09 | B170: VLT Drives | C170: 046 | D170: Static frequency converters | E170: P281_400 | F170: 2805-2882 400V | G170: 09588 | H170: VLT 2855/400V | I170: 134L4915 | J170: ABU2855PT4B20SBR1DBF12A00C1 | K170: 134L4915 | M170: 3x400 | N170: 5.5 | O170: Y | P170: R1 | Q170: C2 | R170: PB 12Mbit | S170: Y | T170: 5.5 | U170: FC-280P5K5 | V170: T4 | W170: E20 | X170: H1 | Y170: B | Z170: XCXXX | AA170: SXXX | AB170: X | AC170: A0 | AE170: FC-280P5K5T4E20H1BXCXXXSXXXXA0 | AF170: =+VLOOKUP(AE170,TypeCodesFC280!AH:AI,2,FALSE) -> 134U7720 | AG170: C2 | AH170: Profibus | AJ170: C | AK170: =+VLOOKUP($AJ170,Dimensions!$B$5:$G$13,2,FALSE) -> 140 | AL170: =+VLOOKUP($AJ170,Dimensions!$B$5:$G$13,3,FALSE) -> 268 | AM170: =+VLOOKUP($AJ170,Dimensions!$B$5:$G$13,4,FALSE) -> 168 | AN170: =+VLOOKUP($AJ170,Dimensions!$B$5:$G$13,5,FALSE) -> 120 | AO170: =+VLOOKUP($AJ170,Dimensions!$B$5:$G$13,6,FALSE) -> 257 | AP170: K2 | AQ170: =+VLOOKUP($AP170,Dimensions!$B$5:$G$13,2,FALSE) -> 90 | AR170: =+VLOOKUP($AP170,Dimensions!$B$5:$G$13,3,FALSE) -> 272.5 | AS170: =+VLOOKUP($AP170,Dimensions!$B$5:$G$13,4,FALSE) -> 168 | AT170: =+VLOOKUP($AP170,Dimensions!$B$5:$G$13,5,FALSE) -> 70 | AU170: =+VLOOKUP($AP170,Dimensions!$B$5:$G$13,6,FALSE) -> 260
A171: 09 | B171: VLT Drives | C171: 046 | D171: Static frequency converters | E171: P281_400 | F171: 2805-2882 400V | G171: 09588 | H171: VLT 2855/400V | I171: 178B8584 | J171: VLT2855PT4B20SBR0DBF00A00C1 | K171: 178B8584 | L171: 1900376 | M171: 3x400 | N171: 5.5 | O171: Y | P171: R0 | Q171: no class | R171: Standard | S171: Y | T171: 5.5 | U171: FC-280P5K5 | V171: T4 | W171: E20 | X171: H2 | Y171: B | Z171: XCXXX | AA171: SXXX | AB171: X | AC171: AX | AE171: FC-280P5K5T4E20H2BXCXXXSXXXXAX | AF171: =+VLOOKUP(AE171,TypeCodesFC280!AH:AI,2,FALSE) -> 134U3014 | AG171: C3 | AH171: Modbus RTU | AJ171: C | AK171: =+VLOOKUP($AJ171,Dimensions!$B$5:$G$13,2,FALSE) -> 140 | AL171: =+VLOOKUP($AJ171,Dimensions!$B$5:$G$13,3,FALSE) -> 268 | AM171: =+VLOOKUP($AJ171,Dimensions!$B$5:$G$13,4,FALSE) -> 168 | AN171: =+VLOOKUP($AJ171,Dimensions!$B$5:$G$13,5,FALSE) -> 120 | AO171: =+VLOOKUP($AJ171,Dimensions!$B$5:$G$13,6,FALSE) -> 257 | AP171: K2 | AQ171: =+VLOOKUP($AP171,Dimensions!$B$5:$G$13,2,FALSE) -> 90 | AR171: =+VLOOKUP($AP171,Dimensions!$B$5:$G$13,3,FALSE) -> 272.5 | AS171: =+VLOOKUP($AP171,Dimensions!$B$5:$G$13,4,FALSE) -> 168 | AT171: =+VLOOKUP($AP171,Dimensions!$B$5:$G$13,5,FALSE) -> 70 | AU171: =+VLOOKUP($AP171,Dimensions!$B$5:$G$13,6,FALSE) -> 260
A172: 09 | B172: VLT Drives | C172: 046 | D172: Static frequency converters | E172: P281_400 | F172: 2805-2882 400V | G172: 09588 | H172: VLT 2855/400V | I172: 178F1906 | J172: VLT2855PT4B20SBR1DBF00A00C1 | K172: 178F1906 | L172: 1900416 | M172: 3x400 | N172: 5.5 | O172: Y | P172: R1 | Q172: C2 | R172: Standard | S172: Y | T172: 5.5 | U172: FC-280P5K5 | V172: T4 | W172: E20 | X172: H1 | Y172: B | Z172: XCXXX | AA172: SXXX | AB172: X | AC172: AX | AE172: FC-280P5K5T4E20H1BXCXXXSXXXXAX | AF172: =+VLOOKUP(AE172,TypeCodesFC280!AH:AI,2,FALSE) -> 134U2985 | AG172: C2 | AH172: Modbus RTU | AJ172: C | AK172: =+VLOOKUP($AJ172,Dimensions!$B$5:$G$13,2,FALSE) -> 140 | AL172: =+VLOOKUP($AJ172,Dimensions!$B$5:$G$13,3,FALSE) -> 268 | AM172: =+VLOOKUP($AJ172,Dimensions!$B$5:$G$13,4,FALSE) -> 168 | AN172: =+VLOOKUP($AJ172,Dimensions!$B$5:$G$13,5,FALSE) -> 120 | AO172: =+VLOOKUP($AJ172,Dimensions!$B$5:$G$13,6,FALSE) -> 257 | AP172: K2 | AQ172: =+VLOOKUP($AP172,Dimensions!$B$5:$G$13,2,FALSE) -> 90 | AR172: =+VLOOKUP($AP172,Dimensions!$B$5:$G$13,3,FALSE) -> 272.5 | AS172: =+VLOOKUP($AP172,Dimensions!$B$5:$G$13,4,FALSE) -> 168 | AT172: =+VLOOKUP($AP172,Dimensions!$B$5:$G$13,5,FALSE) -> 70 | AU172: =+VLOOKUP($AP172,Dimensions!$B$5:$G$13,6,FALSE) -> 260 | AV172: 1900152
A173: 09 | B173: VLT Drives | C173: 046 | D173: Static frequency converters | E173: P281_400 | F173: 2805-2882 400V | G173: 09589 | H173: VLT 2875/400V | I173: 131Z8848 | J173: VLT2875PT4B20SBR1DBF00A00C1 | K173: 131Z8848 | L173: 1900417 | M173: 3x400 | N173: 7.5 | O173: Y | P173: R1 | Q173: C2 | R173: Standard | S173: Y | T173: 7.5 | U173: FC-280P7K5 | V173: T4 | W173: E20 | X173: H1 | Y173: B | Z173: XCXXX | AA173: SXXX | AB173: X | AC173: AX | AE173: FC-280P7K5T4E20H1BXCXXXSXXXXAX | AF173: =+VLOOKUP(AE173,TypeCodesFC280!AH:AI,2,FALSE) -> 134U2986 | AG173: C2 | AH173: Modbus RTU | AJ173: C | AK173: =+VLOOKUP($AJ173,Dimensions!$B$5:$G$13,2,FALSE) -> 140 | AL173: =+VLOOKUP($AJ173,Dimensions!$B$5:$G$13,3,FALSE) -> 268 | AM173: =+VLOOKUP($AJ173,Dimensions!$B$5:$G$13,4,FALSE) -> 168 | AN173: =+VLOOKUP($AJ173,Dimensions!$B$5:$G$13,5,FALSE) -> 120 | AO173: =+VLOOKUP($AJ173,Dimensions!$B$5:$G$13,6,FALSE) -> 257 | AP173: K3 | AQ173: =+VLOOKUP($AP173,Dimensions!$B$5:$G$13,2,FALSE) -> 115 | AR173: =+VLOOKUP($AP173,Dimensions!$B$5:$G$13,3,FALSE) -> 272.5 | AS173: =+VLOOKUP($AP173,Dimensions!$B$5:$G$13,4,FALSE) -> 168 | AT173: =+VLOOKUP($AP173,Dimensions!$B$5:$G$13,5,FALSE) -> 90 | AU173: =+VLOOKUP($AP173,Dimensions!$B$5:$G$13,6,FALSE) -> 260 | AV173: 1900153
A174: 09 | B174: VLT Drives | C174: 046 | D174: Static frequency converters | E174: P281_400 | F174: 2805-2882 400V | G174: 09589 | H174: VLT 2875/400V | I174: 134H2384 | J174: VLT2875PT4B20SBR0DBF12A00C1 | K174: 134H2384 | L174: 1900377 | M174: 3x400 | N174: 7.5 | O174: Y | P174: R0 | Q174: no class | R174: PB 12Mbit | S174: Y | T174: 7.5 | U174: FC-280P7K5 | V174: T4 | W174: E20 | X174: H2 | Y174: B | Z174: XCXXX | AA174: SXXX | AB174: X | AC174: A0 | AE174: FC-280P7K5T4E20H2BXCXXXSXXXXA0 | AF174: =+VLOOKUP(AE174,TypeCodesFC280!AH:AI,2,FALSE) -> 134U7752 | AG174: C3 | AH174: Profibus | AJ174: C | AK174: =+VLOOKUP($AJ174,Dimensions!$B$5:$G$13,2,FALSE) -> 140 | AL174: =+VLOOKUP($AJ174,Dimensions!$B$5:$G$13,3,FALSE) -> 268 | AM174: =+VLOOKUP($AJ174,Dimensions!$B$5:$G$13,4,FALSE) -> 168 | AN174: =+VLOOKUP($AJ174,Dimensions!$B$5:$G$13,5,FALSE) -> 120 | AO174: =+VLOOKUP($AJ174,Dimensions!$B$5:$G$13,6,FALSE) -> 257 | AP174: K3 | AQ174: =+VLOOKUP($AP174,Dimensions!$B$5:$G$13,2,FALSE) -> 115 | AR174: =+VLOOKUP($AP174,Dimensions!$B$5:$G$13,3,FALSE) -> 272.5 | AS174: =+VLOOKUP($AP174,Dimensions!$B$5:$G$13,4,FALSE) -> 168 | AT174: =+VLOOKUP($AP174,Dimensions!$B$5:$G$13,5,FALSE) -> 90 | AU174: =+VLOOKUP($AP174,Dimensions!$B$5:$G$13,6,FALSE) -> 260
A175: 09 | B175: VLT Drives | C175: 046 | D175: Static frequency converters | E175: P281_400 | F175: 2805-2882 400V | G175: 09589 | H175: VLT 2875/400V | I175: 134L1300 | J175: TR12875PT4B20SBR1DBF00A00C1 | K175: 134L1300 | M175: 3x400 | N175: 7.5 | O175: Y | P175: R1 | Q175: C2 | R175: Standard | S175: Y | T175: 7.5 | U175: FC-280P7K5 | V175: T4 | W175: E20 | X175: H1 | Y175: B | Z175: XCXXX | AA175: SXXX | AB175: X | AC175: AX | AE175: FC-280P7K5T4E20H1BXCXXXSXXXXAX | AF175: =+VLOOKUP(AE175,TypeCodesFC280!AH:AI,2,FALSE) -> 134U2986 | AG175: C2 | AH175: Modbus RTU | AJ175: C | AK175: =+VLOOKUP($AJ175,Dimensions!$B$5:$G$13,2,FALSE) -> 140 | AL175: =+VLOOKUP($AJ175,Dimensions!$B$5:$G$13,3,FALSE) -> 268 | AM175: =+VLOOKUP($AJ175,Dimensions!$B$5:$G$13,4,FALSE) -> 168 | AN175: =+VLOOKUP($AJ175,Dimensions!$B$5:$G$13,5,FALSE) -> 120 | AO175: =+VLOOKUP($AJ175,Dimensions!$B$5:$G$13,6,FALSE) -> 257 | AP175: K3 | AQ175: =+VLOOKUP($AP175,Dimensions!$B$5:$G$13,2,FALSE) -> 115 | AR175: =+VLOOKUP($AP175,Dimensions!$B$5:$G$13,3,FALSE) -> 272.5 | AS175: =+VLOOKUP($AP175,Dimensions!$B$5:$G$13,4,FALSE) -> 168 | AT175: =+VLOOKUP($AP175,Dimensions!$B$5:$G$13,5,FALSE) -> 90 | AU175: =+VLOOKUP($AP175,Dimensions!$B$5:$G$13,6,FALSE) -> 260 | AV175: 1900153
A176: 09 | B176: VLT Drives | C176: 046 | D176: Static frequency converters | E176: P281_400 | F176: 2805-2882 400V | G176: 09589 | H176: VLT 2875/400V | I176: 134L4375 | J176: VLT2875PT4B20SBR0DBF30A00C1 | K176: 134L4375 | M176: 3x400 | N176: 7.5 | O176: Y | P176: R0 | Q176: no class | R176: DeviceNet | S176: Y | T176: 7.5 | U176: FC-280P7K5 | V176: T4 | W176: E20 | X176: H2 | Y176: B | Z176: XCXXX | AA176: SXXX | AB176: X | AC176: ? | AE176: FC-280P7K5T4E20H2BXCXXXSXXXX? | AF176: =+VLOOKUP(AE176,TypeCodesFC280!AH:AI,2,FALSE) ->  | AG176: C3 | AH176: t.b. | AJ176: C | AK176: =+VLOOKUP($AJ176,Dimensions!$B$5:$G$13,2,FALSE) -> 140 | AL176: =+VLOOKUP($AJ176,Dimensions!$B$5:$G$13,3,FALSE) -> 268 | AM176: =+VLOOKUP($AJ176,Dimensions!$B$5:$G$13,4,FALSE) -> 168 | AN176: =+VLOOKUP($AJ176,Dimensions!$B$5:$G$13,5,FALSE) -> 120 | AO176: =+VLOOKUP($AJ176,Dimensions!$B$5:$G$13,6,FALSE) -> 257 | AP176: K3 | AQ176: =+VLOOKUP($AP176,Dimensions!$B$5:$G$13,2,FALSE) -> 115 | AR176: =+VLOOKUP($AP176,Dimensions!$B$5:$G$13,3,FALSE) -> 272.5 | AS176: =+VLOOKUP($AP176,Dimensions!$B$5:$G$13,4,FALSE) -> 168 | AT176: =+VLOOKUP($AP176,Dimensions!$B$5:$G$13,5,FALSE) -> 90 | AU176: =+VLOOKUP($AP176,Dimensions!$B$5:$G$13,6,FALSE) -> 260
A177: 09 | B177: VLT Drives | C177: 046 | D177: Static frequency converters | E177: P281_400 | F177: 2805-2882 400V | G177: 09589 | H177: VLT 2875/400V | I177: 134L4376 | J177: VLT2875PT4B20SBR1DBF30A00C1 | K177: 134L4376 | M177: 3x400 | N177: 7.5 | O177: Y | P177: R1 | Q177: C2 | R177: DeviceNet | S177: Y | T177: 7.5 | U177: FC-280P7K5 | V177: T4 | W177: E20 | X177: H1 | Y177: B | Z177: XCXXX | AA177: SXXX | AB177: X | AC177: ? | AE177: FC-280P7K5T4E20H1BXCXXXSXXXX? | AF177: =+VLOOKUP(AE177,TypeCodesFC280!AH:AI,2,FALSE) ->  | AG177: C2 | AH177: t.b. | AJ177: C | AK177: =+VLOOKUP($AJ177,Dimensions!$B$5:$G$13,2,FALSE) -> 140 | AL177: =+VLOOKUP($AJ177,Dimensions!$B$5:$G$13,3,FALSE) -> 268 | AM177: =+VLOOKUP($AJ177,Dimensions!$B$5:$G$13,4,FALSE) -> 168 | AN177: =+VLOOKUP($AJ177,Dimensions!$B$5:$G$13,5,FALSE) -> 120 | AO177: =+VLOOKUP($AJ177,Dimensions!$B$5:$G$13,6,FALSE) -> 257 | AP177: K3 | AQ177: =+VLOOKUP($AP177,Dimensions!$B$5:$G$13,2,FALSE) -> 115 | AR177: =+VLOOKUP($AP177,Dimensions!$B$5:$G$13,3,FALSE) -> 272.5 | AS177: =+VLOOKUP($AP177,Dimensions!$B$5:$G$13,4,FALSE) -> 168 | AT177: =+VLOOKUP($AP177,Dimensions!$B$5:$G$13,5,FALSE) -> 90 | AU177: =+VLOOKUP($AP177,Dimensions!$B$5:$G$13,6,FALSE) -> 260
A178: 09 | B178: VLT Drives | C178: 046 | D178: Static frequency converters | E178: P281_400 | F178: 2805-2882 400V | G178: 09589 | H178: VLT 2875/400V | I178: 134L4904 | J178: ABU2875PT4B20SBR1DBF00A00C1 | K178: 134L4904 | M178: 3x400 | N178: 7.5 | O178: Y | P178: R1 | Q178: C2 | R178: Standard | S178: Y | T178: 7.5 | U178: FC-280P7K5 | V178: T4 | W178: E20 | X178: H1 | Y178: B | Z178: XCXXX | AA178: SXXX | AB178: X | AC178: AX | AE178: FC-280P7K5T4E20H1BXCXXXSXXXXAX | AF178: =+VLOOKUP(AE178,TypeCodesFC280!AH:AI,2,FALSE) -> 134U2986 | AG178: C2 | AH178: Modbus RTU | AJ178: C | AK178: =+VLOOKUP($AJ178,Dimensions!$B$5:$G$13,2,FALSE) -> 140 | AL178: =+VLOOKUP($AJ178,Dimensions!$B$5:$G$13,3,FALSE) -> 268 | AM178: =+VLOOKUP($AJ178,Dimensions!$B$5:$G$13,4,FALSE) -> 168 | AN178: =+VLOOKUP($AJ178,Dimensions!$B$5:$G$13,5,FALSE) -> 120 | AO178: =+VLOOKUP($AJ178,Dimensions!$B$5:$G$13,6,FALSE) -> 257 | AP178: K3 | AQ178: =+VLOOKUP($AP178,Dimensions!$B$5:$G$13,2,FALSE) -> 115 | AR178: =+VLOOKUP($AP178,Dimensions!$B$5:$G$13,3,FALSE) -> 272.5 | AS178: =+VLOOKUP($AP178,Dimensions!$B$5:$G$13,4,FALSE) -> 168 | AT178: =+VLOOKUP($AP178,Dimensions!$B$5:$G$13,5,FALSE) -> 90 | AU178: =+VLOOKUP($AP178,Dimensions!$B$5:$G$13,6,FALSE) -> 260 | AV178: 1900153
A179: 09 | B179: VLT Drives | C179: 046 | D179: Static frequency converters | E179: P281_400 | F179: 2805-2882 400V | G179: 09589 | H179: VLT 2875/400V | I179: 134L4916 | J179: ABU2875PT4B20SBR1DBF12A00C1 | K179: 134L4916 | M179: 3x400 | N179: 7.5 | O179: Y | P179: R1 | Q179: C2 | R179: PB 12Mbit | S179: Y | T179: 7.5 | U179: FC-280P7K5 | V179: T4 | W179: E20 | X179: H1 | Y179: B | Z179: XCXXX | AA179: SXXX | AB179: X | AC179: A0 | AE179: FC-280P7K5T4E20H1BXCXXXSXXXXA0 | AF179: =+VLOOKUP(AE179,TypeCodesFC280!AH:AI,2,FALSE) -> 134U7721 | AG179: C2 | AH179: Profibus | AJ179: C | AK179: =+VLOOKUP($AJ179,Dimensions!$B$5:$G$13,2,FALSE) -> 140 | AL179: =+VLOOKUP($AJ179,Dimensions!$B$5:$G$13,3,FALSE) -> 268 | AM179: =+VLOOKUP($AJ179,Dimensions!$B$5:$G$13,4,FALSE) -> 168 | AN179: =+VLOOKUP($AJ179,Dimensions!$B$5:$G$13,5,FALSE) -> 120 | AO179: =+VLOOKUP($AJ179,Dimensions!$B$5:$G$13,6,FALSE) -> 257 | AP179: K3 | AQ179: =+VLOOKUP($AP179,Dimensions!$B$5:$G$13,2,FALSE) -> 115 | AR179: =+VLOOKUP($AP179,Dimensions!$B$5:$G$13,3,FALSE) -> 272.5 | AS179: =+VLOOKUP($AP179,Dimensions!$B$5:$G$13,4,FALSE) -> 168 | AT179: =+VLOOKUP($AP179,Dimensions!$B$5:$G$13,5,FALSE) -> 90 | AU179: =+VLOOKUP($AP179,Dimensions!$B$5:$G$13,6,FALSE) -> 260
A180: 09 | B180: VLT Drives | C180: 046 | D180: Static frequency converters | E180: P281_400 | F180: 2805-2882 400V | G180: 09589 | H180: VLT 2875/400V | I180: 178B2108 | J180: MQP2875PT4B20SBR0DBF00A00C0 | K180: 178B2108 | M180: 3x400 | N180: 7.5 | O180: Y | P180: R0 | Q180: no class | R180: Standard | S180: N | T180: 7.5 | U180: FC-280P7K5 | V180: T4 | W180: E20 | X180: H2 | Y180: B | Z180: XCXXX | AA180: SXXX | AB180: X | AC180: AX | AE180: FC-280P7K5T4E20H2BXCXXXSXXXXAX | AF180: =+VLOOKUP(AE180,TypeCodesFC280!AH:AI,2,FALSE) -> 134U3015 | AG180: C3 | AH180: Modbus RTU | AJ180: C | AK180: =+VLOOKUP($AJ180,Dimensions!$B$5:$G$13,2,FALSE) -> 140 | AL180: =+VLOOKUP($AJ180,Dimensions!$B$5:$G$13,3,FALSE) -> 268 | AM180: =+VLOOKUP($AJ180,Dimensions!$B$5:$G$13,4,FALSE) -> 168 | AN180: =+VLOOKUP($AJ180,Dimensions!$B$5:$G$13,5,FALSE) -> 120 | AO180: =+VLOOKUP($AJ180,Dimensions!$B$5:$G$13,6,FALSE) -> 257 | AP180: K3 | AQ180: =+VLOOKUP($AP180,Dimensions!$B$5:$G$13,2,FALSE) -> 115 | AR180: =+VLOOKUP($AP180,Dimensions!$B$5:$G$13,3,FALSE) -> 272.5 | AS180: =+VLOOKUP($AP180,Dimensions!$B$5:$G$13,4,FALSE) -> 168 | AT180: =+VLOOKUP($AP180,Dimensions!$B$5:$G$13,5,FALSE) -> 90 | AU180: =+VLOOKUP($AP180,Dimensions!$B$5:$G$13,6,FALSE) -> 260
A181: 09 | B181: VLT Drives | C181: 046 | D181: Static frequency converters | E181: P281_400 | F181: 2805-2882 400V | G181: 09589 | H181: VLT 2875/400V | I181: 178B8585 | J181: VLT2875PT4B20SBR0DBF00A00C1 | K181: 178B8585 | L181: 1900378 | M181: 3x400 | N181: 7.5 | O181: Y | P181: R0 | Q181: no class | R181: Standard | S181: Y | T181: 7.5 | U181: FC-280P7K5 | V181: T4 | W181: E20 | X181: H2 | Y181: B | Z181: XCXXX | AA181: SXXX | AB181: X | AC181: AX | AE181: FC-280P7K5T4E20H2BXCXXXSXXXXAX | AF181: =+VLOOKUP(AE181,TypeCodesFC280!AH:AI,2,FALSE) -> 134U3015 | AG181: C3 | AH181: Modbus RTU | AJ181: C | AK181: =+VLOOKUP($AJ181,Dimensions!$B$5:$G$13,2,FALSE) -> 140 | AL181: =+VLOOKUP($AJ181,Dimensions!$B$5:$G$13,3,FALSE) -> 268 | AM181: =+VLOOKUP($AJ181,Dimensions!$B$5:$G$13,4,FALSE) -> 168 | AN181: =+VLOOKUP($AJ181,Dimensions!$B$5:$G$13,5,FALSE) -> 120 | AO181: =+VLOOKUP($AJ181,Dimensions!$B$5:$G$13,6,FALSE) -> 257 | AP181: K3 | AQ181: =+VLOOKUP($AP181,Dimensions!$B$5:$G$13,2,FALSE) -> 115 | AR181: =+VLOOKUP($AP181,Dimensions!$B$5:$G$13,3,FALSE) -> 272.5 | AS181: =+VLOOKUP($AP181,Dimensions!$B$5:$G$13,4,FALSE) -> 168 | AT181: =+VLOOKUP($AP181,Dimensions!$B$5:$G$13,5,FALSE) -> 90 | AU181: =+VLOOKUP($AP181,Dimensions!$B$5:$G$13,6,FALSE) -> 260
A182: 09 | B182: VLT Drives | C182: 046 | D182: Static frequency converters | E182: P281_400 | F182: 2805-2882 400V | G182: 09589 | H182: VLT 2875/400V | I182: 178B9761 | J182: VLT2875PT4B20SBR1DBF12A00C1 | K182: 178B9761 | L182: 1900379 | M182: 3x400 | N182: 7.5 | O182: Y | P182: R1 | Q182: C2 | R182: PB 12Mbit | S182: Y | T182: 7.5 | U182: FC-280P7K5 | V182: T4 | W182: E20 | X182: H1 | Y182: B | Z182: XCXXX | AA182: SXXX | AB182: X | AC182: A0 | AE182: FC-280P7K5T4E20H1BXCXXXSXXXXA0 | AF182: =+VLOOKUP(AE182,TypeCodesFC280!AH:AI,2,FALSE) -> 134U7721 | AG182: C2 | AH182: Profibus | AJ182: C | AK182: =+VLOOKUP($AJ182,Dimensions!$B$5:$G$13,2,FALSE) -> 140 | AL182: =+VLOOKUP($AJ182,Dimensions!$B$5:$G$13,3,FALSE) -> 268 | AM182: =+VLOOKUP($AJ182,Dimensions!$B$5:$G$13,4,FALSE) -> 168 | AN182: =+VLOOKUP($AJ182,Dimensions!$B$5:$G$13,5,FALSE) -> 120 | AO182: =+VLOOKUP($AJ182,Dimensions!$B$5:$G$13,6,FALSE) -> 257 | AP182: K3 | AQ182: =+VLOOKUP($AP182,Dimensions!$B$5:$G$13,2,FALSE) -> 115 | AR182: =+VLOOKUP($AP182,Dimensions!$B$5:$G$13,3,FALSE) -> 272.5 | AS182: =+VLOOKUP($AP182,Dimensions!$B$5:$G$13,4,FALSE) -> 168 | AT182: =+VLOOKUP($AP182,Dimensions!$B$5:$G$13,5,FALSE) -> 90 | AU182: =+VLOOKUP($AP182,Dimensions!$B$5:$G$13,6,FALSE) -> 260
A183: 09 | B183: VLT Drives | C183: 046 | D183: Static frequency converters | E183: P281_400 | F183: 2805-2882 400V | G183: 09591 | H183: VLT 2880/400V | I183: 134H2468 | J183: VLT2880PT4B20SBR0DBF12A00C1 | K183: 134H2468 | L183: 1900381 | M183: 3x400 | N183: 11 | O183: Y | P183: R0 | Q183: no class | R183: PB 12Mbit | S183: Y | T183: 11 | U183: FC-280P11K | V183: T4 | W183: E20 | X183: H2 | Y183: B | Z183: XCXXX | AA183: SXXX | AB183: X | AC183: A0 | AE183: FC-280P11KT4E20H2BXCXXXSXXXXA0 | AF183: =+VLOOKUP(AE183,TypeCodesFC280!AH:AI,2,FALSE) -> 134U7753 | AG183: C3 | AH183: Profibus | AJ183: D | AK183: =+VLOOKUP($AJ183,Dimensions!$B$5:$G$13,2,FALSE) -> 200 | AL183: =+VLOOKUP($AJ183,Dimensions!$B$5:$G$13,3,FALSE) -> 505 | AM183: =+VLOOKUP($AJ183,Dimensions!$B$5:$G$13,4,FALSE) -> 244 | AN183: =+VLOOKUP($AJ183,Dimensions!$B$5:$G$13,5,FALSE) -> 120 | AO183: =+VLOOKUP($AJ183,Dimensions!$B$5:$G$13,6,FALSE) -> 490 | AP183: K4 | AQ183: =+VLOOKUP($AP183,Dimensions!$B$5:$G$13,2,FALSE) -> 133 | AR183: =+VLOOKUP($AP183,Dimensions!$B$5:$G$13,3,FALSE) -> 317.5 | AS183: =+VLOOKUP($AP183,Dimensions!$B$5:$G$13,4,FALSE) -> 245 | AT183: =+VLOOKUP($AP183,Dimensions!$B$5:$G$13,5,FALSE) -> 105 | AU183: =+VLOOKUP($AP183,Dimensions!$B$5:$G$13,6,FALSE) -> 297.5
A184: 09 | B184: VLT Drives | C184: 046 | D184: Static frequency converters | E184: P281_400 | F184: 2805-2882 400V | G184: 09591 | H184: VLT 2880/400V | I184: 134H2469 | J184: VLT2880PT4B20SBR3DBF12A00C1 | K184: 134H2469 | L184: 1900382 | M184: 3x400 | N184: 11 | O184: Y | P184: R3 | Q184: C2 / C1 | R184: PB 12Mbit | S184: Y | T184: 11 | U184: FC-280P11K | V184: T4 | W184: E20 | X184: H1 | Y184: B | Z184: XCXXX | AA184: SXXX | AB184: X | AC184: A0 | AE184: FC-280P11KT4E20H1BXCXXXSXXXXA0 | AF184: =+VLOOKUP(AE184,TypeCodesFC280!AH:AI,2,FALSE) -> 134U7722 | AG184: C2 | AH184: Profibus | AJ184: D | AK184: =+VLOOKUP($AJ184,Dimensions!$B$5:$G$13,2,FALSE) -> 200 | AL184: =+VLOOKUP($AJ184,Dimensions!$B$5:$G$13,3,FALSE) -> 505 | AM184: =+VLOOKUP($AJ184,Dimensions!$B$5:$G$13,4,FALSE) -> 244 | AN184: =+VLOOKUP($AJ184,Dimensions!$B$5:$G$13,5,FALSE) -> 120 | AO184: =+VLOOKUP($AJ184,Dimensions!$B$5:$G$13,6,FALSE) -> 490 | AP184: K4 | AQ184: =+VLOOKUP($AP184,Dimensions!$B$5:$G$13,2,FALSE) -> 133 | AR184: =+VLOOKUP($AP184,Dimensions!$B$5:$G$13,3,FALSE) -> 317.5 | AS184: =+VLOOKUP($AP184,Dimensions!$B$5:$G$13,4,FALSE) -> 245 | AT184: =+VLOOKUP($AP184,Dimensions!$B$5:$G$13,5,FALSE) -> 105 | AU184: =+VLOOKUP($AP184,Dimensions!$B$5:$G$13,6,FALSE) -> 297.5
A185: 09 | B185: VLT Drives | C185: 046 | D185: Static frequency converters | E185: P281_400 | F185: 2805-2882 400V | G185: 09591 | H185: VLT 2880/400V | I185: 134H2476 | J185: VLT2880PT4B20SBR0DBF30A00C1 | K185: 134H2476 | M185: 3x400 | N185: 11 | O185: Y | P185: R0 | Q185: no class | R185: DeviceNet | S185: Y | T185: 11 | U185: FC-280P11K | V185: T4 | W185: E20 | X185: H2 | Y185: B | Z185: XCXXX | AA185: SXXX | AB185: X | AC185: ? | AE185: FC-280P11KT4E20H2BXCXXXSXXXX? | AF185: =+VLOOKUP(AE185,TypeCodesFC280!AH:AI,2,FALSE) ->  | AG185: C3 | AH185: t.b. | AJ185: D | AK185: =+VLOOKUP($AJ185,Dimensions!$B$5:$G$13,2,FALSE) -> 200 | AL185: =+VLOOKUP($AJ185,Dimensions!$B$5:$G$13,3,FALSE) -> 505 | AM185: =+VLOOKUP($AJ185,Dimensions!$B$5:$G$13,4,FALSE) -> 244 | AN185: =+VLOOKUP($AJ185,Dimensions!$B$5:$G$13,5,FALSE) -> 120 | AO185: =+VLOOKUP($AJ185,Dimensions!$B$5:$G$13,6,FALSE) -> 490 | AP185: K4 | AQ185: =+VLOOKUP($AP185,Dimensions!$B$5:$G$13,2,FALSE) -> 133 | AR185: =+VLOOKUP($AP185,Dimensions!$B$5:$G$13,3,FALSE) -> 317.5 | AS185: =+VLOOKUP($AP185,Dimensions!$B$5:$G$13,4,FALSE) -> 245 | AT185: =+VLOOKUP($AP185,Dimensions!$B$5:$G$13,5,FALSE) -> 105 | AU185: =+VLOOKUP($AP185,Dimensions!$B$5:$G$13,6,FALSE) -> 297.5
A186: 09 | B186: VLT Drives | C186: 046 | D186: Static frequency converters | E186: P281_400 | F186: 2805-2882 400V | G186: 09591 | H186: VLT 2880/400V | I186: 134H2477 | J186: VLT2880PT4B20SBR3DBF30A00C1 | K186: 134H2477 | M186: 3x400 | N186: 11 | O186: Y | P186: R3 | Q186: C2 / C1 | R186: DeviceNet | S186: Y | T186: 11 | U186: FC-280P11K | V186: T4 | W186: E20 | X186: H1 | Y186: B | Z186: XCXXX | AA186: SXXX | AB186: X | AC186: ? | AE186: FC-280P11KT4E20H1BXCXXXSXXXX? | AF186: =+VLOOKUP(AE186,TypeCodesFC280!AH:AI,2,FALSE) ->  | AG186: C2 | AH186: t.b. | AJ186: D | AK186: =+VLOOKUP($AJ186,Dimensions!$B$5:$G$13,2,FALSE) -> 200 | AL186: =+VLOOKUP($AJ186,Dimensions!$B$5:$G$13,3,FALSE) -> 505 | AM186: =+VLOOKUP($AJ186,Dimensions!$B$5:$G$13,4,FALSE) -> 244 | AN186: =+VLOOKUP($AJ186,Dimensions!$B$5:$G$13,5,FALSE) -> 120 | AO186: =+VLOOKUP($AJ186,Dimensions!$B$5:$G$13,6,FALSE) -> 490 | AP186: K4 | AQ186: =+VLOOKUP($AP186,Dimensions!$B$5:$G$13,2,FALSE) -> 133 | AR186: =+VLOOKUP($AP186,Dimensions!$B$5:$G$13,3,FALSE) -> 317.5 | AS186: =+VLOOKUP($AP186,Dimensions!$B$5:$G$13,4,FALSE) -> 245 | AT186: =+VLOOKUP($AP186,Dimensions!$B$5:$G$13,5,FALSE) -> 105 | AU186: =+VLOOKUP($AP186,Dimensions!$B$5:$G$13,6,FALSE) -> 297.5
A187: 09 | B187: VLT Drives | C187: 046 | D187: Static frequency converters | E187: P281_400 | F187: 2805-2882 400V | G187: 09591 | H187: VLT 2880/400V | I187: 134L1301 | J187: TR12880PT4B20SBR3DBF00A00C1 | K187: 134L1301 | M187: 3x400 | N187: 11 | O187: Y | P187: R3 | Q187: C2 / C1 | R187: Standard | S187: Y | T187: 11 | U187: FC-280P11K | V187: T4 | W187: E20 | X187: H1 | Y187: B | Z187: XCXXX | AA187: SXXX | AB187: X | AC187: AX | AE187: FC-280P11KT4E20H1BXCXXXSXXXXAX | AF187: =+VLOOKUP(AE187,TypeCodesFC280!AH:AI,2,FALSE) -> 134U2987 | AG187: C2 | AH187: Modbus RTU | AJ187: D | AK187: =+VLOOKUP($AJ187,Dimensions!$B$5:$G$13,2,FALSE) -> 200 | AL187: =+VLOOKUP($AJ187,Dimensions!$B$5:$G$13,3,FALSE) -> 505 | AM187: =+VLOOKUP($AJ187,Dimensions!$B$5:$G$13,4,FALSE) -> 244 | AN187: =+VLOOKUP($AJ187,Dimensions!$B$5:$G$13,5,FALSE) -> 120 | AO187: =+VLOOKUP($AJ187,Dimensions!$B$5:$G$13,6,FALSE) -> 490 | AP187: K4 | AQ187: =+VLOOKUP($AP187,Dimensions!$B$5:$G$13,2,FALSE) -> 133 | AR187: =+VLOOKUP($AP187,Dimensions!$B$5:$G$13,3,FALSE) -> 317.5 | AS187: =+VLOOKUP($AP187,Dimensions!$B$5:$G$13,4,FALSE) -> 245 | AT187: =+VLOOKUP($AP187,Dimensions!$B$5:$G$13,5,FALSE) -> 105 | AU187: =+VLOOKUP($AP187,Dimensions!$B$5:$G$13,6,FALSE) -> 297.5 | AV187: 1903049
A188: 09 | B188: VLT Drives | C188: 046 | D188: Static frequency converters | E188: P281_400 | F188: 2805-2882 400V | G188: 09591 | H188: VLT 2880/400V | I188: 134L4905 | J188: ABU2880PT4B20SBR3DBF00A00C1 | K188: 134L4905 | M188: 3x400 | N188: 11 | O188: Y | P188: R3 | Q188: C2 / C1 | R188: Standard | S188: Y | T188: 11 | U188: FC-280P11K | V188: T4 | W188: E20 | X188: H1 | Y188: B | Z188: XCXXX | AA188: SXXX | AB188: X | AC188: AX | AE188: FC-280P11KT4E20H1BXCXXXSXXXXAX | AF188: =+VLOOKUP(AE188,TypeCodesFC280!AH:AI,2,FALSE) -> 134U2987 | AG188: C2 | AH188: Modbus RTU | AJ188: D | AK188: =+VLOOKUP($AJ188,Dimensions!$B$5:$G$13,2,FALSE) -> 200 | AL188: =+VLOOKUP($AJ188,Dimensions!$B$5:$G$13,3,FALSE) -> 505 | AM188: =+VLOOKUP($AJ188,Dimensions!$B$5:$G$13,4,FALSE) -> 244 | AN188: =+VLOOKUP($AJ188,Dimensions!$B$5:$G$13,5,FALSE) -> 120 | AO188: =+VLOOKUP($AJ188,Dimensions!$B$5:$G$13,6,FALSE) -> 490 | AP188: K4 | AQ188: =+VLOOKUP($AP188,Dimensions!$B$5:$G$13,2,FALSE) -> 133 | AR188: =+VLOOKUP($AP188,Dimensions!$B$5:$G$13,3,FALSE) -> 317.5 | AS188: =+VLOOKUP($AP188,Dimensions!$B$5:$G$13,4,FALSE) -> 245 | AT188: =+VLOOKUP($AP188,Dimensions!$B$5:$G$13,5,FALSE) -> 105 | AU188: =+VLOOKUP($AP188,Dimensions!$B$5:$G$13,6,FALSE) -> 297.5 | AV188: 1903049
A189: 09 | B189: VLT Drives | C189: 046 | D189: Static frequency converters | E189: P281_400 | F189: 2805-2882 400V | G189: 09591 | H189: VLT 2880/400V | I189: 134L4917 | J189: ABU2880PT4B20SBR3DBF12A00C1 | K189: 134L4917 | M189: 3x400 | N189: 11 | O189: Y | P189: R3 | Q189: C2 / C1 | R189: PB 12Mbit | S189: Y | T189: 11 | U189: FC-280P11K | V189: T4 | W189: E20 | X189: H1 | Y189: B | Z189: XCXXX | AA189: SXXX | AB189: X | AC189: A0 | AE189: FC-280P11KT4E20H1BXCXXXSXXXXA0 | AF189: =+VLOOKUP(AE189,TypeCodesFC280!AH:AI,2,FALSE) -> 134U7722 | AG189: C2 | AH189: Profibus | AJ189: D | AK189: =+VLOOKUP($AJ189,Dimensions!$B$5:$G$13,2,FALSE) -> 200 | AL189: =+VLOOKUP($AJ189,Dimensions!$B$5:$G$13,3,FALSE) -> 505 | AM189: =+VLOOKUP($AJ189,Dimensions!$B$5:$G$13,4,FALSE) -> 244 | AN189: =+VLOOKUP($AJ189,Dimensions!$B$5:$G$13,5,FALSE) -> 120 | AO189: =+VLOOKUP($AJ189,Dimensions!$B$5:$G$13,6,FALSE) -> 490 | AP189: K4 | AQ189: =+VLOOKUP($AP189,Dimensions!$B$5:$G$13,2,FALSE) -> 133 | AR189: =+VLOOKUP($AP189,Dimensions!$B$5:$G$13,3,FALSE) -> 317.5 | AS189: =+VLOOKUP($AP189,Dimensions!$B$5:$G$13,4,FALSE) -> 245 | AT189: =+VLOOKUP($AP189,Dimensions!$B$5:$G$13,5,FALSE) -> 105 | AU189: =+VLOOKUP($AP189,Dimensions!$B$5:$G$13,6,FALSE) -> 297.5
A190: 09 | B190: VLT Drives | C190: 046 | D190: Static frequency converters | E190: P281_400 | F190: 2805-2882 400V | G190: 09591 | H190: VLT 2880/400V | I190: 178B1767 | J190: MQP2880PT4B20SBR0DBF00A00C0 | K190: 178B1767 | M190: 3x400 | N190: 11 | O190: Y | P190: R0 | Q190: no class | R190: Standard | S190: N | T190: 11 | U190: FC-280P11K | V190: T4 | W190: E20 | X190: H2 | Y190: B | Z190: XCXXX | AA190: SXXX | AB190: X | AC190: AX | AE190: FC-280P11KT4E20H2BXCXXXSXXXXAX | AF190: =+VLOOKUP(AE190,TypeCodesFC280!AH:AI,2,FALSE) -> 134U3016 | AG190: C3 | AH190: Modbus RTU | AJ190: D | AK190: =+VLOOKUP($AJ190,Dimensions!$B$5:$G$13,2,FALSE) -> 200 | AL190: =+VLOOKUP($AJ190,Dimensions!$B$5:$G$13,3,FALSE) -> 505 | AM190: =+VLOOKUP($AJ190,Dimensions!$B$5:$G$13,4,FALSE) -> 244 | AN190: =+VLOOKUP($AJ190,Dimensions!$B$5:$G$13,5,FALSE) -> 120 | AO190: =+VLOOKUP($AJ190,Dimensions!$B$5:$G$13,6,FALSE) -> 490 | AP190: K4 | AQ190: =+VLOOKUP($AP190,Dimensions!$B$5:$G$13,2,FALSE) -> 133 | AR190: =+VLOOKUP($AP190,Dimensions!$B$5:$G$13,3,FALSE) -> 317.5 | AS190: =+VLOOKUP($AP190,Dimensions!$B$5:$G$13,4,FALSE) -> 245 | AT190: =+VLOOKUP($AP190,Dimensions!$B$5:$G$13,5,FALSE) -> 105 | AU190: =+VLOOKUP($AP190,Dimensions!$B$5:$G$13,6,FALSE) -> 297.5
A191: 09 | B191: VLT Drives | C191: 046 | D191: Static frequency converters | E191: P281_400 | F191: 2805-2882 400V | G191: 09591 | H191: VLT 2880/400V | I191: 178B8586 | J191: VLT2880PT4B20SBR0DBF00A00C1 | K191: 178B8586 | L191: 1900385 | M191: 3x400 | N191: 11 | O191: Y | P191: R0 | Q191: no class | R191: Standard | S191: Y | T191: 11 | U191: FC-280P11K | V191: T4 | W191: E20 | X191: H2 | Y191: B | Z191: XCXXX | AA191: SXXX | AB191: X | AC191: AX | AE191: FC-280P11KT4E20H2BXCXXXSXXXXAX | AF191: =+VLOOKUP(AE191,TypeCodesFC280!AH:AI,2,FALSE) -> 134U3016 | AG191: C3 | AH191: Modbus RTU | AJ191: D | AK191: =+VLOOKUP($AJ191,Dimensions!$B$5:$G$13,2,FALSE) -> 200 | AL191: =+VLOOKUP($AJ191,Dimensions!$B$5:$G$13,3,FALSE) -> 505 | AM191: =+VLOOKUP($AJ191,Dimensions!$B$5:$G$13,4,FALSE) -> 244 | AN191: =+VLOOKUP($AJ191,Dimensions!$B$5:$G$13,5,FALSE) -> 120 | AO191: =+VLOOKUP($AJ191,Dimensions!$B$5:$G$13,6,FALSE) -> 490 | AP191: K4 | AQ191: =+VLOOKUP($AP191,Dimensions!$B$5:$G$13,2,FALSE) -> 133 | AR191: =+VLOOKUP($AP191,Dimensions!$B$5:$G$13,3,FALSE) -> 317.5 | AS191: =+VLOOKUP($AP191,Dimensions!$B$5:$G$13,4,FALSE) -> 245 | AT191: =+VLOOKUP($AP191,Dimensions!$B$5:$G$13,5,FALSE) -> 105 | AU191: =+VLOOKUP($AP191,Dimensions!$B$5:$G$13,6,FALSE) -> 297.5
A192: 09 | B192: VLT Drives | C192: 046 | D192: Static frequency converters | E192: P281_400 | F192: 2805-2882 400V | G192: 09591 | H192: VLT 2880/400V | I192: 178F1787 | J192: VLT2880PT4B20SBR3DBF00A00C1 | K192: 178F1787 | L192: 1900418 | M192: 3x400 | N192: 11 | O192: Y | P192: R3 | Q192: C2 / C1 | R192: Standard | S192: Y | T192: 11 | U192: FC-280P11K | V192: T4 | W192: E20 | X192: H1 | Y192: B | Z192: XCXXX | AA192: SXXX | AB192: X | AC192: AX | AE192: FC-280P11KT4E20H1BXCXXXSXXXXAX | AF192: =+VLOOKUP(AE192,TypeCodesFC280!AH:AI,2,FALSE) -> 134U2987 | AG192: C2 | AH192: Modbus RTU | AJ192: D | AK192: =+VLOOKUP($AJ192,Dimensions!$B$5:$G$13,2,FALSE) -> 200 | AL192: =+VLOOKUP($AJ192,Dimensions!$B$5:$G$13,3,FALSE) -> 505 | AM192: =+VLOOKUP($AJ192,Dimensions!$B$5:$G$13,4,FALSE) -> 244 | AN192: =+VLOOKUP($AJ192,Dimensions!$B$5:$G$13,5,FALSE) -> 120 | AO192: =+VLOOKUP($AJ192,Dimensions!$B$5:$G$13,6,FALSE) -> 490 | AP192: K4 | AQ192: =+VLOOKUP($AP192,Dimensions!$B$5:$G$13,2,FALSE) -> 133 | AR192: =+VLOOKUP($AP192,Dimensions!$B$5:$G$13,3,FALSE) -> 317.5 | AS192: =+VLOOKUP($AP192,Dimensions!$B$5:$G$13,4,FALSE) -> 245 | AT192: =+VLOOKUP($AP192,Dimensions!$B$5:$G$13,5,FALSE) -> 105 | AU192: =+VLOOKUP($AP192,Dimensions!$B$5:$G$13,6,FALSE) -> 297.5 | AV192: 1903049
A193: 09 | B193: VLT Drives | C193: 046 | D193: Static frequency converters | E193: P281_400 | F193: 2805-2882 400V | G193: 09591 | H193: VLT 2880/400V | I193: 195N1112 | J193: VLT2880PT4B20SBR3DBF00A00C0 | K193: 195N1112 | M193: 3x400 | N193: 11 | O193: Y | P193: R3 | Q193: C2 / C1 | R193: Standard | S193: N | T193: 11 | U193: FC-280P11K | V193: T4 | W193: E20 | X193: H1 | Y193: B | Z193: XCXXX | AA193: SXXX | AB193: X | AC193: AX | AE193: FC-280P11KT4E20H1BXCXXXSXXXXAX | AF193: =+VLOOKUP(AE193,TypeCodesFC280!AH:AI,2,FALSE) -> 134U2987 | AG193: C2 | AH193: Modbus RTU | AJ193: D | AK193: =+VLOOKUP($AJ193,Dimensions!$B$5:$G$13,2,FALSE) -> 200 | AL193: =+VLOOKUP($AJ193,Dimensions!$B$5:$G$13,3,FALSE) -> 505 | AM193: =+VLOOKUP($AJ193,Dimensions!$B$5:$G$13,4,FALSE) -> 244 | AN193: =+VLOOKUP($AJ193,Dimensions!$B$5:$G$13,5,FALSE) -> 120 | AO193: =+VLOOKUP($AJ193,Dimensions!$B$5:$G$13,6,FALSE) -> 490 | AP193: K4 | AQ193: =+VLOOKUP($AP193,Dimensions!$B$5:$G$13,2,FALSE) -> 133 | AR193: =+VLOOKUP($AP193,Dimensions!$B$5:$G$13,3,FALSE) -> 317.5 | AS193: =+VLOOKUP($AP193,Dimensions!$B$5:$G$13,4,FALSE) -> 245 | AT193: =+VLOOKUP($AP193,Dimensions!$B$5:$G$13,5,FALSE) -> 105 | AU193: =+VLOOKUP($AP193,Dimensions!$B$5:$G$13,6,FALSE) -> 297.5 | AV193: 1903049
A194: 09 | B194: VLT Drives | C194: 046 | D194: Static frequency converters | E194: P281_400 | F194: 2805-2882 400V | G194: 09592 | H194: VLT 2881/400V | I194: 134H2470 | J194: VLT2881PT4B20SBR0DBF12A00C1 | K194: 134H2470 | L194: 1900386 | M194: 3x400 | N194: 15 | O194: Y | P194: R0 | Q194: no class | R194: PB 12Mbit | S194: Y | T194: 15 | U194: FC-280P15K | V194: T4 | W194: E20 | X194: H2 | Y194: B | Z194: XCXXX | AA194: SXXX | AB194: X | AC194: A0 | AE194: FC-280P15KT4E20H2BXCXXXSXXXXA0 | AF194: =+VLOOKUP(AE194,TypeCodesFC280!AH:AI,2,FALSE) -> 134U7754 | AG194: C3 | AH194: Profibus | AJ194: D | AK194: =+VLOOKUP($AJ194,Dimensions!$B$5:$G$13,2,FALSE) -> 200 | AL194: =+VLOOKUP($AJ194,Dimensions!$B$5:$G$13,3,FALSE) -> 505 | AM194: =+VLOOKUP($AJ194,Dimensions!$B$5:$G$13,4,FALSE) -> 244 | AN194: =+VLOOKUP($AJ194,Dimensions!$B$5:$G$13,5,FALSE) -> 120 | AO194: =+VLOOKUP($AJ194,Dimensions!$B$5:$G$13,6,FALSE) -> 490 | AP194: K4 | AQ194: =+VLOOKUP($AP194,Dimensions!$B$5:$G$13,2,FALSE) -> 133 | AR194: =+VLOOKUP($AP194,Dimensions!$B$5:$G$13,3,FALSE) -> 317.5 | AS194: =+VLOOKUP($AP194,Dimensions!$B$5:$G$13,4,FALSE) -> 245 | AT194: =+VLOOKUP($AP194,Dimensions!$B$5:$G$13,5,FALSE) -> 105 | AU194: =+VLOOKUP($AP194,Dimensions!$B$5:$G$13,6,FALSE) -> 297.5
A195: 09 | B195: VLT Drives | C195: 046 | D195: Static frequency converters | E195: P281_400 | F195: 2805-2882 400V | G195: 09592 | H195: VLT 2881/400V | I195: 134H2472 | J195: VLT2881PT4B20SBR3DBF12A00C1 | K195: 134H2472 | L195: 1900387 | M195: 3x400 | N195: 15 | O195: Y | P195: R3 | Q195: C2 / C1 | R195: PB 12Mbit | S195: Y | T195: 15 | U195: FC-280P15K | V195: T4 | W195: E20 | X195: H1 | Y195: B | Z195: XCXXX | AA195: SXXX | AB195: X | AC195: A0 | AE195: FC-280P15KT4E20H1BXCXXXSXXXXA0 | AF195: =+VLOOKUP(AE195,TypeCodesFC280!AH:AI,2,FALSE) -> 134U7723 | AG195: C2 | AH195: Profibus | AJ195: D | AK195: =+VLOOKUP($AJ195,Dimensions!$B$5:$G$13,2,FALSE) -> 200 | AL195: =+VLOOKUP($AJ195,Dimensions!$B$5:$G$13,3,FALSE) -> 505 | AM195: =+VLOOKUP($AJ195,Dimensions!$B$5:$G$13,4,FALSE) -> 244 | AN195: =+VLOOKUP($AJ195,Dimensions!$B$5:$G$13,5,FALSE) -> 120 | AO195: =+VLOOKUP($AJ195,Dimensions!$B$5:$G$13,6,FALSE) -> 490 | AP195: K4 | AQ195: =+VLOOKUP($AP195,Dimensions!$B$5:$G$13,2,FALSE) -> 133 | AR195: =+VLOOKUP($AP195,Dimensions!$B$5:$G$13,3,FALSE) -> 317.5 | AS195: =+VLOOKUP($AP195,Dimensions!$B$5:$G$13,4,FALSE) -> 245 | AT195: =+VLOOKUP($AP195,Dimensions!$B$5:$G$13,5,FALSE) -> 105 | AU195: =+VLOOKUP($AP195,Dimensions!$B$5:$G$13,6,FALSE) -> 297.5
A196: 09 | B196: VLT Drives | C196: 046 | D196: Static frequency converters | E196: P281_400 | F196: 2805-2882 400V | G196: 09592 | H196: VLT 2881/400V | I196: 134H2478 | J196: VLT2881PT4B20SBR0DBF30A00C1 | K196: 134H2478 | M196: 3x400 | N196: 15 | O196: Y | P196: R0 | Q196: no class | R196: DeviceNet | S196: Y | T196: 15 | U196: FC-280P15K | V196: T4 | W196: E20 | X196: H2 | Y196: B | Z196: XCXXX | AA196: SXXX | AB196: X | AC196: ? | AE196: FC-280P15KT4E20H2BXCXXXSXXXX? | AF196: =+VLOOKUP(AE196,TypeCodesFC280!AH:AI,2,FALSE) ->  | AG196: C3 | AH196: t.b. | AJ196: D | AK196: =+VLOOKUP($AJ196,Dimensions!$B$5:$G$13,2,FALSE) -> 200 | AL196: =+VLOOKUP($AJ196,Dimensions!$B$5:$G$13,3,FALSE) -> 505 | AM196: =+VLOOKUP($AJ196,Dimensions!$B$5:$G$13,4,FALSE) -> 244 | AN196: =+VLOOKUP($AJ196,Dimensions!$B$5:$G$13,5,FALSE) -> 120 | AO196: =+VLOOKUP($AJ196,Dimensions!$B$5:$G$13,6,FALSE) -> 490 | AP196: K4 | AQ196: =+VLOOKUP($AP196,Dimensions!$B$5:$G$13,2,FALSE) -> 133 | AR196: =+VLOOKUP($AP196,Dimensions!$B$5:$G$13,3,FALSE) -> 317.5 | AS196: =+VLOOKUP($AP196,Dimensions!$B$5:$G$13,4,FALSE) -> 245 | AT196: =+VLOOKUP($AP196,Dimensions!$B$5:$G$13,5,FALSE) -> 105 | AU196: =+VLOOKUP($AP196,Dimensions!$B$5:$G$13,6,FALSE) -> 297.5
A197: 09 | B197: VLT Drives | C197: 046 | D197: Static frequency converters | E197: P281_400 | F197: 2805-2882 400V | G197: 09592 | H197: VLT 2881/400V | I197: 134L1302 | J197: TR12881PT4B20SBR3DBF00A00C1 | K197: 134L1302 | M197: 3x400 | N197: 15 | O197: Y | P197: R3 | Q197: C2 / C1 | R197: Standard | S197: Y | T197: 15 | U197: FC-280P15K | V197: T4 | W197: E20 | X197: H1 | Y197: B | Z197: XCXXX | AA197: SXXX | AB197: X | AC197: AX | AE197: FC-280P15KT4E20H1BXCXXXSXXXXAX | AF197: =+VLOOKUP(AE197,TypeCodesFC280!AH:AI,2,FALSE) -> 134U2988 | AG197: C2 | AH197: Modbus RTU | AJ197: D | AK197: =+VLOOKUP($AJ197,Dimensions!$B$5:$G$13,2,FALSE) -> 200 | AL197: =+VLOOKUP($AJ197,Dimensions!$B$5:$G$13,3,FALSE) -> 505 | AM197: =+VLOOKUP($AJ197,Dimensions!$B$5:$G$13,4,FALSE) -> 244 | AN197: =+VLOOKUP($AJ197,Dimensions!$B$5:$G$13,5,FALSE) -> 120 | AO197: =+VLOOKUP($AJ197,Dimensions!$B$5:$G$13,6,FALSE) -> 490 | AP197: K4 | AQ197: =+VLOOKUP($AP197,Dimensions!$B$5:$G$13,2,FALSE) -> 133 | AR197: =+VLOOKUP($AP197,Dimensions!$B$5:$G$13,3,FALSE) -> 317.5 | AS197: =+VLOOKUP($AP197,Dimensions!$B$5:$G$13,4,FALSE) -> 245 | AT197: =+VLOOKUP($AP197,Dimensions!$B$5:$G$13,5,FALSE) -> 105 | AU197: =+VLOOKUP($AP197,Dimensions!$B$5:$G$13,6,FALSE) -> 297.5 | AV197: 1903050
A198: 09 | B198: VLT Drives | C198: 046 | D198: Static frequency converters | E198: P281_400 | F198: 2805-2882 400V | G198: 09592 | H198: VLT 2881/400V | I198: 134L4511 | J198: VLT2881PT4B20SBR3DBF30A00C1 | K198: 134L4511 | M198: 3x400 | N198: 15 | O198: Y | P198: R3 | Q198: C2 / C1 | R198: DeviceNet | S198: Y | T198: 15 | U198: FC-280P15K | V198: T4 | W198: E20 | X198: H1 | Y198: B | Z198: XCXXX | AA198: SXXX | AB198: X | AC198: ? | AE198: FC-280P15KT4E20H1BXCXXXSXXXX? | AF198: =+VLOOKUP(AE198,TypeCodesFC280!AH:AI,2,FALSE) ->  | AG198: C2 | AH198: t.b. | AJ198: D | AK198: =+VLOOKUP($AJ198,Dimensions!$B$5:$G$13,2,FALSE) -> 200 | AL198: =+VLOOKUP($AJ198,Dimensions!$B$5:$G$13,3,FALSE) -> 505 | AM198: =+VLOOKUP($AJ198,Dimensions!$B$5:$G$13,4,FALSE) -> 244 | AN198: =+VLOOKUP($AJ198,Dimensions!$B$5:$G$13,5,FALSE) -> 120 | AO198: =+VLOOKUP($AJ198,Dimensions!$B$5:$G$13,6,FALSE) -> 490 | AP198: K4 | AQ198: =+VLOOKUP($AP198,Dimensions!$B$5:$G$13,2,FALSE) -> 133 | AR198: =+VLOOKUP($AP198,Dimensions!$B$5:$G$13,3,FALSE) -> 317.5 | AS198: =+VLOOKUP($AP198,Dimensions!$B$5:$G$13,4,FALSE) -> 245 | AT198: =+VLOOKUP($AP198,Dimensions!$B$5:$G$13,5,FALSE) -> 105 | AU198: =+VLOOKUP($AP198,Dimensions!$B$5:$G$13,6,FALSE) -> 297.5
A199: 09 | B199: VLT Drives | C199: 046 | D199: Static frequency converters | E199: P281_400 | F199: 2805-2882 400V | G199: 09592 | H199: VLT 2881/400V | I199: 134L4906 | J199: ABU2881PT4B20SBR3DBF00A00C1 | K199: 134L4906 | M199: 3x400 | N199: 15 | O199: Y | P199: R3 | Q199: C2 / C1 | R199: Standard | S199: Y | T199: 15 | U199: FC-280P15K | V199: T4 | W199: E20 | X199: H1 | Y199: B | Z199: XCXXX | AA199: SXXX | AB199: X | AC199: AX | AE199: FC-280P15KT4E20H1BXCXXXSXXXXAX | AF199: =+VLOOKUP(AE199,TypeCodesFC280!AH:AI,2,FALSE) -> 134U2988 | AG199: C2 | AH199: Modbus RTU | AJ199: D | AK199: =+VLOOKUP($AJ199,Dimensions!$B$5:$G$13,2,FALSE) -> 200 | AL199: =+VLOOKUP($AJ199,Dimensions!$B$5:$G$13,3,FALSE) -> 505 | AM199: =+VLOOKUP($AJ199,Dimensions!$B$5:$G$13,4,FALSE) -> 244 | AN199: =+VLOOKUP($AJ199,Dimensions!$B$5:$G$13,5,FALSE) -> 120 | AO199: =+VLOOKUP($AJ199,Dimensions!$B$5:$G$13,6,FALSE) -> 490 | AP199: K4 | AQ199: =+VLOOKUP($AP199,Dimensions!$B$5:$G$13,2,FALSE) -> 133 | AR199: =+VLOOKUP($AP199,Dimensions!$B$5:$G$13,3,FALSE) -> 317.5 | AS199: =+VLOOKUP($AP199,Dimensions!$B$5:$G$13,4,FALSE) -> 245 | AT199: =+VLOOKUP($AP199,Dimensions!$B$5:$G$13,5,FALSE) -> 105 | AU199: =+VLOOKUP($AP199,Dimensions!$B$5:$G$13,6,FALSE) -> 297.5 | AV199: 1903050
A200: 09 | B200: VLT Drives | C200: 046 | D200: Static frequency converters | E200: P281_400 | F200: 2805-2882 400V | G200: 09592 | H200: VLT 2881/400V | I200: 134L4918 | J200: ABU2881PT4B20SBR3DBF12A00C1 | K200: 134L4918 | M200: 3x400 | N200: 15 | O200: Y | P200: R3 | Q200: C2 / C1 | R200: PB 12Mbit | S200: Y | T200: 15 | U200: FC-280P15K | V200: T4 | W200: E20 | X200: H1 | Y200: B | Z200: XCXXX | AA200: SXXX | AB200: X | AC200: A0 | AE200: =+CONCATENATE(U200,V200,W200,X200,Y200,Z200,AA200,AB200,AC200) -> FC-280P15KT4E20H1BXCXXXSXXXXA0 | AF200: =+VLOOKUP(AE200,TypeCodesFC280!AH:AI,2,FALSE) -> 134U7723 | AG200: C2 | AH200: Profibus | AJ200: D | AK200: =+VLOOKUP($AJ200,Dimensions!$B$5:$G$13,2,FALSE) -> 200 | AL200: =+VLOOKUP($AJ200,Dimensions!$B$5:$G$13,3,FALSE) -> 505 | AM200: =+VLOOKUP($AJ200,Dimensions!$B$5:$G$13,4,FALSE) -> 244 | AN200: =+VLOOKUP($AJ200,Dimensions!$B$5:$G$13,5,FALSE) -> 120 | AO200: =+VLOOKUP($AJ200,Dimensions!$B$5:$G$13,6,FALSE) -> 490 | AP200: K4 | AQ200: =+VLOOKUP($AP200,Dimensions!$B$5:$G$13,2,FALSE) -> 133 | AR200: =+VLOOKUP($AP200,Dimensions!$B$5:$G$13,3,FALSE) -> 317.5 | AS200: =+VLOOKUP($AP200,Dimensions!$B$5:$G$13,4,FALSE) -> 245 | AT200: =+VLOOKUP($AP200,Dimensions!$B$5:$G$13,5,FALSE) -> 105 | AU200: =+VLOOKUP($AP200,Dimensions!$B$5:$G$13,6,FALSE) -> 297.5
... 616 more rows

Sheet TypeCodesFC280
B2: 134U2184 | C2: F | D2: C | E2: - | F2: 2 | G2: 8 | H2: 0 | I2: P | J2: K | K2: 3 | L2: 7 | M2: T | N2: 4 | O2: E | P2: 2 | Q2: 0 | R2: H | S2: 1 | T2: B | U2: X | V2: C | W2: X | X2: X | Y2: X | Z2: S | AA2: X | AB2: X | AC2: X | AD2: X | AE2: A | AF2: X | AH2: =+CONCATENATE(C2,D2,E2,F2,G2,H2,I2,J2,K2,L2,M2,N2,O2,P2,Q2,R2,S2,T2,U2,V2,W2,X2,Y2,Z2,AA2,AB2,AC2,AD2,AE2,AF2) -> FC-280PK37T4E20H1BXCXXXSXXXXAX | AI2: 134U2184 | AJ2: K1
B3: 134U2978 | C3: F | D3: C | E3: - | F3: 2 | G3: 8 | H3: 0 | I3: P | J3: K | K3: 5 | L3: 5 | M3: T | N3: 4 | O3: E | P3: 2 | Q3: 0 | R3: H | S3: 1 | T3: B | U3: X | V3: C | W3: X | X3: X | Y3: X | Z3: S | AA3: X | AB3: X | AC3: X | AD3: X | AE3: A | AF3: X | AH3: =+CONCATENATE(C3,D3,E3,F3,G3,H3,I3,J3,K3,L3,M3,N3,O3,P3,Q3,R3,S3,T3,U3,V3,W3,X3,Y3,Z3,AA3,AB3,AC3,AD3,AE3,AF3) -> FC-280PK55T4E20H1BXCXXXSXXXXAX | AI3: 134U2978 | AJ3: K1
B4: 134U2979 | C4: F | D4: C | E4: - | F4: 2 | G4: 8 | H4: 0 | I4: P | J4: K | K4: 7 | L4: 5 | M4: T | N4: 4 | O4: E | P4: 2 | Q4: 0 | R4: H | S4: 1 | T4: B | U4: X | V4: C | W4: X | X4: X | Y4: X | Z4: S | AA4: X | AB4: X | AC4: X | AD4: X | AE4: A | AF4: X | AH4: FC-280PK75T4E20H1BXCXXXSXXXXAX | AI4: 134U2979 | AJ4: K1
B5: 134U2980 | C5: F | D5: C | E5: - | F5: 2 | G5: 8 | H5: 0 | I5: P | J5: 1 | K5: K | L5: 1 | M5: T | N5: 4 | O5: E | P5: 2 | Q5: 0 | R5: H | S5: 1 | T5: B | U5: X | V5: C | W5: X | X5: X | Y5: X | Z5: S | AA5: X | AB5: X | AC5: X | AD5: X | AE5: A | AF5: X | AH5: FC-280P1K1T4E20H1BXCXXXSXXXXAX | AI5: 134U2980 | AJ5: K1
B6: 134U2981 | C6: F | D6: C | E6: - | F6: 2 | G6: 8 | H6: 0 | I6: P | J6: 1 | K6: K | L6: 5 | M6: T | N6: 4 | O6: E | P6: 2 | Q6: 0 | R6: H | S6: 1 | T6: B | U6: X | V6: C | W6: X | X6: X | Y6: X | Z6: S | AA6: X | AB6: X | AC6: X | AD6: X | AE6: A | AF6: X | AH6: FC-280P1K5T4E20H1BXCXXXSXXXXAX | AI6: 134U2981 | AJ6: K1
B7: 134U2982 | C7: F | D7: C | E7: - | F7: 2 | G7: 8 | H7: 0 | I7: P | J7: 2 | K7: K | L7: 2 | M7: T | N7: 4 | O7: E | P7: 2 | Q7: 0 | R7: H | S7: 1 | T7: B | U7: X | V7: C | W7: X | X7: X | Y7: X | Z7: S | AA7: X | AB7: X | AC7: X | AD7: X | AE7: A | AF7: X | AH7: FC-280P2K2T4E20H1BXCXXXSXXXXAX | AI7: 134U2982 | AJ7: K1
B8: 134U2983 | C8: F | D8: C | E8: - | F8: 2 | G8: 8 | H8: 0 | I8: P | J8: 3 | K8: K | L8: 0 | M8: T | N8: 4 | O8: E | P8: 2 | Q8: 0 | R8: H | S8: 1 | T8: B | U8: X | V8: C | W8: X | X8: X | Y8: X | Z8: S | AA8: X | AB8: X | AC8: X | AD8: X | AE8: A | AF8: X | AH8: FC-280P3K0T4E20H1BXCXXXSXXXXAX | AI8: 134U2983 | AJ8: K2
B9: 134U2984 | C9: F | D9: C | E9: - | F9: 2 | G9: 8 | H9: 0 | I9: P | J9: 4 | K9: K | L9: 0 | M9: T | N9: 4 | O9: E | P9: 2 | Q9: 0 | R9: H | S9: 1 | T9: B | U9: X | V9: C | W9: X | X9: X | Y9: X | Z9: S | AA9: X | AB9: X | AC9: X | AD9: X | AE9: A | AF9: X | AH9: FC-280P4K0T4E20H1BXCXXXSXXXXAX | AI9: 134U2984 | AJ9: K2
B10: 134U2985 | C10: F | D10: C | E10: - | F10: 2 | G10: 8 | H10: 0 | I10: P | J10: 5 | K10: K | L10: 5 | M10: T | N10: 4 | O10: E | P10: 2 | Q10: 0 | R10: H | S10: 1 | T10: B | U10: X | V10: C | W10: X | X10: X | Y10: X | Z10: S | AA10: X | AB10: X | AC10: X | AD10: X | AE10: A | AF10: X | AH10: FC-280P5K5T4E20H1BXCXXXSXXXXAX | AI10: 134U2985 | AJ10: K2
B11: 134U2986 | C11: F | D11: C | E11: - | F11: 2 | G11: 8 | H11: 0 | I11: P | J11: 7 | K11: K | L11: 5 | M11: T | N11: 4 | O11: E | P11: 2 | Q11: 0 | R11: H | S11: 1 | T11: B | U11: X | V11: C | W11: X | X11: X | Y11: X | Z11: S | AA11: X | AB11: X | AC11: X | AD11: X | AE11: A | AF11: X | AH11: FC-280P7K5T4E20H1BXCXXXSXXXXAX | AI11: 134U2986 | AJ11: K3
B12: 134U2987 | C12: F | D12: C | E12: - | F12: 2 | G12: 8 | H12: 0 | I12: P | J12: 1 | K12: 1 | L12: K | M12: T | N12: 4 | O12: E | P12: 2 | Q12: 0 | R12: H | S12: 1 | T12: B | U12: X | V12: C | W12: X | X12: X | Y12: X | Z12: S | AA12: X | AB12: X | AC12: X | AD12: X | AE12: A | AF12: X | AH12: FC-280P11KT4E20H1BXCXXXSXXXXAX | AI12: 134U2987 | AJ12: K4
B13: 134U2988 | C13: F | D13: C | E13: - | F13: 2 | G13: 8 | H13: 0 | I13: P | J13: 1 | K13: 5 | L13: K | M13: T | N13: 4 | O13: E | P13: 2 | Q13: 0 | R13: H | S13: 1 | T13: B | U13: X | V13: C | W13: X | X13: X | Y13: X | Z13: S | AA13: X | AB13: X | AC13: X | AD13: X | AE13: A | AF13: X | AH13: FC-280P15KT4E20H1BXCXXXSXXXXAX | AI13: 134U2988 | AJ13: K4
B14: 134U2989 | C14: F | D14: C | E14: - | F14: 2 | G14: 8 | H14: 0 | I14: P | J14: 1 | K14: 8 | L14: K | M14: T | N14: 4 | O14: E | P14: 2 | Q14: 0 | R14: H | S14: 1 | T14: B | U14: X | V14: C | W14: X | X14: X | Y14: X | Z14: S | AA14: X | AB14: X | AC14: X | AD14: X | AE14: A | AF14: X | AH14: FC-280P18KT4E20H1BXCXXXSXXXXAX | AI14: 134U2989 | AJ14: K5
B15: 134U2990 | C15: F | D15: C | E15: - | F15: 2 | G15: 8 | H15: 0 | I15: P | J15: 2 | K15: 2 | L15: K | M15: T | N15: 4 | O15: E | P15: 2 | Q15: 0 | R15: H | S15: 1 | T15: B | U15: X | V15: C | W15: X | X15: X | Y15: X | Z15: S | AA15: X | AB15: X | AC15: X | AD15: X | AE15: A | AF15: X | AH15: FC-280P22KT4E20H1BXCXXXSXXXXAX | AI15: 134U2990 | AJ15: K5
B17: 134U3006 | C17: F | D17: C | E17: - | F17: 2 | G17: 8 | H17: 0 | I17: P | J17: K | K17: 3 | L17: 7 | M17: T | N17: 4 | O17: E | P17: 2 | Q17: 0 | R17: H | S17: 2 | T17: B | U17: X | V17: C | W17: X | X17: X | Y17: X | Z17: S | AA17: X | AB17: X | AC17: X | AD17: X | AE17: A | AF17: X | AH17: FC-280PK37T4E20H2BXCXXXSXXXXAX | AI17: 134U3006 | AJ17: K1
B18: 134U3007 | C18: F | D18: C | E18: - | F18: 2 | G18: 8 | H18: 0 | I18: P | J18: K | K18: 5 | L18: 5 | M18: T | N18: 4 | O18: E | P18: 2 | Q18: 0 | R18: H | S18: 2 | T18: B | U18: X | V18: C | W18: X | X18: X | Y18: X | Z18: S | AA18: X | AB18: X | AC18: X | AD18: X | AE18: A | AF18: X | AH18: FC-280PK55T4E20H2BXCXXXSXXXXAX | AI18: 134U3007 | AJ18: K1
B19: 134U3008 | C19: F | D19: C | E19: - | F19: 2 | G19: 8 | H19: 0 | I19: P | J19: K | K19: 7 | L19: 5 | M19: T | N19: 4 | O19: E | P19: 2 | Q19: 0 | R19: H | S19: 2 | T19: B | U19: X | V19: C | W19: X | X19: X | Y19: X | Z19: S | AA19: X | AB19: X | AC19: X | AD19: X | AE19: A | AF19: X | AH19: FC-280PK75T4E20H2BXCXXXSXXXXAX | AI19: 134U3008 | AJ19: K1
B20: 134U3009 | C20: F | D20: C | E20: - | F20: 2 | G20: 8 | H20: 0 | I20: P | J20: 1 | K20: K | L20: 1 | M20: T | N20: 4 | O20: E | P20: 2 | Q20: 0 | R20: H | S20: 2 | T20: B | U20: X | V20: C | W20: X | X20: X | Y20: X | Z20: S | AA20: X | AB20: X | AC20: X | AD20: X | AE20: A | AF20: X | AH20: FC-280P1K1T4E20H2BXCXXXSXXXXAX | AI20: 134U3009 | AJ20: K1
B21: 134U3010 | C21: F | D21: C | E21: - | F21: 2 | G21: 8 | H21: 0 | I21: P | J21: 1 | K21: K | L21: 5 | M21: T | N21: 4 | O21: E | P21: 2 | Q21: 0 | R21: H | S21: 2 | T21: B | U21: X | V21: C | W21: X | X21: X | Y21: X | Z21: S | AA21: X | AB21: X | AC21: X | AD21: X | AE21: A | AF21: X | AH21: FC-280P1K5T4E20H2BXCXXXSXXXXAX | AI21: 134U3010 | AJ21: K1
B22: 134U3011 | C22: F | D22: C | E22: - | F22: 2 | G22: 8 | H22: 0 | I22: P | J22: 2 | K22: K | L22: 2 | M22: T | N22: 4 | O22: E | P22: 2 | Q22: 0 | R22: H | S22: 2 | T22: B | U22: X | V22: C | W22: X | X22: X | Y22: X | Z22: S | AA22: X | AB22: X | AC22: X | AD22: X | AE22: A | AF22: X | AH22: FC-280P2K2T4E20H2BXCXXXSXXXXAX | AI22: 134U3011 | AJ22: K1
B23: 134U3012 | C23: F | D23: C | E23: - | F23: 2 | G23: 8 | H23: 0 | I23: P | J23: 3 | K23: K | L23: 0 | M23: T | N23: 4 | O23: E | P23: 2 | Q23: 0 | R23: H | S23: 2 | T23: B | U23: X | V23: C | W23: X | X23: X | Y23: X | Z23: S | AA23: X | AB23: X | AC23: X | AD23: X | AE23: A | AF23: X | AH23: FC-280P3K0T4E20H2BXCXXXSXXXXAX | AI23: 134U3012 | AJ23: K2
B24: 134U3013 | C24: F | D24: C | E24: - | F24: 2 | G24: 8 | H24: 0 | I24: P | J24: 4 | K24: K | L24: 0 | M24: T | N24: 4 | O24: E | P24: 2 | Q24: 0 | R24: H | S24: 2 | T24: B | U24: X | V24: C | W24: X | X24: X | Y24: X | Z24: S | AA24: X | AB24: X | AC24: X | AD24: X | AE24: A | AF24: X | AH24: FC-280P4K0T4E20H2BXCXXXSXXXXAX | AI24: 134U3013 | AJ24: K2
B25: 134U3014 | C25: F | D25: C | E25: - | F25: 2 | G25: 8 | H25: 0 | I25: P | J25: 5 | K25: K | L25: 5 | M25: T | N25: 4 | O25: E | P25: 2 | Q25: 0 | R25: H | S25: 2 | T25: B | U25: X | V25: C | W25: X | X25: X | Y25: X | Z25: S | AA25: X | AB25: X | AC25: X | AD25: X | AE25: A | AF25: X | AH25: FC-280P5K5T4E20H2BXCXXXSXXXXAX | AI25: 134U3014 | AJ25: K2
B26: 134U3015 | C26: F | D26: C | E26: - | F26: 2 | G26: 8 | H26: 0 | I26: P | J26: 7 | K26: K | L26: 5 | M26: T | N26: 4 | O26: E | P26: 2 | Q26: 0 | R26: H | S26: 2 | T26: B | U26: X | V26: C | W26: X | X26: X | Y26: X | Z26: S | AA26: X | AB26: X | AC26: X | AD26: X | AE26: A | AF26: X | AH26: FC-280P7K5T4E20H2BXCXXXSXXXXAX | AI26: 134U3015 | AJ26: K3
B27: 134U3016 | C27: F | D27: C | E27: - | F27: 2 | G27: 8 | H27: 0 | I27: P | J27: 1 | K27: 1 | L27: K | M27: T | N27: 4 | O27: E | P27: 2 | Q27: 0 | R27: H | S27: 2 | T27: B | U27: X | V27: C | W27: X | X27: X | Y27: X | Z27: S | AA27: X | AB27: X | AC27: X | AD27: X | AE27: A | AF27: X | AH27: FC-280P11KT4E20H2BXCXXXSXXXXAX | AI27: 134U3016 | AJ27: K4
B28: 134U3017 | C28: F | D28: C | E28: - | F28: 2 | G28: 8 | H28: 0 | I28: P | J28: 1 | K28: 5 | L28: K | M28: T | N28: 4 | O28: E | P28: 2 | Q28: 0 | R28: H | S28: 2 | T28: B | U28: X | V28: C | W28: X | X28: X | Y28: X | Z28: S | AA28: X | AB28: X | AC28: X | AD28: X | AE28: A | AF28: X | AH28: FC-280P15KT4E20H2BXCXXXSXXXXAX | AI28: 134U3017 | AJ28: K4
B29: 134U3018 | C29: F | D29: C | E29: - | F29: 2 | G29: 8 | H29: 0 | I29: P | J29: 1 | K29: 8 | L29: K | M29: T | N29: 4 | O29: E | P29: 2 | Q29: 0 | R29: H | S29: 2 | T29: B | U29: X | V29: C | W29: X | X29: X | Y29: X | Z29: S | AA29: X | AB29: X | AC29: X | AD29: X | AE29: A | AF29: X | AH29: FC-280P18KT4E20H2BXCXXXSXXXXAX | AI29: 134U3018 | AJ29: K5
B30: 134U3019 | C30: F | D30: C | E30: - | F30: 2 | G30: 8 | H30: 0 | I30: P | J30: 2 | K30: 2 | L30: K | M30: T | N30: 4 | O30: E | P30: 2 | Q30: 0 | R30: H | S30: 2 | T30: B | U30: X | V30: C | W30: X | X30: X | Y30: X | Z30: S | AA30: X | AB30: X | AC30: X | AD30: X | AE30: A | AF30: X | AH30: FC-280P22KT4E20H2BXCXXXSXXXXAX | AI30: 134U3019 | AJ30: K5
B32: 134U7942 | C32: F | D32: C | E32: - | F32: 2 | G32: 8 | H32: 0 | I32: P | J32: K | K32: 3 | L32: 7 | M32: T | N32: 2 | O32: E | P32: 2 | Q32: 0 | R32: H | S32: 2 | T32: B | U32: X | V32: C | W32: X | X32: X | Y32: X | Z32: S | AA32: X | AB32: X | AC32: X | AD32: X | AE32: A | AF32: X | AH32: FC-280PK37T2E20H2BXCXXXSXXXXAX | AI32: 134U7942 | AJ32: K1
B33: 134U7943 | C33: F | D33: C | E33: - | F33: 2 | G33: 8 | H33: 0 | I33: P | J33: K | K33: 5 | L33: 5 | M33: T | N33: 2 | O33: E | P33: 2 | Q33: 0 | R33: H | S33: 2 | T33: B | U33: X | V33: C | W33: X | X33: X | Y33: X | Z33: S | AA33: X | AB33: X | AC33: X | AD33: X | AE33: A | AF33: X | AH33: FC-280PK55T2E20H2BXCXXXSXXXXAX | AI33: 134U7943 | AJ33: K1
B34: 134U7944 | C34: F | D34: C | E34: - | F34: 2 | G34: 8 | H34: 0 | I34: P | J34: K | K34: 7 | L34: 5 | M34: T | N34: 2 | O34: E | P34: 2 | Q34: 0 | R34: H | S34: 2 | T34: B | U34: X | V34: C | W34: X | X34: X | Y34: X | Z34: S | AA34: X | AB34: X | AC34: X | AD34: X | AE34: A | AF34: X | AH34: FC-280PK75T2E20H2BXCXXXSXXXXAX | AI34: 134U7944 | AJ34: K1
B35: 134U7945 | C35: F | D35: C | E35: - | F35: 2 | G35: 8 | H35: 0 | I35: P | J35: 1 | K35: K | L35: 1 | M35: T | N35: 2 | O35: E | P35: 2 | Q35: 0 | R35: H | S35: 2 | T35: B | U35: X | V35: C | W35: X | X35: X | Y35: X | Z35: S | AA35: X | AB35: X | AC35: X | AD35: X | AE35: A | AF35: X | AH35: FC-280P1K1T2E20H2BXCXXXSXXXXAX | AI35: 134U7945 | AJ35: K1
B36: 134U7946 | C36: F | D36: C | E36: - | F36: 2 | G36: 8 | H36: 0 | I36: P | J36: 1 | K36: K | L36: 5 | M36: T | N36: 2 | O36: E | P36: 2 | Q36: 0 | R36: H | S36: 2 | T36: B | U36: X | V36: C | W36: X | X36: X | Y36: X | Z36: S | AA36: X | AB36: X | AC36: X | AD36: X | AE36: A | AF36: X | AH36: FC-280P1K5T2E20H2BXCXXXSXXXXAX | AI36: 134U7946 | AJ36: K1
B37: 134U7947 | C37: F | D37: C | E37: - | F37: 2 | G37: 8 | H37: 0 | I37: P | J37: 2 | K37: K | L37: 2 | M37: T | N37: 2 | O37: E | P37: 2 | Q37: 0 | R37: H | S37: 2 | T37: B | U37: X | V37: C | W37: X | X37: X | Y37: X | Z37: S | AA37: X | AB37: X | AC37: X | AD37: X | AE37: A | AF37: X | AH37: FC-280P2K2T2E20H2BXCXXXSXXXXAX | AI37: 134U7947 | AJ37: K2
B38: 134U7948 | C38: F | D38: C | E38: - | F38: 2 | G38: 8 | H38: 0 | I38: P | J38: 3 | K38: K | L38: 7 | M38: T | N38: 2 | O38: E | P38: 2 | Q38: 0 | R38: H | S38: 2 | T38: B | U38: X | V38: C | W38: X | X38: X | Y38: X | Z38: S | AA38: X | AB38: X | AC38: X | AD38: X | AE38: A | AF38: X | AH38: FC-280P3K7T2E20H2BXCXXXSXXXXAX | AI38: 134U7948 | AJ38: K3
B40: 134X3042 | C40: F | D40: C | E40: - | F40: 2 | G40: 8 | H40: 0 | I40: P | J40: K | K40: 3 | L40: 7 | M40: S | N40: 2 | O40: E | P40: 2 | Q40: 0 | R40: H | S40: 1 | T40: X | U40: X | V40: C | W40: X | X40: X | Y40: X | Z40: S | AA40: X | AB40: X | AC40: X | AD40: X | AE40: A | AF40: X | AH40: FC-280PK37S2E20H1XXCXXXSXXXXAX | AI40: 134X3042 | AJ40: K1
B41: 134X3053 | C41: F | D41: C | E41: - | F41: 2 | G41: 8 | H41: 0 | I41: P | J41: K | K41: 5 | L41: 5 | M41: S | N41: 2 | O41: E | P41: 2 | Q41: 0 | R41: H | S41: 1 | T41: X | U41: X | V41: C | W41: X | X41: X | Y41: X | Z41: S | AA41: X | AB41: X | AC41: X | AD41: X | AE41: A | AF41: X | AH41: FC-280PK55S2E20H1XXCXXXSXXXXAX | AI41: 134X3053 | AJ41: K1
B42: 134X3054 | C42: F | D42: C | E42: - | F42: 2 | G42: 8 | H42: 0 | I42: P | J42: K | K42: 7 | L42: 5 | M42: S | N42: 2 | O42: E | P42: 2 | Q42: 0 | R42: H | S42: 1 | T42: X | U42: X | V42: C | W42: X | X42: X | Y42: X | Z42: S | AA42: X | AB42: X | AC42: X | AD42: X | AE42: A | AF42: X | AH42: FC-280PK75S2E20H1XXCXXXSXXXXAX | AI42: 134X3054 | AJ42: K1
B43: 134X3055 | C43: F | D43: C | E43: - | F43: 2 | G43: 8 | H43: 0 | I43: P | J43: 1 | K43: K | L43: 1 | M43: S | N43: 2 | O43: E | P43: 2 | Q43: 0 | R43: H | S43: 1 | T43: X | U43: X | V43: C | W43: X | X43: X | Y43: X | Z43: S | AA43: X | AB43: X | AC43: X | AD43: X | AE43: A | AF43: X | AH43: FC-280P1K1S2E20H1XXCXXXSXXXXAX | AI43: 134X3055 | AJ43: K1
B44: 134X3056 | C44: F | D44: C | E44: - | F44: 2 | G44: 8 | H44: 0 | I44: P | J44: 1 | K44: K | L44: 5 | M44: S | N44: 2 | O44: E | P44: 2 | Q44: 0 | R44: H | S44: 1 | T44: X | U44: X | V44: C | W44: X | X44: X | Y44: X | Z44: S | AA44: X | AB44: X | AC44: X | AD44: X | AE44: A | AF44: X | AH44: FC-280P1K5S2E20H1XXCXXXSXXXXAX | AI44: 134X3056 | AJ44: K1
B45: 134X3057 | C45: F | D45: C | E45: - | F45: 2 | G45: 8 | H45: 0 | I45: P | J45: 2 | K45: K | L45: 2 | M45: S | N45: 2 | O45: E | P45: 2 | Q45: 0 | R45: H | S45: 1 | T45: X | U45: X | V45: C | W45: X | X45: X | Y45: X | Z45: S | AA45: X | AB45: X | AC45: X | AD45: X | AE45: A | AF45: X | AH45: FC-280P2K2S2E20H1XXCXXXSXXXXAX | AI45: 134X3057 | AJ45: K2
B47: 134U2992 | C47: F | D47: C | E47: - | F47: 2 | G47: 8 | H47: 0 | I47: P | J47: K | K47: 3 | L47: 7 | M47: T | N47: 4 | O47: E | P47: 2 | Q47: 0 | R47: H | S47: 1 | T47: B | U47: X | V47: C | W47: X | X47: X | Y47: X | Z47: S | AA47: X | AB47: X | AC47: X | AD47: X | AE47: A | AF47: 6 | AH47: FC-280PK37T4E20H1BXCXXXSXXXXA6 | AI47: 134U2992 | AJ47: K1
B48: 134U2993 | C48: F | D48: C | E48: - | F48: 2 | G48: 8 | H48: 0 | I48: P | J48: K | K48: 5 | L48: 5 | M48: T | N48: 4 | O48: E | P48: 2 | Q48: 0 | R48: H | S48: 1 | T48: B | U48: X | V48: C | W48: X | X48: X | Y48: X | Z48: S | AA48: X | AB48: X | AC48: X | AD48: X | AE48: A | AF48: 6 | AH48: FC-280PK55T4E20H1BXCXXXSXXXXA6 | AI48: 134U2993 | AJ48: K1
B49: 134U2994 | C49: F | D49: C | E49: - | F49: 2 | G49: 8 | H49: 0 | I49: P | J49: K | K49: 7 | L49: 5 | M49: T | N49: 4 | O49: E | P49: 2 | Q49: 0 | R49: H | S49: 1 | T49: B | U49: X | V49: C | W49: X | X49: X | Y49: X | Z49: S | AA49: X | AB49: X | AC49: X | AD49: X | AE49: A | AF49: 6 | AH49: FC-280PK75T4E20H1BXCXXXSXXXXA6 | AI49: 134U2994 | AJ49: K1
B50: 134U2995 | C50: F | D50: C | E50: - | F50: 2 | G50: 8 | H50: 0 | I50: P | J50: 1 | K50: K | L50: 1 | M50: T | N50: 4 | O50: E | P50: 2 | Q50: 0 | R50: H | S50: 1 | T50: B | U50: X | V50: C | W50: X | X50: X | Y50: X | Z50: S | AA50: X | AB50: X | AC50: X | AD50: X | AE50: A | AF50: 6 | AH50: FC-280P1K1T4E20H1BXCXXXSXXXXA6 | AI50: 134U2995 | AJ50: K1
B51: 134U2996 | C51: F | D51: C | E51: - | F51: 2 | G51: 8 | H51: 0 | I51: P | J51: 1 | K51: K | L51: 5 | M51: T | N51: 4 | O51: E | P51: 2 | Q51: 0 | R51: H | S51: 1 | T51: B | U51: X | V51: C | W51: X | X51: X | Y51: X | Z51: S | AA51: X | AB51: X | AC51: X | AD51: X | AE51: A | AF51: 6 | AH51: FC-280P1K5T4E20H1BXCXXXSXXXXA6 | AI51: 134U2996 | AJ51: K1
B52: 134U2997 | C52: F | D52: C | E52: - | F52: 2 | G52: 8 | H52: 0 | I52: P | J52: 2 | K52: K | L52: 2 | M52: T | N52: 4 | O52: E | P52: 2 | Q52: 0 | R52: H | S52: 1 | T52: B | U52: X | V52: C | W52: X | X52: X | Y52: X | Z52: S | AA52: X | AB52: X | AC52: X | AD52: X | AE52: A | AF52: 6 | AH52: FC-280P2K2T4E20H1BXCXXXSXXXXA6 | AI52: 134U2997 | AJ52: K1
B53: 134U2998 | C53: F | D53: C | E53: - | F53: 2 | G53: 8 | H53: 0 | I53: P | J53: 3 | K53: K | L53: 0 | M53: T | N53: 4 | O53: E | P53: 2 | Q53: 0 | R53: H | S53: 1 | T53: B | U53: X | V53: C | W53: X | X53: X | Y53: X | Z53: S | AA53: X | AB53: X | AC53: X | AD53: X | AE53: A | AF53: 6 | AH53: FC-280P3K0T4E20H1BXCXXXSXXXXA6 | AI53: 134U2998 | AJ53: K2
B54: 134U2999 | C54: F | D54: C | E54: - | F54: 2 | G54: 8 | H54: 0 | I54: P | J54: 4 | K54: K | L54: 0 | M54: T | N54: 4 | O54: E | P54: 2 | Q54: 0 | R54: H | S54: 1 | T54: B | U54: X | V54: C | W54: X | X54: X | Y54: X | Z54: S | AA54: X | AB54: X | AC54: X | AD54: X | AE54: A | AF54: 6 | AH54: FC-280P4K0T4E20H1BXCXXXSXXXXA6 | AI54: 134U2999 | AJ54: K2
B55: 134U3000 | C55: F | D55: C | E55: - | F55: 2 | G55: 8 | H55: 0 | I55: P | J55: 5 | K55: K | L55: 5 | M55: T | N55: 4 | O55: E | P55: 2 | Q55: 0 | R55: H | S55: 1 | T55: B | U55: X | V55: C | W55: X | X55: X | Y55: X | Z55: S | AA55: X | AB55: X | AC55: X | AD55: X | AE55: A | AF55: 6 | AH55: FC-280P5K5T4E20H1BXCXXXSXXXXA6 | AI55: 134U3000 | AJ55: K2
B56: 134U3001 | C56: F | D56: C | E56: - | F56: 2 | G56: 8 | H56: 0 | I56: P | J56: 7 | K56: K | L56: 5 | M56: T | N56: 4 | O56: E | P56: 2 | Q56: 0 | R56: H | S56: 1 | T56: B | U56: X | V56: C | W56: X | X56: X | Y56: X | Z56: S | AA56: X | AB56: X | AC56: X | AD56: X | AE56: A | AF56: 6 | AH56: FC-280P7K5T4E20H1BXCXXXSXXXXA6 | AI56: 134U3001 | AJ56: K3
B57: 134U3002 | C57: F | D57: C | E57: - | F57: 2 | G57: 8 | H57: 0 | I57: P | J57: 1 | K57: 1 | L57: K | M57: T | N57: 4 | O57: E | P57: 2 | Q57: 0 | R57: H | S57: 1 | T57: B | U57: X | V57: C | W57: X | X57: X | Y57: X | Z57: S | AA57: X | AB57: X | AC57: X | AD57: X | AE57: A | AF57: 6 | AH57: FC-280P11KT4E20H1BXCXXXSXXXXA6 | AI57: 134U3002 | AJ57: K4
B58: 134U3003 | C58: F | D58: C | E58: - | F58: 2 | G58: 8 | H58: 0 | I58: P | J58: 1 | K58: 5 | L58: K | M58: T | N58: 4 | O58: E | P58: 2 | Q58: 0 | R58: H | S58: 1 | T58: B | U58: X | V58: C | W58: X | X58: X | Y58: X | Z58: S | AA58: X | AB58: X | AC58: X | AD58: X | AE58: A | AF58: 6 | AH58: FC-280P15KT4E20H1BXCXXXSXXXXA6 | AI58: 134U3003 | AJ58: K4
B59: 134U3004 | C59: F | D59: C | E59: - | F59: 2 | G59: 8 | H59: 0 | I59: P | J59: 1 | K59: 8 | L59: K | M59: T | N59: 4 | O59: E | P59: 2 | Q59: 0 | R59: H | S59: 1 | T59: B | U59: X | V59: C | W59: X | X59: X | Y59: X | Z59: S | AA59: X | AB59: X | AC59: X | AD59: X | AE59: A | AF59: 6 | AH59: FC-280P18KT4E20H1BXCXXXSXXXXA6 | AI59: 134U3004 | AJ59: K5
B60: 134U3005 | C60: F | D60: C | E60: - | F60: 2 | G60: 8 | H60: 0 | I60: P | J60: 2 | K60: 2 | L60: K | M60: T | N60: 4 | O60: E | P60: 2 | Q60: 0 | R60: H | S60: 1 | T60: B | U60: X | V60: C | W60: X | X60: X | Y60: X | Z60: S | AA60: X | AB60: X | AC60: X | AD60: X | AE60: A | AF60: 6 | AH60: FC-280P22KT4E20H1BXCXXXSXXXXA6 | AI60: 134U3005 | AJ60: K5
B62: 134U3021 | C62: F | D62: C | E62: - | F62: 2 | G62: 8 | H62: 0 | I62: P | J62: K | K62: 3 | L62: 7 | M62: T | N62: 4 | O62: E | P62: 2 | Q62: 0 | R62: H | S62: 2 | T62: B | U62: X | V62: C | W62: X | X62: X | Y62: X | Z62: S | AA62: X | AB62: X | AC62: X | AD62: X | AE62: A | AF62: 6 | AH62: FC-280PK37T4E20H2BXCXXXSXXXXA6 | AI62: 134U3021 | AJ62: K1
B63: 134U3022 | C63: F | D63: C | E63: - | F63: 2 | G63: 8 | H63: 0 | I63: P | J63: K | K63: 5 | L63: 5 | M63: T | N63: 4 | O63: E | P63: 2 | Q63: 0 | R63: H | S63: 2 | T63: B | U63: X | V63: C | W63: X | X63: X | Y63: X | Z63: S | AA63: X | AB63: X | AC63: X | AD63: X | AE63: A | AF63: 6 | AH63: FC-280PK55T4E20H2BXCXXXSXXXXA6 | AI63: 134U3022 | AJ63: K1
B64: 134U3023 | C64: F | D64: C | E64: - | F64: 2 | G64: 8 | H64: 0 | I64: P | J64: K | K64: 7 | L64: 5 | M64: T | N64: 4 | O64: E | P64: 2 | Q64: 0 | R64: H | S64: 2 | T64: B | U64: X | V64: C | W64: X | X64: X | Y64: X | Z64: S | AA64: X | AB64: X | AC64: X | AD64: X | AE64: A | AF64: 6 | AH64: FC-280PK75T4E20H2BXCXXXSXXXXA6 | AI64: 134U3023 | AJ64: K1
B65: 134U3024 | C65: F | D65: C | E65: - | F65: 2 | G65: 8 | H65: 0 | I65: P | J65: 1 | K65: K | L65: 1 | M65: T | N65: 4 | O65: E | P65: 2 | Q65: 0 | R65: H | S65: 2 | T65: B | U65: X | V65: C | W65: X | X65: X | Y65: X | Z65: S | AA65: X | AB65: X | AC65: X | AD65: X | AE65: A | AF65: 6 | AH65: FC-280P1K1T4E20H2BXCXXXSXXXXA6 | AI65: 134U3024 | AJ65: K1
B66: 134U3025 | C66: F | D66: C | E66: - | F66: 2 | G66: 8 | H66: 0 | I66: P | J66: 1 | K66: K | L66: 5 | M66: T | N66: 4 | O66: E | P66: 2 | Q66: 0 | R66: H | S66: 2 | T66: B | U66: X | V66: C | W66: X | X66: X | Y66: X | Z66: S | AA66: X | AB66: X | AC66: X | AD66: X | AE66: A | AF66: 6 | AH66: FC-280P1K5T4E20H2BXCXXXSXXXXA6 | AI66: 134U3025 | AJ66: K1
B67: 134U3026 | C67: F | D67: C | E67: - | F67: 2 | G67: 8 | H67: 0 | I67: P | J67: 2 | K67: K | L67: 2 | M67: T | N67: 4 | O67: E | P67: 2 | Q67: 0 | R67: H | S67: 2 | T67: B | U67: X | V67: C | W67: X | X67: X | Y67: X | Z67: S | AA67: X | AB67: X | AC67: X | AD67: X | AE67: A | AF67: 6 | AH67: =+CONCATENATE(C67,D67,E67,F67,G67,H67,I67,J67,K67,L67,M67,N67,O67,P67,Q67,R67,S67,T67,U67,V67,W67,X67,Y67,Z67,AA67,AB67,AC67,AD67,AE67,AF67) -> FC-280P2K2T4E20H2BXCXXXSXXXXA6 | AI67: 134U3026 | AJ67: K1
B68: 134U3027 | C68: F | D68: C | E68: - | F68: 2 | G68: 8 | H68: 0 | I68: P | J68: 3 | K68: K | L68: 0 | M68: T | N68: 4 | O68: E | P68: 2 | Q68: 0 | R68: H | S68: 2 | T68: B | U68: X | V68: C | W68: X | X68: X | Y68: X | Z68: S | AA68: X | AB68: X | AC68: X | AD68: X | AE68: A | AF68: 6 | AH68: FC-280P3K0T4E20H2BXCXXXSXXXXA6 | AI68: 134U3027 | AJ68: K2
B69: 134U3028 | C69: F | D69: C | E69: - | F69: 2 | G69: 8 | H69: 0 | I69: P | J69: 4 | K69: K | L69: 0 | M69: T | N69: 4 | O69: E | P69: 2 | Q69: 0 | R69: H | S69: 2 | T69: B | U69: X | V69: C | W69: X | X69: X | Y69: X | Z69: S | AA69: X | AB69: X | AC69: X | AD69: X | AE69: A | AF69: 6 | AH69: FC-280P4K0T4E20H2BXCXXXSXXXXA6 | AI69: 134U3028 | AJ69: K2
B70: 134U3029 | C70: F | D70: C | E70: - | F70: 2 | G70: 8 | H70: 0 | I70: P | J70: 5 | K70: K | L70: 5 | M70: T | N70: 4 | O70: E | P70: 2 | Q70: 0 | R70: H | S70: 2 | T70: B | U70: X | V70: C | W70: X | X70: X | Y70: X | Z70: S | AA70: X | AB70: X | AC70: X | AD70: X | AE70: A | AF70: 6 | AH70: FC-280P5K5T4E20H2BXCXXXSXXXXA6 | AI70: 134U3029 | AJ70: K2
B71: 134U3030 | C71: F | D71: C | E71: - | F71: 2 | G71: 8 | H71: 0 | I71: P | J71: 7 | K71: K | L71: 5 | M71: T | N71: 4 | O71: E | P71: 2 | Q71: 0 | R71: H | S71: 2 | T71: B | U71: X | V71: C | W71: X | X71: X | Y71: X | Z71: S | AA71: X | AB71: X | AC71: X | AD71: X | AE71: A | AF71: 6 | AH71: FC-280P7K5T4E20H2BXCXXXSXXXXA6 | AI71: 134U3030 | AJ71: K3
B72: 134U3031 | C72: F | D72: C | E72: - | F72: 2 | G72: 8 | H72: 0 | I72: P | J72: 1 | K72: 1 | L72: K | M72: T | N72: 4 | O72: E | P72: 2 | Q72: 0 | R72: H | S72: 2 | T72: B | U72: X | V72: C | W72: X | X72: X | Y72: X | Z72: S | AA72: X | AB72: X | AC72: X | AD72: X | AE72: A | AF72: 6 | AH72: FC-280P11KT4E20H2BXCXXXSXXXXA6 | AI72: 134U3031 | AJ72: K4
B73: 134U3032 | C73: F | D73: C | E73: - | F73: 2 | G73: 8 | H73: 0 | I73: P | J73: 1 | K73: 5 | L73: K | M73: T | N73: 4 | O73: E | P73: 2 | Q73: 0 | R73: H | S73: 2 | T73: B | U73: X | V73: C | W73: X | X73: X | Y73: X | Z73: S | AA73: X | AB73: X | AC73: X | AD73: X | AE73: A | AF73: 6 | AH73: FC-280P15KT4E20H2BXCXXXSXXXXA6 | AI73: 134U3032 | AJ73: K4
B74: 134U3033 | C74: F | D74: C | E74: - | F74: 2 | G74: 8 | H74: 0 | I74: P | J74: 1 | K74: 8 | L74: K | M74: T | N74: 4 | O74: E | P74: 2 | Q74: 0 | R74: H | S74: 2 | T74: B | U74: X | V74: C | W74: X | X74: X | Y74: X | Z74: S | AA74: X | AB74: X | AC74: X | AD74: X | AE74: A | AF74: 6 | AH74: FC-280P18KT4E20H2BXCXXXSXXXXA6 | AI74: 134U3033 | AJ74: K5
B75: 134U3034 | C75: F | D75: C | E75: - | F75: 2 | G75: 8 | H75: 0 | I75: P | J75: 2 | K75: 2 | L75: K | M75: T | N75: 4 | O75: E | P75: 2 | Q75: 0 | R75: H | S75: 2 | T75: B | U75: X | V75: C | W75: X | X75: X | Y75: X | Z75: S | AA75: X | AB75: X | AC75: X | AD75: X | AE75: A | AF75: 6 | AH75: FC-280P22KT4E20H2BXCXXXSXXXXA6 | AI75: 134U3034 | AJ75: K5
B77: 134U7953 | C77: F | D77: C | E77: - | F77: 2 | G77: 8 | H77: 0 | I77: P | J77: K | K77: 3 | L77: 7 | M77: T | N77: 2 | O77: E | P77: 2 | Q77: 0 | R77: H | S77: 2 | T77: B | U77: X | V77: C | W77: X | X77: X | Y77: X | Z77: S | AA77: X | AB77: X | AC77: X | AD77: X | AE77: A | AF77: 6 | AH77: FC-280PK37T2E20H2BXCXXXSXXXXA6 | AI77: 134U7953 | AJ77: K1
B78: 134U7954 | C78: F | D78: C | E78: - | F78: 2 | G78: 8 | H78: 0 | I78: P | J78: K | K78: 5 | L78: 5 | M78: T | N78: 2 | O78: E | P78: 2 | Q78: 0 | R78: H | S78: 2 | T78: B | U78: X | V78: C | W78: X | X78: X | Y78: X | Z78: S | AA78: X | AB78: X | AC78: X | AD78: X | AE78: A | AF78: 6 | AH78: FC-280PK55T2E20H2BXCXXXSXXXXA6 | AI78: 134U7954 | AJ78: K1
B79: 134U7955 | C79: F | D79: C | E79: - | F79: 2 | G79: 8 | H79: 0 | I79: P | J79: K | K79: 7 | L79: 5 | M79: T | N79: 2 | O79: E | P79: 2 | Q79: 0 | R79: H | S79: 2 | T79: B | U79: X | V79: C | W79: X | X79: X | Y79: X | Z79: S | AA79: X | AB79: X | AC79: X | AD79: X | AE79: A | AF79: 6 | AH79: FC-280PK75T2E20H2BXCXXXSXXXXA6 | AI79: 134U7955 | AJ79: K1
B80: 134U7956 | C80: F | D80: C | E80: - | F80: 2 | G80: 8 | H80: 0 | I80: P | J80: 1 | K80: K | L80: 1 | M80: T | N80: 2 | O80: E | P80: 2 | Q80: 0 | R80: H | S80: 2 | T80: B | U80: X | V80: C | W80: X | X80: X | Y80: X | Z80: S | AA80: X | AB80: X | AC80: X | AD80: X | AE80: A | AF80: 6 | AH80: FC-280P1K1T2E20H2BXCXXXSXXXXA6 | AI80: 134U7956 | AJ80: K1
B81: 134U7957 | C81: F | D81: C | E81: - | F81: 2 | G81: 8 | H81: 0 | I81: P | J81: 1 | K81: K | L81: 5 | M81: T | N81: 2 | O81: E | P81: 2 | Q81: 0 | R81: H | S81: 2 | T81: B | U81: X | V81: C | W81: X | X81: X | Y81: X | Z81: S | AA81: X | AB81: X | AC81: X | AD81: X | AE81: A | AF81: 6 | AH81: FC-280P1K5T2E20H2BXCXXXSXXXXA6 | AI81: 134U7957 | AJ81: K1
B82: 134U7958 | C82: F | D82: C | E82: - | F82: 2 | G82: 8 | H82: 0 | I82: P | J82: 2 | K82: K | L82: 2 | M82: T | N82: 2 | O82: E | P82: 2 | Q82: 0 | R82: H | S82: 2 | T82: B | U82: X | V82: C | W82: X | X82: X | Y82: X | Z82: S | AA82: X | AB82: X | AC82: X | AD82: X | AE82: A | AF82: 6 | AH82: FC-280P2K2T2E20H2BXCXXXSXXXXA6 | AI82: 134U7958 | AJ82: K2
B83: 134U7959 | C83: F | D83: C | E83: - | F83: 2 | G83: 8 | H83: 0 | I83: P | J83: 3 | K83: K | L83: 7 | M83: T | N83: 2 | O83: E | P83: 2 | Q83: 0 | R83: H | S83: 2 | T83: B | U83: X | V83: C | W83: X | X83: X | Y83: X | Z83: S | AA83: X | AB83: X | AC83: X | AD83: X | AE83: A | AF83: 6 | AH83: FC-280P3K7T2E20H2BXCXXXSXXXXA6 | AI83: 134U7959 | AJ83: K3
B85: 134X3058 | C85: F | D85: C | E85: - | F85: 2 | G85: 8 | H85: 0 | I85: P | J85: K | K85: 3 | L85: 7 | M85: S | N85: 2 | O85: E | P85: 2 | Q85: 0 | R85: H | S85: 1 | T85: X | U85: X | V85: C | W85: X | X85: X | Y85: X | Z85: S | AA85: X | AB85: X | AC85: X | AD85: X | AE85: A | AF85: 6 | AH85: FC-280PK37S2E20H1XXCXXXSXXXXA6 | AI85: 134X3058 | AJ85: K1
B86: 134X3059 | C86: F | D86: C | E86: - | F86: 2 | G86: 8 | H86: 0 | I86: P | J86: K | K86: 5 | L86: 5 | M86: S | N86: 2 | O86: E | P86: 2 | Q86: 0 | R86: H | S86: 1 | T86: X | U86: X | V86: C | W86: X | X86: X | Y86: X | Z86: S | AA86: X | AB86: X | AC86: X | AD86: X | AE86: A | AF86: 6 | AH86: FC-280PK55S2E20H1XXCXXXSXXXXA6 | AI86: 134X3059 | AJ86: K1
B87: 134X3060 | C87: F | D87: C | E87: - | F87: 2 | G87: 8 | H87: 0 | I87: P | J87: K | K87: 7 | L87: 5 | M87: S | N87: 2 | O87: E | P87: 2 | Q87: 0 | R87: H | S87: 1 | T87: X | U87: X | V87: C | W87: X | X87: X | Y87: X | Z87: S | AA87: X | AB87: X | AC87: X | AD87: X | AE87: A | AF87: 6 | AH87: FC-280PK75S2E20H1XXCXXXSXXXXA6 | AI87: 134X3060 | AJ87: K1
B88: 134X3061 | C88: F | D88: C | E88: - | F88: 2 | G88: 8 | H88: 0 | I88: P | J88: 1 | K88: K | L88: 1 | M88: S | N88: 2 | O88: E | P88: 2 | Q88: 0 | R88: H | S88: 1 | T88: X | U88: X | V88: C | W88: X | X88: X | Y88: X | Z88: S | AA88: X | AB88: X | AC88: X | AD88: X | AE88: A | AF88: 6 | AH88: FC-280P1K1S2E20H1XXCXXXSXXXXA6 | AI88: 134X3061 | AJ88: K1
B89: 134X3062 | C89: F | D89: C | E89: - | F89: 2 | G89: 8 | H89: 0 | I89: P | J89: 1 | K89: K | L89: 5 | M89: S | N89: 2 | O89: E | P89: 2 | Q89: 0 | R89: H | S89: 1 | T89: X | U89: X | V89: C | W89: X | X89: X | Y89: X | Z89: S | AA89: X | AB89: X | AC89: X | AD89: X | AE89: A | AF89: 6 | AH89: FC-280P1K5S2E20H1XXCXXXSXXXXA6 | AI89: 134X3062 | AJ89: K1
B90: 134X3063 | C90: F | D90: C | E90: - | F90: 2 | G90: 8 | H90: 0 | I90: P | J90: 2 | K90: K | L90: 2 | M90: S | N90: 2 | O90: E | P90: 2 | Q90: 0 | R90: H | S90: 1 | T90: X | U90: X | V90: C | W90: X | X90: X | Y90: X | Z90: S | AA90: X | AB90: X | AC90: X | AD90: X | AE90: A | AF90: 6 | AH90: FC-280P2K2S2E20H1XXCXXXSXXXXA6 | AI90: 134X3063 | AJ90: K2
B92: 134U7712 | C92: F | D92: C | E92: - | F92: 2 | G92: 8 | H92: 0 | I92: P | J92: K | K92: 3 | L92: 7 | M92: T | N92: 4 | O92: E | P92: 2 | Q92: 0 | R92: H | S92: 1 | T92: B | U92: X | V92: C | W92: X | X92: X | Y92: X | Z92: S | AA92: X | AB92: X | AC92: X | AD92: X | AE92: A | AF92: 0 | AH92: FC-280PK37T4E20H1BXCXXXSXXXXA0 | AI92: 134U7712 | AJ92: K1
B93: 134U7713 | C93: F | D93: C | E93: - | F93: 2 | G93: 8 | H93: 0 | I93: P | J93: K | K93: 5 | L93: 5 | M93: T | N93: 4 | O93: E | P93: 2 | Q93: 0 | R93: H | S93: 1 | T93: B | U93: X | V93: C | W93: X | X93: X | Y93: X | Z93: S | AA93: X | AB93: X | AC93: X | AD93: X | AE93: A | AF93: 0 | AH93: FC-280PK55T4E20H1BXCXXXSXXXXA0 | AI93: 134U7713 | AJ93: K1
B94: 134U7714 | C94: F | D94: C | E94: - | F94: 2 | G94: 8 | H94: 0 | I94: P | J94: K | K94: 7 | L94: 5 | M94: T | N94: 4 | O94: E | P94: 2 | Q94: 0 | R94: H | S94: 1 | T94: B | U94: X | V94: C | W94: X | X94: X | Y94: X | Z94: S | AA94: X | AB94: X | AC94: X | AD94: X | AE94: A | AF94: 0 | AH94: FC-280PK75T4E20H1BXCXXXSXXXXA0 | AI94: 134U7714 | AJ94: K1
B95: 134U7715 | C95: F | D95: C | E95: - | F95: 2 | G95: 8 | H95: 0 | I95: P | J95: 1 | K95: K | L95: 1 | M95: T | N95: 4 | O95: E | P95: 2 | Q95: 0 | R95: H | S95: 1 | T95: B | U95: X | V95: C | W95: X | X95: X | Y95: X | Z95: S | AA95: X | AB95: X | AC95: X | AD95: X | AE95: A | AF95: 0 | AH95: FC-280P1K1T4E20H1BXCXXXSXXXXA0 | AI95: 134U7715 | AJ95: K1
B96: 134U7716 | C96: F | D96: C | E96: - | F96: 2 | G96: 8 | H96: 0 | I96: P | J96: 1 | K96: K | L96: 5 | M96: T | N96: 4 | O96: E | P96: 2 | Q96: 0 | R96: H | S96: 1 | T96: B | U96: X | V96: C | W96: X | X96: X | Y96: X | Z96: S | AA96: X | AB96: X | AC96: X | AD96: X | AE96: A | AF96: 0 | AH96: FC-280P1K5T4E20H1BXCXXXSXXXXA0 | AI96: 134U7716 | AJ96: K1
B97: 134U7717 | C97: F | D97: C | E97: - | F97: 2 | G97: 8 | H97: 0 | I97: P | J97: 2 | K97: K | L97: 2 | M97: T | N97: 4 | O97: E | P97: 2 | Q97: 0 | R97: H | S97: 1 | T97: B | U97: X | V97: C | W97: X | X97: X | Y97: X | Z97: S | AA97: X | AB97: X | AC97: X | AD97: X | AE97: A | AF97: 0 | AH97: FC-280P2K2T4E20H1BXCXXXSXXXXA0 | AI97: 134U7717 | AJ97: K1
B98: 134U7718 | C98: F | D98: C | E98: - | F98: 2 | G98: 8 | H98: 0 | I98: P | J98: 3 | K98: K | L98: 0 | M98: T | N98: 4 | O98: E | P98: 2 | Q98: 0 | R98: H | S98: 1 | T98: B | U98: X | V98: C | W98: X | X98: X | Y98: X | Z98: S | AA98: X | AB98: X | AC98: X | AD98: X | AE98: A | AF98: 0 | AH98: FC-280P3K0T4E20H1BXCXXXSXXXXA0 | AI98: 134U7718 | AJ98: K2
B99: 134U7719 | C99: F | D99: C | E99: - | F99: 2 | G99: 8 | H99: 0 | I99: P | J99: 4 | K99: K | L99: 0 | M99: T | N99: 4 | O99: E | P99: 2 | Q99: 0 | R99: H | S99: 1 | T99: B | U99: X | V99: C | W99: X | X99: X | Y99: X | Z99: S | AA99: X | AB99: X | AC99: X | AD99: X | AE99: A | AF99: 0 | AH99: FC-280P4K0T4E20H1BXCXXXSXXXXA0 | AI99: 134U7719 | AJ99: K2
B100: 134U7720 | C100: F | D100: C | E100: - | F100: 2 | G100: 8 | H100: 0 | I100: P | J100: 5 | K100: K | L100: 5 | M100: T | N100: 4 | O100: E | P100: 2 | Q100: 0 | R100: H | S100: 1 | T100: B | U100: X | V100: C | W100: X | X100: X | Y100: X | Z100: S | AA100: X | AB100: X | AC100: X | AD100: X | AE100: A | AF100: 0 | AH100: FC-280P5K5T4E20H1BXCXXXSXXXXA0 | AI100: 134U7720 | AJ100: K2
B101: 134U7721 | C101: F | D101: C | E101: - | F101: 2 | G101: 8 | H101: 0 | I101: P | J101: 7 | K101: K | L101: 5 | M101: T | N101: 4 | O101: E | P101: 2 | Q101: 0 | R101: H | S101: 1 | T101: B | U101: X | V101: C | W101: X | X101: X | Y101: X | Z101: S | AA101: X | AB101: X | AC101: X | AD101: X | AE101: A | AF101: 0 | AH101: FC-280P7K5T4E20H1BXCXXXSXXXXA0 | AI101: 134U7721 | AJ101: K3
B102: 134U7722 | C102: F | D102: C | E102: - | F102: 2 | G102: 8 | H102: 0 | I102: P | J102: 1 | K102: 1 | L102: K | M102: T | N102: 4 | O102: E | P102: 2 | Q102: 0 | R102: H | S102: 1 | T102: B | U102: X | V102: C | W102: X | X102: X | Y102: X | Z102: S | AA102: X | AB102: X | AC102: X | AD102: X | AE102: A | AF102: 0 | AH102: FC-280P11KT4E20H1BXCXXXSXXXXA0 | AI102: 134U7722 | AJ102: K4
B103: 134U7723 | C103: F | D103: C | E103: - | F103: 2 | G103: 8 | H103: 0 | I103: P | J103: 1 | K103: 5 | L103: K | M103: T | N103: 4 | O103: E | P103: 2 | Q103: 0 | R103: H | S103: 1 | T103: B | U103: X | V103: C | W103: X | X103: X | Y103: X | Z103: S | AA103: X | AB103: X | AC103: X | AD103: X | AE103: A | AF103: 0 | AH103: FC-280P15KT4E20H1BXCXXXSXXXXA0 | AI103: 134U7723 | AJ103: K4
B104: 134U7724 | C104: F | D104: C | E104: - | F104: 2 | G104: 8 | H104: 0 | I104: P | J104: 1 | K104: 8 | L104: K | M104: T | N104: 4 | O104: E | P104: 2 | Q104: 0 | R104: H | S104: 1 | T104: B | U104: X | V104: C | W104: X | X104: X | Y104: X | Z104: S | AA104: X | AB104: X | AC104: X | AD104: X | AE104: A | AF104: 0 | AH104: FC-280P18KT4E20H1BXCXXXSXXXXA0 | AI104: 134U7724 | AJ104: K5
B105: 134U7725 | C105: F | D105: C | E105: - | F105: 2 | G105: 8 | H105: 0 | I105: P | J105: 2 | K105: 2 | L105: K | M105: T | N105: 4 | O105: E | P105: 2 | Q105: 0 | R105: H | S105: 1 | T105: B | U105: X | V105: C | W105: X | X105: X | Y105: X | Z105: S | AA105: X | AB105: X | AC105: X | AD105: X | AE105: A | AF105: 0 | AH105: FC-280P22KT4E20H1BXCXXXSXXXXA0 | AI105: 134U7725 | AJ105: K5
B107: 134U7743 | C107: F | D107: C | E107: - | F107: 2 | G107: 8 | H107: 0 | I107: P | J107: K | K107: 3 | L107: 7 | M107: T | N107: 4 | O107: E | P107: 2 | Q107: 0 | R107: H | S107: 2 | T107: B | U107: X | V107: C | W107: X | X107: X | Y107: X | Z107: S | AA107: X | AB107: X | AC107: X | AD107: X | AE107: A | AF107: 0 | AH107: FC-280PK37T4E20H2BXCXXXSXXXXA0 | AI107: 134U7743 | AJ107: K1
B108: 134U7744 | C108: F | D108: C | E108: - | F108: 2 | G108: 8 | H108: 0 | I108: P | J108: K | K108: 5 | L108: 5 | M108: T | N108: 4 | O108: E | P108: 2 | Q108: 0 | R108: H | S108: 2 | T108: B | U108: X | V108: C | W108: X | X108: X | Y108: X | Z108: S | AA108: X | AB108: X | AC108: X | AD108: X | AE108: A | AF108: 0 | AH108: FC-280PK55T4E20H2BXCXXXSXXXXA0 | AI108: 134U7744 | AJ108: K1
B109: 134U7745 | C109: F | D109: C | E109: - | F109: 2 | G109: 8 | H109: 0 | I109: P | J109: K | K109: 7 | L109: 5 | M109: T | N109: 4 | O109: E | P109: 2 | Q109: 0 | R109: H | S109: 2 | T109: B | U109: X | V109: C | W109: X | X109: X | Y109: X | Z109: S | AA109: X | AB109: X | AC109: X | AD109: X | AE109: A | AF109: 0 | AH109: FC-280PK75T4E20H2BXCXXXSXXXXA0 | AI109: 134U7745 | AJ109: K1
B110: 134U7746 | C110: F | D110: C | E110: - | F110: 2 | G110: 8 | H110: 0 | I110: P | J110: 1 | K110: K | L110: 1 | M110: T | N110: 4 | O110: E | P110: 2 | Q110: 0 | R110: H | S110: 2 | T110: B | U110: X | V110: C | W110: X | X110: X | Y110: X | Z110: S | AA110: X | AB110: X | AC110: X | AD110: X | AE110: A | AF110: 0 | AH110: FC-280P1K1T4E20H2BXCXXXSXXXXA0 | AI110: 134U7746 | AJ110: K1
B111: 134U7747 | C111: F | D111: C | E111: - | F111: 2 | G111: 8 | H111: 0 | I111: P | J111: 1 | K111: K | L111: 5 | M111: T | N111: 4 | O111: E | P111: 2 | Q111: 0 | R111: H | S111: 2 | T111: B | U111: X | V111: C | W111: X | X111: X | Y111: X | Z111: S | AA111: X | AB111: X | AC111: X | AD111: X | AE111: A | AF111: 0 | AH111: FC-280P1K5T4E20H2BXCXXXSXXXXA0 | AI111: 134U7747 | AJ111: K1
B112: 134U7748 | C112: F | D112: C | E112: - | F112: 2 | G112: 8 | H112: 0 | I112: P | J112: 2 | K112: K | L112: 2 | M112: T | N112: 4 | O112: E | P112: 2 | Q112: 0 | R112: H | S112: 2 | T112: B | U112: X | V112: C | W112: X | X112: X | Y112: X | Z112: S | AA112: X | AB112: X | AC112: X | AD112: X | AE112: A | AF112: 0 | AH112: FC-280P2K2T4E20H2BXCXXXSXXXXA0 | AI112: 134U7748 | AJ112: K1
B113: 134U7749 | C113: F | D113: C | E113: - | F113: 2 | G113: 8 | H113: 0 | I113: P | J113: 3 | K113: K | L113: 0 | M113: T | N113: 4 | O113: E | P113: 2 | Q113: 0 | R113: H | S113: 2 | T113: B | U113: X | V113: C | W113: X | X113: X | Y113: X | Z113: S | AA113: X | AB113: X | AC113: X | AD113: X | AE113: A | AF113: 0 | AH113: FC-280P3K0T4E20H2BXCXXXSXXXXA0 | AI113: 134U7749 | AJ113: K2
B114: 134U7750 | C114: F | D114: C | E114: - | F114: 2 | G114: 8 | H114: 0 | I114: P | J114: 4 | K114: K | L114: 0 | M114: T | N114: 4 | O114: E | P114: 2 | Q114: 0 | R114: H | S114: 2 | T114: B | U114: X | V114: C | W114: X | X114: X | Y114: X | Z114: S | AA114: X | AB114: X | AC114: X | AD114: X | AE114: A | AF114: 0 | AH114: FC-280P4K0T4E20H2BXCXXXSXXXXA0 | AI114: 134U7750 | AJ114: K2
B115: 134U7751 | C115: F | D115: C | E115: - | F115: 2 | G115: 8 | H115: 0 | I115: P | J115: 5 | K115: K | L115: 5 | M115: T | N115: 4 | O115: E | P115: 2 | Q115: 0 | R115: H | S115: 2 | T115: B | U115: X | V115: C | W115: X | X115: X | Y115: X | Z115: S | AA115: X | AB115: X | AC115: X | AD115: X | AE115: A | AF115: 0 | AH115: FC-280P5K5T4E20H2BXCXXXSXXXXA0 | AI115: 134U7751 | AJ115: K2
B116: 134U7752 | C116: F | D116: C | E116: - | F116: 2 | G116: 8 | H116: 0 | I116: P | J116: 7 | K116: K | L116: 5 | M116: T | N116: 4 | O116: E | P116: 2 | Q116: 0 | R116: H | S116: 2 | T116: B | U116: X | V116: C | W116: X | X116: X | Y116: X | Z116: S | AA116: X | AB116: X | AC116: X | AD116: X | AE116: A | AF116: 0 | AH116: FC-280P7K5T4E20H2BXCXXXSXXXXA0 | AI116: 134U7752 | AJ116: K3
B117: 134U7753 | C117: F | D117: C | E117: - | F117: 2 | G117: 8 | H117: 0 | I117: P | J117: 1 | K117: 1 | L117: K | M117: T | N117: 4 | O117: E | P117: 2 | Q117: 0 | R117: H | S117: 2 | T117: B | U117: X | V117: C | W117: X | X117: X | Y117: X | Z117: S | AA117: X | AB117: X | AC117: X | AD117: X | AE117: A | AF117: 0 | AH117: FC-280P11KT4E20H2BXCXXXSXXXXA0 | AI117: 134U7753 | AJ117: K4
B118: 134U7754 | C118: F | D118: C | E118: - | F118: 2 | G118: 8 | H118: 0 | I118: P | J118: 1 | K118: 5 | L118: K | M118: T | N118: 4 | O118: E | P118: 2 | Q118: 0 | R118: H | S118: 2 | T118: B | U118: X | V118: C | W118: X | X118: X | Y118: X | Z118: S | AA118: X | AB118: X | AC118: X | AD118: X | AE118: A | AF118: 0 | AH118: FC-280P15KT4E20H2BXCXXXSXXXXA0 | AI118: 134U7754 | AJ118: K4
B119: 134U7755 | C119: F | D119: C | E119: - | F119: 2 | G119: 8 | H119: 0 | I119: P | J119: 1 | K119: 8 | L119: K | M119: T | N119: 4 | O119: E | P119: 2 | Q119: 0 | R119: H | S119: 2 | T119: B | U119: X | V119: C | W119: X | X119: X | Y119: X | Z119: S | AA119: X | AB119: X | AC119: X | AD119: X | AE119: A | AF119: 0 | AH119: FC-280P18KT4E20H2BXCXXXSXXXXA0 | AI119: 134U7755 | AJ119: K5
B120: 134U7756 | C120: F | D120: C | E120: - | F120: 2 | G120: 8 | H120: 0 | I120: P | J120: 2 | K120: 2 | L120: K | M120: T | N120: 4 | O120: E | P120: 2 | Q120: 0 | R120: H | S120: 2 | T120: B | U120: X | V120: C | W120: X | X120: X | Y120: X | Z120: S | AA120: X | AB120: X | AC120: X | AD120: X | AE120: A | AF120: 0 | AH120: FC-280P22KT4E20H2BXCXXXSXXXXA0 | AI120: 134U7756 | AJ120: K5
B122: 134U7960 | C122: F | D122: C | E122: - | F122: 2 | G122: 8 | H122: 0 | I122: P | J122: K | K122: 3 | L122: 7 | M122: T | N122: 2 | O122: E | P122: 2 | Q122: 0 | R122: H | S122: 2 | T122: B | U122: X | V122: C | W122: X | X122: X | Y122: X | Z122: S | AA122: X | AB122: X | AC122: X | AD122: X | AE122: A | AF122: 0 | AH122: FC-280PK37T2E20H2BXCXXXSXXXXA0 | AI122: 134U7960 | AJ122: K1
B123: 134U7961 | C123: F | D123: C | E123: - | F123: 2 | G123: 8 | H123: 0 | I123: P | J123: K | K123: 5 | L123: 5 | M123: T | N123: 2 | O123: E | P123: 2 | Q123: 0 | R123: H | S123: 2 | T123: B | U123: X | V123: C | W123: X | X123: X | Y123: X | Z123: S | AA123: X | AB123: X | AC123: X | AD123: X | AE123: A | AF123: 0 | AH123: FC-280PK55T2E20H2BXCXXXSXXXXA0 | AI123: 134U7961 | AJ123: K1
B124: 134U7962 | C124: F | D124: C | E124: - | F124: 2 | G124: 8 | H124: 0 | I124: P | J124: K | K124: 7 | L124: 5 | M124: T | N124: 2 | O124: E | P124: 2 | Q124: 0 | R124: H | S124: 2 | T124: B | U124: X | V124: C | W124: X | X124: X | Y124: X | Z124: S | AA124: X | AB124: X | AC124: X | AD124: X | AE124: A | AF124: 0 | AH124: FC-280PK75T2E20H2BXCXXXSXXXXA0 | AI124: 134U7962 | AJ124: K1
B125: 134U7963 | C125: F | D125: C | E125: - | F125: 2 | G125: 8 | H125: 0 | I125: P | J125: 1 | K125: K | L125: 1 | M125: T | N125: 2 | O125: E | P125: 2 | Q125: 0 | R125: H | S125: 2 | T125: B | U125: X | V125: C | W125: X | X125: X | Y125: X | Z125: S | AA125: X | AB125: X | AC125: X | AD125: X | AE125: A | AF125: 0 | AH125: FC-280P1K1T2E20H2BXCXXXSXXXXA0 | AI125: 134U7963 | AJ125: K1
B126: 134U7964 | C126: F | D126: C | E126: - | F126: 2 | G126: 8 | H126: 0 | I126: P | J126: 1 | K126: K | L126: 5 | M126: T | N126: 2 | O126: E | P126: 2 | Q126: 0 | R126: H | S126: 2 | T126: B | U126: X | V126: C | W126: X | X126: X | Y126: X | Z126: S | AA126: X | AB126: X | AC126: X | AD126: X | AE126: A | AF126: 0 | AH126: FC-280P1K5T2E20H2BXCXXXSXXXXA0 | AI126: 134U7964 | AJ126: K1
B127: 134U7965 | C127: F | D127: C | E127: - | F127: 2 | G127: 8 | H127: 0 | I127: P | J127: 2 | K127: K | L127: 2 | M127: T | N127: 2 | O127: E | P127: 2 | Q127: 0 | R127: H | S127: 2 | T127: B | U127: X | V127: C | W127: X | X127: X | Y127: X | Z127: S | AA127: X | AB127: X | AC127: X | AD127: X | AE127: A | AF127: 0 | AH127: FC-280P2K2T2E20H2BXCXXXSXXXXA0 | AI127: 134U7965 | AJ127: K2
B128: 134U7966 | C128: F | D128: C | E128: - | F128: 2 | G128: 8 | H128: 0 | I128: P | J128: 3 | K128: K | L128: 7 | M128: T | N128: 2 | O128: E | P128: 2 | Q128: 0 | R128: H | S128: 2 | T128: B | U128: X | V128: C | W128: X | X128: X | Y128: X | Z128: S | AA128: X | AB128: X | AC128: X | AD128: X | AE128: A | AF128: 0 | AH128: FC-280P3K7T2E20H2BXCXXXSXXXXA0 | AI128: 134U7966 | AJ128: K3
B130: 134X3064 | C130: F | D130: C | E130: - | F130: 2 | G130: 8 | H130: 0 | I130: P | J130: K | K130: 3 | L130: 7 | M130: S | N130: 2 | O130: E | P130: 2 | Q130: 0 | R130: H | S130: 1 | T130: X | U130: X | V130: C | W130: X | X130: X | Y130: X | Z130: S | AA130: X | AB130: X | AC130: X | AD130: X | AE130: A | AF130: 0 | AH130: FC-280PK37S2E20H1XXCXXXSXXXXA0 | AI130: 134X3064 | AJ130: K1
B131: 134X3065 | C131: F | D131: C | E131: - | F131: 2 | G131: 8 | H131: 0 | I131: P | J131: K | K131: 5 | L131: 5 | M131: S | N131: 2 | O131: E | P131: 2 | Q131: 0 | R131: H | S131: 1 | T131: X | U131: X | V131: C | W131: X | X131: X | Y131: X | Z131: S | AA131: X | AB131: X | AC131: X | AD131: X | AE131: A | AF131: 0 | AH131: =+CONCATENATE(C131,D131,E131,F131,G131,H131,I131,J131,K131,L131,M131,N131,O131,P131,Q131,R131,S131,T131,U131,V131,W131,X131,Y131,Z131,AA131,AB131,AC131,AD131,AE131,AF131) -> FC-280PK55S2E20H1XXCXXXSXXXXA0 | AI131: 134X3065 | AJ131: K1
B132: 134X3066 | C132: F | D132: C | E132: - | F132: 2 | G132: 8 | H132: 0 | I132: P | J132: K | K132: 7 | L132: 5 | M132: S | N132: 2 | O132: E | P132: 2 | Q132: 0 | R132: H | S132: 1 | T132: X | U132: X | V132: C | W132: X | X132: X | Y132: X | Z132: S | AA132: X | AB132: X | AC132: X | AD132: X | AE132: A | AF132: 0 | AH132: FC-280PK75S2E20H1XXCXXXSXXXXA0 | AI132: 134X3066 | AJ132: K1
B133: 134X3067 | C133: F | D133: C | E133: - | F133: 2 | G133: 8 | H133: 0 | I133: P | J133: 1 | K133: K | L133: 1 | M133: S | N133: 2 | O133: E | P133: 2 | Q133: 0 | R133: H | S133: 1 | T133: X | U133: X | V133: C | W133: X | X133: X | Y133: X | Z133: S | AA133: X | AB133: X | AC133: X | AD133: X | AE133: A | AF133: 0 | AH133: FC-280P1K1S2E20H1XXCXXXSXXXXA0 | AI133: 134X3067 | AJ133: K1
B134: 134X3068 | C134: F | D134: C | E134: - | F134: 2 | G134: 8 | H134: 0 | I134: P | J134: 1 | K134: K | L134: 5 | M134: S | N134: 2 | O134: E | P134: 2 | Q134: 0 | R134: H | S134: 1 | T134: X | U134: X | V134: C | W134: X | X134: X | Y134: X | Z134: S | AA134: X | AB134: X | AC134: X | AD134: X | AE134: A | AF134: 0 | AH134: FC-280P1K5S2E20H1XXCXXXSXXXXA0 | AI134: 134X3068 | AJ134: K1
B135: 134X3069 | C135: F | D135: C | E135: - | F135: 2 | G135: 8 | H135: 0 | I135: P | J135: 2 | K135: K | L135: 2 | M135: S | N135: 2 | O135: E | P135: 2 | Q135: 0 | R135: H | S135: 1 | T135: X | U135: X | V135: C | W135: X | X135: X | Y135: X | Z135: S | AA135: X | AB135: X | AC135: X | AD135: X | AE135: A | AF135: 0 | AH135: FC-280P2K2S2E20H1XXCXXXSXXXXA0 | AI135: 134X3069 | AJ135: K2
B137: 134U7727 | C137: F | D137: C | E137: - | F137: 2 | G137: 8 | H137: 0 | I137: P | J137: K | K137: 3 | L137: 7 | M137: T | N137: 4 | O137: E | P137: 2 | Q137: 0 | R137: H | S137: 1 | T137: B | U137: X | V137: C | W137: X | X137: X | Y137: X | Z137: S | AA137: X | AB137: X | AC137: X | AD137: X | AE137: A | AF137: L | AH137: FC-280PK37T4E20H1BXCXXXSXXXXAL | AI137: 134U7727 | AJ137: K1
B138: 134U7728 | C138: F | D138: C | E138: - | F138: 2 | G138: 8 | H138: 0 | I138: P | J138: K | K138: 5 | L138: 5 | M138: T | N138: 4 | O138: E | P138: 2 | Q138: 0 | R138: H | S138: 1 | T138: B | U138: X | V138: C | W138: X | X138: X | Y138: X | Z138: S | AA138: X | AB138: X | AC138: X | AD138: X | AE138: A | AF138: L | AH138: FC-280PK55T4E20H1BXCXXXSXXXXAL | AI138: 134U7728 | AJ138: K1
B139: 134U7729 | C139: F | D139: C | E139: - | F139: 2 | G139: 8 | H139: 0 | I139: P | J139: K | K139: 7 | L139: 5 | M139: T | N139: 4 | O139: E | P139: 2 | Q139: 0 | R139: H | S139: 1 | T139: B | U139: X | V139: C | W139: X | X139: X | Y139: X | Z139: S | AA139: X | AB139: X | AC139: X | AD139: X | AE139: A | AF139: L | AH139: FC-280PK75T4E20H1BXCXXXSXXXXAL | AI139: 134U7729 | AJ139: K1
B140: 134U7730 | C140: F | D140: C | E140: - | F140: 2 | G140: 8 | H140: 0 | I140: P | J140: 1 | K140: K | L140: 1 | M140: T | N140: 4 | O140: E | P140: 2 | Q140: 0 | R140: H | S140: 1 | T140: B | U140: X | V140: C | W140: X | X140: X | Y140: X | Z140: S | AA140: X | AB140: X | AC140: X | AD140: X | AE140: A | AF140: L | AH140: FC-280P1K1T4E20H1BXCXXXSXXXXAL | AI140: 134U7730 | AJ140: K1
B141: 134U7731 | C141: F | D141: C | E141: - | F141: 2 | G141: 8 | H141: 0 | I141: P | J141: 1 | K141: K | L141: 5 | M141: T | N141: 4 | O141: E | P141: 2 | Q141: 0 | R141: H | S141: 1 | T141: B | U141: X | V141: C | W141: X | X141: X | Y141: X | Z141: S | AA141: X | AB141: X | AC141: X | AD141: X | AE141: A | AF141: L | AH141: FC-280P1K5T4E20H1BXCXXXSXXXXAL | AI141: 134U7731 | AJ141: K1
B142: 134U7732 | C142: F | D142: C | E142: - | F142: 2 | G142: 8 | H142: 0 | I142: P | J142: 2 | K142: K | L142: 2 | M142: T | N142: 4 | O142: E | P142: 2 | Q142: 0 | R142: H | S142: 1 | T142: B | U142: X | V142: C | W142: X | X142: X | Y142: X | Z142: S | AA142: X | AB142: X | AC142: X | AD142: X | AE142: A | AF142: L | AH142: FC-280P2K2T4E20H1BXCXXXSXXXXAL | AI142: 134U7732 | AJ142: K1
B143: 134U7733 | C143: F | D143: C | E143: - | F143: 2 | G143: 8 | H143: 0 | I143: P | J143: 3 | K143: K | L143: 0 | M143: T | N143: 4 | O143: E | P143: 2 | Q143: 0 | R143: H | S143: 1 | T143: B | U143: X | V143: C | W143: X | X143: X | Y143: X | Z143: S | AA143: X | AB143: X | AC143: X | AD143: X | AE143: A | AF143: L | AH143: FC-280P3K0T4E20H1BXCXXXSXXXXAL | AI143: 134U7733 | AJ143: K2
B144: 134U7734 | C144: F | D144: C | E144: - | F144: 2 | G144: 8 | H144: 0 | I144: P | J144: 4 | K144: K | L144: 0 | M144: T | N144: 4 | O144: E | P144: 2 | Q144: 0 | R144: H | S144: 1 | T144: B | U144: X | V144: C | W144: X | X144: X | Y144: X | Z144: S | AA144: X | AB144: X | AC144: X | AD144: X | AE144: A | AF144: L | AH144: FC-280P4K0T4E20H1BXCXXXSXXXXAL | AI144: 134U7734 | AJ144: K2
